Workbook

Sheet liste (hidden)
A1: Kod | B1: Ad
A2: AVOD | B2: A.V.O.D Gıda Ve Tarım
A3: ACSEL | B3: Acıpayam Selüloz
A4: ADANA | B4: Adana Çimento (A)
A5: ADBGR | B5: Adana Çimento (B)
A6: ADNAC | B6: Adana Çimento (C)
A7: ADEL | B7: Adel Kalemcilik
A8: ADESE | B8: Adese Alışveriş Ticaret
A9: AFYON | B9: Afyon Çimento
A10: AKENR | B10: Ak Enerji
A11: AKBNK | B11: Akbank
A12: AKCNS | B12: Akçansa
A13: AKGUV | B13: Akdenız Güvenlık Hız.
A14: AKFGY | B14: Akfen GMYO
A15: ATEKS | B15: Akın Tekstil
A16: AKSGY | B16: Akiş GMYO
A17: AKMGY | B17: Akmerkez GMYO
A18: AKSA | B18: Aksa
A19: AKSEN | B19: Aksa Enerji
A20: AKGRT | B20: Aksigorta
A21: AKSUE | B21: Aksu Enerji
A22: ALCAR | B22: Alarko Carrıer
A23: ALGYO | B23: Alarko GMYO
A24: ALARK | B24: Alarko Holding
A25: ALBRK | B25: Albaraka Türk
A26: ALCTL | B26: Alcatel Lucent Teletaş
A27: ALKA | B27: Alkim Kağıt
A28: ALKIM | B28: Alkim Kimya
A29: ANACM | B29: Anadolu Cam
A30: AEFES | B30: Anadolu Efes
A31: AGHOL | B31: Anadolu Grubu Holding
A32: ANHYT | B32: Anadolu Hayat Emek.
A33: ASUZU | B33: Anadolu Isuzu
A34: ANSGR | B34: Anadolu Sigorta
A35: ANELE | B35: Anel Elektrik
A36: ARCLK | B36: Arçelik
A37: ARENA | B37: Arena Bilgisayar
A38: ARMDA | B38: Armada Bilgisayar
A39: ARSAN | B39: Arsan Tekstil
A40: ASELS | B40: Aselsan
A41: ASLAN | B41: Aslan Çimento
A42: ATAGY | B42: Ata GMYO
A43: AGYO | B43: Atakule GMYO
A44: AVISA | B44: AvivaSA Emeklilik Hayat
A45: AVGYO | B45: Avrasya GMYO
A46: AVTUR | B46: Avrasya Petrol ve Tur.
A47: AVHOL | B47: Avrupa Yatırım Holding
A48: AYEN | B48: Ayen Enerji
A49: AYGAZ | B49: Aygaz
A50: BAGFS | B50: Bagfaş
A51: BAKAB | B51: Bak Ambalaj
A52: BNTAS | B52: Bantaş Ambalaj
A53: BANVT | B53: Banvit
A54: BTCIM | B54: Batı Çimento
A55: BSOKE | B55: Batısöke Çimento
A56: BERA | B56: Bera Holding
A57: BRKSN | B57: Berkosan Yalıtım
A58: BJKAS | B58: Beşiktaş Futbol Yat.
A59: BEYAZ | B59: Beyaz Filo
A60: BLCYT | B60: Bilici Yatırım
A61: BIMAS | B61: Bim Mağazalar
A62: BIZIM | B62: Bizim Mağazaları
A63: BOLUC | B63: Bolu Çimento
A64: BRSAN | B64: Borusan Mannesmann
A65: BRYAT | B65: Borusan Yat. Paz.
A66: BFREN | B66: Bosch Fren Sistemleri
A67: BOSSA | B67: Bossa
A68: BOYP | B68: Boyner Perakende Yat.
A69: BRISA | B69: Brisa
A70: BURCE | B70: Burçelik
A71: BUCIM | B71: Bursa Çimento
A72: CRFSA | B72: Carrefoursa
A73: CCOLA | B73: Coca Cola İçecek
A74: CRDFA | B74: Credıtwest Faktorıng
A75: CLEBI | B75: Çelebi
A76: CELHA | B76: Çelik Halat
A77: CEMAS | B77: Çemaş Döküm
A78: CEMTS | B78: Çemtaş
A79: CMBTN | B79: Çimbeton
A80: CMENT | B80: Çimentaş
A81: CIMSA | B81: Çimsa
A82: CUSAN | B82: Çuhadaroğlu Metal
A83: DAGI | B83: Dagi Giyim
A84: DGATE | B84: Datagate Bilgisayar
A85: DMSAS | B85: Demısaş Döküm
A86: DENGE | B86: Denge Holding
A87: DZGYO | B87: Deniz GMYO
A88: DENIZ | B88: Denizbank
A89: DENCM | B89: Denizli Cam
A90: DERIM | B90: Derimod
A91: DESA | B91: Desa Deri
A92: DESPC | B92: Despec Bilgisayar
A93: DEVA | B93: Deva Holding
A94: DITAS | B94: Ditaş Doğan
A95: DOCO | B95: DO-CO
A96: DOHOL | B96: Doğan Holding
A97: DGKLB | B97: Doğtaş Kelebek Mobilya
A98: DOGUB | B98: Doğusan
A99: DGGYO | B99: Doğuş GMYO
A100: DOAS | B100: Doğuş Otomotiv
A101: DOKTA | B101: Döktaş Dökümcülük
A102: DURDO | B102: Duran Doğan Basım
A103: DYOBY | B103: Dyo Boya
A104: ECILC | B104: Eczacıbaşı İlaç
A105: ECZYT | B105: Eczacıbaşı Yatırım
A106: EDIP | B106: Edip Gayrimenkul
A107: EGEEN | B107: Ege Endüstri
A108: EGGUB | B108: Ege Gübre
A109: EGPRO | B109: Ege Profil
A110: EGSER | B110: Ege Seramik
A111: EMKEL | B111: Emek Elektrik
A112: EKGYO | B112: Emlak Konut GMYO
A113: ENJSA | B113: Enerjisa Enerji
A114: ENKAI | B114: Enka İnşaat
A115: ERBOS | B115: Erbosan
A116: EREGL | B116: Ereğli Demir Çelik
A117: ERSU | B117: Ersu Gıda
A118: ESCOM | B118: Escort Teknoloji
A119: EUHOL | B119: Euro Yatırım Holding
A120: FENER | B120: Fenerbahçe Futbol
A121: FLAP | B121: Flap Kongre Toplantı Hiz.
A122: FMIZP | B122: F-M İzmit Piston
A123: FONET | B123: Fonet Bilgi Teknolojileri
A124: FROTO | B124: Ford Otosan
A125: FORMT | B125: Formet Çelik Kapı
A126: GSRAY | B126: Galatasaray Sportif
A127: GARAN | B127: Garanti Bankası
A128: GARFA | B128: Garanti Faktoring
A129: GEDIK | B129: Gedik Y. Men. Değ.
A130: GEDZA | B130: Gediz Ambalaj
A131: GENTS | B131: Gentaş
A132: GEREL | B132: Gersan Elektrik
A133: GLYHO | B133: Global Yat. Holding
A134: GOODY | B134: Good-Year
A135: GOLTS | B135: Göltaş Çimento
A136: GOZDE | B136: Gözde Girişim
A137: GSDDE | B137: GSD Denizcilik
A138: GSDHO | B138: GSD Holding
A139: GUBRF | B139: Gübre Fabrik.
A140: GLRYH | B140: Güler Yat. Holding
A141: GUSGR | B141: Güneş Sigorta
A142: HLGYO | B142: Halk GMYO
A143: HATEK | B143: Hatay Tekstil
A144: HDFGS | B144: Hedef Girişim
A145: HEKTS | B145: Hektaş
A146: HURGZ | B146: Hürriyet Gzt.
A147: ICBCT | B147: ICBC Turkey Bank
A148: IEYHO | B148: Işıklar Enerji Yapı Hol.
A149: IDEAS | B149: İdealist Danışmanlık
A150: IHEVA | B150: İhlas Ev Aletleri
A151: IHLGM | B151: İhlas Gayrimenkul
A152: IHGZT | B152: İhlas Gazetecilik
A153: IHLAS | B153: İhlas Holding
A154: IHYAY | B154: İhlas Yayın Holding
A155: INDES | B155: İndeks Bilgisayar
A156: INTEM | B156: İntema
A157: IPEKE | B157: İpek Doğal Enerji
A158: ISDMR | B158: İskenderun Demir Çelik
A159: ISCTR | B159: İş Bankası (C)
A160: ISFIN | B160: İş Fin.Kir.
A161: ISGSY | B161: İş Girişim
A162: ISGYO | B162: İş GMYO
A163: ISMEN | B163: İş Y. Men. Değ.
A164: ITTFH | B164: İttifak Holding
A165: IZTAR | B165: İz Hayvancılık Tarım
A166: IZMDC | B166: İzmir Demir Çelik
A167: IZFAS | B167: İzmir Fırça
A168: IZOCM | B168: İzocam
A169: JANTS | B169: Jantsa Jant Sanayi
A170: KFEIN | B170: Kafein Yazılım
A171: KAPLM | B171: Kaplamin
A172: KRDMA | B172: Kardemir (A)
A173: KRDMB | B173: Kardemir (B)
A174: KRDMD | B174: Kardemir (D)
A175: KAREL | B175: Karel Elektronik
A176: KARSN | B176: Karsan Otomotiv
A177: KARTN | B177: Kartonsan
A178: KATMR | B178: Katmerciler Ekipman
A179: KENT | B179: Kent Gıda
A180: KERVT | B180: Kerevitaş Gıda
A181: KLGYO | B181: Kiler GMYO
A182: KLMSN | B182: Klimasan Klima
A183: KCHOL | B183: Koç Holding
A184: KNFRT | B184: Konfrut Gıda
A185: KONYA | B185: Konya Çimento
A186: KORDS | B186: Kordsa Teknik Tekstil
A187: KOZAL | B187: Koza Altın
A188: KOZAA | B188: Koza Madencilik
A189: KRSTL | B189: Kristal Kola
A190: KRONT | B190: Kron Telekomünikasyon
A191: KUYAS | B191: Kuyumcukent Gayrimenkul
A192: KUTPO | B192: Kütahya Porselen
A193: LINK | B193: Link Bilgisayar
A194: LOGO | B194: Logo Yazılım
A195: LKMNH | B195: Lokman Hekim Sağlık
A196: MAKTK | B196: Makina Takım
A197: MRDIN | B197: Mardin Çimento
A198: MARKA | B198: Marka Yatırım Holding
A199: MAALT | B199: Marmaris Altınyunus
A200: MRSHL | B200: Marshall
... 128 more rows

Sheet Mali Tablolar
A1: YGYO | B1: =VLOOKUP(A1,liste!$A$1:$B$328,2,0) -> Yeşil GMYO
B2: BİLANÇO | C2: 2013/12 | D2: 2014/12 | E2: 2015/12 | F2: 2016/12 | G2: 2017/12 | H2: 2018/12 | I2: 2019/03
B3: DÖNEN VARLIKLAR | C3: =INDIRECT($A$1&"!"&ADDRESS(ROW(),COLUMN())) -> 725058190 | D3: =INDIRECT($A$1&"!"&ADDRESS(ROW(),COLUMN())) -> 810615900 | E3: 1015997698 | F3: 1016132255 | G3: 1158989395 | H3: 1284442462 | I3: 1303923541
B4: Hazır Değerler | C4: =INDIRECT($A$1&"!"&ADDRESS(ROW(),COLUMN())) -> 541731 | D4: 2320577 | E4: 16667797 | F4: 896470 | G4: 261958 | H4: 0 | I4: 0
B5: Gayrimenkul Projeleri Kapsamında Açılan Nakit Hesapları | C5: 0 | D5: 0 | E5: 0 | F5: 0 | G5: 0 | H5: 1687403 | I5: 6779395
B6: Finansal Yatırımlar | C6: 0 | D6: 48819 | E6: 16221 | F6: 0 | G6: 0 | H6: 0 | I6: 0
B7: Menkul Kıymetler | C7: 0 | D7: 0 | E7: 0 | F7: 0 | G7: 0 | H7: 0 | I7: 0
B8: Türkiye Cumhuriyet Merkez Bankası Hesabı | C8: 0 | D8: 0 | E8: 0 | F8: 0 | G8: 0 | H8: 0 | I8: 0
B9: Krediler ve Avanslar | C9: 0 | D9: 0 | E9: 0 | F9: 0 | G9: 0 | H9: 0 | I9: 0
B10: Faktoring alacakları (net) | C10: 0 | D10: 0 | E10: 0 | F10: 0 | G10: 0 | H10: 0 | I10: 0
B11: Teminata Verilen Finansal Varlıklar | C11: 0 | D11: 0 | E11: 0 | F11: 0 | G11: 0 | H11: 0 | I11: 0
B12: Kısa Vadeli Ticari Alacaklar | C12: 169327386 | D12: 206500631 | E12: 161350331 | F12: 93669975 | G12: 64434319 | H12: 106925400 | I12: 118657069
B13: Finansal Kiralama Alacakları | C13: 0 | D13: 0 | E13: 0 | F13: 0 | G13: 0 | H13: 0 | I13: 0
B14: Finans Sektörü Faal. Alacaklar | C14: 0 | D14: 0 | E14: 0 | F14: 0 | G14: 0 | H14: 0 | I14: 0
B15: İlişkili Taraflardan Alacaklar | C15: 0 | D15: 0 | E15: 0 | F15: 0 | G15: 0 | H15: 0 | I15: 0
B16: Diğer Kısa Vadeli Alacaklar | C16: 35802434 | D16: 5465149 | E16: 195933 | F16: 3254646 | G16: 4493659 | H16: 11204613 | I16: 12574920
B17: Canlı Varlıklar | C17: 0 | D17: 0 | E17: 0 | F17: 0 | G17: 0 | H17: 0 | I17: 0
B18: Kullanımı Kısıtlı Banka Bakiyeleri | C18: 0 | D18: 0 | E18: 0 | F18: 0 | G18: 0 | H18: 0 | I18: 0
B19: Stoklar | C19: 304180500 | D19: 460218793 | E19: 636681658 | F19: 833776083 | G19: 946105734 | H19: 1026067803 | I19: 1026070303
B20: Peşin Ödenen Kira Giderleri | C20: =INDIRECT($A$1&"!"&ADDRESS(ROW(),COLUMN())) -> 0 | D20: 0 | E20: 0 | F20: 0 | G20: 0 | H20: 0 | I20: 0
B21: Müşteri Sözleşmelerinden Doğan Varlıklar | C21: 0 | D21: 0 | E21: 0 | F21: 0 | G21: 0 | H21: 0 | I21: 0
B22: İmtiyaz Sözleşmelerine İlişkin Finansal Varlıklar | C22: 0 | D22: 0 | E22: 0 | F22: 0 | G22: 0 | H22: 0 | I22: 0
B23: Türev Enstrümanlar | C23: 0 | D23: 0 | E23: 0 | F23: 0 | G23: 0 | H23: 0 | I23: 0
B24: Ertelenen Vergi Varlıkları | C24: 0 | D24: 0 | E24: 0 | F24: 0 | G24: 0 | H24: 0 | I24: 0
B25: Durdurulan faaliyetler ile ilgili varlıklar | C25: 0 | D25: 0 | E25: 0 | F25: 0 | G25: 0 | H25: 0 | I25: 0
B26: Peşin Ödenmiş Giderler | C26: 200576653 | D26: 113920251 | E26: 173546505 | F26: 32156324 | G26: 78657087 | H26: 69907600 | I26: 74826317
B27: Cari Dönem Vergisiyle İlgili Varlıklar | C27: 15443 | D27: 1560 | E27: 20342 | F27: 47477 | G27: 51188 | H27: 51188 | I27: 51188
B28: Nakit Dışı Serbest Kullanılabilir Teminatlar | C28: 0 | D28: 0 | E28: 0 | F28: 0 | G28: 0 | H28: 0 | I28: 0
B29: Diğer Dönen Varlıklar | C29: 14614043 | D29: 22140120 | E29: 27518911 | F29: 52331280 | G29: 64985450 | H29: 68598455 | I29: 64964349
B30: Vadesine kadar elde tut. men. kıy. | C30: 0 | D30: 0 | E30: 0 | F30: 0 | G30: 0 | H30: 0 | I30: 0
B31: Satılmaya Hazır Finansal Varlıklar | C31: 0 | D31: 0 | E31: 0 | F31: 0 | G31: 0 | H31: 0 | I31: 0
B32: Alım Satım Amaçlı Menkul Kıymetler | C32: 0 | D32: 0 | E32: 0 | F32: 0 | G32: 0 | H32: 0 | I32: 0
B33: İş Ortaklıklarının Dönen Varlıklar İçindeki Payı | C33: 0 | D33: 0 | E33: 0 | F33: 0 | G33: 0 | H33: 0 | I33: 0
B34: Elden Çıkarılacak Faaliyetler ile İlgili Varlıklar | C34: 0 | D34: 0 | E34: 0 | F34: 0 | G34: 0 | H34: 0 | I34: 0
B35: Satım amaçlı elde tutulan maddi duran varlıklar | C35: 0 | D35: 0 | E35: 0 | F35: 0 | G35: 0 | H35: 0 | I35: 0
B36: Ortaklara Dağıtılmak Üzere Elde Tutulan Duran Varlıklar | C36: =INDIRECT($A$1&"!"&ADDRESS(ROW(),COLUMN())) -> 0 | D36: 0 | E36: 0 | F36: 0 | G36: 0 | H36: 0 | I36: 0
B37: DURAN VARLIKLAR | C37: 283465638 | D37: 463173567 | E37: 473156598 | F37: 839255494 | G37: 880719565 | H37: 816188928 | I37: 804846332
B38: Menkul Kıymetler | C38: 0 | D38: 0 | E38: 0 | F38: 0 | G38: 0 | H38: 0 | I38: 0
B39: Krediler ve Avanslar | C39: 0 | D39: 0 | E39: 0 | F39: 0 | G39: 0 | H39: 0 | I39: 0
B40: Faktoring alacakları (net) | C40: 0 | D40: 0 | E40: 0 | F40: 0 | G40: 0 | H40: 0 | I40: 0
B41: Uzun Vadeli Ticari Alacaklar | C41: 154247226 | D41: 149357707 | E41: 124881069 | F41: 95987371 | G41: 60497431 | H41: 23742610 | I41: 20605273
B42: Finansal Kiralama Alacakları | C42: 0 | D42: 0 | E42: 0 | F42: 0 | G42: 0 | H42: 0 | I42: 0
B43: Finans Sektörü Faal. Alacaklar | C43: 0 | D43: 0 | E43: 0 | F43: 0 | G43: 0 | H43: 0 | I43: 0
B44: İlişkili Taraflardan Alacaklar | C44: 0 | D44: 0 | E44: 0 | F44: 0 | G44: 0 | H44: 0 | I44: 0
B45: Türev Enstrümanlar | C45: 0 | D45: 0 | E45: 0 | F45: 0 | G45: 0 | H45: 0 | I45: 0
B46: Diğer Uzun Vadeli Alacaklar | C46: 2665639 | D46: 4562769 | E46: 5566822 | F46: 5566822 | G46: 5566719 | H46: 5589364 | I46: 5589364
B47: Finansal Yatırımlar | C47: 0 | D47: 940000 | E47: 940000 | F47: 283254005 | G47: 283254005 | H47: 230020607 | I47: 230020607
B48: Özkaynak Yöntemiyle Değerlenen Yatırımlar | C48: 0 | D48: 162346042 | E48: 163091512 | F48: 159626136 | G48: 158709991 | H48: 147342972 | I48: 141692190
B49: Canlı Varlıklar | C49: 0 | D49: 0 | E49: 0 | F49: 0 | G49: 0 | H49: 0 | I49: 0
B50: İmtiyaz Sözleşmelerine İlişkin Finansal Varlıklar | C50: 0 | D50: 0 | E50: 0 | F50: 0 | G50: 0 | H50: 0 | I50: 0
B51: Stoklar | C51: 0 | D51: 0 | E51: 0 | F51: 0 | G51: 0 | H51: 0 | I51: 0
B52: Finansal Duran Varlıklar | C52: =INDIRECT($A$1&"!"&ADDRESS(ROW(),COLUMN())) -> 0 | D52: 0 | E52: 0 | F52: 0 | G52: 0 | H52: 0 | I52: 0
B53: Pozitif/Negatif Şerefiye | C53: 0 | D53: 0 | E53: 0 | F53: 0 | G53: 0 | H53: 0 | I53: 0
B54: Yatırım Amaçlı Gayrimenkuller | C54: 18941126 | D54: 24590000 | E54: 122695001 | F54: 156213678 | G54: 196522318 | H54: 208720480 | I54: 203651636
B55: Proje Halindeki Yatırım Amaçlı Gayrimenkuller | C55: 0 | D55: 0 | E55: 0 | F55: 0 | G55: 0 | H55: 0 | I55: 0
B56: Alım Satım Amaçlı Gayrimenkuller (net) | C56: 0 | D56: 0 | E56: 0 | F56: 0 | G56: 0 | H56: 0 | I56: 0
B57: Maddi Duran Varlıklar | C57: 830403 | D57: 676395 | E57: 214711 | F57: 142383 | G57: 1012050 | H57: 970934 | I57: 963600
B58: Kullanım Hakkı Varlıkları | C58: 0 | D58: 0 | E58: 0 | F58: 0 | G58: 0 | H58: 0 | I58: 0
B59: Maddi Olmayan Duran Varlıklar | C59: 182493 | D59: 151897 | E59: 102853 | F59: 63779 | G59: 44157 | H59: 19024 | I59: 15545
B60: Müşteri Sözleşmelerinden Doğan Varlıklar | C60: 0 | D60: 0 | E60: 0 | F60: 0 | G60: 0 | H60: 0 | I60: 0
B61: Ertelenen Vergi Varlıkları | C61: 0 | D61: 0 | E61: 0 | F61: 0 | G61: 0 | H61: 0 | I61: 0
B62: Cari Dönem Vergisiyle İlgili Duran Varlıklar | C62: 0 | D62: 0 | E62: 0 | F62: 0 | G62: 0 | H62: 0 | I62: 0
B63: Nakit Dışı Serbest Kullanılabilir Teminatlar | C63: 0 | D63: 0 | E63: 0 | F63: 0 | G63: 0 | H63: 0 | I63: 0
B64: Peşin Ödenen Kira Giderleri | C64: 0 | D64: 0 | E64: 0 | F64: 0 | G64: 0 | H64: 0 | I64: 0
B65: Peşin Ödenmiş Giderler | C65: 98654924 | D65: 112759075 | E65: 48034223 | F65: 134911512 | G65: 166987797 | H65: 191781149 | I65: 194337156
B66: Diğer Duran Varlıklar | C66: 7943827 | D66: 7789682 | E66: 7630407 | F66: 3489808 | G66: 8125097 | H66: 8001788 | I66: 7970961
B67: Vadesine kadar elde tut. men. kıy. | C67: 0 | D67: 0 | E67: 0 | F67: 0 | G67: 0 | H67: 0 | I67: 0
B68: Satılmaya Hazır Finansal Varlıklar | C68: =INDIRECT($A$1&"!"&ADDRESS(ROW(),COLUMN())) -> 0 | D68: 0 | E68: 0 | F68: 0 | G68: 0 | H68: 0 | I68: 0
B69: İş Ortaklıklarının Duran Varlıklar İçindeki Payı | C69: 0 | D69: 0 | E69: 0 | F69: 0 | G69: 0 | H69: 0 | I69: 0
B70: Ana Ortaklık Dışı Paylar | C70: 0 | D70: 0 | E70: 0 | F70: 0 | G70: 0 | H70: 0 | I70: 0
B71: TOPLAM AKTİFLER | C71: 1008523828 | D71: 1273789467 | E71: 1489154296 | F71: 1855387749 | G71: 2039708960 | H71: 2100631390 | I71: 2108769873
B72: KISA VADELİ YÜKÜMLÜLÜKLER | C72: 237828869 | D72: 203952849 | E72: 309397524 | F72: 487330151 | G72: 712873455 | H72: 941770994 | I72: 972059074
B73: Finansal Borçlar | C73: 139978113 | D73: 118702256 | E73: 177592555 | F73: 254741307 | G73: 315475080 | H73: 339491137 | I73: 340860200
B74: Uzun Vadeli Finansal Borçların Kısa Vadeli Kısımları | C74: 32115452 | D74: 31547006 | E74: 69178975 | F74: 98913757 | G74: 158129813 | H74: 189173412 | I74: 206535478
B75: Mevduat | C75: 0 | D75: 0 | E75: 0 | F75: 0 | G75: 0 | H75: 0 | I75: 0
B76: Türev Araçlar | C76: 0 | D76: 0 | E76: 0 | F76: 0 | G76: 0 | H76: 0 | I76: 0
B77: Faktoring borçları | C77: 0 | D77: 0 | E77: 0 | F77: 0 | G77: 0 | H77: 0 | I77: 0
B78: Finansal Kiralama İşlemlerinden Borçlar | C78: 0 | D78: 0 | E78: 0 | F78: 0 | G78: 0 | H78: 0 | I78: 0
B79: Finans Sektörü Faaliyetlerinden Borçlar | C79: 0 | D79: 0 | E79: 0 | F79: 0 | G79: 0 | H79: 0 | I79: 0
B80: Sigorta Teknik Karşılığı | C80: 0 | D80: 0 | E80: 0 | F80: 0 | G80: 0 | H80: 0 | I80: 0
B81: Diğer Finansal Yükümlülükler | C81: 0 | D81: 0 | E81: 0 | F81: 0 | G81: 176902 | H81: 0 | I81: 0
B82: Ticari Borçlar | C82: 28700303 | D82: 35529103 | E82: 54035923 | F82: 119389080 | G82: 208401628 | H82: 204093392 | I82: 212727275
B83: İlişkili Taraflara Borçlar | C83: 0 | D83: 0 | E83: 0 | F83: 0 | G83: 0 | H83: 0 | I83: 0
B84: Alınan Krediler | C84: =INDIRECT($A$1&"!"&ADDRESS(ROW(),COLUMN())) -> 0 | D84: 0 | E84: 0 | F84: 0 | G84: 0 | H84: 0 | I84: 0
B85: Diğer Borçlar | C85: 20214233 | D85: 5868984 | E85: 2424748 | F85: 7033511 | G85: 15097439 | H85: 192622102 | I85: 196071548
B86: Alınan Avanslar | C86: 0 | D86: 0 | E86: 0 | F86: 0 | G86: 0 | H86: 0 | I86: 0
B87: Devlet Teşvik ve Yardımları | C87: 0 | D87: 0 | E87: 0 | F87: 0 | G87: 0 | H87: 0 | I87: 0
B88: Ertelenmiş Gelirler | C88: 15713796 | D88: 10516994 | E88: 4175730 | F88: 2708638 | G88: 6047016 | H88: 6517302 | I88: 6384500
B89: Cari Dönem Vergi Yükümlülüğü | C89: 0 | D89: 0 | E89: 0 | F89: 0 | G89: 0 | H89: 0 | I89: 0
B90: Cari Dönem Vergisi ile İlgili Borçlar | C90: 0 | D90: 0 | E90: 0 | F90: 0 | G90: 0 | H90: 0 | I90: 0
B91: Bloke Hesaplar | C91: 0 | D91: 0 | E91: 0 | F91: 0 | G91: 0 | H91: 0 | I91: 0
B92: Müşteri Sözleşmelerinden Doğan Yükümlülükler | C92: 0 | D92: 0 | E92: 0 | F92: 0 | G92: 0 | H92: 0 | I92: 0
B93: Özkaynak Yöntemiyle Değerlenen Yatırımlardan Yükümlülükler | C93: 0 | D93: 0 | E93: 0 | F93: 0 | G93: 0 | H93: 277505 | I93: 284348
B94: Borç ve Gider Karşılıkları | C94: 0 | D94: 1089779 | E94: 1744278 | F94: 3549686 | G94: 8537527 | H94: 8439203 | I94: 8439203
B95: Çalışanlara Sağlanan Faydalara İlişkin Karşılıklar | C95: 1106972 | D95: 505947 | E95: 243607 | F95: 992121 | G95: 1008050 | H95: 1156941 | I95: 756522
B96: Ertelenen Vergi Yükümlülüğü | C96: 0 | D96: 0 | E96: 0 | F96: 0 | G96: 0 | H96: 0 | I96: 0
B97: Durdurulan faaliyetler ile ilgili yükümlülükler | C97: 0 | D97: 0 | E97: 0 | F97: 0 | G97: 0 | H97: 0 | I97: 0
B98: Diğer Kısa Vadeli Borçlar | C98: 0 | D98: 192780 | E98: 1708 | F98: 2051 | G98: 0 | H98: 0 | I98: 0
B99: İş Ortaklıklarının Kısa Vadeli Yükümlülükler İçindeki Payı | C99: 0 | D99: 0 | E99: 0 | F99: 0 | G99: 0 | H99: 0 | I99: 0
B100: Elden Çıkarılacak Faaliyetler ile İlgili Yükümlülükler | C100: =INDIRECT($A$1&"!"&ADDRESS(ROW(),COLUMN())) -> 0 | D100: 0 | E100: 0 | F100: 0 | G100: 0 | H100: 0 | I100: 0
B101: Ortaklara Dağıtılmak Üzere Elde Tutulan Varlık Gruplarına İlişkin Yükümlülükler | C101: 0 | D101: 0 | E101: 0 | F101: 0 | G101: 0 | H101: 0 | I101: 0
B102: UZUN VADELİ YÜKÜMLÜLÜKLER | C102: 515516860 | D102: 813706233 | E102: 925848306 | F102: 1131794740 | G102: 1084374565 | H102: 1046305071 | I102: 1041144113
B103: Mevduatlar | C103: 0 | D103: 0 | E103: 0 | F103: 0 | G103: 0 | H103: 0 | I103: 0
B104: Finansal Borçlar | C104: 71184528 | D104: 143561527 | E104: 158381270 | F104: 196264522 | G104: 145320327 | H104: 166975880 | I104: 163777777
B105: Faktoring borçları | C105: 0 | D105: 0 | E105: 0 | F105: 0 | G105: 0 | H105: 0 | I105: 0
B106: Finansal Kiralama İşlemlerinden Borçlar | C106: 0 | D106: 0 | E106: 0 | F106: 0 | G106: 0 | H106: 0 | I106: 0
B107: Finans Sektörü Faaliyetlerinden Borçlar | C107: 0 | D107: 0 | E107: 0 | F107: 0 | G107: 0 | H107: 0 | I107: 0
B108: Sigorta teknik karşılıkları | C108: 0 | D108: 0 | E108: 0 | F108: 0 | G108: 0 | H108: 0 | I108: 0
B109: Diğer Finansal Yükümlülükler | C109: 0 | D109: 0 | E109: 0 | F109: 0 | G109: 0 | H109: 0 | I109: 0
B110: Ticari Borçlar | C110: 1853106 | D110: 68695801 | E110: 57129714 | F110: 90110467 | G110: 0 | H110: 0 | I110: 0
B111: İlişkili Taraflara Borçlar | C111: 0 | D111: 0 | E111: 0 | F111: 0 | G111: 0 | H111: 0 | I111: 0
B112: Alınan Krediler | C112: 0 | D112: 0 | E112: 0 | F112: 0 | G112: 0 | H112: 0 | I112: 0
B113: Diğer Borçlar | C113: 0 | D113: 0 | E113: 0 | F113: 0 | G113: 36221779 | H113: 0 | I113: 0
B114: Müşteri Sözleşmelerinden Doğan Yükümlülükler | C114: 0 | D114: 0 | E114: 0 | F114: 0 | G114: 0 | H114: 0 | I114: 0
B115: Bloke Hesaplar | C115: 0 | D115: 0 | E115: 0 | F115: 0 | G115: 0 | H115: 0 | I115: 0
B116: Alınan Avanslar | C116: =INDIRECT($A$1&"!"&ADDRESS(ROW(),COLUMN())) -> 0 | D116: 0 | E116: 0 | F116: 0 | G116: 0 | H116: 0 | I116: 0
B117: Çalışanlara Sağlanan Faydalar Kapsamında Borçlar | C117: 0 | D117: 0 | E117: 0 | F117: 0 | G117: 0 | H117: 0 | I117: 0
B118: Borç ve Gider Karşılıkları | C118: 281997 | D118: 123403 | E118: 79751 | F118: 98897 | G118: 137169 | H118: 47137 | I118: 61883
B119: Türev Finansal Araçlardan Borçlar | C119: 0 | D119: 0 | E119: 0 | F119: 0 | G119: 0 | H119: 0 | I119: 0
B120: Cari Dönem Vergisiyle İlgili Borçlar | C120: 0 | D120: 0 | E120: 0 | F120: 0 | G120: 0 | H120: 0 | I120: 0
B121: Ertelenen Vergi Yükümlülüğü | C121: 0 | D121: 0 | E121: 0 | F121: 0 | G121: 0 | H121: 0 | I121: 0
B122: Devlet Teşvik ve Yardımları | C122: 0 | D122: 0 | E122: 0 | F122: 0 | G122: 0 | H122: 0 | I122: 0
B123: Ertelenmiş Gelirler | C123: 442197229 | D123: 601325502 | E123: 710257571 | F123: 845320854 | G123: 902695290 | H123: 879282054 | I123: 877304453
B124: Devam Eden Sözleşmeler Hakediş Bedelleri | C124: 0 | D124: 0 | E124: 0 | F124: 0 | G124: 0 | H124: 0 | I124: 0
B125: Pozitif/Negatif Şerefiye | C125: 0 | D125: 0 | E125: 0 | F125: 0 | G125: 0 | H125: 0 | I125: 0
B126: Diğer Uzun Vadeli Borçlar | C126: 0 | D126: 0 | E126: 0 | F126: 0 | G126: 0 | H126: 0 | I126: 0
B127: İş Ortaklıklarının Uzun Vadeli Yükümlülükler İçindeki Payı | C127: 0 | D127: 0 | E127: 0 | F127: 0 | G127: 0 | H127: 0 | I127: 0
B128: ÖZ SERMAYE (AZINLIK PAYI DAHİL) | C128: 255178099 | D128: 256130385 | E128: 253908466 | F128: 236262858 | G128: 242460940 | H128: 112555325 | I128: 95566686
B129: ANA ORTAKLIK DIŞI ÖZSERMAYE | C129: 0 | D129: 0 | E129: 0 | F129: 0 | G129: 0 | H129: 0 | I129: 0
B130: Aile Üyeleri | C130: 0 | D130: 0 | E130: 0 | F130: 0 | G130: 0 | H130: 0 | I130: 0
B131: Diğerleri | C131: 0 | D131: 0 | E131: 0 | F131: 0 | G131: 0 | H131: 0 | I131: 0
B132: ÖZ SERMAYE (ANA ORTAKLIĞA AİT) | C132: =INDIRECT($A$1&"!"&ADDRESS(ROW(),COLUMN())) -> 255178099 | D132: 256130385 | E132: 253908466 | F132: 236262858 | G132: 242460940 | H132: 112555325 | I132: 95566686
B133: Sermaye | C133: 235115706 | D133: 235115706 | E133: 235115706 | F133: 235115706 | G133: 235115706 | H133: 235115706 | I133: 235115706
B134: Ödenmeyen Sermaye(-) | C134: 0 | D134: 0 | E134: 0 | F134: 0 | G134: 0 | H134: 0 | I134: 0
B135: Karşılıklı İştirak Sermaye Düzeltmesi | C135: 0 | D135: 0 | E135: 0 | F135: 0 | G135: 0 | H135: 0 | I135: 0
B136: Paylara İlişkin Primler/İskontolar | C136: 2576 | D136: 2576 | E136: 2576 | F136: 2576 | G136: 2576 | H136: 2576 | I136: 2576
B137: İşletmenin Geri Satın Alınan Kendi Hisseleri | C137: 0 | D137: 0 | E137: -3279031 | F137: -3279031 | G137: -3279031 | H137: -3279031 | I137: -3279031
B138: İşletmenin Geri Alınan Kendi Hisse Senetlerinin Satışından Doğan Kar | C138: 0 | D138: 0 | E138: 0 | F138: 0 | G138: 0 | H138: 0 | I138: 0
B139: Sermaye Avansı | C139: 0 | D139: 0 | E139: 0 | F139: 0 | G139: 0 | H139: 0 | I139: 0
B140: Kar veya Zararda Yeniden Sınıflandırılmayacak Birikmiş Diğer Kapsamlı Gel. veya Gid. | C140: 0 | D140: 81104 | E140: 70223 | F140: 70223 | G140: 70223 | H140: 70223 | I140: 70223
B141: Kar veya Zararda Yeniden Sınıflandırılacak Birikmiş Diğer Kapsamlı Gelir. veya Gid. | C141: 0 | D141: 0 | E141: 0 | F141: 0 | G141: 0 | H141: 0 | I141: 0
B142: Sermaye Yedekleri | C142: 2576 | D142: 2576 | E142: 72799 | F142: 2576 | G142: 72799 | H142: 2576 | I142: 2576
B143: Sermaye Taahhütleri (-) | C143: 0 | D143: 0 | E143: 0 | F143: 0 | G143: 0 | H143: 0 | I143: 0
B144: Katkı sermaye | C144: 0 | D144: 0 | E144: 0 | F144: 0 | G144: 0 | H144: 0 | I144: 0
B145: Azınlık Hisseleri Satış Opsiyonu Değerleme Fonu | C145: 0 | D145: 0 | E145: 0 | F145: 0 | G145: 0 | H145: 0 | I145: 0
B146: Emisyon Primi | C146: 0 | D146: 0 | E146: 0 | F146: 0 | G146: 0 | H146: 0 | I146: 0
B147: Yeniden Değerleme Artışı | C147: 0 | D147: 81104 | E147: 0 | F147: 70223 | G147: 0 | H147: 0 | I147: 0
B148: Kar Yedekleri | C148: =INDIRECT($A$1&"!"&ADDRESS(ROW(),COLUMN())) -> 0 | D148: 0 | E148: 0 | F148: 0 | G148: 0 | H148: 0 | I148: 0
B149: Dağıtılmamış Kar | C149: 0 | D149: 0 | E149: 0 | F149: 0 | G149: 0 | H149: 0 | I149: 0
B150: Sermaye artırımı ile ilgili masraflar | C150: 0 | D150: 0 | E150: 0 | F150: 0 | G150: 0 | H150: 0 | I150: 0
B151: Nakit Akım Koruması ile İlgili Birikmiş Kar | C151: 0 | D151: 0 | E151: 0 | F151: 0 | G151: 0 | H151: 0 | I151: 0
B152: Karşılıklı İştirak Serm. Düzeltmesinin Nom. Tut. Aşan Kısım | C152: 0 | D152: 0 | E152: 0 | F152: 0 | G152: 0 | H152: 0 | I152: 0
B153: Finansal Yatırımlar Değer Artış Fonu | C153: 0 | D153: 0 | E153: 0 | F153: 0 | G153: 0 | H153: 0 | I153: 0
B154: Diğer Özkaynak Payları | C154: 0 | D154: 0 | E154: 0 | F154: 0 | G154: 0 | H154: 0 | I154: 0
B155: Diğer Yedekler | C155: 0 | D155: 0 | E155: 0 | F155: 0 | G155: 0 | H155: 0 | I155: 0
B156: Net Dönem Karı | C156: 39001995 | D156: 0 | E156: 1067993 | F156: 0 | G156: 6198082 | H156: 0 | I156: 0
B157: Dönem Zararı (-) | C157: 0 | D157: 18595242 | E157: 0 | F157: 17645608 | G157: 0 | H157: 129905615 | I157: 16988639
B158: Geçmiş Yıl Karları | C158: 0 | D158: 39526241 | E158: 20930999 | F158: 21998992 | G158: 4353384 | H158: 10551466 | I158: 0
B159: Net Dön. Kar. Ser. Hes. Ed. Tran. Ed. M. Dur. V. Sa. Karı | C159: 0 | D159: 0 | E159: 0 | F159: 0 | G159: 0 | H159: 0 | I159: 0
B160: Geçmiş Yıl Zararları (-) | C160: 18942178 | D160: 0 | E160: 0 | F160: 0 | G160: 0 | H160: 0 | I160: 119354149
B161: Yabancı Para Çevrim Farkları | C161: 0 | D161: 0 | E161: 0 | F161: 0 | G161: 0 | H161: 0 | I161: 0
B162: Kardan Ayrılan Kısıtlanmış Yedekler | C162: 0 | D162: 0 | E162: 0 | F162: 0 | G162: 0 | H162: 0 | I162: 0
B163: Kardan Ayrılan Kısıtlanmış Yedekler (27) | C163: 0 | D163: 0 | E163: 0 | F163: 0 | G163: 0 | H163: 0 | I163: 0
B164: Zarar Telafi Fonu | C164: =INDIRECT($A$1&"!"&ADDRESS(ROW(),COLUMN())) -> 0 | D164: 0 | E164: 0 | F164: 0 | G164: 0 | H164: 0 | I164: 0
B165: Özsermaye Enf. Düz. Farkları | C165: 0 | D165: 0 | E165: 0 | F165: 0 | G165: 0 | H165: 0 | I165: 0
B166: Sermaye Birleşme Fonu | C166: 0 | D166: 0 | E166: 0 | F166: 0 | G166: 0 | H166: 0 | I166: 0
B167: İlave Ödenmiş Sermaye | C167: 0 | D167: 0 | E167: 0 | F167: 0 | G167: 0 | H167: 0 | I167: 0
B168: Birikmiş Karlar/Zararlar | C168: 0 | D168: 0 | E168: 0 | F168: 0 | G168: 0 | H168: 0 | I168: 0
B169: Yatırım Teşvikleri | C169: 0 | D169: 0 | E169: 0 | F169: 0 | G169: 0 | H169: 0 | I169: 0
B170: Satılmaya Haz. Var. Üz. Gerçekleşmemiş Net Gelir | C170: 0 | D170: 0 | E170: 0 | F170: 0 | G170: 0 | H170: 0 | I170: 0
B171: Ana ortaklık hisse satış kar/zarar | C171: 0 | D171: 0 | E171: 0 | F171: 0 | G171: 0 | H171: 0 | I171: 0
B172: AZINLIK PAYLARI | C172: 0 | D172: 0 | E172: 0 | F172: 0 | G172: 0 | H172: 0 | I172: 0
B173: TOPLAM PASİFLER | C173: 1008523828 | D173: 1273789467 | E173: 1489154296 | F173: 1855387749 | G173: 2039708960 | H173: 2100631390 | I173: 2108769873
B178: Gelir Tablosu | C178: 2013/12 | D178: 2014/12 | E178: 2015/12 | F178: 2016/12 | G178: 2017/12 | H178: 2018/12 | I178: 2019/03
B179: BRÜT SATIŞLAR | C179: =INDIRECT($A$1&"!"&ADDRESS(ROW(),COLUMN())) -> 450263685 | D179: 9624385 | E179: 7406470 | F179: 0 | G179: 71205604 | H179: 27415243 | I179: 3624199
B180: Yurtiçi Satışlar | C180: 449775223 | D180: 6448890 | E180: 4654419 | F180: 0 | G180: 61815796 | H180: 10228654 | I180: 0
B181: Yurtdışı Satışlar | C181: 0 | D181: 0 | E181: 0 | F181: 0 | G181: 0 | H181: 0 | I181: 0
B182: Diğer Satışlar | C182: 488462 | D182: 3175495 | E182: 2752051 | F182: 0 | G182: 9389808 | H182: 17186589 | I182: 3624199
B183: SATIŞLARDAN İNDİRİMLER (-) | C183: 0 | D183: 0 | E183: 0 | F183: 0 | G183: 84925 | H183: 431284 | I183: 2921
B184: Satışdan İadeler (-) | C184: 0 | D184: 0 | E184: 0 | F184: 0 | G184: 0 | H184: 0 | I184: 2921
B185: Satış İskontoları (-) | C185: 0 | D185: 0 | E185: 0 | F185: 0 | G185: 0 | H185: 0 | I185: 0
B186: Diğer İndirimler (-) | C186: 0 | D186: 0 | E186: 0 | F186: 0 | G186: 84925 | H186: 431284 | I186: 0
B187: ESAS FAALİYET GELİRLERİ | C187: 0 | D187: 0 | E187: 0 | F187: 0 | G187: 0 | H187: 0 | I187: 0
B188: SATIŞ GELİRLERİ | C188: 450263685 | D188: 9624385 | E188: 7406470 | F188: 32626305 | G188: 71120679 | H188: 26983959 | I188: 3621278
B189: FAİZ GELİRİ | C189: 0 | D189: 0 | E189: 0 | F189: 0 | G189: 0 | H189: 0 | I189: 0
B190: SATIŞLARIN MALİYETİ (-) | C190: 413666851 | D190: 7861750 | E190: 4607745 | F190: 21665364 | G190: 43454604 | H190: 9130389 | I190: 143792
B191: FAİZ GİDERİ | C191: 0 | D191: 0 | E191: 0 | F191: 0 | G191: 0 | H191: 0 | I191: 0
B192: MUHTEMEL KREDİ ZARAR KARŞ. FİN.KİR. ALCK. KARŞ. VE FAKT. DEĞ. DÜŞ. KARŞ. | C192: 0 | D192: 0 | E192: 0 | F192: 0 | G192: 0 | H192: 0 | I192: 0
B193: HİZMET GELİRLERİ | C193: 0 | D193: 0 | E193: 0 | F193: 0 | G193: 0 | H193: 0 | I193: 0
B194: HİZMET GİDERLERİ (-) | C194: 0 | D194: 0 | E194: 0 | F194: 0 | G194: 0 | H194: 0 | I194: 0
B195: KAMBİYO KARI/ZARARI | C195: 0 | D195: 0 | E195: 0 | F195: 0 | G195: 0 | H195: 0 | I195: 0
B196: SERMAYE PİYASASI İŞLEM KARI/ZARARI | C196: 0 | D196: 0 | E196: 0 | F196: 0 | G196: 0 | H196: 0 | I196: 0
B197: ESAS FAALİYETLERDEN DİĞER GİDER/GELİR | C197: 0 | D197: 0 | E197: 0 | F197: 0 | G197: 0 | H197: 0 | I197: 0
B198: FAİZ, ÜCRET, PRİM, KOMİSYON VE DİĞER GELİRLER | C198: 0 | D198: 0 | E198: 0 | F198: 0 | G198: 0 | H198: 0 | I198: 0
B199: Kambiyo Gelirleri | C199: 0 | D199: 0 | E199: 0 | F199: 0 | G199: 0 | H199: 0 | I199: 0
B200: Faiz Gelirleri | C200: 0 | D200: 0 | E200: 0 | F200: 0 | G200: 0 | H200: 0 | I200: 0
B201: Kar Payı Gelirleri | C201: 0 | D201: 0 | E201: 0 | F201: 0 | G201: 0 | H201: 0 | I201: 0
B202: Türev Finansal İşlemlerden Kazanç | C202: 0 | D202: 0 | E202: 0 | F202: 0 | G202: 0 | H202: 0 | I202: 0
B203: Portföy İşletmeciliği Faaliyetinden Elde Edilen Gelir | C203: 0 | D203: 0 | E203: 0 | F203: 0 | G203: 0 | H203: 0 | I203: 0
B204: Sigortacılık Hizmetlerinden Elde Edilen Gelir | C204: 0 | D204: 0 | E204: 0 | F204: 0 | G204: 0 | H204: 0 | I204: 0
... 131 more rows

Sheet AVOD (hidden)
A1: AVOD
B2: BİLANÇO | C2: 2013/12 | D2: 2014/12 | E2: 2015/12 | F2: 2016/12 | G2: 2017/12 | H2: 2018/12 | I2: 2019/03
B3: DÖNEN VARLIKLAR | C3: 50405460 | D3: 42986453 | E3: 47998026 | F3: 65601913 | G3: 82907486 | H3: 100515338 | I3: 104168691
B4: Hazır Değerler | C4: 58193 | D4: 5691341 | E4: 6637837 | F4: 4280696 | G4: 6009988 | H4: 3336117 | I4: 7047810
B5: Gayrimenkul Projeleri Kapsamında Açılan Nakit Hesapları | C5: 0 | D5: 0 | E5: 0 | F5: 0 | G5: 0 | H5: 0 | I5: 0
B6: Finansal Yatırımlar | C6: 0 | D6: 0 | E6: 0 | F6: 0 | G6: 0 | H6: 0 | I6: 0
B7: Menkul Kıymetler | C7: 0 | D7: 0 | E7: 0 | F7: 0 | G7: 0 | H7: 0 | I7: 0
B8: Türkiye Cumhuriyet Merkez Bankası Hesabı | C8: 0 | D8: 0 | E8: 0 | F8: 0 | G8: 0 | H8: 0 | I8: 0
B9: Krediler ve Avanslar | C9: 0 | D9: 0 | E9: 0 | F9: 0 | G9: 0 | H9: 0 | I9: 0
B10: Faktoring alacakları (net) | C10: 0 | D10: 0 | E10: 0 | F10: 0 | G10: 0 | H10: 0 | I10: 0
B11: Teminata Verilen Finansal Varlıklar | C11: 0 | D11: 0 | E11: 0 | F11: 0 | G11: 0 | H11: 0 | I11: 0
B12: Kısa Vadeli Ticari Alacaklar | C12: 9008763 | D12: 11122705 | E12: 9577116 | F12: 15602696 | G12: 14409786 | H12: 17196832 | I12: 17257761
B13: Finansal Kiralama Alacakları | C13: 0 | D13: 0 | E13: 0 | F13: 0 | G13: 0 | H13: 0 | I13: 0
B14: Finans Sektörü Faal. Alacaklar | C14: 0 | D14: 0 | E14: 0 | F14: 0 | G14: 0 | H14: 0 | I14: 0
B15: İlişkili Taraflardan Alacaklar | C15: 0 | D15: 0 | E15: 0 | F15: 0 | G15: 0 | H15: 0 | I15: 0
B16: Diğer Kısa Vadeli Alacaklar | C16: 18988928 | D16: 4807507 | E16: 6353983 | F16: 1910174 | G16: 6658531 | H16: 6851189 | I16: 6458699
B17: Canlı Varlıklar | C17: 0 | D17: 0 | E17: 0 | F17: 0 | G17: 0 | H17: 0 | I17: 0
B18: Kullanımı Kısıtlı Banka Bakiyeleri | C18: 0 | D18: 0 | E18: 0 | F18: 0 | G18: 0 | H18: 0 | I18: 0
B19: Stoklar | C19: 19537811 | D19: 18659693 | E19: 19964614 | F19: 34706741 | G19: 43550473 | H19: 61554458 | I19: 59415790
B20: Peşin Ödenen Kira Giderleri | C20: 0 | D20: 0 | E20: 0 | F20: 0 | G20: 0 | H20: 0 | I20: 0
B21: Müşteri Sözleşmelerinden Doğan Varlıklar | C21: 0 | D21: 0 | E21: 0 | F21: 0 | G21: 0 | H21: 0 | I21: 0
B22: İmtiyaz Sözleşmelerine İlişkin Finansal Varlıklar | C22: 0 | D22: 0 | E22: 0 | F22: 0 | G22: 0 | H22: 0 | I22: 0
B23: Türev Enstrümanlar | C23: 85500 | D23: 179300 | E23: 0 | F23: 0 | G23: 0 | H23: 0 | I23: 0
B24: Ertelenen Vergi Varlıkları | C24: 0 | D24: 0 | E24: 0 | F24: 0 | G24: 0 | H24: 0 | I24: 0
B25: Durdurulan faaliyetler ile ilgili varlıklar | C25: 0 | D25: 0 | E25: 0 | F25: 0 | G25: 0 | H25: 0 | I25: 0
B26: Peşin Ödenmiş Giderler | C26: 1866371 | D26: 2040876 | E26: 4419150 | F26: 8612835 | G26: 11354884 | H26: 10549203 | I26: 13232026
B27: Cari Dönem Vergisiyle İlgili Varlıklar | C27: 0 | D27: 0 | E27: 0 | F27: 3875 | G27: 2136 | H27: 4259 | I27: 88
B28: Nakit Dışı Serbest Kullanılabilir Teminatlar | C28: 0 | D28: 0 | E28: 0 | F28: 0 | G28: 0 | H28: 0 | I28: 0
B29: Diğer Dönen Varlıklar | C29: 859894 | D29: 485031 | E29: 1045326 | F29: 484896 | G29: 921688 | H29: 1023280 | I29: 756517
B30: Vadesine kadar elde tut. men. kıy. | C30: 0 | D30: 0 | E30: 0 | F30: 0 | G30: 0 | H30: 0 | I30: 0
B31: Satılmaya Hazır Finansal Varlıklar | C31: 0 | D31: 0 | E31: 0 | F31: 0 | G31: 0 | H31: 0 | I31: 0
B32: Alım Satım Amaçlı Menkul Kıymetler | C32: 0 | D32: 0 | E32: 0 | F32: 0 | G32: 0 | H32: 0 | I32: 0
B33: İş Ortaklıklarının Dönen Varlıklar İçindeki Payı | C33: 0 | D33: 0 | E33: 0 | F33: 0 | G33: 0 | H33: 0 | I33: 0
B34: Elden Çıkarılacak Faaliyetler ile İlgili Varlıklar | C34: 0 | D34: 0 | E34: 0 | F34: 0 | G34: 0 | H34: 0 | I34: 0
B35: Satım amaçlı elde tutulan maddi duran varlıklar | C35: 0 | D35: 0 | E35: 0 | F35: 0 | G35: 0 | H35: 0 | I35: 0
B36: Ortaklara Dağıtılmak Üzere Elde Tutulan Duran Varlıklar | C36: 0 | D36: 0 | E36: 0 | F36: 0 | G36: 0 | H36: 0 | I36: 0
B37: DURAN VARLIKLAR | C37: 17375444 | D37: 39951586 | E37: 66170399 | F37: 87881764 | G37: 78608922 | H37: 84038580 | I37: 95939825
B38: Menkul Kıymetler | C38: 0 | D38: 0 | E38: 0 | F38: 0 | G38: 0 | H38: 0 | I38: 0
B39: Krediler ve Avanslar | C39: 0 | D39: 0 | E39: 0 | F39: 0 | G39: 0 | H39: 0 | I39: 0
B40: Faktoring alacakları (net) | C40: 0 | D40: 0 | E40: 0 | F40: 0 | G40: 0 | H40: 0 | I40: 0
B41: Uzun Vadeli Ticari Alacaklar | C41: 0 | D41: 0 | E41: 0 | F41: 0 | G41: 0 | H41: 0 | I41: 0
B42: Finansal Kiralama Alacakları | C42: 0 | D42: 0 | E42: 0 | F42: 0 | G42: 0 | H42: 0 | I42: 0
B43: Finans Sektörü Faal. Alacaklar | C43: 0 | D43: 0 | E43: 0 | F43: 0 | G43: 0 | H43: 0 | I43: 0
B44: İlişkili Taraflardan Alacaklar | C44: 0 | D44: 0 | E44: 0 | F44: 0 | G44: 0 | H44: 0 | I44: 0
B45: Türev Enstrümanlar | C45: 0 | D45: 0 | E45: 0 | F45: 0 | G45: 0 | H45: 0 | I45: 0
B46: Diğer Uzun Vadeli Alacaklar | C46: 0 | D46: 9739 | E46: 12212 | F46: 14781 | G46: 15842 | H46: 22096 | I46: 23639
B47: Finansal Yatırımlar | C47: 5000 | D47: 19330 | E47: 20000 | F47: 20000 | G47: 0 | H47: 0 | I47: 0
B48: Özkaynak Yöntemiyle Değerlenen Yatırımlar | C48: 0 | D48: 0 | E48: 0 | F48: 0 | G48: 0 | H48: 0 | I48: 0
B49: Canlı Varlıklar | C49: 0 | D49: 0 | E49: 0 | F49: 0 | G49: 0 | H49: 0 | I49: 0
B50: İmtiyaz Sözleşmelerine İlişkin Finansal Varlıklar | C50: 0 | D50: 0 | E50: 0 | F50: 0 | G50: 0 | H50: 0 | I50: 0
B51: Stoklar | C51: 0 | D51: 0 | E51: 0 | F51: 0 | G51: 0 | H51: 0 | I51: 0
B52: Finansal Duran Varlıklar | C52: 0 | D52: 0 | E52: 0 | F52: 0 | G52: 0 | H52: 0 | I52: 0
B53: Pozitif/Negatif Şerefiye | C53: 0 | D53: 0 | E53: 0 | F53: 0 | G53: 0 | H53: 0 | I53: 0
B54: Yatırım Amaçlı Gayrimenkuller | C54: 6063327 | D54: 13144333 | E54: 17475239 | F54: 35762643 | G54: 35630846 | H54: 35494941 | I54: 42138418
B55: Proje Halindeki Yatırım Amaçlı Gayrimenkuller | C55: 0 | D55: 0 | E55: 0 | F55: 0 | G55: 0 | H55: 0 | I55: 0
B56: Alım Satım Amaçlı Gayrimenkuller (net) | C56: 0 | D56: 0 | E56: 0 | F56: 0 | G56: 0 | H56: 0 | I56: 0
B57: Maddi Duran Varlıklar | C57: 10667972 | D57: 14336716 | E57: 17316894 | F57: 20268446 | G57: 22403814 | H57: 21103960 | I57: 26214916
B58: Kullanım Hakkı Varlıkları | C58: 0 | D58: 0 | E58: 0 | F58: 0 | G58: 0 | H58: 0 | I58: 0
B59: Maddi Olmayan Duran Varlıklar | C59: 23601 | D59: 12064469 | E59: 30986273 | F59: 31010597 | G59: 19894440 | H59: 21750483 | I59: 21584876
B60: Müşteri Sözleşmelerinden Doğan Varlıklar | C60: 0 | D60: 0 | E60: 0 | F60: 0 | G60: 0 | H60: 0 | I60: 0
B61: Ertelenen Vergi Varlıkları | C61: 316241 | D61: 202761 | E61: 349241 | F61: 589296 | G61: 616520 | H61: 3947435 | I61: 3478394
B62: Cari Dönem Vergisiyle İlgili Duran Varlıklar | C62: 0 | D62: 0 | E62: 0 | F62: 0 | G62: 0 | H62: 0 | I62: 0
B63: Nakit Dışı Serbest Kullanılabilir Teminatlar | C63: 0 | D63: 0 | E63: 0 | F63: 0 | G63: 0 | H63: 0 | I63: 0
B64: Peşin Ödenen Kira Giderleri | C64: 0 | D64: 0 | E64: 0 | F64: 0 | G64: 0 | H64: 0 | I64: 0
B65: Peşin Ödenmiş Giderler | C65: 297969 | D65: 172904 | E65: 9206 | F65: 214667 | G65: 46126 | H65: 1705116 | I65: 2485033
B66: Diğer Duran Varlıklar | C66: 1334 | D66: 1334 | E66: 1334 | F66: 1334 | G66: 1334 | H66: 14549 | I66: 14549
B67: Vadesine kadar elde tut. men. kıy. | C67: 0 | D67: 0 | E67: 0 | F67: 0 | G67: 0 | H67: 0 | I67: 0
B68: Satılmaya Hazır Finansal Varlıklar | C68: 0 | D68: 0 | E68: 0 | F68: 0 | G68: 0 | H68: 0 | I68: 0
B69: İş Ortaklıklarının Duran Varlıklar İçindeki Payı | C69: 0 | D69: 0 | E69: 0 | F69: 0 | G69: 0 | H69: 0 | I69: 0
B70: Ana Ortaklık Dışı Paylar | C70: 0 | D70: 0 | E70: 0 | F70: 0 | G70: 0 | H70: 0 | I70: 0
B71: TOPLAM AKTİFLER | C71: 67780904 | D71: 82938039 | E71: 114168425 | F71: 153483677 | G71: 161516408 | H71: 184553918 | I71: 200108516
B72: KISA VADELİ YÜKÜMLÜLÜKLER | C72: 28704596 | D72: 35796339 | E72: 42499826 | F72: 47726450 | G72: 63256852 | H72: 91667916 | I72: 93001276
B73: Finansal Borçlar | C73: 18261466 | D73: 14738107 | E73: 20157693 | F73: 22906416 | G73: 36737224 | H73: 34033049 | I73: 31468180
B74: Uzun Vadeli Finansal Borçların Kısa Vadeli Kısımları | C74: 3600832 | D74: 5963102 | E74: 6086103 | F74: 7061723 | G74: 9296637 | H74: 9950083 | I74: 9083244
B75: Mevduat | C75: 0 | D75: 0 | E75: 0 | F75: 0 | G75: 0 | H75: 0 | I75: 0
B76: Türev Araçlar | C76: 286000 | D76: 0 | E76: 136574 | F76: 61923 | G76: 0 | H76: 0 | I76: 0
B77: Faktoring borçları | C77: 0 | D77: 0 | E77: 0 | F77: 0 | G77: 0 | H77: 0 | I77: 0
B78: Finansal Kiralama İşlemlerinden Borçlar | C78: 0 | D78: 0 | E78: 0 | F78: 0 | G78: 0 | H78: 0 | I78: 0
B79: Finans Sektörü Faaliyetlerinden Borçlar | C79: 0 | D79: 0 | E79: 0 | F79: 0 | G79: 0 | H79: 0 | I79: 0
B80: Sigorta Teknik Karşılığı | C80: 0 | D80: 0 | E80: 0 | F80: 0 | G80: 0 | H80: 0 | I80: 0
B81: Diğer Finansal Yükümlülükler | C81: 0 | D81: 0 | E81: 28106 | F81: 9979 | G81: 27673 | H81: 41860 | I81: 63380
B82: Ticari Borçlar | C82: 6086238 | D82: 12453978 | E82: 15269152 | F82: 15953324 | G82: 15506119 | H82: 20824573 | I82: 30207335
B83: İlişkili Taraflara Borçlar | C83: 0 | D83: 0 | E83: 0 | F83: 0 | G83: 0 | H83: 0 | I83: 0
B84: Alınan Krediler | C84: 0 | D84: 0 | E84: 0 | F84: 0 | G84: 0 | H84: 0 | I84: 0
B85: Diğer Borçlar | C85: 381716 | D85: 2141495 | E85: 431061 | F85: 366475 | G85: 575951 | H85: 25851053 | I85: 20496297
B86: Alınan Avanslar | C86: 0 | D86: 0 | E86: 0 | F86: 0 | G86: 0 | H86: 0 | I86: 0
B87: Devlet Teşvik ve Yardımları | C87: 0 | D87: 0 | E87: 0 | F87: 0 | G87: 0 | H87: 0 | I87: 0
B88: Ertelenmiş Gelirler | C88: 0 | D88: 31601 | E88: 0 | F88: 688035 | G88: 346680 | H88: 181566 | I88: 579567
B89: Cari Dönem Vergi Yükümlülüğü | C89: 0 | D89: 0 | E89: 0 | F89: 51838 | G89: 0 | H89: 0 | I89: 0
B90: Cari Dönem Vergisi ile İlgili Borçlar | C90: 0 | D90: 0 | E90: 0 | F90: 0 | G90: 0 | H90: 0 | I90: 0
B91: Bloke Hesaplar | C91: 0 | D91: 0 | E91: 0 | F91: 0 | G91: 0 | H91: 0 | I91: 0
B92: Müşteri Sözleşmelerinden Doğan Yükümlülükler | C92: 0 | D92: 0 | E92: 0 | F92: 0 | G92: 0 | H92: 0 | I92: 0
B93: Özkaynak Yöntemiyle Değerlenen Yatırımlardan Yükümlülükler | C93: 0 | D93: 0 | E93: 0 | F93: 0 | G93: 0 | H93: 0 | I93: 0
B94: Borç ve Gider Karşılıkları | C94: 87844 | D94: 288240 | E94: 0 | F94: 0 | G94: 0 | H94: 0 | I94: 0
B95: Çalışanlara Sağlanan Faydalara İlişkin Karşılıklar | C95: 500 | D95: 66935 | E95: 391137 | F95: 525838 | G95: 488101 | H95: 690082 | I95: 984115
B96: Ertelenen Vergi Yükümlülüğü | C96: 0 | D96: 0 | E96: 0 | F96: 0 | G96: 0 | H96: 0 | I96: 0
B97: Durdurulan faaliyetler ile ilgili yükümlülükler | C97: 0 | D97: 0 | E97: 0 | F97: 0 | G97: 0 | H97: 0 | I97: 0
B98: Diğer Kısa Vadeli Borçlar | C98: 0 | D98: 112881 | E98: 0 | F98: 100899 | G98: 278467 | H98: 95650 | I98: 119158
B99: İş Ortaklıklarının Kısa Vadeli Yükümlülükler İçindeki Payı | C99: 0 | D99: 0 | E99: 0 | F99: 0 | G99: 0 | H99: 0 | I99: 0
B100: Elden Çıkarılacak Faaliyetler ile İlgili Yükümlülükler | C100: 0 | D100: 0 | E100: 0 | F100: 0 | G100: 0 | H100: 0 | I100: 0
B101: Ortaklara Dağıtılmak Üzere Elde Tutulan Varlık Gruplarına İlişkin Yükümlülükler | C101: 0 | D101: 0 | E101: 0 | F101: 0 | G101: 0 | H101: 0 | I101: 0
B102: UZUN VADELİ YÜKÜMLÜLÜKLER | C102: 5215277 | D102: 12479354 | E102: 10546488 | F102: 9682627 | G102: 14858004 | H102: 21053770 | I102: 28779649
B103: Mevduatlar | C103: 0 | D103: 0 | E103: 0 | F103: 0 | G103: 0 | H103: 0 | I103: 0
B104: Finansal Borçlar | C104: 4782699 | D104: 11350163 | E104: 8779920 | F104: 6998233 | G104: 12208000 | H104: 16856375 | I104: 23077418
B105: Faktoring borçları | C105: 0 | D105: 0 | E105: 0 | F105: 0 | G105: 0 | H105: 0 | I105: 0
B106: Finansal Kiralama İşlemlerinden Borçlar | C106: 0 | D106: 0 | E106: 0 | F106: 0 | G106: 0 | H106: 0 | I106: 0
B107: Finans Sektörü Faaliyetlerinden Borçlar | C107: 0 | D107: 0 | E107: 0 | F107: 0 | G107: 0 | H107: 0 | I107: 0
B108: Sigorta teknik karşılıkları | C108: 0 | D108: 0 | E108: 0 | F108: 0 | G108: 0 | H108: 0 | I108: 0
B109: Diğer Finansal Yükümlülükler | C109: 0 | D109: 0 | E109: 0 | F109: 0 | G109: 0 | H109: 0 | I109: 0
B110: Ticari Borçlar | C110: 0 | D110: 0 | E110: 0 | F110: 0 | G110: 0 | H110: 0 | I110: 0
B111: İlişkili Taraflara Borçlar | C111: 0 | D111: 0 | E111: 0 | F111: 0 | G111: 0 | H111: 0 | I111: 0
B112: Alınan Krediler | C112: 0 | D112: 0 | E112: 0 | F112: 0 | G112: 0 | H112: 0 | I112: 0
B113: Diğer Borçlar | C113: 0 | D113: 0 | E113: 0 | F113: 0 | G113: 0 | H113: 0 | I113: 0
B114: Müşteri Sözleşmelerinden Doğan Yükümlülükler | C114: 0 | D114: 0 | E114: 0 | F114: 0 | G114: 0 | H114: 0 | I114: 0
B115: Bloke Hesaplar | C115: 0 | D115: 0 | E115: 0 | F115: 0 | G115: 0 | H115: 0 | I115: 0
B116: Alınan Avanslar | C116: 0 | D116: 0 | E116: 0 | F116: 0 | G116: 0 | H116: 0 | I116: 0
B117: Çalışanlara Sağlanan Faydalar Kapsamında Borçlar | C117: 0 | D117: 0 | E117: 0 | F117: 0 | G117: 0 | H117: 0 | I117: 0
B118: Borç ve Gider Karşılıkları | C118: 304568 | D118: 489969 | E118: 383766 | F118: 569647 | G118: 688192 | H118: 2222003 | I118: 2744595
B119: Türev Finansal Araçlardan Borçlar | C119: 0 | D119: 0 | E119: 0 | F119: 0 | G119: 0 | H119: 0 | I119: 0
B120: Cari Dönem Vergisiyle İlgili Borçlar | C120: 0 | D120: 0 | E120: 0 | F120: 0 | G120: 0 | H120: 0 | I120: 0
B121: Ertelenen Vergi Yükümlülüğü | C121: 128010 | D121: 639222 | E121: 1382802 | F121: 1917619 | G121: 1874157 | H121: 1833552 | I121: 2957636
B122: Devlet Teşvik ve Yardımları | C122: 0 | D122: 0 | E122: 0 | F122: 0 | G122: 0 | H122: 0 | I122: 0
B123: Ertelenmiş Gelirler | C123: 0 | D123: 0 | E123: 0 | F123: 0 | G123: 0 | H123: 0 | I123: 0
B124: Devam Eden Sözleşmeler Hakediş Bedelleri | C124: 0 | D124: 0 | E124: 0 | F124: 0 | G124: 0 | H124: 0 | I124: 0
B125: Pozitif/Negatif Şerefiye | C125: 0 | D125: 0 | E125: 0 | F125: 0 | G125: 0 | H125: 0 | I125: 0
B126: Diğer Uzun Vadeli Borçlar | C126: 0 | D126: 0 | E126: 0 | F126: 197128 | G126: 87655 | H126: 141840 | I126: 0
B127: İş Ortaklıklarının Uzun Vadeli Yükümlülükler İçindeki Payı | C127: 0 | D127: 0 | E127: 0 | F127: 0 | G127: 0 | H127: 0 | I127: 0
B128: ÖZ SERMAYE (AZINLIK PAYI DAHİL) | C128: 33861031 | D128: 34662346 | E128: 61122111 | F128: 96074600 | G128: 83401552 | H128: 71832232 | I128: 78327591
B129: ANA ORTAKLIK DIŞI ÖZSERMAYE | C129: 8890 | D129: 598458 | E129: 23468047 | F129: 32312965 | G129: 32089753 | H129: 31398861 | I129: 28733704
B130: Aile Üyeleri | C130: 0 | D130: 0 | E130: 0 | F130: 0 | G130: 0 | H130: 0 | I130: 0
B131: Diğerleri | C131: 0 | D131: 0 | E131: 0 | F131: 0 | G131: 0 | H131: 0 | I131: 0
B132: ÖZ SERMAYE (ANA ORTAKLIĞA AİT) | C132: 33852141 | D132: 34063888 | E132: 37654064 | F132: 63761635 | G132: 51311799 | H132: 40433371 | I132: 49593887
B133: Sermaye | C133: 29000000 | D133: 29000000 | E133: 29000000 | F133: 45000000 | G133: 45000000 | H133: 90000000 | I133: 90000000
B134: Ödenmeyen Sermaye(-) | C134: 0 | D134: 0 | E134: 0 | F134: 0 | G134: 0 | H134: 0 | I134: 0
B135: Karşılıklı İştirak Sermaye Düzeltmesi | C135: 0 | D135: 0 | E135: 0 | F135: 0 | G135: 0 | H135: 0 | I135: 0
B136: Paylara İlişkin Primler/İskontolar | C136: 384 | D136: 384 | E136: 384 | F136: 958784 | G136: 958784 | H136: 958787 | I136: 958787
B137: İşletmenin Geri Satın Alınan Kendi Hisseleri | C137: 0 | D137: 0 | E137: 0 | F137: -299391 | G137: 0 | H137: 0 | I137: -1358263
B138: İşletmenin Geri Alınan Kendi Hisse Senetlerinin Satışından Doğan Kar | C138: 0 | D138: 0 | E138: 0 | F138: 0 | G138: 0 | H138: 0 | I138: 0
B139: Sermaye Avansı | C139: 0 | D139: 0 | E139: 0 | F139: 0 | G139: 0 | H139: 0 | I139: 0
B140: Kar veya Zararda Yeniden Sınıflandırılmayacak Birikmiş Diğer Kapsamlı Gel. veya Gid. | C140: 2012804 | D140: 1813589 | E140: 3749993 | F140: 13244490 | G140: 13185454 | H140: 12936884 | I140: 17767036
B141: Kar veya Zararda Yeniden Sınıflandırılacak Birikmiş Diğer Kapsamlı Gelir. veya Gid. | C141: 68400 | D141: 143440 | E141: -109259 | F141: -49538 | G141: 0 | H141: 0 | I141: 0
B142: Sermaye Yedekleri | C142: 384 | D142: -33549 | E142: -102923 | F142: 799434 | G142: 958784 | H142: 958787 | I142: 958787
B143: Sermaye Taahhütleri (-) | C143: 0 | D143: 0 | E143: 0 | F143: 0 | G143: 0 | H143: 0 | I143: 0
B144: Katkı sermaye | C144: 0 | D144: 0 | E144: 0 | F144: 0 | G144: 0 | H144: 0 | I144: 0
B145: Azınlık Hisseleri Satış Opsiyonu Değerleme Fonu | C145: 0 | D145: 0 | E145: 0 | F145: 0 | G145: 0 | H145: 0 | I145: 0
B146: Emisyon Primi | C146: 0 | D146: 0 | E146: 0 | F146: 0 | G146: 0 | H146: 0 | I146: 0
B147: Yeniden Değerleme Artışı | C147: 2012804 | D147: 1847522 | E147: 3853300 | F147: 13403840 | G147: 13185454 | H147: 12936884 | I147: 17767036
B148: Kar Yedekleri | C148: 68400 | D148: 143440 | E148: -109259 | F148: -49538 | G148: -11930691 | H148: -62264781 | I148: -62264781
B149: Dağıtılmamış Kar | C149: 0 | D149: 0 | E149: 0 | F149: 0 | G149: 0 | H149: 0 | I149: 0
B150: Sermaye artırımı ile ilgili masraflar | C150: 0 | D150: 0 | E150: 0 | F150: 0 | G150: 0 | H150: 0 | I150: 0
B151: Nakit Akım Koruması ile İlgili Birikmiş Kar | C151: 0 | D151: 0 | E151: 0 | F151: 0 | G151: 0 | H151: 0 | I151: 0
B152: Karşılıklı İştirak Serm. Düzeltmesinin Nom. Tut. Aşan Kısım | C152: 0 | D152: 0 | E152: 0 | F152: 0 | G152: 0 | H152: 0 | I152: 0
B153: Finansal Yatırımlar Değer Artış Fonu | C153: 0 | D153: 0 | E153: 0 | F153: 0 | G153: 0 | H153: 0 | I153: 0
B154: Diğer Özkaynak Payları | C154: 0 | D154: 0 | E154: 0 | F154: 0 | G154: 0 | H154: 0 | I154: 0
B155: Diğer Yedekler | C155: 0 | D155: 0 | E155: 0 | F155: 0 | G155: 0 | H155: 0 | I155: 0
B156: Net Dönem Karı | C156: 0 | D156: 325185 | E156: 1725166 | F156: 0 | G156: 0 | H156: 0 | I156: 5688627
B157: Dönem Zararı (-) | C157: 276841 | D157: 0 | E157: 0 | F157: 105654 | G157: 743007 | H157: 5242910 | I157: 0
B158: Geçmiş Yıl Karları | C158: 2867538 | D158: 2464535 | E158: 3001242 | F158: 4394942 | G158: 4415023 | H158: 3692471 | I158: 0
B159: Net Dön. Kar. Ser. Hes. Ed. Tran. Ed. M. Dur. V. Sa. Karı | C159: 0 | D159: 0 | E159: 0 | F159: 0 | G159: 0 | H159: 0 | I159: 0
B160: Geçmiş Yıl Zararları (-) | C160: 0 | D160: 0 | E160: 0 | F160: 0 | G160: 0 | H160: 0 | I160: 1512290
B161: Yabancı Para Çevrim Farkları | C161: 0 | D161: 0 | E161: 0 | F161: 0 | G161: 0 | H161: 0 | I161: 0
B162: Kardan Ayrılan Kısıtlanmış Yedekler | C162: 175028 | D162: 311927 | E162: 281710 | F162: 613174 | G162: 421408 | H162: 348092 | I162: 309943
B163: Kardan Ayrılan Kısıtlanmış Yedekler (27) | C163: 0 | D163: 0 | E163: 0 | F163: 0 | G163: 0 | H163: 0 | I163: 0
B164: Zarar Telafi Fonu | C164: 0 | D164: 0 | E164: 0 | F164: 0 | G164: 0 | H164: 0 | I164: 0
B165: Özsermaye Enf. Düz. Farkları | C165: 4828 | D165: 4828 | E165: 4828 | F165: 4828 | G165: 4828 | H165: 4828 | I165: 4828
B166: Sermaye Birleşme Fonu | C166: 0 | D166: 0 | E166: 0 | F166: 0 | G166: 0 | H166: 0 | I166: 0
B167: İlave Ödenmiş Sermaye | C167: 0 | D167: 0 | E167: 0 | F167: 0 | G167: 0 | H167: 0 | I167: 0
B168: Birikmiş Karlar/Zararlar | C168: 0 | D168: 0 | E168: 0 | F168: 0 | G168: 0 | H168: 0 | I168: 0
B169: Yatırım Teşvikleri | C169: 0 | D169: 0 | E169: 0 | F169: 0 | G169: 0 | H169: 0 | I169: 0
B170: Satılmaya Haz. Var. Üz. Gerçekleşmemiş Net Gelir | C170: 0 | D170: 0 | E170: 0 | F170: 0 | G170: 0 | H170: 0 | I170: 0
B171: Ana ortaklık hisse satış kar/zarar | C171: 0 | D171: 0 | E171: 0 | F171: 0 | G171: 0 | H171: 0 | I171: 0
B172: AZINLIK PAYLARI | C172: 0 | D172: 0 | E172: 0 | F172: 0 | G172: 0 | H172: 0 | I172: 0
B173: TOPLAM PASİFLER | C173: 67780904 | D173: 82938039 | E173: 114168425 | F173: 153483677 | G173: 161516408 | H173: 184553918 | I173: 200108516
B178: Gelir Tablosu | C178: 2013/12 | D178: 2014/12 | E178: 2015/12 | F178: 2016/12 | G178: 2017/12 | H178: 2018/12 | I178: 2019/03
B179: BRÜT SATIŞLAR | C179: 35353998 | D179: 83487708 | E179: 92562189 | F179: 103743188 | G179: 114690975 | H179: 145533312 | I179: 38676869
B180: Yurtiçi Satışlar | C180: 5566140 | D180: 5892880 | E180: 5199492 | F180: 5006093 | G180: 6616797 | H180: 10110834 | I180: 4555173
B181: Yurtdışı Satışlar | C181: 29787858 | D181: 76201543 | E181: 87271092 | F181: 98546941 | G181: 107892531 | H181: 134989559 | I181: 34068593
B182: Diğer Satışlar | C182: 0 | D182: 1393285 | E182: 91605 | F182: 190154 | G182: 181647 | H182: 432919 | I182: 53103
B183: SATIŞLARDAN İNDİRİMLER (-) | C183: 100249 | D183: 870752 | E183: 1092276 | F183: 1398927 | G183: 1572601 | H183: 4755800 | I183: 72624
B184: Satışdan İadeler (-) | C184: 0 | D184: 132526 | E184: 270143 | F184: 534790 | G184: 661855 | H184: 2652809 | I184: 1300
B185: Satış İskontoları (-) | C185: 100249 | D185: 317010 | E185: 370715 | F185: 522631 | G185: 419715 | H185: 283408 | I185: 0
B186: Diğer İndirimler (-) | C186: 0 | D186: 421216 | E186: 451418 | F186: 341506 | G186: 491031 | H186: 1819583 | I186: 71324
B187: ESAS FAALİYET GELİRLERİ | C187: 0 | D187: 0 | E187: 0 | F187: 0 | G187: 0 | H187: 0 | I187: 0
B188: SATIŞ GELİRLERİ | C188: 35253749 | D188: 82616956 | E188: 91469913 | F188: 102344261 | G188: 113118374 | H188: 140777512 | I188: 38604245
B189: FAİZ GELİRİ | C189: 0 | D189: 0 | E189: 0 | F189: 0 | G189: 0 | H189: 0 | I189: 0
B190: SATIŞLARIN MALİYETİ (-) | C190: 28819328 | D190: 72261521 | E190: 72928792 | F190: 83982095 | G190: 93420164 | H190: 113832188 | I190: 32008020
B191: FAİZ GİDERİ | C191: 0 | D191: 0 | E191: 0 | F191: 0 | G191: 0 | H191: 0 | I191: 0
B192: MUHTEMEL KREDİ ZARAR KARŞ. FİN.KİR. ALCK. KARŞ. VE FAKT. DEĞ. DÜŞ. KARŞ. | C192: 0 | D192: 0 | E192: 0 | F192: 0 | G192: 0 | H192: 0 | I192: 0
B193: HİZMET GELİRLERİ | C193: 0 | D193: 0 | E193: 0 | F193: 0 | G193: 0 | H193: 0 | I193: 0
B194: HİZMET GİDERLERİ (-) | C194: 0 | D194: 0 | E194: 0 | F194: 0 | G194: 0 | H194: 0 | I194: 0
B195: KAMBİYO KARI/ZARARI | C195: 0 | D195: 0 | E195: 0 | F195: 0 | G195: 0 | H195: 0 | I195: 0
B196: SERMAYE PİYASASI İŞLEM KARI/ZARARI | C196: 0 | D196: 0 | E196: 0 | F196: 0 | G196: 0 | H196: 0 | I196: 0
B197: ESAS FAALİYETLERDEN DİĞER GİDER/GELİR | C197: 0 | D197: 0 | E197: 0 | F197: 0 | G197: 0 | H197: 0 | I197: 0
B198: FAİZ, ÜCRET, PRİM, KOMİSYON VE DİĞER GELİRLER | C198: 0 | D198: 0 | E198: 0 | F198: 0 | G198: 0 | H198: 0 | I198: 0
B199: Kambiyo Gelirleri | C199: 0 | D199: 0 | E199: 0 | F199: 0 | G199: 0 | H199: 0 | I199: 0
B200: Faiz Gelirleri | C200: 0 | D200: 0 | E200: 0 | F200: 0 | G200: 0 | H200: 0 | I200: 0
B201: Kar Payı Gelirleri | C201: 0 | D201: 0 | E201: 0 | F201: 0 | G201: 0 | H201: 0 | I201: 0
B202: Türev Finansal İşlemlerden Kazanç | C202: 0 | D202: 0 | E202: 0 | F202: 0 | G202: 0 | H202: 0 | I202: 0
B203: Portföy İşletmeciliği Faaliyetinden Elde Edilen Gelir | C203: 0 | D203: 0 | E203: 0 | F203: 0 | G203: 0 | H203: 0 | I203: 0
B204: Sigortacılık Hizmetlerinden Elde Edilen Gelir | C204: 0 | D204: 0 | E204: 0 | F204: 0 | G204: 0 | H204: 0 | I204: 0
... 135 more rows

Sheet ACSEL (hidden)
A1: ACSEL
B2: BİLANÇO | C2: 2013/12 | D2: 2014/12 | E2: 2015/12 | F2: 2016/12 | G2: 2017/12 | H2: 2018/12 | I2: 2019/03
B3: DÖNEN VARLIKLAR | C3: 4664009 | D3: 6932454 | E3: 10192833 | F3: 10953846 | G3: 13304099 | H3: 15418210 | I3: 16068642
B4: Hazır Değerler | C4: 242479 | D4: 51396 | E4: 1765063 | F4: 1025911 | G4: 2162429 | H4: 2444241 | I4: 2760421
B5: Gayrimenkul Projeleri Kapsamında Açılan Nakit Hesapları | C5: 0 | D5: 0 | E5: 0 | F5: 0 | G5: 0 | H5: 0 | I5: 0
B6: Finansal Yatırımlar | C6: 0 | D6: 0 | E6: 0 | F6: 0 | G6: 0 | H6: 0 | I6: 0
B7: Menkul Kıymetler | C7: 0 | D7: 0 | E7: 0 | F7: 0 | G7: 0 | H7: 0 | I7: 0
B8: Türkiye Cumhuriyet Merkez Bankası Hesabı | C8: 0 | D8: 0 | E8: 0 | F8: 0 | G8: 0 | H8: 0 | I8: 0
B9: Krediler ve Avanslar | C9: 0 | D9: 0 | E9: 0 | F9: 0 | G9: 0 | H9: 0 | I9: 0
B10: Faktoring alacakları (net) | C10: 0 | D10: 0 | E10: 0 | F10: 0 | G10: 0 | H10: 0 | I10: 0
B11: Teminata Verilen Finansal Varlıklar | C11: 0 | D11: 0 | E11: 0 | F11: 0 | G11: 0 | H11: 0 | I11: 0
B12: Kısa Vadeli Ticari Alacaklar | C12: 1574157 | D12: 2184190 | E12: 1881424 | F12: 2162242 | G12: 3361046 | H12: 4179144 | I12: 5837748
B13: Finansal Kiralama Alacakları | C13: 0 | D13: 0 | E13: 0 | F13: 0 | G13: 0 | H13: 0 | I13: 0
B14: Finans Sektörü Faal. Alacaklar | C14: 0 | D14: 0 | E14: 0 | F14: 0 | G14: 0 | H14: 0 | I14: 0
B15: İlişkili Taraflardan Alacaklar | C15: 0 | D15: 0 | E15: 0 | F15: 0 | G15: 0 | H15: 0 | I15: 0
B16: Diğer Kısa Vadeli Alacaklar | C16: 122003 | D16: 81153 | E16: 211881 | F16: 1362496 | G16: 2722773 | H16: 604933 | I16: 1027833
B17: Canlı Varlıklar | C17: 0 | D17: 0 | E17: 0 | F17: 0 | G17: 0 | H17: 0 | I17: 0
B18: Kullanımı Kısıtlı Banka Bakiyeleri | C18: 0 | D18: 0 | E18: 0 | F18: 0 | G18: 0 | H18: 0 | I18: 0
B19: Stoklar | C19: 2339067 | D19: 4169531 | E19: 5978650 | F19: 5978597 | G19: 4434936 | H19: 6934224 | I19: 5291458
B20: Peşin Ödenen Kira Giderleri | C20: 0 | D20: 0 | E20: 0 | F20: 0 | G20: 0 | H20: 0 | I20: 0
B21: Müşteri Sözleşmelerinden Doğan Varlıklar | C21: 0 | D21: 0 | E21: 0 | F21: 0 | G21: 0 | H21: 0 | I21: 0
B22: İmtiyaz Sözleşmelerine İlişkin Finansal Varlıklar | C22: 0 | D22: 0 | E22: 0 | F22: 0 | G22: 0 | H22: 0 | I22: 0
B23: Türev Enstrümanlar | C23: 0 | D23: 0 | E23: 0 | F23: 0 | G23: 0 | H23: 0 | I23: 0
B24: Ertelenen Vergi Varlıkları | C24: 0 | D24: 0 | E24: 0 | F24: 0 | G24: 0 | H24: 0 | I24: 0
B25: Durdurulan faaliyetler ile ilgili varlıklar | C25: 0 | D25: 0 | E25: 0 | F25: 0 | G25: 0 | H25: 0 | I25: 0
B26: Peşin Ödenmiş Giderler | C26: 351652 | D26: 358803 | E26: 271404 | F26: 274872 | G26: 168051 | H26: 226668 | I26: 402638
B27: Cari Dönem Vergisiyle İlgili Varlıklar | C27: 0 | D27: 0 | E27: 0 | F27: 0 | G27: 0 | H27: 121081 | I27: 0
B28: Nakit Dışı Serbest Kullanılabilir Teminatlar | C28: 0 | D28: 0 | E28: 0 | F28: 0 | G28: 0 | H28: 0 | I28: 0
B29: Diğer Dönen Varlıklar | C29: 34651 | D29: 87381 | E29: 84411 | F29: 149728 | G29: 454864 | H29: 907919 | I29: 748544
B30: Vadesine kadar elde tut. men. kıy. | C30: 0 | D30: 0 | E30: 0 | F30: 0 | G30: 0 | H30: 0 | I30: 0
B31: Satılmaya Hazır Finansal Varlıklar | C31: 0 | D31: 0 | E31: 0 | F31: 0 | G31: 0 | H31: 0 | I31: 0
B32: Alım Satım Amaçlı Menkul Kıymetler | C32: 0 | D32: 0 | E32: 0 | F32: 0 | G32: 0 | H32: 0 | I32: 0
B33: İş Ortaklıklarının Dönen Varlıklar İçindeki Payı | C33: 0 | D33: 0 | E33: 0 | F33: 0 | G33: 0 | H33: 0 | I33: 0
B34: Elden Çıkarılacak Faaliyetler ile İlgili Varlıklar | C34: 0 | D34: 0 | E34: 0 | F34: 0 | G34: 0 | H34: 0 | I34: 0
B35: Satım amaçlı elde tutulan maddi duran varlıklar | C35: 0 | D35: 0 | E35: 0 | F35: 0 | G35: 0 | H35: 0 | I35: 0
B36: Ortaklara Dağıtılmak Üzere Elde Tutulan Duran Varlıklar | C36: 0 | D36: 0 | E36: 0 | F36: 0 | G36: 0 | H36: 0 | I36: 0
B37: DURAN VARLIKLAR | C37: 5617900 | D37: 6386210 | E37: 6563680 | F37: 13178863 | G37: 15013643 | H37: 22753468 | I37: 22779812
B38: Menkul Kıymetler | C38: 0 | D38: 0 | E38: 0 | F38: 0 | G38: 0 | H38: 0 | I38: 0
B39: Krediler ve Avanslar | C39: 0 | D39: 0 | E39: 0 | F39: 0 | G39: 0 | H39: 0 | I39: 0
B40: Faktoring alacakları (net) | C40: 0 | D40: 0 | E40: 0 | F40: 0 | G40: 0 | H40: 0 | I40: 0
B41: Uzun Vadeli Ticari Alacaklar | C41: 0 | D41: 0 | E41: 0 | F41: 0 | G41: 0 | H41: 0 | I41: 0
B42: Finansal Kiralama Alacakları | C42: 0 | D42: 0 | E42: 0 | F42: 0 | G42: 0 | H42: 0 | I42: 0
B43: Finans Sektörü Faal. Alacaklar | C43: 0 | D43: 0 | E43: 0 | F43: 0 | G43: 0 | H43: 0 | I43: 0
B44: İlişkili Taraflardan Alacaklar | C44: 0 | D44: 0 | E44: 0 | F44: 0 | G44: 0 | H44: 0 | I44: 0
B45: Türev Enstrümanlar | C45: 0 | D45: 0 | E45: 0 | F45: 0 | G45: 0 | H45: 0 | I45: 0
B46: Diğer Uzun Vadeli Alacaklar | C46: 0 | D46: 0 | E46: 0 | F46: 0 | G46: 0 | H46: 0 | I46: 0
B47: Finansal Yatırımlar | C47: 1260 | D47: 1260 | E47: 1260 | F47: 1260 | G47: 1260 | H47: 1260 | I47: 1260
B48: Özkaynak Yöntemiyle Değerlenen Yatırımlar | C48: 0 | D48: 0 | E48: 0 | F48: 0 | G48: 0 | H48: 0 | I48: 0
B49: Canlı Varlıklar | C49: 0 | D49: 0 | E49: 0 | F49: 0 | G49: 0 | H49: 0 | I49: 0
B50: İmtiyaz Sözleşmelerine İlişkin Finansal Varlıklar | C50: 0 | D50: 0 | E50: 0 | F50: 0 | G50: 0 | H50: 0 | I50: 0
B51: Stoklar | C51: 0 | D51: 0 | E51: 0 | F51: 0 | G51: 0 | H51: 0 | I51: 0
B52: Finansal Duran Varlıklar | C52: 0 | D52: 0 | E52: 0 | F52: 0 | G52: 0 | H52: 0 | I52: 0
B53: Pozitif/Negatif Şerefiye | C53: 0 | D53: 0 | E53: 0 | F53: 0 | G53: 0 | H53: 0 | I53: 0
B54: Yatırım Amaçlı Gayrimenkuller | C54: 0 | D54: 0 | E54: 0 | F54: 7320000 | G54: 8040000 | H54: 13148960 | I54: 13148960
B55: Proje Halindeki Yatırım Amaçlı Gayrimenkuller | C55: 0 | D55: 0 | E55: 0 | F55: 0 | G55: 0 | H55: 0 | I55: 0
B56: Alım Satım Amaçlı Gayrimenkuller (net) | C56: 0 | D56: 0 | E56: 0 | F56: 0 | G56: 0 | H56: 0 | I56: 0
B57: Maddi Duran Varlıklar | C57: 5576075 | D57: 6338279 | E57: 6502157 | F57: 5796913 | G57: 6912335 | H57: 9550590 | I57: 9584805
B58: Kullanım Hakkı Varlıkları | C58: 0 | D58: 0 | E58: 0 | F58: 0 | G58: 0 | H58: 0 | I58: 0
B59: Maddi Olmayan Duran Varlıklar | C59: 33850 | D59: 35757 | E59: 50205 | F59: 48893 | G59: 59953 | H59: 46822 | I59: 44692
B60: Müşteri Sözleşmelerinden Doğan Varlıklar | C60: 0 | D60: 0 | E60: 0 | F60: 0 | G60: 0 | H60: 0 | I60: 0
B61: Ertelenen Vergi Varlıkları | C61: 0 | D61: 0 | E61: 0 | F61: 0 | G61: 0 | H61: 0 | I61: 0
B62: Cari Dönem Vergisiyle İlgili Duran Varlıklar | C62: 0 | D62: 0 | E62: 0 | F62: 0 | G62: 0 | H62: 0 | I62: 0
B63: Nakit Dışı Serbest Kullanılabilir Teminatlar | C63: 0 | D63: 0 | E63: 0 | F63: 0 | G63: 0 | H63: 0 | I63: 0
B64: Peşin Ödenen Kira Giderleri | C64: 0 | D64: 0 | E64: 0 | F64: 0 | G64: 0 | H64: 0 | I64: 0
B65: Peşin Ödenmiş Giderler | C65: 0 | D65: 0 | E65: 0 | F65: 0 | G65: 0 | H65: 0 | I65: 0
B66: Diğer Duran Varlıklar | C66: 6715 | D66: 10914 | E66: 10058 | F66: 11797 | G66: 95 | H66: 5836 | I66: 95
B67: Vadesine kadar elde tut. men. kıy. | C67: 0 | D67: 0 | E67: 0 | F67: 0 | G67: 0 | H67: 0 | I67: 0
B68: Satılmaya Hazır Finansal Varlıklar | C68: 0 | D68: 0 | E68: 0 | F68: 0 | G68: 0 | H68: 0 | I68: 0
B69: İş Ortaklıklarının Duran Varlıklar İçindeki Payı | C69: 0 | D69: 0 | E69: 0 | F69: 0 | G69: 0 | H69: 0 | I69: 0
B70: Ana Ortaklık Dışı Paylar | C70: 0 | D70: 0 | E70: 0 | F70: 0 | G70: 0 | H70: 0 | I70: 0
B71: TOPLAM AKTİFLER | C71: 10281909 | D71: 13318664 | E71: 16756513 | F71: 24132709 | G71: 28317742 | H71: 38171678 | I71: 38848454
B72: KISA VADELİ YÜKÜMLÜLÜKLER | C72: 5367388 | D72: 7110709 | E72: 875141 | F72: 1011089 | G72: 2905410 | H72: 4142944 | I72: 3873109
B73: Finansal Borçlar | C73: 4471857 | D73: 6228151 | E73: 41379 | F73: 42913 | G73: 330549 | H73: 701932 | I73: 486548
B74: Uzun Vadeli Finansal Borçların Kısa Vadeli Kısımları | C74: 0 | D74: 0 | E74: 0 | F74: 0 | G74: 766846 | H74: 0 | I74: 0
B75: Mevduat | C75: 0 | D75: 0 | E75: 0 | F75: 0 | G75: 0 | H75: 0 | I75: 0
B76: Türev Araçlar | C76: 0 | D76: 0 | E76: 0 | F76: 0 | G76: 0 | H76: 0 | I76: 0
B77: Faktoring borçları | C77: 0 | D77: 0 | E77: 0 | F77: 0 | G77: 0 | H77: 0 | I77: 0
B78: Finansal Kiralama İşlemlerinden Borçlar | C78: 0 | D78: 0 | E78: 0 | F78: 0 | G78: 0 | H78: 0 | I78: 0
B79: Finans Sektörü Faaliyetlerinden Borçlar | C79: 0 | D79: 0 | E79: 0 | F79: 0 | G79: 0 | H79: 0 | I79: 0
B80: Sigorta Teknik Karşılığı | C80: 0 | D80: 0 | E80: 0 | F80: 0 | G80: 0 | H80: 0 | I80: 0
B81: Diğer Finansal Yükümlülükler | C81: 0 | D81: 0 | E81: 0 | F81: 0 | G81: 0 | H81: 0 | I81: 0
B82: Ticari Borçlar | C82: 615885 | D82: 570553 | E82: 486950 | F82: 623305 | G82: 991712 | H82: 2401738 | I82: 1378719
B83: İlişkili Taraflara Borçlar | C83: 0 | D83: 0 | E83: 0 | F83: 0 | G83: 0 | H83: 0 | I83: 0
B84: Alınan Krediler | C84: 0 | D84: 0 | E84: 0 | F84: 0 | G84: 0 | H84: 0 | I84: 0
B85: Diğer Borçlar | C85: 11331 | D85: 4792 | E85: 3020 | F85: 3020 | G85: 8090 | H85: 14163 | I85: 14163
B86: Alınan Avanslar | C86: 0 | D86: 0 | E86: 0 | F86: 0 | G86: 0 | H86: 0 | I86: 0
B87: Devlet Teşvik ve Yardımları | C87: 0 | D87: 0 | E87: 0 | F87: 0 | G87: 0 | H87: 0 | I87: 0
B88: Ertelenmiş Gelirler | C88: 7134 | D88: 45238 | E88: 8089 | F88: 6631 | G88: 173459 | H88: 239359 | I88: 808176
B89: Cari Dönem Vergi Yükümlülüğü | C89: 16212 | D89: 9079 | E89: 26302 | F89: 81214 | G89: 210506 | H89: 0 | I89: 230534
B90: Cari Dönem Vergisi ile İlgili Borçlar | C90: 0 | D90: 0 | E90: 0 | F90: 0 | G90: 0 | H90: 0 | I90: 0
B91: Bloke Hesaplar | C91: 0 | D91: 0 | E91: 0 | F91: 0 | G91: 0 | H91: 0 | I91: 0
B92: Müşteri Sözleşmelerinden Doğan Yükümlülükler | C92: 0 | D92: 0 | E92: 0 | F92: 0 | G92: 0 | H92: 0 | I92: 0
B93: Özkaynak Yöntemiyle Değerlenen Yatırımlardan Yükümlülükler | C93: 0 | D93: 0 | E93: 0 | F93: 0 | G93: 0 | H93: 0 | I93: 0
B94: Borç ve Gider Karşılıkları | C94: 89157 | D94: 77078 | E94: 60680 | F94: 37015 | G94: 134010 | H94: 126022 | I94: 135125
B95: Çalışanlara Sağlanan Faydalara İlişkin Karşılıklar | C95: 128311 | D95: 136226 | E95: 214560 | F95: 155256 | G95: 240940 | H95: 586875 | I95: 574729
B96: Ertelenen Vergi Yükümlülüğü | C96: 0 | D96: 0 | E96: 0 | F96: 0 | G96: 0 | H96: 0 | I96: 0
B97: Durdurulan faaliyetler ile ilgili yükümlülükler | C97: 0 | D97: 0 | E97: 0 | F97: 0 | G97: 0 | H97: 0 | I97: 0
B98: Diğer Kısa Vadeli Borçlar | C98: 27501 | D98: 39592 | E98: 34161 | F98: 61735 | G98: 49298 | H98: 72855 | I98: 245115
B99: İş Ortaklıklarının Kısa Vadeli Yükümlülükler İçindeki Payı | C99: 0 | D99: 0 | E99: 0 | F99: 0 | G99: 0 | H99: 0 | I99: 0
B100: Elden Çıkarılacak Faaliyetler ile İlgili Yükümlülükler | C100: 0 | D100: 0 | E100: 0 | F100: 0 | G100: 0 | H100: 0 | I100: 0
B101: Ortaklara Dağıtılmak Üzere Elde Tutulan Varlık Gruplarına İlişkin Yükümlülükler | C101: 0 | D101: 0 | E101: 0 | F101: 0 | G101: 0 | H101: 0 | I101: 0
B102: UZUN VADELİ YÜKÜMLÜLÜKLER | C102: 620644 | D102: 772124 | E102: 872566 | F102: 1095288 | G102: 2226282 | H102: 2314475 | I102: 2385730
B103: Mevduatlar | C103: 0 | D103: 0 | E103: 0 | F103: 0 | G103: 0 | H103: 0 | I103: 0
B104: Finansal Borçlar | C104: 0 | D104: 0 | E104: 42913 | F104: 0 | G104: 351947 | H104: 0 | I104: 0
B105: Faktoring borçları | C105: 0 | D105: 0 | E105: 0 | F105: 0 | G105: 0 | H105: 0 | I105: 0
B106: Finansal Kiralama İşlemlerinden Borçlar | C106: 0 | D106: 0 | E106: 0 | F106: 0 | G106: 0 | H106: 0 | I106: 0
B107: Finans Sektörü Faaliyetlerinden Borçlar | C107: 0 | D107: 0 | E107: 0 | F107: 0 | G107: 0 | H107: 0 | I107: 0
B108: Sigorta teknik karşılıkları | C108: 0 | D108: 0 | E108: 0 | F108: 0 | G108: 0 | H108: 0 | I108: 0
B109: Diğer Finansal Yükümlülükler | C109: 0 | D109: 0 | E109: 0 | F109: 0 | G109: 0 | H109: 0 | I109: 0
B110: Ticari Borçlar | C110: 0 | D110: 0 | E110: 0 | F110: 0 | G110: 0 | H110: 0 | I110: 0
B111: İlişkili Taraflara Borçlar | C111: 0 | D111: 0 | E111: 0 | F111: 0 | G111: 0 | H111: 0 | I111: 0
B112: Alınan Krediler | C112: 0 | D112: 0 | E112: 0 | F112: 0 | G112: 0 | H112: 0 | I112: 0
B113: Diğer Borçlar | C113: 0 | D113: 0 | E113: 0 | F113: 0 | G113: 0 | H113: 0 | I113: 0
B114: Müşteri Sözleşmelerinden Doğan Yükümlülükler | C114: 0 | D114: 0 | E114: 0 | F114: 0 | G114: 0 | H114: 0 | I114: 0
B115: Bloke Hesaplar | C115: 0 | D115: 0 | E115: 0 | F115: 0 | G115: 0 | H115: 0 | I115: 0
B116: Alınan Avanslar | C116: 0 | D116: 0 | E116: 0 | F116: 0 | G116: 0 | H116: 0 | I116: 0
B117: Çalışanlara Sağlanan Faydalar Kapsamında Borçlar | C117: 0 | D117: 0 | E117: 0 | F117: 0 | G117: 0 | H117: 0 | I117: 0
B118: Borç ve Gider Karşılıkları | C118: 416926 | D118: 444514 | E118: 519672 | F118: 498982 | G118: 853738 | H118: 580011 | I118: 659606
B119: Türev Finansal Araçlardan Borçlar | C119: 0 | D119: 0 | E119: 0 | F119: 0 | G119: 0 | H119: 0 | I119: 0
B120: Cari Dönem Vergisiyle İlgili Borçlar | C120: 0 | D120: 0 | E120: 0 | F120: 0 | G120: 0 | H120: 0 | I120: 0
B121: Ertelenen Vergi Yükümlülüğü | C121: 203718 | D121: 327610 | E121: 309981 | F121: 596306 | G121: 1020597 | H121: 1734464 | I121: 1726124
B122: Devlet Teşvik ve Yardımları | C122: 0 | D122: 0 | E122: 0 | F122: 0 | G122: 0 | H122: 0 | I122: 0
B123: Ertelenmiş Gelirler | C123: 0 | D123: 0 | E123: 0 | F123: 0 | G123: 0 | H123: 0 | I123: 0
B124: Devam Eden Sözleşmeler Hakediş Bedelleri | C124: 0 | D124: 0 | E124: 0 | F124: 0 | G124: 0 | H124: 0 | I124: 0
B125: Pozitif/Negatif Şerefiye | C125: 0 | D125: 0 | E125: 0 | F125: 0 | G125: 0 | H125: 0 | I125: 0
B126: Diğer Uzun Vadeli Borçlar | C126: 0 | D126: 0 | E126: 0 | F126: 0 | G126: 0 | H126: 0 | I126: 0
B127: İş Ortaklıklarının Uzun Vadeli Yükümlülükler İçindeki Payı | C127: 0 | D127: 0 | E127: 0 | F127: 0 | G127: 0 | H127: 0 | I127: 0
B128: ÖZ SERMAYE (AZINLIK PAYI DAHİL) | C128: 4293877 | D128: 5435831 | E128: 15008806 | F128: 22026332 | G128: 23186050 | H128: 31714259 | I128: 32589615
B129: ANA ORTAKLIK DIŞI ÖZSERMAYE | C129: 0 | D129: 0 | E129: 0 | F129: 0 | G129: 0 | H129: 0 | I129: 0
B130: Aile Üyeleri | C130: 0 | D130: 0 | E130: 0 | F130: 0 | G130: 0 | H130: 0 | I130: 0
B131: Diğerleri | C131: 0 | D131: 0 | E131: 0 | F131: 0 | G131: 0 | H131: 0 | I131: 0
B132: ÖZ SERMAYE (ANA ORTAKLIĞA AİT) | C132: 4293877 | D132: 5435831 | E132: 15008806 | F132: 22026332 | G132: 23186050 | H132: 31714259 | I132: 32589615
B133: Sermaye | C133: 602000 | D133: 602000 | E133: 10721700 | F133: 10721700 | G133: 10721700 | H133: 10721700 | I133: 10721700
B134: Ödenmeyen Sermaye(-) | C134: 0 | D134: 0 | E134: 0 | F134: 0 | G134: 0 | H134: 0 | I134: 0
B135: Karşılıklı İştirak Sermaye Düzeltmesi | C135: 0 | D135: 0 | E135: 0 | F135: 0 | G135: 0 | H135: 0 | I135: 0
B136: Paylara İlişkin Primler/İskontolar | C136: 0 | D136: 0 | E136: 0 | F136: 0 | G136: 0 | H136: 0 | I136: 0
B137: İşletmenin Geri Satın Alınan Kendi Hisseleri | C137: 0 | D137: 0 | E137: 0 | F137: -20450 | G137: -20450 | H137: -20450 | I137: -20450
B138: İşletmenin Geri Alınan Kendi Hisse Senetlerinin Satışından Doğan Kar | C138: 0 | D138: 0 | E138: 0 | F138: 0 | G138: 0 | H138: 0 | I138: 0
B139: Sermaye Avansı | C139: 0 | D139: 510000 | E139: 0 | F139: 0 | G139: 0 | H139: 0 | I139: 0
B140: Kar veya Zararda Yeniden Sınıflandırılmayacak Birikmiş Diğer Kapsamlı Gel. veya Gid. | C140: 3404329 | D140: 63206 | E140: 3850111 | F140: 10231960 | G140: 10087565 | H140: 11041338 | I140: 11041338
B141: Kar veya Zararda Yeniden Sınıflandırılacak Birikmiş Diğer Kapsamlı Gelir. veya Gid. | C141: 0 | D141: 3990867 | E141: 0 | F141: 0 | G141: 0 | H141: 0 | I141: 0
B142: Sermaye Yedekleri | C142: 0 | D142: 0 | E142: 0 | F142: 0 | G142: 0 | H142: 0 | I142: 0
B143: Sermaye Taahhütleri (-) | C143: 0 | D143: 0 | E143: 0 | F143: 0 | G143: 0 | H143: 0 | I143: 0
B144: Katkı sermaye | C144: 0 | D144: 0 | E144: 0 | F144: 0 | G144: 0 | H144: 0 | I144: 0
B145: Azınlık Hisseleri Satış Opsiyonu Değerleme Fonu | C145: 0 | D145: 0 | E145: 0 | F145: 0 | G145: 0 | H145: 0 | I145: 0
B146: Emisyon Primi | C146: 0 | D146: 0 | E146: 0 | F146: 0 | G146: 0 | H146: 0 | I146: 0
B147: Yeniden Değerleme Artışı | C147: 3341123 | D147: 3927661 | E147: 3850111 | F147: 10231960 | G147: 10087565 | H147: 11041338 | I147: 11041338
B148: Kar Yedekleri | C148: 0 | D148: 0 | E148: 0 | F148: 0 | G148: 0 | H148: 0 | I148: 0
B149: Dağıtılmamış Kar | C149: 0 | D149: 0 | E149: 0 | F149: 0 | G149: 0 | H149: 0 | I149: 0
B150: Sermaye artırımı ile ilgili masraflar | C150: 0 | D150: 0 | E150: 0 | F150: 0 | G150: 0 | H150: 0 | I150: 0
B151: Nakit Akım Koruması ile İlgili Birikmiş Kar | C151: 0 | D151: 0 | E151: 0 | F151: 0 | G151: 0 | H151: 0 | I151: 0
B152: Karşılıklı İştirak Serm. Düzeltmesinin Nom. Tut. Aşan Kısım | C152: 0 | D152: 0 | E152: 0 | F152: 0 | G152: 0 | H152: 0 | I152: 0
B153: Finansal Yatırımlar Değer Artış Fonu | C153: 0 | D153: 0 | E153: 0 | F153: 0 | G153: 0 | H153: 0 | I153: 0
B154: Diğer Özkaynak Payları | C154: 0 | D154: 0 | E154: 0 | F154: 0 | G154: 0 | H154: 0 | I154: 0
B155: Diğer Yedekler | C155: 0 | D155: 0 | E155: 0 | F155: 0 | G155: 0 | H155: 0 | I155: 0
B156: Net Dönem Karı | C156: 574069 | D156: 45416 | E156: 355697 | F156: 688231 | G156: 1839175 | H156: 8216511 | I156: 875356
B157: Dönem Zararı (-) | C157: 0 | D157: 0 | E157: 0 | F157: 0 | G157: 0 | H157: 0 | I157: 0
B158: Geçmiş Yıl Karları | C158: 0 | D158: 0 | E158: 0 | F158: 320704 | G158: 431801 | H158: 1534767 | I158: 9751278
B159: Net Dön. Kar. Ser. Hes. Ed. Tran. Ed. M. Dur. V. Sa. Karı | C159: 0 | D159: 0 | E159: 0 | F159: 0 | G159: 0 | H159: 0 | I159: 0
B160: Geçmiş Yıl Zararları (-) | C160: 1162596 | D160: 588527 | E160: 0 | F160: 0 | G160: 0 | H160: 0 | I160: 0
B161: Yabancı Para Çevrim Farkları | C161: 0 | D161: 0 | E161: 0 | F161: 0 | G161: 0 | H161: 0 | I161: 0
B162: Kardan Ayrılan Kısıtlanmış Yedekler | C162: 81298 | D162: 81298 | E162: 81298 | F162: 84187 | G162: 126259 | H162: 220393 | I162: 220393
B163: Kardan Ayrılan Kısıtlanmış Yedekler (27) | C163: 0 | D163: 0 | E163: 0 | F163: 0 | G163: 0 | H163: 0 | I163: 0
B164: Zarar Telafi Fonu | C164: 0 | D164: 0 | E164: 0 | F164: 0 | G164: 0 | H164: 0 | I164: 0
B165: Özsermaye Enf. Düz. Farkları | C165: 794777 | D165: 794777 | E165: 0 | F165: 0 | G165: 0 | H165: 0 | I165: 0
B166: Sermaye Birleşme Fonu | C166: 0 | D166: 0 | E166: 0 | F166: 0 | G166: 0 | H166: 0 | I166: 0
B167: İlave Ödenmiş Sermaye | C167: 0 | D167: 0 | E167: 0 | F167: 0 | G167: 0 | H167: 0 | I167: 0
B168: Birikmiş Karlar/Zararlar | C168: 0 | D168: 0 | E168: 0 | F168: 0 | G168: 0 | H168: 0 | I168: 0
B169: Yatırım Teşvikleri | C169: 0 | D169: 0 | E169: 0 | F169: 0 | G169: 0 | H169: 0 | I169: 0
B170: Satılmaya Haz. Var. Üz. Gerçekleşmemiş Net Gelir | C170: 0 | D170: 0 | E170: 0 | F170: 0 | G170: 0 | H170: 0 | I170: 0
B171: Ana ortaklık hisse satış kar/zarar | C171: 0 | D171: 0 | E171: 0 | F171: 0 | G171: 0 | H171: 0 | I171: 0
B172: AZINLIK PAYLARI | C172: 0 | D172: 0 | E172: 0 | F172: 0 | G172: 0 | H172: 0 | I172: 0
B173: TOPLAM PASİFLER | C173: 10281909 | D173: 13318664 | E173: 16756513 | F173: 24132709 | G173: 28317742 | H173: 38171678 | I173: 38848454
B178: Gelir Tablosu | C178: 2013/12 | D178: 2014/12 | E178: 2015/12 | F178: 2016/12 | G178: 2017/12 | H178: 2018/12 | I178: 2019/03
B179: BRÜT SATIŞLAR | C179: 9614990 | D179: 11505674 | E179: 12581244 | F179: 14648951 | G179: 21255940 | H179: 32135077 | I179: 8456083
B180: Yurtiçi Satışlar | C180: 4111053 | D180: 3403031 | E180: 3164288 | F180: 3246715 | G180: 3744805 | H180: 6376608 | I180: 1856133
B181: Yurtdışı Satışlar | C181: 5336190 | D181: 8102643 | E181: 9416956 | F181: 11402236 | G181: 17511135 | H181: 25758469 | I181: 6599950
B182: Diğer Satışlar | C182: 167747 | D182: 0 | E182: 0 | F182: 0 | G182: 0 | H182: 0 | I182: 0
B183: SATIŞLARDAN İNDİRİMLER (-) | C183: 149313 | D183: 166208 | E183: 73782 | F183: 203432 | G183: 91345 | H183: 162753 | I183: 30986
B184: Satışdan İadeler (-) | C184: 80930 | D184: 93870 | E184: 7648 | F184: 192843 | G184: 62131 | H184: 16625 | I184: 0
B185: Satış İskontoları (-) | C185: 2713 | D185: 13515 | E185: 21604 | F185: 10589 | G185: 29214 | H185: 146128 | I185: 0
B186: Diğer İndirimler (-) | C186: 65670 | D186: 58823 | E186: 44530 | F186: 0 | G186: 0 | H186: 0 | I186: 0
B187: ESAS FAALİYET GELİRLERİ | C187: 0 | D187: 0 | E187: 0 | F187: 0 | G187: 0 | H187: 0 | I187: 0
B188: SATIŞ GELİRLERİ | C188: 9465677 | D188: 11339466 | E188: 12507462 | F188: 14445519 | G188: 21164595 | H188: 31972324 | I188: 8425097
B189: FAİZ GELİRİ | C189: 0 | D189: 0 | E189: 0 | F189: 0 | G189: 0 | H189: 0 | I189: 0
B190: SATIŞLARIN MALİYETİ (-) | C190: 7604264 | D190: 8843160 | E190: 10283794 | F190: 12135848 | G190: 17530256 | H190: 24777277 | I190: 6435659
B191: FAİZ GİDERİ | C191: 0 | D191: 0 | E191: 0 | F191: 0 | G191: 0 | H191: 0 | I191: 0
B192: MUHTEMEL KREDİ ZARAR KARŞ. FİN.KİR. ALCK. KARŞ. VE FAKT. DEĞ. DÜŞ. KARŞ. | C192: 0 | D192: 0 | E192: 0 | F192: 0 | G192: 0 | H192: 0 | I192: 0
B193: HİZMET GELİRLERİ | C193: 0 | D193: 0 | E193: 0 | F193: 0 | G193: 0 | H193: 0 | I193: 0
B194: HİZMET GİDERLERİ (-) | C194: 0 | D194: 0 | E194: 0 | F194: 0 | G194: 0 | H194: 0 | I194: 0
B195: KAMBİYO KARI/ZARARI | C195: 0 | D195: 0 | E195: 0 | F195: 0 | G195: 0 | H195: 0 | I195: 0
B196: SERMAYE PİYASASI İŞLEM KARI/ZARARI | C196: 0 | D196: 0 | E196: 0 | F196: 0 | G196: 0 | H196: 0 | I196: 0
B197: ESAS FAALİYETLERDEN DİĞER GİDER/GELİR | C197: 0 | D197: 0 | E197: 0 | F197: 0 | G197: 0 | H197: 0 | I197: 0
B198: FAİZ, ÜCRET, PRİM, KOMİSYON VE DİĞER GELİRLER | C198: 0 | D198: 0 | E198: 0 | F198: 0 | G198: 0 | H198: 0 | I198: 0
B199: Kambiyo Gelirleri | C199: 0 | D199: 0 | E199: 0 | F199: 0 | G199: 0 | H199: 0 | I199: 0
B200: Faiz Gelirleri | C200: 0 | D200: 0 | E200: 0 | F200: 0 | G200: 0 | H200: 0 | I200: 0
B201: Kar Payı Gelirleri | C201: 0 | D201: 0 | E201: 0 | F201: 0 | G201: 0 | H201: 0 | I201: 0
B202: Türev Finansal İşlemlerden Kazanç | C202: 0 | D202: 0 | E202: 0 | F202: 0 | G202: 0 | H202: 0 | I202: 0
B203: Portföy İşletmeciliği Faaliyetinden Elde Edilen Gelir | C203: 0 | D203: 0 | E203: 0 | F203: 0 | G203: 0 | H203: 0 | I203: 0
B204: Sigortacılık Hizmetlerinden Elde Edilen Gelir | C204: 0 | D204: 0 | E204: 0 | F204: 0 | G204: 0 | H204: 0 | I204: 0
... 135 more rows

Sheet ADANA (hidden)
A1: ADANA
B2: BİLANÇO | C2: 2013/12 | D2: 2014/12 | E2: 2015/12 | F2: 2016/12 | G2: 2017/12 | H2: 2018/12 | I2: 2019/03
B3: DÖNEN VARLIKLAR | C3: 219927773 | D3: 321922626 | E3: 304203934 | F3: 285454863 | G3: 385509334 | H3: 1015651361 | I3: 900348528
B4: Hazır Değerler | C4: 37732722 | D4: 114134735 | E4: 105736333 | F4: 41705788 | G4: 69473644 | H4: 556549466 | I4: 430267665
B5: Gayrimenkul Projeleri Kapsamında Açılan Nakit Hesapları | C5: 0 | D5: 0 | E5: 0 | F5: 0 | G5: 0 | H5: 0 | I5: 0
B6: Finansal Yatırımlar | C6: 11131527 | D6: 16324409 | E6: 11019797 | F6: 17356567 | G6: 31470200 | H6: 22988892 | I6: 28183903
B7: Menkul Kıymetler | C7: 0 | D7: 0 | E7: 0 | F7: 0 | G7: 0 | H7: 0 | I7: 0
B8: Türkiye Cumhuriyet Merkez Bankası Hesabı | C8: 0 | D8: 0 | E8: 0 | F8: 0 | G8: 0 | H8: 0 | I8: 0
B9: Krediler ve Avanslar | C9: 0 | D9: 0 | E9: 0 | F9: 0 | G9: 0 | H9: 0 | I9: 0
B10: Faktoring alacakları (net) | C10: 0 | D10: 0 | E10: 0 | F10: 0 | G10: 0 | H10: 0 | I10: 0
B11: Teminata Verilen Finansal Varlıklar | C11: 0 | D11: 0 | E11: 0 | F11: 0 | G11: 0 | H11: 0 | I11: 0
B12: Kısa Vadeli Ticari Alacaklar | C12: 118333165 | D12: 129639833 | E12: 129355223 | F12: 149425505 | G12: 165185736 | H12: 167388865 | I12: 151091580
B13: Finansal Kiralama Alacakları | C13: 0 | D13: 0 | E13: 0 | F13: 0 | G13: 0 | H13: 0 | I13: 0
B14: Finans Sektörü Faal. Alacaklar | C14: 0 | D14: 0 | E14: 0 | F14: 0 | G14: 0 | H14: 0 | I14: 0
B15: İlişkili Taraflardan Alacaklar | C15: 0 | D15: 0 | E15: 0 | F15: 0 | G15: 0 | H15: 0 | I15: 0
B16: Diğer Kısa Vadeli Alacaklar | C16: 1005939 | D16: 1585343 | E16: 3781234 | F16: 1390508 | G16: 12525651 | H16: 12073039 | I16: 125434750
B17: Canlı Varlıklar | C17: 0 | D17: 0 | E17: 0 | F17: 0 | G17: 0 | H17: 0 | I17: 0
B18: Kullanımı Kısıtlı Banka Bakiyeleri | C18: 0 | D18: 0 | E18: 0 | F18: 0 | G18: 0 | H18: 0 | I18: 0
B19: Stoklar | C19: 50387024 | D19: 58894927 | E19: 52312678 | F19: 70560164 | G19: 91099185 | H19: 167701173 | I19: 151792323
B20: Peşin Ödenen Kira Giderleri | C20: 0 | D20: 0 | E20: 0 | F20: 0 | G20: 0 | H20: 0 | I20: 0
B21: Müşteri Sözleşmelerinden Doğan Varlıklar | C21: 0 | D21: 0 | E21: 0 | F21: 0 | G21: 0 | H21: 0 | I21: 0
B22: İmtiyaz Sözleşmelerine İlişkin Finansal Varlıklar | C22: 0 | D22: 0 | E22: 0 | F22: 0 | G22: 0 | H22: 0 | I22: 0
B23: Türev Enstrümanlar | C23: 0 | D23: 0 | E23: 0 | F23: 0 | G23: 0 | H23: 0 | I23: 0
B24: Ertelenen Vergi Varlıkları | C24: 0 | D24: 0 | E24: 0 | F24: 0 | G24: 0 | H24: 0 | I24: 0
B25: Durdurulan faaliyetler ile ilgili varlıklar | C25: 0 | D25: 0 | E25: 0 | F25: 0 | G25: 0 | H25: 0 | I25: 0
B26: Peşin Ödenmiş Giderler | C26: 924131 | D26: 1180931 | E26: 1576295 | F26: 3106547 | G26: 5437993 | H26: 2348994 | I26: 4159429
B27: Cari Dönem Vergisiyle İlgili Varlıklar | C27: 0 | D27: 0 | E27: 0 | F27: 0 | G27: 0 | H27: 0 | I27: 0
B28: Nakit Dışı Serbest Kullanılabilir Teminatlar | C28: 0 | D28: 0 | E28: 0 | F28: 0 | G28: 0 | H28: 0 | I28: 0
B29: Diğer Dönen Varlıklar | C29: 413265 | D29: 162448 | E29: 422374 | F29: 1909784 | G29: 10316925 | H29: 8463083 | I29: 9418878
B30: Vadesine kadar elde tut. men. kıy. | C30: 0 | D30: 0 | E30: 0 | F30: 0 | G30: 0 | H30: 0 | I30: 0
B31: Satılmaya Hazır Finansal Varlıklar | C31: 0 | D31: 0 | E31: 0 | F31: 0 | G31: 0 | H31: 0 | I31: 0
B32: Alım Satım Amaçlı Menkul Kıymetler | C32: 0 | D32: 0 | E32: 0 | F32: 0 | G32: 0 | H32: 0 | I32: 0
B33: İş Ortaklıklarının Dönen Varlıklar İçindeki Payı | C33: 0 | D33: 0 | E33: 0 | F33: 0 | G33: 0 | H33: 0 | I33: 0
B34: Elden Çıkarılacak Faaliyetler ile İlgili Varlıklar | C34: 0 | D34: 0 | E34: 0 | F34: 0 | G34: 0 | H34: 0 | I34: 0
B35: Satım amaçlı elde tutulan maddi duran varlıklar | C35: 0 | D35: 0 | E35: 0 | F35: 0 | G35: 0 | H35: 78137849 | I35: 0
B36: Ortaklara Dağıtılmak Üzere Elde Tutulan Duran Varlıklar | C36: 0 | D36: 0 | E36: 0 | F36: 0 | G36: 0 | H36: 0 | I36: 0
B37: DURAN VARLIKLAR | C37: 501203257 | D37: 550654306 | E37: 578707847 | F37: 663978536 | G37: 781475385 | H37: 582272293 | I37: 596581792
B38: Menkul Kıymetler | C38: 0 | D38: 0 | E38: 0 | F38: 0 | G38: 0 | H38: 0 | I38: 0
B39: Krediler ve Avanslar | C39: 0 | D39: 0 | E39: 0 | F39: 0 | G39: 0 | H39: 0 | I39: 0
B40: Faktoring alacakları (net) | C40: 0 | D40: 0 | E40: 0 | F40: 0 | G40: 0 | H40: 0 | I40: 0
B41: Uzun Vadeli Ticari Alacaklar | C41: 1525976 | D41: 17934 | E41: 0 | F41: 0 | G41: 0 | H41: 0 | I41: 0
B42: Finansal Kiralama Alacakları | C42: 0 | D42: 0 | E42: 0 | F42: 0 | G42: 0 | H42: 0 | I42: 0
B43: Finans Sektörü Faal. Alacaklar | C43: 0 | D43: 0 | E43: 0 | F43: 0 | G43: 0 | H43: 0 | I43: 0
B44: İlişkili Taraflardan Alacaklar | C44: 0 | D44: 0 | E44: 0 | F44: 0 | G44: 0 | H44: 0 | I44: 0
B45: Türev Enstrümanlar | C45: 0 | D45: 0 | E45: 0 | F45: 0 | G45: 0 | H45: 0 | I45: 0
B46: Diğer Uzun Vadeli Alacaklar | C46: 102959 | D46: 181670 | E46: 201075 | F46: 250715 | G46: 246193 | H46: 278236 | I46: 339900
B47: Finansal Yatırımlar | C47: 78762516 | D47: 110543882 | E47: 105638497 | F47: 109092993 | G47: 94445929 | H47: 0 | I47: 0
B48: Özkaynak Yöntemiyle Değerlenen Yatırımlar | C48: 162036344 | D48: 182554724 | E48: 200336997 | F48: 212185510 | G48: 236934219 | H48: 38470958 | I48: 36847750
B49: Canlı Varlıklar | C49: 0 | D49: 0 | E49: 0 | F49: 0 | G49: 0 | H49: 0 | I49: 0
B50: İmtiyaz Sözleşmelerine İlişkin Finansal Varlıklar | C50: 0 | D50: 0 | E50: 0 | F50: 0 | G50: 0 | H50: 0 | I50: 0
B51: Stoklar | C51: 0 | D51: 0 | E51: 0 | F51: 0 | G51: 0 | H51: 0 | I51: 0
B52: Finansal Duran Varlıklar | C52: 0 | D52: 0 | E52: 0 | F52: 0 | G52: 0 | H52: 0 | I52: 0
B53: Pozitif/Negatif Şerefiye | C53: 0 | D53: 0 | E53: 0 | F53: 0 | G53: 0 | H53: 0 | I53: 0
B54: Yatırım Amaçlı Gayrimenkuller | C54: 10797118 | D54: 13283078 | E54: 14318959 | F54: 13796659 | G54: 14578298 | H54: 13545891 | I54: 13545891
B55: Proje Halindeki Yatırım Amaçlı Gayrimenkuller | C55: 0 | D55: 0 | E55: 0 | F55: 0 | G55: 0 | H55: 0 | I55: 0
B56: Alım Satım Amaçlı Gayrimenkuller (net) | C56: 0 | D56: 0 | E56: 0 | F56: 0 | G56: 0 | H56: 0 | I56: 0
B57: Maddi Duran Varlıklar | C57: 239405985 | D57: 231112111 | E57: 242568891 | F57: 295658021 | G57: 422548849 | H57: 507115711 | I57: 519578488
B58: Kullanım Hakkı Varlıkları | C58: 0 | D58: 0 | E58: 0 | F58: 0 | G58: 0 | H58: 0 | I58: 0
B59: Maddi Olmayan Duran Varlıklar | C59: 8040014 | D59: 10739541 | E59: 10968960 | F59: 10454520 | G59: 10863672 | H59: 10016746 | I59: 9930828
B60: Müşteri Sözleşmelerinden Doğan Varlıklar | C60: 0 | D60: 0 | E60: 0 | F60: 0 | G60: 0 | H60: 0 | I60: 0
B61: Ertelenen Vergi Varlıkları | C61: 0 | D61: 0 | E61: 0 | F61: 0 | G61: 0 | H61: 8857527 | I61: 11658535
B62: Cari Dönem Vergisiyle İlgili Duran Varlıklar | C62: 0 | D62: 0 | E62: 0 | F62: 0 | G62: 0 | H62: 0 | I62: 0
B63: Nakit Dışı Serbest Kullanılabilir Teminatlar | C63: 0 | D63: 0 | E63: 0 | F63: 0 | G63: 0 | H63: 0 | I63: 0
B64: Peşin Ödenen Kira Giderleri | C64: 0 | D64: 0 | E64: 0 | F64: 0 | G64: 0 | H64: 0 | I64: 0
B65: Peşin Ödenmiş Giderler | C65: 532345 | D65: 2221366 | E65: 4674468 | F65: 22540118 | G65: 1858225 | H65: 3987224 | I65: 4680400
B66: Diğer Duran Varlıklar | C66: 0 | D66: 0 | E66: 0 | F66: 0 | G66: 0 | H66: 0 | I66: 0
B67: Vadesine kadar elde tut. men. kıy. | C67: 0 | D67: 0 | E67: 0 | F67: 0 | G67: 0 | H67: 0 | I67: 0
B68: Satılmaya Hazır Finansal Varlıklar | C68: 0 | D68: 0 | E68: 0 | F68: 0 | G68: 0 | H68: 0 | I68: 0
B69: İş Ortaklıklarının Duran Varlıklar İçindeki Payı | C69: 0 | D69: 0 | E69: 0 | F69: 0 | G69: 0 | H69: 0 | I69: 0
B70: Ana Ortaklık Dışı Paylar | C70: 0 | D70: 0 | E70: 0 | F70: 0 | G70: 0 | H70: 0 | I70: 0
B71: TOPLAM AKTİFLER | C71: 721131030 | D71: 872576932 | E71: 882911781 | F71: 949433399 | G71: 1166984719 | H71: 1597923654 | I71: 1496930320
B72: KISA VADELİ YÜKÜMLÜLÜKLER | C72: 49979738 | D72: 90043651 | E72: 68318701 | F72: 78864226 | G72: 338017798 | H72: 355340153 | I72: 513762139
B73: Finansal Borçlar | C73: 452259 | D73: 21296027 | E73: 947099 | F73: 0 | G73: 183761427 | H73: 198055374 | I73: 112475334
B74: Uzun Vadeli Finansal Borçların Kısa Vadeli Kısımları | C74: 441650 | D74: 833224 | E74: 816660 | F74: 18937379 | G74: 27093000 | H74: 37512117 | I74: 39197734
B75: Mevduat | C75: 0 | D75: 0 | E75: 0 | F75: 0 | G75: 0 | H75: 0 | I75: 0
B76: Türev Araçlar | C76: 0 | D76: 0 | E76: 0 | F76: 0 | G76: 0 | H76: 0 | I76: 9390504
B77: Faktoring borçları | C77: 0 | D77: 0 | E77: 0 | F77: 0 | G77: 0 | H77: 0 | I77: 0
B78: Finansal Kiralama İşlemlerinden Borçlar | C78: 0 | D78: 0 | E78: 0 | F78: 0 | G78: 0 | H78: 0 | I78: 0
B79: Finans Sektörü Faaliyetlerinden Borçlar | C79: 0 | D79: 0 | E79: 0 | F79: 0 | G79: 0 | H79: 0 | I79: 0
B80: Sigorta Teknik Karşılığı | C80: 0 | D80: 0 | E80: 0 | F80: 0 | G80: 0 | H80: 0 | I80: 0
B81: Diğer Finansal Yükümlülükler | C81: 0 | D81: 0 | E81: 0 | F81: 0 | G81: 0 | H81: 0 | I81: 0
B82: Ticari Borçlar | C82: 36086071 | D82: 37279447 | E82: 41534340 | F82: 41504889 | G82: 86478584 | H82: 72460000 | I82: 72762774
B83: İlişkili Taraflara Borçlar | C83: 0 | D83: 0 | E83: 0 | F83: 0 | G83: 0 | H83: 0 | I83: 0
B84: Alınan Krediler | C84: 0 | D84: 0 | E84: 0 | F84: 0 | G84: 0 | H84: 0 | I84: 0
B85: Diğer Borçlar | C85: 2332950 | D85: 13130663 | E85: 7838305 | F85: 2361758 | G85: 7614292 | H85: 6768241 | I85: 245584182
B86: Alınan Avanslar | C86: 0 | D86: 0 | E86: 0 | F86: 0 | G86: 0 | H86: 0 | I86: 0
B87: Devlet Teşvik ve Yardımları | C87: 0 | D87: 0 | E87: 0 | F87: 0 | G87: 0 | H87: 0 | I87: 0
B88: Ertelenmiş Gelirler | C88: 1547725 | D88: 2849044 | E88: 2632563 | F88: 2375355 | G88: 18794038 | H88: 5175662 | I88: 6553247
B89: Cari Dönem Vergi Yükümlülüğü | C89: 5291707 | D89: 6904879 | E89: 5605240 | F89: 4627144 | G89: 5310340 | H89: 25544542 | I89: 8248356
B90: Cari Dönem Vergisi ile İlgili Borçlar | C90: 0 | D90: 0 | E90: 0 | F90: 0 | G90: 0 | H90: 0 | I90: 0
B91: Bloke Hesaplar | C91: 0 | D91: 0 | E91: 0 | F91: 0 | G91: 0 | H91: 0 | I91: 0
B92: Müşteri Sözleşmelerinden Doğan Yükümlülükler | C92: 0 | D92: 0 | E92: 0 | F92: 0 | G92: 0 | H92: 0 | I92: 0
B93: Özkaynak Yöntemiyle Değerlenen Yatırımlardan Yükümlülükler | C93: 0 | D93: 0 | E93: 0 | F93: 0 | G93: 0 | H93: 0 | I93: 0
B94: Borç ve Gider Karşılıkları | C94: 1725962 | D94: 3565628 | E94: 4979028 | F94: 4864076 | G94: 4983297 | H94: 7355182 | I94: 15301165
B95: Çalışanlara Sağlanan Faydalara İlişkin Karşılıklar | C95: 1647579 | D95: 1377854 | E95: 3965466 | F95: 4193625 | G95: 3982820 | H95: 2469035 | I95: 4248843
B96: Ertelenen Vergi Yükümlülüğü | C96: 0 | D96: 0 | E96: 0 | F96: 0 | G96: 0 | H96: 0 | I96: 0
B97: Durdurulan faaliyetler ile ilgili yükümlülükler | C97: 0 | D97: 0 | E97: 0 | F97: 0 | G97: 0 | H97: 0 | I97: 0
B98: Diğer Kısa Vadeli Borçlar | C98: 453835 | D98: 2806885 | E98: 0 | F98: 0 | G98: 0 | H98: 0 | I98: 0
B99: İş Ortaklıklarının Kısa Vadeli Yükümlülükler İçindeki Payı | C99: 0 | D99: 0 | E99: 0 | F99: 0 | G99: 0 | H99: 0 | I99: 0
B100: Elden Çıkarılacak Faaliyetler ile İlgili Yükümlülükler | C100: 0 | D100: 0 | E100: 0 | F100: 0 | G100: 0 | H100: 0 | I100: 0
B101: Ortaklara Dağıtılmak Üzere Elde Tutulan Varlık Gruplarına İlişkin Yükümlülükler | C101: 0 | D101: 0 | E101: 0 | F101: 0 | G101: 0 | H101: 0 | I101: 0
B102: UZUN VADELİ YÜKÜMLÜLÜKLER | C102: 16805575 | D102: 21072311 | E102: 21081215 | F102: 77108016 | G102: 67108776 | H102: 116091130 | I102: 108840935
B103: Mevduatlar | C103: 0 | D103: 0 | E103: 0 | F103: 0 | G103: 0 | H103: 0 | I103: 0
B104: Finansal Borçlar | C104: 1600000 | D104: 800000 | E104: 0 | F104: 55648500 | G104: 45155000 | H104: 99112000 | I104: 92151029
B105: Faktoring borçları | C105: 0 | D105: 0 | E105: 0 | F105: 0 | G105: 0 | H105: 0 | I105: 0
B106: Finansal Kiralama İşlemlerinden Borçlar | C106: 0 | D106: 0 | E106: 0 | F106: 0 | G106: 0 | H106: 0 | I106: 0
B107: Finans Sektörü Faaliyetlerinden Borçlar | C107: 0 | D107: 0 | E107: 0 | F107: 0 | G107: 0 | H107: 0 | I107: 0
B108: Sigorta teknik karşılıkları | C108: 0 | D108: 0 | E108: 0 | F108: 0 | G108: 0 | H108: 0 | I108: 0
B109: Diğer Finansal Yükümlülükler | C109: 0 | D109: 0 | E109: 0 | F109: 0 | G109: 0 | H109: 0 | I109: 0
B110: Ticari Borçlar | C110: 0 | D110: 0 | E110: 0 | F110: 0 | G110: 0 | H110: 0 | I110: 0
B111: İlişkili Taraflara Borçlar | C111: 0 | D111: 0 | E111: 0 | F111: 0 | G111: 0 | H111: 0 | I111: 0
B112: Alınan Krediler | C112: 0 | D112: 0 | E112: 0 | F112: 0 | G112: 0 | H112: 0 | I112: 0
B113: Diğer Borçlar | C113: 0 | D113: 0 | E113: 0 | F113: 0 | G113: 0 | H113: 0 | I113: 0
B114: Müşteri Sözleşmelerinden Doğan Yükümlülükler | C114: 0 | D114: 0 | E114: 0 | F114: 0 | G114: 0 | H114: 0 | I114: 0
B115: Bloke Hesaplar | C115: 0 | D115: 0 | E115: 0 | F115: 0 | G115: 0 | H115: 0 | I115: 0
B116: Alınan Avanslar | C116: 0 | D116: 0 | E116: 0 | F116: 0 | G116: 0 | H116: 0 | I116: 0
B117: Çalışanlara Sağlanan Faydalar Kapsamında Borçlar | C117: 0 | D117: 0 | E117: 0 | F117: 0 | G117: 0 | H117: 0 | I117: 0
B118: Borç ve Gider Karşılıkları | C118: 11997465 | D118: 16060280 | E118: 15954321 | F118: 16518145 | G118: 17157001 | H118: 16760418 | I118: 16471194
B119: Türev Finansal Araçlardan Borçlar | C119: 0 | D119: 0 | E119: 0 | F119: 0 | G119: 0 | H119: 0 | I119: 0
B120: Cari Dönem Vergisiyle İlgili Borçlar | C120: 0 | D120: 0 | E120: 0 | F120: 0 | G120: 0 | H120: 0 | I120: 0
B121: Ertelenen Vergi Yükümlülüğü | C121: 3208110 | D121: 4212031 | E121: 5126894 | F121: 4941371 | G121: 4796775 | H121: 0 | I121: 0
B122: Devlet Teşvik ve Yardımları | C122: 0 | D122: 0 | E122: 0 | F122: 0 | G122: 0 | H122: 0 | I122: 0
B123: Ertelenmiş Gelirler | C123: 0 | D123: 0 | E123: 0 | F123: 0 | G123: 0 | H123: 218712 | I123: 218712
B124: Devam Eden Sözleşmeler Hakediş Bedelleri | C124: 0 | D124: 0 | E124: 0 | F124: 0 | G124: 0 | H124: 0 | I124: 0
B125: Pozitif/Negatif Şerefiye | C125: 0 | D125: 0 | E125: 0 | F125: 0 | G125: 0 | H125: 0 | I125: 0
B126: Diğer Uzun Vadeli Borçlar | C126: 0 | D126: 0 | E126: 0 | F126: 0 | G126: 0 | H126: 0 | I126: 0
B127: İş Ortaklıklarının Uzun Vadeli Yükümlülükler İçindeki Payı | C127: 0 | D127: 0 | E127: 0 | F127: 0 | G127: 0 | H127: 0 | I127: 0
B128: ÖZ SERMAYE (AZINLIK PAYI DAHİL) | C128: 654345716 | D128: 761460970 | E128: 793511865 | F128: 793461157 | G128: 761858145 | H128: 1126492371 | I128: 874327246
B129: ANA ORTAKLIK DIŞI ÖZSERMAYE | C129: 0 | D129: 0 | E129: 0 | F129: 0 | G129: 0 | H129: 0 | I129: 0
B130: Aile Üyeleri | C130: 0 | D130: 0 | E130: 0 | F130: 0 | G130: 0 | H130: 0 | I130: 0
B131: Diğerleri | C131: 0 | D131: 0 | E131: 0 | F131: 0 | G131: 0 | H131: 0 | I131: 0
B132: ÖZ SERMAYE (ANA ORTAKLIĞA AİT) | C132: 654345716 | D132: 761460970 | E132: 793511865 | F132: 793461157 | G132: 761858145 | H132: 1126492371 | I132: 874327246
B133: Sermaye | C133: 336182000 | D133: 336182000 | E133: 336182000 | F133: 336182000 | G133: 336182000 | H133: 336182000 | I133: 336182000
B134: Ödenmeyen Sermaye(-) | C134: 0 | D134: 0 | E134: 0 | F134: 0 | G134: 0 | H134: 0 | I134: 0
B135: Karşılıklı İştirak Sermaye Düzeltmesi | C135: 0 | D135: 0 | E135: 0 | F135: 0 | G135: 0 | H135: 0 | I135: 0
B136: Paylara İlişkin Primler/İskontolar | C136: 0 | D136: 0 | E136: 0 | F136: 0 | G136: 0 | H136: 0 | I136: 0
B137: İşletmenin Geri Satın Alınan Kendi Hisseleri | C137: 0 | D137: 0 | E137: 0 | F137: 0 | G137: 0 | H137: 0 | I137: -54515327
B138: İşletmenin Geri Alınan Kendi Hisse Senetlerinin Satışından Doğan Kar | C138: 0 | D138: 0 | E138: 0 | F138: 0 | G138: 0 | H138: 0 | I138: 0
B139: Sermaye Avansı | C139: 0 | D139: 0 | E139: 0 | F139: 0 | G139: 0 | H139: 0 | I139: 0
B140: Kar veya Zararda Yeniden Sınıflandırılmayacak Birikmiş Diğer Kapsamlı Gel. veya Gid. | C140: 62548677 | D140: 0 | E140: -6406012 | F140: -6623738 | G140: -7113110 | H140: -4190768 | I140: -2720513
B141: Kar veya Zararda Yeniden Sınıflandırılacak Birikmiş Diğer Kapsamlı Gelir. veya Gid. | C141: 938470 | D141: 90759365 | E141: 93390120 | F141: 97377249 | G141: 85290702 | H141: 5380815 | I141: 0
B142: Sermaye Yedekleri | C142: -4700837 | D142: 0 | E142: -3060762 | F142: -3340781 | G142: -3465791 | H142: -1716495 | I142: -246240
B143: Sermaye Taahhütleri (-) | C143: 0 | D143: 0 | E143: 0 | F143: 0 | G143: 0 | H143: 0 | I143: 0
B144: Katkı sermaye | C144: 0 | D144: 0 | E144: 0 | F144: 0 | G144: 0 | H144: 0 | I144: 0
B145: Azınlık Hisseleri Satış Opsiyonu Değerleme Fonu | C145: 0 | D145: 0 | E145: 0 | F145: 0 | G145: 0 | H145: 0 | I145: 0
B146: Emisyon Primi | C146: 0 | D146: 0 | E146: 0 | F146: 0 | G146: 0 | H146: 0 | I146: 0
B147: Yeniden Değerleme Artışı | C147: 67249514 | D147: 97441812 | E147: 89436446 | F147: 92780511 | G147: 78501438 | H147: -2474273 | I147: -2474273
B148: Kar Yedekleri | C148: 0 | D148: -7298920 | E148: 0 | F148: 0 | G148: 0 | H148: 0 | I148: 0
B149: Dağıtılmamış Kar | C149: 0 | D149: 0 | E149: 0 | F149: 0 | G149: 0 | H149: 0 | I149: 0
B150: Sermaye artırımı ile ilgili masraflar | C150: 0 | D150: 0 | E150: 0 | F150: 0 | G150: 0 | H150: 0 | I150: 0
B151: Nakit Akım Koruması ile İlgili Birikmiş Kar | C151: 0 | D151: 0 | E151: 0 | F151: 0 | G151: 0 | H151: 0 | I151: 0
B152: Karşılıklı İştirak Serm. Düzeltmesinin Nom. Tut. Aşan Kısım | C152: 0 | D152: 0 | E152: 0 | F152: 0 | G152: 0 | H152: 0 | I152: 0
B153: Finansal Yatırımlar Değer Artış Fonu | C153: 0 | D153: 0 | E153: 0 | F153: 0 | G153: 0 | H153: 0 | I153: 0
B154: Diğer Özkaynak Payları | C154: 0 | D154: 0 | E154: 0 | F154: 0 | G154: 0 | H154: 0 | I154: 0
B155: Diğer Yedekler | C155: 0 | D155: 0 | E155: 0 | F155: 0 | G155: 0 | H155: 0 | I155: 0
B156: Net Dönem Karı | C156: 67705183 | D156: 142921302 | E156: 144077727 | F156: 130943887 | G156: 125972459 | H156: 483136386 | I156: 46910343
B157: Dönem Zararı (-) | C157: 0 | D157: 0 | E157: 0 | F157: 0 | G157: 0 | H157: 0 | I157: 0
B158: Geçmiş Yıl Karları | C158: 82065838 | D158: 82065838 | E158: 107591318 | F158: 103738501 | G158: 76864194 | H158: 151398096 | I158: 371648440
B159: Net Dön. Kar. Ser. Hes. Ed. Tran. Ed. M. Dur. V. Sa. Karı | C159: 0 | D159: 0 | E159: 0 | F159: 0 | G159: 0 | H159: 0 | I159: 0
B160: Geçmiş Yıl Zararları (-) | C160: 0 | D160: 0 | E160: 0 | F160: 0 | G160: 0 | H160: 0 | I160: 0
B161: Yabancı Para Çevrim Farkları | C161: 938470 | D161: 616473 | E161: 608424 | F161: 1313781 | G161: 3141945 | H161: 5380815 | I161: 0
B162: Kardan Ayrılan Kısıtlanmış Yedekler | C162: 104905548 | D162: 109532465 | E162: 118676712 | F162: 131843258 | G162: 144661900 | H162: 154585842 | I162: 176822303
B163: Kardan Ayrılan Kısıtlanmış Yedekler (27) | C163: 0 | D163: 0 | E163: 0 | F163: 0 | G163: 0 | H163: 0 | I163: 0
B164: Zarar Telafi Fonu | C164: 0 | D164: 0 | E164: 0 | F164: 0 | G164: 0 | H164: 0 | I164: 0
B165: Özsermaye Enf. Düz. Farkları | C165: 0 | D165: 0 | E165: 0 | F165: 0 | G165: 0 | H165: 0 | I165: 0
B166: Sermaye Birleşme Fonu | C166: 0 | D166: 0 | E166: 0 | F166: 0 | G166: 0 | H166: 0 | I166: 0
B167: İlave Ödenmiş Sermaye | C167: 0 | D167: 0 | E167: 0 | F167: 0 | G167: 0 | H167: 0 | I167: 0
B168: Birikmiş Karlar/Zararlar | C168: 0 | D168: 0 | E168: 0 | F168: 0 | G168: 0 | H168: 0 | I168: 0
B169: Yatırım Teşvikleri | C169: 0 | D169: 0 | E169: 0 | F169: 0 | G169: 0 | H169: 0 | I169: 0
B170: Satılmaya Haz. Var. Üz. Gerçekleşmemiş Net Gelir | C170: 0 | D170: 0 | E170: 0 | F170: 0 | G170: 0 | H170: 0 | I170: 0
B171: Ana ortaklık hisse satış kar/zarar | C171: 0 | D171: 0 | E171: 0 | F171: 0 | G171: 0 | H171: 0 | I171: 0
B172: AZINLIK PAYLARI | C172: 0 | D172: 0 | E172: 0 | F172: 0 | G172: 0 | H172: 0 | I172: 0
B173: TOPLAM PASİFLER | C173: 721131029 | D173: 872576932 | E173: 882911781 | F173: 949433399 | G173: 1166984719 | H173: 1597923654 | I173: 1496930320
B178: Gelir Tablosu | C178: 2013/12 | D178: 2014/12 | E178: 2015/12 | F178: 2016/12 | G178: 2017/12 | H178: 2018/12 | I178: 2019/03
B179: BRÜT SATIŞLAR | C179: 400117697 | D179: 442234014 | E179: 431754202 | F179: 390045507 | G179: 502341547 | H179: 701345840 | I179: 131597049
B180: Yurtiçi Satışlar | C180: 315149196 | D180: 346247594 | E180: 339197760 | F180: 305461163 | G180: 361442881 | H180: 426807978 | I180: 70998885
B181: Yurtdışı Satışlar | C181: 83623229 | D181: 94970913 | E181: 92556442 | F181: 84584344 | G181: 140898666 | H181: 274537862 | I181: 60598164
B182: Diğer Satışlar | C182: 1345272 | D182: 1015507 | E182: 0 | F182: 0 | G182: 0 | H182: 0 | I182: 0
B183: SATIŞLARDAN İNDİRİMLER (-) | C183: 3987393 | D183: 2661060 | E183: 3631716 | F183: 6056214 | G183: 16563397 | H183: 25971544 | I183: 4693287
B184: Satışdan İadeler (-) | C184: 0 | D184: 0 | E184: 0 | F184: 0 | G184: 0 | H184: 0 | I184: 0
B185: Satış İskontoları (-) | C185: 3081497 | D185: 1921309 | E185: 0 | F185: 0 | G185: 0 | H185: 0 | I185: 0
B186: Diğer İndirimler (-) | C186: 905896 | D186: 739751 | E186: 0 | F186: 6056214 | G186: 16563397 | H186: 25971544 | I186: 0
B187: ESAS FAALİYET GELİRLERİ | C187: 0 | D187: 0 | E187: 0 | F187: 0 | G187: 0 | H187: 0 | I187: 0
B188: SATIŞ GELİRLERİ | C188: 396130304 | D188: 439572954 | E188: 428122486 | F188: 383989293 | G188: 485778150 | H188: 675374296 | I188: 126903762
B189: FAİZ GELİRİ | C189: 0 | D189: 0 | E189: 0 | F189: 0 | G189: 0 | H189: 0 | I189: 0
B190: SATIŞLARIN MALİYETİ (-) | C190: 271285537 | D190: 272166676 | E190: 262467547 | F190: 244746839 | G190: 353056310 | H190: 485280856 | I190: 106461400
B191: FAİZ GİDERİ | C191: 0 | D191: 0 | E191: 0 | F191: 0 | G191: 0 | H191: 0 | I191: 0
B192: MUHTEMEL KREDİ ZARAR KARŞ. FİN.KİR. ALCK. KARŞ. VE FAKT. DEĞ. DÜŞ. KARŞ. | C192: 0 | D192: 0 | E192: 0 | F192: 0 | G192: 0 | H192: 0 | I192: 0
B193: HİZMET GELİRLERİ | C193: 0 | D193: 0 | E193: 0 | F193: 0 | G193: 0 | H193: 0 | I193: 0
B194: HİZMET GİDERLERİ (-) | C194: 0 | D194: 0 | E194: 0 | F194: 0 | G194: 0 | H194: 0 | I194: 0
B195: KAMBİYO KARI/ZARARI | C195: 0 | D195: 0 | E195: 0 | F195: 0 | G195: 0 | H195: 0 | I195: 0
B196: SERMAYE PİYASASI İŞLEM KARI/ZARARI | C196: 0 | D196: 0 | E196: 0 | F196: 0 | G196: 0 | H196: 0 | I196: 0
B197: ESAS FAALİYETLERDEN DİĞER GİDER/GELİR | C197: 0 | D197: 0 | E197: 0 | F197: 0 | G197: 0 | H197: 0 | I197: 0
B198: FAİZ, ÜCRET, PRİM, KOMİSYON VE DİĞER GELİRLER | C198: 0 | D198: 0 | E198: 0 | F198: 0 | G198: 0 | H198: 0 | I198: 0
B199: Kambiyo Gelirleri | C199: 0 | D199: 0 | E199: 0 | F199: 0 | G199: 0 | H199: 0 | I199: 0
B200: Faiz Gelirleri | C200: 0 | D200: 0 | E200: 0 | F200: 0 | G200: 0 | H200: 0 | I200: 0
B201: Kar Payı Gelirleri | C201: 0 | D201: 0 | E201: 0 | F201: 0 | G201: 0 | H201: 0 | I201: 0
B202: Türev Finansal İşlemlerden Kazanç | C202: 0 | D202: 0 | E202: 0 | F202: 0 | G202: 0 | H202: 0 | I202: 0
B203: Portföy İşletmeciliği Faaliyetinden Elde Edilen Gelir | C203: 0 | D203: 0 | E203: 0 | F203: 0 | G203: 0 | H203: 0 | I203: 0
B204: Sigortacılık Hizmetlerinden Elde Edilen Gelir | C204: 0 | D204: 0 | E204: 0 | F204: 0 | G204: 0 | H204: 0 | I204: 0
... 135 more rows

Sheet ADBGR (hidden)
A1: ADBGR
B2: BİLANÇO | C2: 2013/12 | D2: 2014/12 | E2: 2015/12 | F2: 2016/12 | G2: 2017/12 | H2: 2018/12 | I2: 2019/03
B3: DÖNEN VARLIKLAR | C3: 219927773 | D3: 321922626 | E3: 304203934 | F3: 285454863 | G3: 385509334 | H3: 1015651361 | I3: 900348528
B4: Hazır Değerler | C4: 37732722 | D4: 114134735 | E4: 105736333 | F4: 41705788 | G4: 69473644 | H4: 556549466 | I4: 430267665
B5: Gayrimenkul Projeleri Kapsamında Açılan Nakit Hesapları | C5: 0 | D5: 0 | E5: 0 | F5: 0 | G5: 0 | H5: 0 | I5: 0
B6: Finansal Yatırımlar | C6: 11131527 | D6: 16324409 | E6: 11019797 | F6: 17356567 | G6: 31470200 | H6: 22988892 | I6: 28183903
B7: Menkul Kıymetler | C7: 0 | D7: 0 | E7: 0 | F7: 0 | G7: 0 | H7: 0 | I7: 0
B8: Türkiye Cumhuriyet Merkez Bankası Hesabı | C8: 0 | D8: 0 | E8: 0 | F8: 0 | G8: 0 | H8: 0 | I8: 0
B9: Krediler ve Avanslar | C9: 0 | D9: 0 | E9: 0 | F9: 0 | G9: 0 | H9: 0 | I9: 0
B10: Faktoring alacakları (net) | C10: 0 | D10: 0 | E10: 0 | F10: 0 | G10: 0 | H10: 0 | I10: 0
B11: Teminata Verilen Finansal Varlıklar | C11: 0 | D11: 0 | E11: 0 | F11: 0 | G11: 0 | H11: 0 | I11: 0
B12: Kısa Vadeli Ticari Alacaklar | C12: 118333165 | D12: 129639833 | E12: 129355223 | F12: 149425505 | G12: 165185736 | H12: 167388865 | I12: 151091580
B13: Finansal Kiralama Alacakları | C13: 0 | D13: 0 | E13: 0 | F13: 0 | G13: 0 | H13: 0 | I13: 0
B14: Finans Sektörü Faal. Alacaklar | C14: 0 | D14: 0 | E14: 0 | F14: 0 | G14: 0 | H14: 0 | I14: 0
B15: İlişkili Taraflardan Alacaklar | C15: 0 | D15: 0 | E15: 0 | F15: 0 | G15: 0 | H15: 0 | I15: 0
B16: Diğer Kısa Vadeli Alacaklar | C16: 1005939 | D16: 1585343 | E16: 3781234 | F16: 1390508 | G16: 12525651 | H16: 12073039 | I16: 125434750
B17: Canlı Varlıklar | C17: 0 | D17: 0 | E17: 0 | F17: 0 | G17: 0 | H17: 0 | I17: 0
B18: Kullanımı Kısıtlı Banka Bakiyeleri | C18: 0 | D18: 0 | E18: 0 | F18: 0 | G18: 0 | H18: 0 | I18: 0
B19: Stoklar | C19: 50387024 | D19: 58894927 | E19: 52312678 | F19: 70560164 | G19: 91099185 | H19: 167701173 | I19: 151792323
B20: Peşin Ödenen Kira Giderleri | C20: 0 | D20: 0 | E20: 0 | F20: 0 | G20: 0 | H20: 0 | I20: 0
B21: Müşteri Sözleşmelerinden Doğan Varlıklar | C21: 0 | D21: 0 | E21: 0 | F21: 0 | G21: 0 | H21: 0 | I21: 0
B22: İmtiyaz Sözleşmelerine İlişkin Finansal Varlıklar | C22: 0 | D22: 0 | E22: 0 | F22: 0 | G22: 0 | H22: 0 | I22: 0
B23: Türev Enstrümanlar | C23: 0 | D23: 0 | E23: 0 | F23: 0 | G23: 0 | H23: 0 | I23: 0
B24: Ertelenen Vergi Varlıkları | C24: 0 | D24: 0 | E24: 0 | F24: 0 | G24: 0 | H24: 0 | I24: 0
B25: Durdurulan faaliyetler ile ilgili varlıklar | C25: 0 | D25: 0 | E25: 0 | F25: 0 | G25: 0 | H25: 0 | I25: 0
B26: Peşin Ödenmiş Giderler | C26: 924131 | D26: 1180931 | E26: 1576295 | F26: 3106547 | G26: 5437993 | H26: 2348994 | I26: 4159429
B27: Cari Dönem Vergisiyle İlgili Varlıklar | C27: 0 | D27: 0 | E27: 0 | F27: 0 | G27: 0 | H27: 0 | I27: 0
B28: Nakit Dışı Serbest Kullanılabilir Teminatlar | C28: 0 | D28: 0 | E28: 0 | F28: 0 | G28: 0 | H28: 0 | I28: 0
B29: Diğer Dönen Varlıklar | C29: 413265 | D29: 162448 | E29: 422374 | F29: 1909784 | G29: 10316925 | H29: 8463083 | I29: 9418878
B30: Vadesine kadar elde tut. men. kıy. | C30: 0 | D30: 0 | E30: 0 | F30: 0 | G30: 0 | H30: 0 | I30: 0
B31: Satılmaya Hazır Finansal Varlıklar | C31: 0 | D31: 0 | E31: 0 | F31: 0 | G31: 0 | H31: 0 | I31: 0
B32: Alım Satım Amaçlı Menkul Kıymetler | C32: 0 | D32: 0 | E32: 0 | F32: 0 | G32: 0 | H32: 0 | I32: 0
B33: İş Ortaklıklarının Dönen Varlıklar İçindeki Payı | C33: 0 | D33: 0 | E33: 0 | F33: 0 | G33: 0 | H33: 0 | I33: 0
B34: Elden Çıkarılacak Faaliyetler ile İlgili Varlıklar | C34: 0 | D34: 0 | E34: 0 | F34: 0 | G34: 0 | H34: 0 | I34: 0
B35: Satım amaçlı elde tutulan maddi duran varlıklar | C35: 0 | D35: 0 | E35: 0 | F35: 0 | G35: 0 | H35: 78137849 | I35: 0
B36: Ortaklara Dağıtılmak Üzere Elde Tutulan Duran Varlıklar | C36: 0 | D36: 0 | E36: 0 | F36: 0 | G36: 0 | H36: 0 | I36: 0
B37: DURAN VARLIKLAR | C37: 501203257 | D37: 550654306 | E37: 578707847 | F37: 663978536 | G37: 781475385 | H37: 582272293 | I37: 596581792
B38: Menkul Kıymetler | C38: 0 | D38: 0 | E38: 0 | F38: 0 | G38: 0 | H38: 0 | I38: 0
B39: Krediler ve Avanslar | C39: 0 | D39: 0 | E39: 0 | F39: 0 | G39: 0 | H39: 0 | I39: 0
B40: Faktoring alacakları (net) | C40: 0 | D40: 0 | E40: 0 | F40: 0 | G40: 0 | H40: 0 | I40: 0
B41: Uzun Vadeli Ticari Alacaklar | C41: 1525976 | D41: 17934 | E41: 0 | F41: 0 | G41: 0 | H41: 0 | I41: 0
B42: Finansal Kiralama Alacakları | C42: 0 | D42: 0 | E42: 0 | F42: 0 | G42: 0 | H42: 0 | I42: 0
B43: Finans Sektörü Faal. Alacaklar | C43: 0 | D43: 0 | E43: 0 | F43: 0 | G43: 0 | H43: 0 | I43: 0
B44: İlişkili Taraflardan Alacaklar | C44: 0 | D44: 0 | E44: 0 | F44: 0 | G44: 0 | H44: 0 | I44: 0
B45: Türev Enstrümanlar | C45: 0 | D45: 0 | E45: 0 | F45: 0 | G45: 0 | H45: 0 | I45: 0
B46: Diğer Uzun Vadeli Alacaklar | C46: 102959 | D46: 181670 | E46: 201075 | F46: 250715 | G46: 246193 | H46: 278236 | I46: 339900
B47: Finansal Yatırımlar | C47: 78762516 | D47: 110543882 | E47: 105638497 | F47: 109092993 | G47: 94445929 | H47: 0 | I47: 0
B48: Özkaynak Yöntemiyle Değerlenen Yatırımlar | C48: 162036344 | D48: 182554724 | E48: 200336997 | F48: 212185510 | G48: 236934219 | H48: 38470958 | I48: 36847750
B49: Canlı Varlıklar | C49: 0 | D49: 0 | E49: 0 | F49: 0 | G49: 0 | H49: 0 | I49: 0
B50: İmtiyaz Sözleşmelerine İlişkin Finansal Varlıklar | C50: 0 | D50: 0 | E50: 0 | F50: 0 | G50: 0 | H50: 0 | I50: 0
B51: Stoklar | C51: 0 | D51: 0 | E51: 0 | F51: 0 | G51: 0 | H51: 0 | I51: 0
B52: Finansal Duran Varlıklar | C52: 0 | D52: 0 | E52: 0 | F52: 0 | G52: 0 | H52: 0 | I52: 0
B53: Pozitif/Negatif Şerefiye | C53: 0 | D53: 0 | E53: 0 | F53: 0 | G53: 0 | H53: 0 | I53: 0
B54: Yatırım Amaçlı Gayrimenkuller | C54: 10797118 | D54: 13283078 | E54: 14318959 | F54: 13796659 | G54: 14578298 | H54: 13545891 | I54: 13545891
B55: Proje Halindeki Yatırım Amaçlı Gayrimenkuller | C55: 0 | D55: 0 | E55: 0 | F55: 0 | G55: 0 | H55: 0 | I55: 0
B56: Alım Satım Amaçlı Gayrimenkuller (net) | C56: 0 | D56: 0 | E56: 0 | F56: 0 | G56: 0 | H56: 0 | I56: 0
B57: Maddi Duran Varlıklar | C57: 239405985 | D57: 231112111 | E57: 242568891 | F57: 295658021 | G57: 422548849 | H57: 507115711 | I57: 519578488
B58: Kullanım Hakkı Varlıkları | C58: 0 | D58: 0 | E58: 0 | F58: 0 | G58: 0 | H58: 0 | I58: 0
B59: Maddi Olmayan Duran Varlıklar | C59: 8040014 | D59: 10739541 | E59: 10968960 | F59: 10454520 | G59: 10863672 | H59: 10016746 | I59: 9930828
B60: Müşteri Sözleşmelerinden Doğan Varlıklar | C60: 0 | D60: 0 | E60: 0 | F60: 0 | G60: 0 | H60: 0 | I60: 0
B61: Ertelenen Vergi Varlıkları | C61: 0 | D61: 0 | E61: 0 | F61: 0 | G61: 0 | H61: 8857527 | I61: 11658535
B62: Cari Dönem Vergisiyle İlgili Duran Varlıklar | C62: 0 | D62: 0 | E62: 0 | F62: 0 | G62: 0 | H62: 0 | I62: 0
B63: Nakit Dışı Serbest Kullanılabilir Teminatlar | C63: 0 | D63: 0 | E63: 0 | F63: 0 | G63: 0 | H63: 0 | I63: 0
B64: Peşin Ödenen Kira Giderleri | C64: 0 | D64: 0 | E64: 0 | F64: 0 | G64: 0 | H64: 0 | I64: 0
B65: Peşin Ödenmiş Giderler | C65: 532345 | D65: 2221366 | E65: 4674468 | F65: 22540118 | G65: 1858225 | H65: 3987224 | I65: 4680400
B66: Diğer Duran Varlıklar | C66: 0 | D66: 0 | E66: 0 | F66: 0 | G66: 0 | H66: 0 | I66: 0
B67: Vadesine kadar elde tut. men. kıy. | C67: 0 | D67: 0 | E67: 0 | F67: 0 | G67: 0 | H67: 0 | I67: 0
B68: Satılmaya Hazır Finansal Varlıklar | C68: 0 | D68: 0 | E68: 0 | F68: 0 | G68: 0 | H68: 0 | I68: 0
B69: İş Ortaklıklarının Duran Varlıklar İçindeki Payı | C69: 0 | D69: 0 | E69: 0 | F69: 0 | G69: 0 | H69: 0 | I69: 0
B70: Ana Ortaklık Dışı Paylar | C70: 0 | D70: 0 | E70: 0 | F70: 0 | G70: 0 | H70: 0 | I70: 0
B71: TOPLAM AKTİFLER | C71: 721131030 | D71: 872576932 | E71: 882911781 | F71: 949433399 | G71: 1166984719 | H71: 1597923654 | I71: 1496930320
B72: KISA VADELİ YÜKÜMLÜLÜKLER | C72: 49979738 | D72: 90043651 | E72: 68318701 | F72: 78864226 | G72: 338017798 | H72: 355340153 | I72: 513762139
B73: Finansal Borçlar | C73: 452259 | D73: 21296027 | E73: 947099 | F73: 0 | G73: 183761427 | H73: 198055374 | I73: 112475334
B74: Uzun Vadeli Finansal Borçların Kısa Vadeli Kısımları | C74: 441650 | D74: 833224 | E74: 816660 | F74: 18937379 | G74: 27093000 | H74: 37512117 | I74: 39197734
B75: Mevduat | C75: 0 | D75: 0 | E75: 0 | F75: 0 | G75: 0 | H75: 0 | I75: 0
B76: Türev Araçlar | C76: 0 | D76: 0 | E76: 0 | F76: 0 | G76: 0 | H76: 0 | I76: 9390504
B77: Faktoring borçları | C77: 0 | D77: 0 | E77: 0 | F77: 0 | G77: 0 | H77: 0 | I77: 0
B78: Finansal Kiralama İşlemlerinden Borçlar | C78: 0 | D78: 0 | E78: 0 | F78: 0 | G78: 0 | H78: 0 | I78: 0
B79: Finans Sektörü Faaliyetlerinden Borçlar | C79: 0 | D79: 0 | E79: 0 | F79: 0 | G79: 0 | H79: 0 | I79: 0
B80: Sigorta Teknik Karşılığı | C80: 0 | D80: 0 | E80: 0 | F80: 0 | G80: 0 | H80: 0 | I80: 0
B81: Diğer Finansal Yükümlülükler | C81: 0 | D81: 0 | E81: 0 | F81: 0 | G81: 0 | H81: 0 | I81: 0
B82: Ticari Borçlar | C82: 36086071 | D82: 37279447 | E82: 41534340 | F82: 41504889 | G82: 86478584 | H82: 72460000 | I82: 72762774
B83: İlişkili Taraflara Borçlar | C83: 0 | D83: 0 | E83: 0 | F83: 0 | G83: 0 | H83: 0 | I83: 0
B84: Alınan Krediler | C84: 0 | D84: 0 | E84: 0 | F84: 0 | G84: 0 | H84: 0 | I84: 0
B85: Diğer Borçlar | C85: 2332950 | D85: 13130663 | E85: 7838305 | F85: 2361758 | G85: 7614292 | H85: 6768241 | I85: 245584182
B86: Alınan Avanslar | C86: 0 | D86: 0 | E86: 0 | F86: 0 | G86: 0 | H86: 0 | I86: 0
B87: Devlet Teşvik ve Yardımları | C87: 0 | D87: 0 | E87: 0 | F87: 0 | G87: 0 | H87: 0 | I87: 0
B88: Ertelenmiş Gelirler | C88: 1547725 | D88: 2849044 | E88: 2632563 | F88: 2375355 | G88: 18794038 | H88: 5175662 | I88: 6553247
B89: Cari Dönem Vergi Yükümlülüğü | C89: 5291707 | D89: 6904879 | E89: 5605240 | F89: 4627144 | G89: 5310340 | H89: 25544542 | I89: 8248356
B90: Cari Dönem Vergisi ile İlgili Borçlar | C90: 0 | D90: 0 | E90: 0 | F90: 0 | G90: 0 | H90: 0 | I90: 0
B91: Bloke Hesaplar | C91: 0 | D91: 0 | E91: 0 | F91: 0 | G91: 0 | H91: 0 | I91: 0
B92: Müşteri Sözleşmelerinden Doğan Yükümlülükler | C92: 0 | D92: 0 | E92: 0 | F92: 0 | G92: 0 | H92: 0 | I92: 0
B93: Özkaynak Yöntemiyle Değerlenen Yatırımlardan Yükümlülükler | C93: 0 | D93: 0 | E93: 0 | F93: 0 | G93: 0 | H93: 0 | I93: 0
B94: Borç ve Gider Karşılıkları | C94: 1725962 | D94: 3565628 | E94: 4979028 | F94: 4864076 | G94: 4983297 | H94: 7355182 | I94: 15301165
B95: Çalışanlara Sağlanan Faydalara İlişkin Karşılıklar | C95: 1647579 | D95: 1377854 | E95: 3965466 | F95: 4193625 | G95: 3982820 | H95: 2469035 | I95: 4248843
B96: Ertelenen Vergi Yükümlülüğü | C96: 0 | D96: 0 | E96: 0 | F96: 0 | G96: 0 | H96: 0 | I96: 0
B97: Durdurulan faaliyetler ile ilgili yükümlülükler | C97: 0 | D97: 0 | E97: 0 | F97: 0 | G97: 0 | H97: 0 | I97: 0
B98: Diğer Kısa Vadeli Borçlar | C98: 453835 | D98: 2806885 | E98: 0 | F98: 0 | G98: 0 | H98: 0 | I98: 0
B99: İş Ortaklıklarının Kısa Vadeli Yükümlülükler İçindeki Payı | C99: 0 | D99: 0 | E99: 0 | F99: 0 | G99: 0 | H99: 0 | I99: 0
B100: Elden Çıkarılacak Faaliyetler ile İlgili Yükümlülükler | C100: 0 | D100: 0 | E100: 0 | F100: 0 | G100: 0 | H100: 0 | I100: 0
B101: Ortaklara Dağıtılmak Üzere Elde Tutulan Varlık Gruplarına İlişkin Yükümlülükler | C101: 0 | D101: 0 | E101: 0 | F101: 0 | G101: 0 | H101: 0 | I101: 0
B102: UZUN VADELİ YÜKÜMLÜLÜKLER | C102: 16805575 | D102: 21072311 | E102: 21081215 | F102: 77108016 | G102: 67108776 | H102: 116091130 | I102: 108840935
B103: Mevduatlar | C103: 0 | D103: 0 | E103: 0 | F103: 0 | G103: 0 | H103: 0 | I103: 0
B104: Finansal Borçlar | C104: 1600000 | D104: 800000 | E104: 0 | F104: 55648500 | G104: 45155000 | H104: 99112000 | I104: 92151029
B105: Faktoring borçları | C105: 0 | D105: 0 | E105: 0 | F105: 0 | G105: 0 | H105: 0 | I105: 0
B106: Finansal Kiralama İşlemlerinden Borçlar | C106: 0 | D106: 0 | E106: 0 | F106: 0 | G106: 0 | H106: 0 | I106: 0
B107: Finans Sektörü Faaliyetlerinden Borçlar | C107: 0 | D107: 0 | E107: 0 | F107: 0 | G107: 0 | H107: 0 | I107: 0
B108: Sigorta teknik karşılıkları | C108: 0 | D108: 0 | E108: 0 | F108: 0 | G108: 0 | H108: 0 | I108: 0
B109: Diğer Finansal Yükümlülükler | C109: 0 | D109: 0 | E109: 0 | F109: 0 | G109: 0 | H109: 0 | I109: 0
B110: Ticari Borçlar | C110: 0 | D110: 0 | E110: 0 | F110: 0 | G110: 0 | H110: 0 | I110: 0
B111: İlişkili Taraflara Borçlar | C111: 0 | D111: 0 | E111: 0 | F111: 0 | G111: 0 | H111: 0 | I111: 0
B112: Alınan Krediler | C112: 0 | D112: 0 | E112: 0 | F112: 0 | G112: 0 | H112: 0 | I112: 0
B113: Diğer Borçlar | C113: 0 | D113: 0 | E113: 0 | F113: 0 | G113: 0 | H113: 0 | I113: 0
B114: Müşteri Sözleşmelerinden Doğan Yükümlülükler | C114: 0 | D114: 0 | E114: 0 | F114: 0 | G114: 0 | H114: 0 | I114: 0
B115: Bloke Hesaplar | C115: 0 | D115: 0 | E115: 0 | F115: 0 | G115: 0 | H115: 0 | I115: 0
B116: Alınan Avanslar | C116: 0 | D116: 0 | E116: 0 | F116: 0 | G116: 0 | H116: 0 | I116: 0
B117: Çalışanlara Sağlanan Faydalar Kapsamında Borçlar | C117: 0 | D117: 0 | E117: 0 | F117: 0 | G117: 0 | H117: 0 | I117: 0
B118: Borç ve Gider Karşılıkları | C118: 11997465 | D118: 16060280 | E118: 15954321 | F118: 16518145 | G118: 17157001 | H118: 16760418 | I118: 16471194
B119: Türev Finansal Araçlardan Borçlar | C119: 0 | D119: 0 | E119: 0 | F119: 0 | G119: 0 | H119: 0 | I119: 0
B120: Cari Dönem Vergisiyle İlgili Borçlar | C120: 0 | D120: 0 | E120: 0 | F120: 0 | G120: 0 | H120: 0 | I120: 0
B121: Ertelenen Vergi Yükümlülüğü | C121: 3208110 | D121: 4212031 | E121: 5126894 | F121: 4941371 | G121: 4796775 | H121: 0 | I121: 0
B122: Devlet Teşvik ve Yardımları | C122: 0 | D122: 0 | E122: 0 | F122: 0 | G122: 0 | H122: 0 | I122: 0
B123: Ertelenmiş Gelirler | C123: 0 | D123: 0 | E123: 0 | F123: 0 | G123: 0 | H123: 218712 | I123: 218712
B124: Devam Eden Sözleşmeler Hakediş Bedelleri | C124: 0 | D124: 0 | E124: 0 | F124: 0 | G124: 0 | H124: 0 | I124: 0
B125: Pozitif/Negatif Şerefiye | C125: 0 | D125: 0 | E125: 0 | F125: 0 | G125: 0 | H125: 0 | I125: 0
B126: Diğer Uzun Vadeli Borçlar | C126: 0 | D126: 0 | E126: 0 | F126: 0 | G126: 0 | H126: 0 | I126: 0
B127: İş Ortaklıklarının Uzun Vadeli Yükümlülükler İçindeki Payı | C127: 0 | D127: 0 | E127: 0 | F127: 0 | G127: 0 | H127: 0 | I127: 0
B128: ÖZ SERMAYE (AZINLIK PAYI DAHİL) | C128: 654345716 | D128: 761460970 | E128: 793511865 | F128: 793461157 | G128: 761858145 | H128: 1126492371 | I128: 874327246
B129: ANA ORTAKLIK DIŞI ÖZSERMAYE | C129: 0 | D129: 0 | E129: 0 | F129: 0 | G129: 0 | H129: 0 | I129: 0
B130: Aile Üyeleri | C130: 0 | D130: 0 | E130: 0 | F130: 0 | G130: 0 | H130: 0 | I130: 0
B131: Diğerleri | C131: 0 | D131: 0 | E131: 0 | F131: 0 | G131: 0 | H131: 0 | I131: 0
B132: ÖZ SERMAYE (ANA ORTAKLIĞA AİT) | C132: 654345716 | D132: 761460970 | E132: 793511865 | F132: 793461157 | G132: 761858145 | H132: 1126492371 | I132: 874327246
B133: Sermaye | C133: 336182000 | D133: 336182000 | E133: 336182000 | F133: 336182000 | G133: 336182000 | H133: 336182000 | I133: 336182000
B134: Ödenmeyen Sermaye(-) | C134: 0 | D134: 0 | E134: 0 | F134: 0 | G134: 0 | H134: 0 | I134: 0
B135: Karşılıklı İştirak Sermaye Düzeltmesi | C135: 0 | D135: 0 | E135: 0 | F135: 0 | G135: 0 | H135: 0 | I135: 0
B136: Paylara İlişkin Primler/İskontolar | C136: 0 | D136: 0 | E136: 0 | F136: 0 | G136: 0 | H136: 0 | I136: 0
B137: İşletmenin Geri Satın Alınan Kendi Hisseleri | C137: 0 | D137: 0 | E137: 0 | F137: 0 | G137: 0 | H137: 0 | I137: -54515327
B138: İşletmenin Geri Alınan Kendi Hisse Senetlerinin Satışından Doğan Kar | C138: 0 | D138: 0 | E138: 0 | F138: 0 | G138: 0 | H138: 0 | I138: 0
B139: Sermaye Avansı | C139: 0 | D139: 0 | E139: 0 | F139: 0 | G139: 0 | H139: 0 | I139: 0
B140: Kar veya Zararda Yeniden Sınıflandırılmayacak Birikmiş Diğer Kapsamlı Gel. veya Gid. | C140: 62548677 | D140: 0 | E140: -6406012 | F140: -6623738 | G140: -7113110 | H140: -4190768 | I140: -2720513
B141: Kar veya Zararda Yeniden Sınıflandırılacak Birikmiş Diğer Kapsamlı Gelir. veya Gid. | C141: 938470 | D141: 90759365 | E141: 93390120 | F141: 97377249 | G141: 85290702 | H141: 5380815 | I141: 0
B142: Sermaye Yedekleri | C142: -4700837 | D142: 0 | E142: -3060762 | F142: -3340781 | G142: -3465791 | H142: -1716495 | I142: -246240
B143: Sermaye Taahhütleri (-) | C143: 0 | D143: 0 | E143: 0 | F143: 0 | G143: 0 | H143: 0 | I143: 0
B144: Katkı sermaye | C144: 0 | D144: 0 | E144: 0 | F144: 0 | G144: 0 | H144: 0 | I144: 0
B145: Azınlık Hisseleri Satış Opsiyonu Değerleme Fonu | C145: 0 | D145: 0 | E145: 0 | F145: 0 | G145: 0 | H145: 0 | I145: 0
B146: Emisyon Primi | C146: 0 | D146: 0 | E146: 0 | F146: 0 | G146: 0 | H146: 0 | I146: 0
B147: Yeniden Değerleme Artışı | C147: 67249514 | D147: 97441812 | E147: 89436446 | F147: 92780511 | G147: 78501438 | H147: -2474273 | I147: -2474273
B148: Kar Yedekleri | C148: 0 | D148: -7298920 | E148: 0 | F148: 0 | G148: 0 | H148: 0 | I148: 0
B149: Dağıtılmamış Kar | C149: 0 | D149: 0 | E149: 0 | F149: 0 | G149: 0 | H149: 0 | I149: 0
B150: Sermaye artırımı ile ilgili masraflar | C150: 0 | D150: 0 | E150: 0 | F150: 0 | G150: 0 | H150: 0 | I150: 0
B151: Nakit Akım Koruması ile İlgili Birikmiş Kar | C151: 0 | D151: 0 | E151: 0 | F151: 0 | G151: 0 | H151: 0 | I151: 0
B152: Karşılıklı İştirak Serm. Düzeltmesinin Nom. Tut. Aşan Kısım | C152: 0 | D152: 0 | E152: 0 | F152: 0 | G152: 0 | H152: 0 | I152: 0
B153: Finansal Yatırımlar Değer Artış Fonu | C153: 0 | D153: 0 | E153: 0 | F153: 0 | G153: 0 | H153: 0 | I153: 0
B154: Diğer Özkaynak Payları | C154: 0 | D154: 0 | E154: 0 | F154: 0 | G154: 0 | H154: 0 | I154: 0
B155: Diğer Yedekler | C155: 0 | D155: 0 | E155: 0 | F155: 0 | G155: 0 | H155: 0 | I155: 0
B156: Net Dönem Karı | C156: 67705183 | D156: 142921302 | E156: 144077727 | F156: 130943887 | G156: 125972459 | H156: 483136386 | I156: 46910343
B157: Dönem Zararı (-) | C157: 0 | D157: 0 | E157: 0 | F157: 0 | G157: 0 | H157: 0 | I157: 0
B158: Geçmiş Yıl Karları | C158: 82065838 | D158: 82065838 | E158: 107591318 | F158: 103738501 | G158: 76864194 | H158: 151398096 | I158: 371648440
B159: Net Dön. Kar. Ser. Hes. Ed. Tran. Ed. M. Dur. V. Sa. Karı | C159: 0 | D159: 0 | E159: 0 | F159: 0 | G159: 0 | H159: 0 | I159: 0
B160: Geçmiş Yıl Zararları (-) | C160: 0 | D160: 0 | E160: 0 | F160: 0 | G160: 0 | H160: 0 | I160: 0
B161: Yabancı Para Çevrim Farkları | C161: 938470 | D161: 616473 | E161: 608424 | F161: 1313781 | G161: 3141945 | H161: 5380815 | I161: 0
B162: Kardan Ayrılan Kısıtlanmış Yedekler | C162: 104905548 | D162: 109532465 | E162: 118676712 | F162: 131843258 | G162: 144661900 | H162: 154585842 | I162: 176822303
B163: Kardan Ayrılan Kısıtlanmış Yedekler (27) | C163: 0 | D163: 0 | E163: 0 | F163: 0 | G163: 0 | H163: 0 | I163: 0
B164: Zarar Telafi Fonu | C164: 0 | D164: 0 | E164: 0 | F164: 0 | G164: 0 | H164: 0 | I164: 0
B165: Özsermaye Enf. Düz. Farkları | C165: 0 | D165: 0 | E165: 0 | F165: 0 | G165: 0 | H165: 0 | I165: 0
B166: Sermaye Birleşme Fonu | C166: 0 | D166: 0 | E166: 0 | F166: 0 | G166: 0 | H166: 0 | I166: 0
B167: İlave Ödenmiş Sermaye | C167: 0 | D167: 0 | E167: 0 | F167: 0 | G167: 0 | H167: 0 | I167: 0
B168: Birikmiş Karlar/Zararlar | C168: 0 | D168: 0 | E168: 0 | F168: 0 | G168: 0 | H168: 0 | I168: 0
B169: Yatırım Teşvikleri | C169: 0 | D169: 0 | E169: 0 | F169: 0 | G169: 0 | H169: 0 | I169: 0
B170: Satılmaya Haz. Var. Üz. Gerçekleşmemiş Net Gelir | C170: 0 | D170: 0 | E170: 0 | F170: 0 | G170: 0 | H170: 0 | I170: 0
B171: Ana ortaklık hisse satış kar/zarar | C171: 0 | D171: 0 | E171: 0 | F171: 0 | G171: 0 | H171: 0 | I171: 0
B172: AZINLIK PAYLARI | C172: 0 | D172: 0 | E172: 0 | F172: 0 | G172: 0 | H172: 0 | I172: 0
B173: TOPLAM PASİFLER | C173: 721131029 | D173: 872576932 | E173: 882911781 | F173: 949433399 | G173: 1166984719 | H173: 1597923654 | I173: 1496930320
B178: Gelir Tablosu | C178: 2013/12 | D178: 2014/12 | E178: 2015/12 | F178: 2016/12 | G178: 2017/12 | H178: 2018/12 | I178: 2019/03
B179: BRÜT SATIŞLAR | C179: 400117697 | D179: 442234014 | E179: 431754202 | F179: 390045507 | G179: 502341547 | H179: 701345840 | I179: 131597049
B180: Yurtiçi Satışlar | C180: 315149196 | D180: 346247594 | E180: 339197760 | F180: 305461163 | G180: 361442881 | H180: 426807978 | I180: 70998885
B181: Yurtdışı Satışlar | C181: 83623229 | D181: 94970913 | E181: 92556442 | F181: 84584344 | G181: 140898666 | H181: 274537862 | I181: 60598164
B182: Diğer Satışlar | C182: 1345272 | D182: 1015507 | E182: 0 | F182: 0 | G182: 0 | H182: 0 | I182: 0
B183: SATIŞLARDAN İNDİRİMLER (-) | C183: 3987393 | D183: 2661060 | E183: 3631716 | F183: 6056214 | G183: 16563397 | H183: 25971544 | I183: 4693287
B184: Satışdan İadeler (-) | C184: 0 | D184: 0 | E184: 0 | F184: 0 | G184: 0 | H184: 0 | I184: 0
B185: Satış İskontoları (-) | C185: 3081497 | D185: 1921309 | E185: 0 | F185: 0 | G185: 0 | H185: 0 | I185: 0
B186: Diğer İndirimler (-) | C186: 905896 | D186: 739751 | E186: 0 | F186: 6056214 | G186: 16563397 | H186: 25971544 | I186: 0
B187: ESAS FAALİYET GELİRLERİ | C187: 0 | D187: 0 | E187: 0 | F187: 0 | G187: 0 | H187: 0 | I187: 0
B188: SATIŞ GELİRLERİ | C188: 396130304 | D188: 439572954 | E188: 428122486 | F188: 383989293 | G188: 485778150 | H188: 675374296 | I188: 126903762
B189: FAİZ GELİRİ | C189: 0 | D189: 0 | E189: 0 | F189: 0 | G189: 0 | H189: 0 | I189: 0
B190: SATIŞLARIN MALİYETİ (-) | C190: 271285537 | D190: 272166676 | E190: 262467547 | F190: 244746839 | G190: 353056310 | H190: 485280856 | I190: 106461400
B191: FAİZ GİDERİ | C191: 0 | D191: 0 | E191: 0 | F191: 0 | G191: 0 | H191: 0 | I191: 0
B192: MUHTEMEL KREDİ ZARAR KARŞ. FİN.KİR. ALCK. KARŞ. VE FAKT. DEĞ. DÜŞ. KARŞ. | C192: 0 | D192: 0 | E192: 0 | F192: 0 | G192: 0 | H192: 0 | I192: 0
B193: HİZMET GELİRLERİ | C193: 0 | D193: 0 | E193: 0 | F193: 0 | G193: 0 | H193: 0 | I193: 0
B194: HİZMET GİDERLERİ (-) | C194: 0 | D194: 0 | E194: 0 | F194: 0 | G194: 0 | H194: 0 | I194: 0
B195: KAMBİYO KARI/ZARARI | C195: 0 | D195: 0 | E195: 0 | F195: 0 | G195: 0 | H195: 0 | I195: 0
B196: SERMAYE PİYASASI İŞLEM KARI/ZARARI | C196: 0 | D196: 0 | E196: 0 | F196: 0 | G196: 0 | H196: 0 | I196: 0
B197: ESAS FAALİYETLERDEN DİĞER GİDER/GELİR | C197: 0 | D197: 0 | E197: 0 | F197: 0 | G197: 0 | H197: 0 | I197: 0
B198: FAİZ, ÜCRET, PRİM, KOMİSYON VE DİĞER GELİRLER | C198: 0 | D198: 0 | E198: 0 | F198: 0 | G198: 0 | H198: 0 | I198: 0
B199: Kambiyo Gelirleri | C199: 0 | D199: 0 | E199: 0 | F199: 0 | G199: 0 | H199: 0 | I199: 0
B200: Faiz Gelirleri | C200: 0 | D200: 0 | E200: 0 | F200: 0 | G200: 0 | H200: 0 | I200: 0
B201: Kar Payı Gelirleri | C201: 0 | D201: 0 | E201: 0 | F201: 0 | G201: 0 | H201: 0 | I201: 0
B202: Türev Finansal İşlemlerden Kazanç | C202: 0 | D202: 0 | E202: 0 | F202: 0 | G202: 0 | H202: 0 | I202: 0
B203: Portföy İşletmeciliği Faaliyetinden Elde Edilen Gelir | C203: 0 | D203: 0 | E203: 0 | F203: 0 | G203: 0 | H203: 0 | I203: 0
B204: Sigortacılık Hizmetlerinden Elde Edilen Gelir | C204: 0 | D204: 0 | E204: 0 | F204: 0 | G204: 0 | H204: 0 | I204: 0
... 135 more rows

Sheet ADNAC (hidden)
A1: ADNAC
B2: BİLANÇO | C2: 2013/12 | D2: 2014/12 | E2: 2015/12 | F2: 2016/12 | G2: 2017/12 | H2: 2018/12 | I2: 2019/03
B3: DÖNEN VARLIKLAR | C3: 219927773 | D3: 321922626 | E3: 304203934 | F3: 285454863 | G3: 385509334 | H3: 1015651361 | I3: 900348528
B4: Hazır Değerler | C4: 37732722 | D4: 114134735 | E4: 105736333 | F4: 41705788 | G4: 69473644 | H4: 556549466 | I4: 430267665
B5: Gayrimenkul Projeleri Kapsamında Açılan Nakit Hesapları | C5: 0 | D5: 0 | E5: 0 | F5: 0 | G5: 0 | H5: 0 | I5: 0
B6: Finansal Yatırımlar | C6: 11131527 | D6: 16324409 | E6: 11019797 | F6: 17356567 | G6: 31470200 | H6: 22988892 | I6: 28183903
B7: Menkul Kıymetler | C7: 0 | D7: 0 | E7: 0 | F7: 0 | G7: 0 | H7: 0 | I7: 0
B8: Türkiye Cumhuriyet Merkez Bankası Hesabı | C8: 0 | D8: 0 | E8: 0 | F8: 0 | G8: 0 | H8: 0 | I8: 0
B9: Krediler ve Avanslar | C9: 0 | D9: 0 | E9: 0 | F9: 0 | G9: 0 | H9: 0 | I9: 0
B10: Faktoring alacakları (net) | C10: 0 | D10: 0 | E10: 0 | F10: 0 | G10: 0 | H10: 0 | I10: 0
B11: Teminata Verilen Finansal Varlıklar | C11: 0 | D11: 0 | E11: 0 | F11: 0 | G11: 0 | H11: 0 | I11: 0
B12: Kısa Vadeli Ticari Alacaklar | C12: 118333165 | D12: 129639833 | E12: 129355223 | F12: 149425505 | G12: 165185736 | H12: 167388865 | I12: 151091580
B13: Finansal Kiralama Alacakları | C13: 0 | D13: 0 | E13: 0 | F13: 0 | G13: 0 | H13: 0 | I13: 0
B14: Finans Sektörü Faal. Alacaklar | C14: 0 | D14: 0 | E14: 0 | F14: 0 | G14: 0 | H14: 0 | I14: 0
B15: İlişkili Taraflardan Alacaklar | C15: 0 | D15: 0 | E15: 0 | F15: 0 | G15: 0 | H15: 0 | I15: 0
B16: Diğer Kısa Vadeli Alacaklar | C16: 1005939 | D16: 1585343 | E16: 3781234 | F16: 1390508 | G16: 12525651 | H16: 12073039 | I16: 125434750
B17: Canlı Varlıklar | C17: 0 | D17: 0 | E17: 0 | F17: 0 | G17: 0 | H17: 0 | I17: 0
B18: Kullanımı Kısıtlı Banka Bakiyeleri | C18: 0 | D18: 0 | E18: 0 | F18: 0 | G18: 0 | H18: 0 | I18: 0
B19: Stoklar | C19: 50387024 | D19: 58894927 | E19: 52312678 | F19: 70560164 | G19: 91099185 | H19: 167701173 | I19: 151792323
B20: Peşin Ödenen Kira Giderleri | C20: 0 | D20: 0 | E20: 0 | F20: 0 | G20: 0 | H20: 0 | I20: 0
B21: Müşteri Sözleşmelerinden Doğan Varlıklar | C21: 0 | D21: 0 | E21: 0 | F21: 0 | G21: 0 | H21: 0 | I21: 0
B22: İmtiyaz Sözleşmelerine İlişkin Finansal Varlıklar | C22: 0 | D22: 0 | E22: 0 | F22: 0 | G22: 0 | H22: 0 | I22: 0
B23: Türev Enstrümanlar | C23: 0 | D23: 0 | E23: 0 | F23: 0 | G23: 0 | H23: 0 | I23: 0
B24: Ertelenen Vergi Varlıkları | C24: 0 | D24: 0 | E24: 0 | F24: 0 | G24: 0 | H24: 0 | I24: 0
B25: Durdurulan faaliyetler ile ilgili varlıklar | C25: 0 | D25: 0 | E25: 0 | F25: 0 | G25: 0 | H25: 0 | I25: 0
B26: Peşin Ödenmiş Giderler | C26: 924131 | D26: 1180931 | E26: 1576295 | F26: 3106547 | G26: 5437993 | H26: 2348994 | I26: 4159429
B27: Cari Dönem Vergisiyle İlgili Varlıklar | C27: 0 | D27: 0 | E27: 0 | F27: 0 | G27: 0 | H27: 0 | I27: 0
B28: Nakit Dışı Serbest Kullanılabilir Teminatlar | C28: 0 | D28: 0 | E28: 0 | F28: 0 | G28: 0 | H28: 0 | I28: 0
B29: Diğer Dönen Varlıklar | C29: 413265 | D29: 162448 | E29: 422374 | F29: 1909784 | G29: 10316925 | H29: 8463083 | I29: 9418878
B30: Vadesine kadar elde tut. men. kıy. | C30: 0 | D30: 0 | E30: 0 | F30: 0 | G30: 0 | H30: 0 | I30: 0
B31: Satılmaya Hazır Finansal Varlıklar | C31: 0 | D31: 0 | E31: 0 | F31: 0 | G31: 0 | H31: 0 | I31: 0
B32: Alım Satım Amaçlı Menkul Kıymetler | C32: 0 | D32: 0 | E32: 0 | F32: 0 | G32: 0 | H32: 0 | I32: 0
B33: İş Ortaklıklarının Dönen Varlıklar İçindeki Payı | C33: 0 | D33: 0 | E33: 0 | F33: 0 | G33: 0 | H33: 0 | I33: 0
B34: Elden Çıkarılacak Faaliyetler ile İlgili Varlıklar | C34: 0 | D34: 0 | E34: 0 | F34: 0 | G34: 0 | H34: 0 | I34: 0
B35: Satım amaçlı elde tutulan maddi duran varlıklar | C35: 0 | D35: 0 | E35: 0 | F35: 0 | G35: 0 | H35: 78137849 | I35: 0
B36: Ortaklara Dağıtılmak Üzere Elde Tutulan Duran Varlıklar | C36: 0 | D36: 0 | E36: 0 | F36: 0 | G36: 0 | H36: 0 | I36: 0
B37: DURAN VARLIKLAR | C37: 501203257 | D37: 550654306 | E37: 578707847 | F37: 663978536 | G37: 781475385 | H37: 582272293 | I37: 596581792
B38: Menkul Kıymetler | C38: 0 | D38: 0 | E38: 0 | F38: 0 | G38: 0 | H38: 0 | I38: 0
B39: Krediler ve Avanslar | C39: 0 | D39: 0 | E39: 0 | F39: 0 | G39: 0 | H39: 0 | I39: 0
B40: Faktoring alacakları (net) | C40: 0 | D40: 0 | E40: 0 | F40: 0 | G40: 0 | H40: 0 | I40: 0
B41: Uzun Vadeli Ticari Alacaklar | C41: 1525976 | D41: 17934 | E41: 0 | F41: 0 | G41: 0 | H41: 0 | I41: 0
B42: Finansal Kiralama Alacakları | C42: 0 | D42: 0 | E42: 0 | F42: 0 | G42: 0 | H42: 0 | I42: 0
B43: Finans Sektörü Faal. Alacaklar | C43: 0 | D43: 0 | E43: 0 | F43: 0 | G43: 0 | H43: 0 | I43: 0
B44: İlişkili Taraflardan Alacaklar | C44: 0 | D44: 0 | E44: 0 | F44: 0 | G44: 0 | H44: 0 | I44: 0
B45: Türev Enstrümanlar | C45: 0 | D45: 0 | E45: 0 | F45: 0 | G45: 0 | H45: 0 | I45: 0
B46: Diğer Uzun Vadeli Alacaklar | C46: 102959 | D46: 181670 | E46: 201075 | F46: 250715 | G46: 246193 | H46: 278236 | I46: 339900
B47: Finansal Yatırımlar | C47: 78762516 | D47: 110543882 | E47: 105638497 | F47: 109092993 | G47: 94445929 | H47: 0 | I47: 0
B48: Özkaynak Yöntemiyle Değerlenen Yatırımlar | C48: 162036344 | D48: 182554724 | E48: 200336997 | F48: 212185510 | G48: 236934219 | H48: 38470958 | I48: 36847750
B49: Canlı Varlıklar | C49: 0 | D49: 0 | E49: 0 | F49: 0 | G49: 0 | H49: 0 | I49: 0
B50: İmtiyaz Sözleşmelerine İlişkin Finansal Varlıklar | C50: 0 | D50: 0 | E50: 0 | F50: 0 | G50: 0 | H50: 0 | I50: 0
B51: Stoklar | C51: 0 | D51: 0 | E51: 0 | F51: 0 | G51: 0 | H51: 0 | I51: 0
B52: Finansal Duran Varlıklar | C52: 0 | D52: 0 | E52: 0 | F52: 0 | G52: 0 | H52: 0 | I52: 0
B53: Pozitif/Negatif Şerefiye | C53: 0 | D53: 0 | E53: 0 | F53: 0 | G53: 0 | H53: 0 | I53: 0
B54: Yatırım Amaçlı Gayrimenkuller | C54: 10797118 | D54: 13283078 | E54: 14318959 | F54: 13796659 | G54: 14578298 | H54: 13545891 | I54: 13545891
B55: Proje Halindeki Yatırım Amaçlı Gayrimenkuller | C55: 0 | D55: 0 | E55: 0 | F55: 0 | G55: 0 | H55: 0 | I55: 0
B56: Alım Satım Amaçlı Gayrimenkuller (net) | C56: 0 | D56: 0 | E56: 0 | F56: 0 | G56: 0 | H56: 0 | I56: 0
B57: Maddi Duran Varlıklar | C57: 239405985 | D57: 231112111 | E57: 242568891 | F57: 295658021 | G57: 422548849 | H57: 507115711 | I57: 519578488
B58: Kullanım Hakkı Varlıkları | C58: 0 | D58: 0 | E58: 0 | F58: 0 | G58: 0 | H58: 0 | I58: 0
B59: Maddi Olmayan Duran Varlıklar | C59: 8040014 | D59: 10739541 | E59: 10968960 | F59: 10454520 | G59: 10863672 | H59: 10016746 | I59: 9930828
B60: Müşteri Sözleşmelerinden Doğan Varlıklar | C60: 0 | D60: 0 | E60: 0 | F60: 0 | G60: 0 | H60: 0 | I60: 0
B61: Ertelenen Vergi Varlıkları | C61: 0 | D61: 0 | E61: 0 | F61: 0 | G61: 0 | H61: 8857527 | I61: 11658535
B62: Cari Dönem Vergisiyle İlgili Duran Varlıklar | C62: 0 | D62: 0 | E62: 0 | F62: 0 | G62: 0 | H62: 0 | I62: 0
B63: Nakit Dışı Serbest Kullanılabilir Teminatlar | C63: 0 | D63: 0 | E63: 0 | F63: 0 | G63: 0 | H63: 0 | I63: 0
B64: Peşin Ödenen Kira Giderleri | C64: 0 | D64: 0 | E64: 0 | F64: 0 | G64: 0 | H64: 0 | I64: 0
B65: Peşin Ödenmiş Giderler | C65: 532345 | D65: 2221366 | E65: 4674468 | F65: 22540118 | G65: 1858225 | H65: 3987224 | I65: 4680400
B66: Diğer Duran Varlıklar | C66: 0 | D66: 0 | E66: 0 | F66: 0 | G66: 0 | H66: 0 | I66: 0
B67: Vadesine kadar elde tut. men. kıy. | C67: 0 | D67: 0 | E67: 0 | F67: 0 | G67: 0 | H67: 0 | I67: 0
B68: Satılmaya Hazır Finansal Varlıklar | C68: 0 | D68: 0 | E68: 0 | F68: 0 | G68: 0 | H68: 0 | I68: 0
B69: İş Ortaklıklarının Duran Varlıklar İçindeki Payı | C69: 0 | D69: 0 | E69: 0 | F69: 0 | G69: 0 | H69: 0 | I69: 0
B70: Ana Ortaklık Dışı Paylar | C70: 0 | D70: 0 | E70: 0 | F70: 0 | G70: 0 | H70: 0 | I70: 0
B71: TOPLAM AKTİFLER | C71: 721131030 | D71: 872576932 | E71: 882911781 | F71: 949433399 | G71: 1166984719 | H71: 1597923654 | I71: 1496930320
B72: KISA VADELİ YÜKÜMLÜLÜKLER | C72: 49979738 | D72: 90043651 | E72: 68318701 | F72: 78864226 | G72: 338017798 | H72: 355340153 | I72: 513762139
B73: Finansal Borçlar | C73: 452259 | D73: 21296027 | E73: 947099 | F73: 0 | G73: 183761427 | H73: 198055374 | I73: 112475334
B74: Uzun Vadeli Finansal Borçların Kısa Vadeli Kısımları | C74: 441650 | D74: 833224 | E74: 816660 | F74: 18937379 | G74: 27093000 | H74: 37512117 | I74: 39197734
B75: Mevduat | C75: 0 | D75: 0 | E75: 0 | F75: 0 | G75: 0 | H75: 0 | I75: 0
B76: Türev Araçlar | C76: 0 | D76: 0 | E76: 0 | F76: 0 | G76: 0 | H76: 0 | I76: 9390504
B77: Faktoring borçları | C77: 0 | D77: 0 | E77: 0 | F77: 0 | G77: 0 | H77: 0 | I77: 0
B78: Finansal Kiralama İşlemlerinden Borçlar | C78: 0 | D78: 0 | E78: 0 | F78: 0 | G78: 0 | H78: 0 | I78: 0
B79: Finans Sektörü Faaliyetlerinden Borçlar | C79: 0 | D79: 0 | E79: 0 | F79: 0 | G79: 0 | H79: 0 | I79: 0
B80: Sigorta Teknik Karşılığı | C80: 0 | D80: 0 | E80: 0 | F80: 0 | G80: 0 | H80: 0 | I80: 0
B81: Diğer Finansal Yükümlülükler | C81: 0 | D81: 0 | E81: 0 | F81: 0 | G81: 0 | H81: 0 | I81: 0
B82: Ticari Borçlar | C82: 36086071 | D82: 37279447 | E82: 41534340 | F82: 41504889 | G82: 86478584 | H82: 72460000 | I82: 72762774
B83: İlişkili Taraflara Borçlar | C83: 0 | D83: 0 | E83: 0 | F83: 0 | G83: 0 | H83: 0 | I83: 0
B84: Alınan Krediler | C84: 0 | D84: 0 | E84: 0 | F84: 0 | G84: 0 | H84: 0 | I84: 0
B85: Diğer Borçlar | C85: 2332950 | D85: 13130663 | E85: 7838305 | F85: 2361758 | G85: 7614292 | H85: 6768241 | I85: 245584182
B86: Alınan Avanslar | C86: 0 | D86: 0 | E86: 0 | F86: 0 | G86: 0 | H86: 0 | I86: 0
B87: Devlet Teşvik ve Yardımları | C87: 0 | D87: 0 | E87: 0 | F87: 0 | G87: 0 | H87: 0 | I87: 0
B88: Ertelenmiş Gelirler | C88: 1547725 | D88: 2849044 | E88: 2632563 | F88: 2375355 | G88: 18794038 | H88: 5175662 | I88: 6553247
B89: Cari Dönem Vergi Yükümlülüğü | C89: 5291707 | D89: 6904879 | E89: 5605240 | F89: 4627144 | G89: 5310340 | H89: 25544542 | I89: 8248356
B90: Cari Dönem Vergisi ile İlgili Borçlar | C90: 0 | D90: 0 | E90: 0 | F90: 0 | G90: 0 | H90: 0 | I90: 0
B91: Bloke Hesaplar | C91: 0 | D91: 0 | E91: 0 | F91: 0 | G91: 0 | H91: 0 | I91: 0
B92: Müşteri Sözleşmelerinden Doğan Yükümlülükler | C92: 0 | D92: 0 | E92: 0 | F92: 0 | G92: 0 | H92: 0 | I92: 0
B93: Özkaynak Yöntemiyle Değerlenen Yatırımlardan Yükümlülükler | C93: 0 | D93: 0 | E93: 0 | F93: 0 | G93: 0 | H93: 0 | I93: 0
B94: Borç ve Gider Karşılıkları | C94: 1725962 | D94: 3565628 | E94: 4979028 | F94: 4864076 | G94: 4983297 | H94: 7355182 | I94: 15301165
B95: Çalışanlara Sağlanan Faydalara İlişkin Karşılıklar | C95: 1647579 | D95: 1377854 | E95: 3965466 | F95: 4193625 | G95: 3982820 | H95: 2469035 | I95: 4248843
B96: Ertelenen Vergi Yükümlülüğü | C96: 0 | D96: 0 | E96: 0 | F96: 0 | G96: 0 | H96: 0 | I96: 0
B97: Durdurulan faaliyetler ile ilgili yükümlülükler | C97: 0 | D97: 0 | E97: 0 | F97: 0 | G97: 0 | H97: 0 | I97: 0
B98: Diğer Kısa Vadeli Borçlar | C98: 453835 | D98: 2806885 | E98: 0 | F98: 0 | G98: 0 | H98: 0 | I98: 0
B99: İş Ortaklıklarının Kısa Vadeli Yükümlülükler İçindeki Payı | C99: 0 | D99: 0 | E99: 0 | F99: 0 | G99: 0 | H99: 0 | I99: 0
B100: Elden Çıkarılacak Faaliyetler ile İlgili Yükümlülükler | C100: 0 | D100: 0 | E100: 0 | F100: 0 | G100: 0 | H100: 0 | I100: 0
B101: Ortaklara Dağıtılmak Üzere Elde Tutulan Varlık Gruplarına İlişkin Yükümlülükler | C101: 0 | D101: 0 | E101: 0 | F101: 0 | G101: 0 | H101: 0 | I101: 0
B102: UZUN VADELİ YÜKÜMLÜLÜKLER | C102: 16805575 | D102: 21072311 | E102: 21081215 | F102: 77108016 | G102: 67108776 | H102: 116091130 | I102: 108840935
B103: Mevduatlar | C103: 0 | D103: 0 | E103: 0 | F103: 0 | G103: 0 | H103: 0 | I103: 0
B104: Finansal Borçlar | C104: 1600000 | D104: 800000 | E104: 0 | F104: 55648500 | G104: 45155000 | H104: 99112000 | I104: 92151029
B105: Faktoring borçları | C105: 0 | D105: 0 | E105: 0 | F105: 0 | G105: 0 | H105: 0 | I105: 0
B106: Finansal Kiralama İşlemlerinden Borçlar | C106: 0 | D106: 0 | E106: 0 | F106: 0 | G106: 0 | H106: 0 | I106: 0
B107: Finans Sektörü Faaliyetlerinden Borçlar | C107: 0 | D107: 0 | E107: 0 | F107: 0 | G107: 0 | H107: 0 | I107: 0
B108: Sigorta teknik karşılıkları | C108: 0 | D108: 0 | E108: 0 | F108: 0 | G108: 0 | H108: 0 | I108: 0
B109: Diğer Finansal Yükümlülükler | C109: 0 | D109: 0 | E109: 0 | F109: 0 | G109: 0 | H109: 0 | I109: 0
B110: Ticari Borçlar | C110: 0 | D110: 0 | E110: 0 | F110: 0 | G110: 0 | H110: 0 | I110: 0
B111: İlişkili Taraflara Borçlar | C111: 0 | D111: 0 | E111: 0 | F111: 0 | G111: 0 | H111: 0 | I111: 0
B112: Alınan Krediler | C112: 0 | D112: 0 | E112: 0 | F112: 0 | G112: 0 | H112: 0 | I112: 0
B113: Diğer Borçlar | C113: 0 | D113: 0 | E113: 0 | F113: 0 | G113: 0 | H113: 0 | I113: 0
B114: Müşteri Sözleşmelerinden Doğan Yükümlülükler | C114: 0 | D114: 0 | E114: 0 | F114: 0 | G114: 0 | H114: 0 | I114: 0
B115: Bloke Hesaplar | C115: 0 | D115: 0 | E115: 0 | F115: 0 | G115: 0 | H115: 0 | I115: 0
B116: Alınan Avanslar | C116: 0 | D116: 0 | E116: 0 | F116: 0 | G116: 0 | H116: 0 | I116: 0
B117: Çalışanlara Sağlanan Faydalar Kapsamında Borçlar | C117: 0 | D117: 0 | E117: 0 | F117: 0 | G117: 0 | H117: 0 | I117: 0
B118: Borç ve Gider Karşılıkları | C118: 11997465 | D118: 16060280 | E118: 15954321 | F118: 16518145 | G118: 17157001 | H118: 16760418 | I118: 16471194
B119: Türev Finansal Araçlardan Borçlar | C119: 0 | D119: 0 | E119: 0 | F119: 0 | G119: 0 | H119: 0 | I119: 0
B120: Cari Dönem Vergisiyle İlgili Borçlar | C120: 0 | D120: 0 | E120: 0 | F120: 0 | G120: 0 | H120: 0 | I120: 0
B121: Ertelenen Vergi Yükümlülüğü | C121: 3208110 | D121: 4212031 | E121: 5126894 | F121: 4941371 | G121: 4796775 | H121: 0 | I121: 0
B122: Devlet Teşvik ve Yardımları | C122: 0 | D122: 0 | E122: 0 | F122: 0 | G122: 0 | H122: 0 | I122: 0
B123: Ertelenmiş Gelirler | C123: 0 | D123: 0 | E123: 0 | F123: 0 | G123: 0 | H123: 218712 | I123: 218712
B124: Devam Eden Sözleşmeler Hakediş Bedelleri | C124: 0 | D124: 0 | E124: 0 | F124: 0 | G124: 0 | H124: 0 | I124: 0
B125: Pozitif/Negatif Şerefiye | C125: 0 | D125: 0 | E125: 0 | F125: 0 | G125: 0 | H125: 0 | I125: 0
B126: Diğer Uzun Vadeli Borçlar | C126: 0 | D126: 0 | E126: 0 | F126: 0 | G126: 0 | H126: 0 | I126: 0
B127: İş Ortaklıklarının Uzun Vadeli Yükümlülükler İçindeki Payı | C127: 0 | D127: 0 | E127: 0 | F127: 0 | G127: 0 | H127: 0 | I127: 0
B128: ÖZ SERMAYE (AZINLIK PAYI DAHİL) | C128: 654345716 | D128: 761460970 | E128: 793511865 | F128: 793461157 | G128: 761858145 | H128: 1126492371 | I128: 874327246
B129: ANA ORTAKLIK DIŞI ÖZSERMAYE | C129: 0 | D129: 0 | E129: 0 | F129: 0 | G129: 0 | H129: 0 | I129: 0
B130: Aile Üyeleri | C130: 0 | D130: 0 | E130: 0 | F130: 0 | G130: 0 | H130: 0 | I130: 0
B131: Diğerleri | C131: 0 | D131: 0 | E131: 0 | F131: 0 | G131: 0 | H131: 0 | I131: 0
B132: ÖZ SERMAYE (ANA ORTAKLIĞA AİT) | C132: 654345716 | D132: 761460970 | E132: 793511865 | F132: 793461157 | G132: 761858145 | H132: 1126492371 | I132: 874327246
B133: Sermaye | C133: 336182000 | D133: 336182000 | E133: 336182000 | F133: 336182000 | G133: 336182000 | H133: 336182000 | I133: 336182000
B134: Ödenmeyen Sermaye(-) | C134: 0 | D134: 0 | E134: 0 | F134: 0 | G134: 0 | H134: 0 | I134: 0
B135: Karşılıklı İştirak Sermaye Düzeltmesi | C135: 0 | D135: 0 | E135: 0 | F135: 0 | G135: 0 | H135: 0 | I135: 0
B136: Paylara İlişkin Primler/İskontolar | C136: 0 | D136: 0 | E136: 0 | F136: 0 | G136: 0 | H136: 0 | I136: 0
B137: İşletmenin Geri Satın Alınan Kendi Hisseleri | C137: 0 | D137: 0 | E137: 0 | F137: 0 | G137: 0 | H137: 0 | I137: -54515327
B138: İşletmenin Geri Alınan Kendi Hisse Senetlerinin Satışından Doğan Kar | C138: 0 | D138: 0 | E138: 0 | F138: 0 | G138: 0 | H138: 0 | I138: 0
B139: Sermaye Avansı | C139: 0 | D139: 0 | E139: 0 | F139: 0 | G139: 0 | H139: 0 | I139: 0
B140: Kar veya Zararda Yeniden Sınıflandırılmayacak Birikmiş Diğer Kapsamlı Gel. veya Gid. | C140: 62548677 | D140: 0 | E140: -6406012 | F140: -6623738 | G140: -7113110 | H140: -4190768 | I140: -2720513
B141: Kar veya Zararda Yeniden Sınıflandırılacak Birikmiş Diğer Kapsamlı Gelir. veya Gid. | C141: 938470 | D141: 90759365 | E141: 93390120 | F141: 97377249 | G141: 85290702 | H141: 5380815 | I141: 0
B142: Sermaye Yedekleri | C142: -4700837 | D142: 0 | E142: -3060762 | F142: -3340781 | G142: -3465791 | H142: -1716495 | I142: -246240
B143: Sermaye Taahhütleri (-) | C143: 0 | D143: 0 | E143: 0 | F143: 0 | G143: 0 | H143: 0 | I143: 0
B144: Katkı sermaye | C144: 0 | D144: 0 | E144: 0 | F144: 0 | G144: 0 | H144: 0 | I144: 0
B145: Azınlık Hisseleri Satış Opsiyonu Değerleme Fonu | C145: 0 | D145: 0 | E145: 0 | F145: 0 | G145: 0 | H145: 0 | I145: 0
B146: Emisyon Primi | C146: 0 | D146: 0 | E146: 0 | F146: 0 | G146: 0 | H146: 0 | I146: 0
B147: Yeniden Değerleme Artışı | C147: 67249514 | D147: 97441812 | E147: 89436446 | F147: 92780511 | G147: 78501438 | H147: -2474273 | I147: -2474273
B148: Kar Yedekleri | C148: 0 | D148: -7298920 | E148: 0 | F148: 0 | G148: 0 | H148: 0 | I148: 0
B149: Dağıtılmamış Kar | C149: 0 | D149: 0 | E149: 0 | F149: 0 | G149: 0 | H149: 0 | I149: 0
B150: Sermaye artırımı ile ilgili masraflar | C150: 0 | D150: 0 | E150: 0 | F150: 0 | G150: 0 | H150: 0 | I150: 0
B151: Nakit Akım Koruması ile İlgili Birikmiş Kar | C151: 0 | D151: 0 | E151: 0 | F151: 0 | G151: 0 | H151: 0 | I151: 0
B152: Karşılıklı İştirak Serm. Düzeltmesinin Nom. Tut. Aşan Kısım | C152: 0 | D152: 0 | E152: 0 | F152: 0 | G152: 0 | H152: 0 | I152: 0
B153: Finansal Yatırımlar Değer Artış Fonu | C153: 0 | D153: 0 | E153: 0 | F153: 0 | G153: 0 | H153: 0 | I153: 0
B154: Diğer Özkaynak Payları | C154: 0 | D154: 0 | E154: 0 | F154: 0 | G154: 0 | H154: 0 | I154: 0
B155: Diğer Yedekler | C155: 0 | D155: 0 | E155: 0 | F155: 0 | G155: 0 | H155: 0 | I155: 0
B156: Net Dönem Karı | C156: 67705183 | D156: 142921302 | E156: 144077727 | F156: 130943887 | G156: 125972459 | H156: 483136386 | I156: 46910343
B157: Dönem Zararı (-) | C157: 0 | D157: 0 | E157: 0 | F157: 0 | G157: 0 | H157: 0 | I157: 0
B158: Geçmiş Yıl Karları | C158: 82065838 | D158: 82065838 | E158: 107591318 | F158: 103738501 | G158: 76864194 | H158: 151398096 | I158: 371648440
B159: Net Dön. Kar. Ser. Hes. Ed. Tran. Ed. M. Dur. V. Sa. Karı | C159: 0 | D159: 0 | E159: 0 | F159: 0 | G159: 0 | H159: 0 | I159: 0
B160: Geçmiş Yıl Zararları (-) | C160: 0 | D160: 0 | E160: 0 | F160: 0 | G160: 0 | H160: 0 | I160: 0
B161: Yabancı Para Çevrim Farkları | C161: 938470 | D161: 616473 | E161: 608424 | F161: 1313781 | G161: 3141945 | H161: 5380815 | I161: 0
B162: Kardan Ayrılan Kısıtlanmış Yedekler | C162: 104905548 | D162: 109532465 | E162: 118676712 | F162: 131843258 | G162: 144661900 | H162: 154585842 | I162: 176822303
B163: Kardan Ayrılan Kısıtlanmış Yedekler (27) | C163: 0 | D163: 0 | E163: 0 | F163: 0 | G163: 0 | H163: 0 | I163: 0
B164: Zarar Telafi Fonu | C164: 0 | D164: 0 | E164: 0 | F164: 0 | G164: 0 | H164: 0 | I164: 0
B165: Özsermaye Enf. Düz. Farkları | C165: 0 | D165: 0 | E165: 0 | F165: 0 | G165: 0 | H165: 0 | I165: 0
B166: Sermaye Birleşme Fonu | C166: 0 | D166: 0 | E166: 0 | F166: 0 | G166: 0 | H166: 0 | I166: 0
B167: İlave Ödenmiş Sermaye | C167: 0 | D167: 0 | E167: 0 | F167: 0 | G167: 0 | H167: 0 | I167: 0
B168: Birikmiş Karlar/Zararlar | C168: 0 | D168: 0 | E168: 0 | F168: 0 | G168: 0 | H168: 0 | I168: 0
B169: Yatırım Teşvikleri | C169: 0 | D169: 0 | E169: 0 | F169: 0 | G169: 0 | H169: 0 | I169: 0
B170: Satılmaya Haz. Var. Üz. Gerçekleşmemiş Net Gelir | C170: 0 | D170: 0 | E170: 0 | F170: 0 | G170: 0 | H170: 0 | I170: 0
B171: Ana ortaklık hisse satış kar/zarar | C171: 0 | D171: 0 | E171: 0 | F171: 0 | G171: 0 | H171: 0 | I171: 0
B172: AZINLIK PAYLARI | C172: 0 | D172: 0 | E172: 0 | F172: 0 | G172: 0 | H172: 0 | I172: 0
B173: TOPLAM PASİFLER | C173: 721131029 | D173: 872576932 | E173: 882911781 | F173: 949433399 | G173: 1166984719 | H173: 1597923654 | I173: 1496930320
B178: Gelir Tablosu | C178: 2013/12 | D178: 2014/12 | E178: 2015/12 | F178: 2016/12 | G178: 2017/12 | H178: 2018/12 | I178: 2019/03
B179: BRÜT SATIŞLAR | C179: 400117697 | D179: 442234014 | E179: 431754202 | F179: 390045507 | G179: 502341547 | H179: 701345840 | I179: 131597049
B180: Yurtiçi Satışlar | C180: 315149196 | D180: 346247594 | E180: 339197760 | F180: 305461163 | G180: 361442881 | H180: 426807978 | I180: 70998885
B181: Yurtdışı Satışlar | C181: 83623229 | D181: 94970913 | E181: 92556442 | F181: 84584344 | G181: 140898666 | H181: 274537862 | I181: 60598164
B182: Diğer Satışlar | C182: 1345272 | D182: 1015507 | E182: 0 | F182: 0 | G182: 0 | H182: 0 | I182: 0
B183: SATIŞLARDAN İNDİRİMLER (-) | C183: 3987393 | D183: 2661060 | E183: 3631716 | F183: 6056214 | G183: 16563397 | H183: 25971544 | I183: 4693287
B184: Satışdan İadeler (-) | C184: 0 | D184: 0 | E184: 0 | F184: 0 | G184: 0 | H184: 0 | I184: 0
B185: Satış İskontoları (-) | C185: 3081497 | D185: 1921309 | E185: 0 | F185: 0 | G185: 0 | H185: 0 | I185: 0
B186: Diğer İndirimler (-) | C186: 905896 | D186: 739751 | E186: 0 | F186: 6056214 | G186: 16563397 | H186: 25971544 | I186: 0
B187: ESAS FAALİYET GELİRLERİ | C187: 0 | D187: 0 | E187: 0 | F187: 0 | G187: 0 | H187: 0 | I187: 0
B188: SATIŞ GELİRLERİ | C188: 396130304 | D188: 439572954 | E188: 428122486 | F188: 383989293 | G188: 485778150 | H188: 675374296 | I188: 126903762
B189: FAİZ GELİRİ | C189: 0 | D189: 0 | E189: 0 | F189: 0 | G189: 0 | H189: 0 | I189: 0
B190: SATIŞLARIN MALİYETİ (-) | C190: 271285537 | D190: 272166676 | E190: 262467547 | F190: 244746839 | G190: 353056310 | H190: 485280856 | I190: 106461400
B191: FAİZ GİDERİ | C191: 0 | D191: 0 | E191: 0 | F191: 0 | G191: 0 | H191: 0 | I191: 0
B192: MUHTEMEL KREDİ ZARAR KARŞ. FİN.KİR. ALCK. KARŞ. VE FAKT. DEĞ. DÜŞ. KARŞ. | C192: 0 | D192: 0 | E192: 0 | F192: 0 | G192: 0 | H192: 0 | I192: 0
B193: HİZMET GELİRLERİ | C193: 0 | D193: 0 | E193: 0 | F193: 0 | G193: 0 | H193: 0 | I193: 0
B194: HİZMET GİDERLERİ (-) | C194: 0 | D194: 0 | E194: 0 | F194: 0 | G194: 0 | H194: 0 | I194: 0
B195: KAMBİYO KARI/ZARARI | C195: 0 | D195: 0 | E195: 0 | F195: 0 | G195: 0 | H195: 0 | I195: 0
B196: SERMAYE PİYASASI İŞLEM KARI/ZARARI | C196: 0 | D196: 0 | E196: 0 | F196: 0 | G196: 0 | H196: 0 | I196: 0
B197: ESAS FAALİYETLERDEN DİĞER GİDER/GELİR | C197: 0 | D197: 0 | E197: 0 | F197: 0 | G197: 0 | H197: 0 | I197: 0
B198: FAİZ, ÜCRET, PRİM, KOMİSYON VE DİĞER GELİRLER | C198: 0 | D198: 0 | E198: 0 | F198: 0 | G198: 0 | H198: 0 | I198: 0
B199: Kambiyo Gelirleri | C199: 0 | D199: 0 | E199: 0 | F199: 0 | G199: 0 | H199: 0 | I199: 0
B200: Faiz Gelirleri | C200: 0 | D200: 0 | E200: 0 | F200: 0 | G200: 0 | H200: 0 | I200: 0
B201: Kar Payı Gelirleri | C201: 0 | D201: 0 | E201: 0 | F201: 0 | G201: 0 | H201: 0 | I201: 0
B202: Türev Finansal İşlemlerden Kazanç | C202: 0 | D202: 0 | E202: 0 | F202: 0 | G202: 0 | H202: 0 | I202: 0
B203: Portföy İşletmeciliği Faaliyetinden Elde Edilen Gelir | C203: 0 | D203: 0 | E203: 0 | F203: 0 | G203: 0 | H203: 0 | I203: 0
B204: Sigortacılık Hizmetlerinden Elde Edilen Gelir | C204: 0 | D204: 0 | E204: 0 | F204: 0 | G204: 0 | H204: 0 | I204: 0
... 135 more rows

Sheet ADEL (hidden)
A1: ADEL
B2: BİLANÇO | C2: 2013/12 | D2: 2014/12 | E2: 2015/12 | F2: 2016/12 | G2: 2017/12 | H2: 2018/12 | I2: 2019/03
B3: DÖNEN VARLIKLAR | C3: 162536159 | D3: 192474779 | E3: 263405572 | F3: 196786000 | G3: 241316000 | H3: 341287000 | I3: 360839000
B4: Hazır Değerler | C4: 38699751 | D4: 15858762 | E4: 63113002 | F4: 11046000 | G4: 20327000 | H4: 59155000 | I4: 21025000
B5: Gayrimenkul Projeleri Kapsamında Açılan Nakit Hesapları | C5: 0 | D5: 0 | E5: 0 | F5: 0 | G5: 0 | H5: 0 | I5: 0
B6: Finansal Yatırımlar | C6: 0 | D6: 0 | E6: 0 | F6: 0 | G6: 0 | H6: 0 | I6: 0
B7: Menkul Kıymetler | C7: 0 | D7: 0 | E7: 0 | F7: 0 | G7: 0 | H7: 0 | I7: 0
B8: Türkiye Cumhuriyet Merkez Bankası Hesabı | C8: 0 | D8: 0 | E8: 0 | F8: 0 | G8: 0 | H8: 0 | I8: 0
B9: Krediler ve Avanslar | C9: 0 | D9: 0 | E9: 0 | F9: 0 | G9: 0 | H9: 0 | I9: 0
B10: Faktoring alacakları (net) | C10: 0 | D10: 0 | E10: 0 | F10: 0 | G10: 0 | H10: 0 | I10: 0
B11: Teminata Verilen Finansal Varlıklar | C11: 0 | D11: 0 | E11: 0 | F11: 0 | G11: 0 | H11: 0 | I11: 0
B12: Kısa Vadeli Ticari Alacaklar | C12: 22765089 | D12: 33572393 | E12: 41615133 | F12: 52923000 | G12: 75111000 | H12: 77794000 | I12: 127001000
B13: Finansal Kiralama Alacakları | C13: 0 | D13: 0 | E13: 0 | F13: 0 | G13: 0 | H13: 0 | I13: 0
B14: Finans Sektörü Faal. Alacaklar | C14: 0 | D14: 0 | E14: 0 | F14: 0 | G14: 0 | H14: 0 | I14: 0
B15: İlişkili Taraflardan Alacaklar | C15: 0 | D15: 0 | E15: 0 | F15: 0 | G15: 0 | H15: 0 | I15: 0
B16: Diğer Kısa Vadeli Alacaklar | C16: 797601 | D16: 875715 | E16: 768932 | F16: 799000 | G16: 1316000 | H16: 1817000 | I16: 1594000
B17: Canlı Varlıklar | C17: 0 | D17: 0 | E17: 0 | F17: 0 | G17: 0 | H17: 0 | I17: 0
B18: Kullanımı Kısıtlı Banka Bakiyeleri | C18: 0 | D18: 0 | E18: 0 | F18: 0 | G18: 0 | H18: 0 | I18: 0
B19: Stoklar | C19: 76190352 | D19: 107868824 | E19: 120244108 | F19: 107830000 | G19: 113113000 | H19: 158379000 | I19: 155046000
B20: Peşin Ödenen Kira Giderleri | C20: 0 | D20: 0 | E20: 0 | F20: 0 | G20: 0 | H20: 0 | I20: 0
B21: Müşteri Sözleşmelerinden Doğan Varlıklar | C21: 0 | D21: 0 | E21: 0 | F21: 0 | G21: 0 | H21: 0 | I21: 0
B22: İmtiyaz Sözleşmelerine İlişkin Finansal Varlıklar | C22: 0 | D22: 0 | E22: 0 | F22: 0 | G22: 0 | H22: 0 | I22: 0
B23: Türev Enstrümanlar | C23: 0 | D23: 0 | E23: 0 | F23: 0 | G23: 0 | H23: 0 | I23: 0
B24: Ertelenen Vergi Varlıkları | C24: 0 | D24: 0 | E24: 0 | F24: 0 | G24: 0 | H24: 0 | I24: 0
B25: Durdurulan faaliyetler ile ilgili varlıklar | C25: 0 | D25: 0 | E25: 0 | F25: 0 | G25: 0 | H25: 0 | I25: 0
B26: Peşin Ödenmiş Giderler | C26: 359079 | D26: 336424 | E26: 362828 | F26: 592000 | G26: 958000 | H26: 1127000 | I26: 5284000
B27: Cari Dönem Vergisiyle İlgili Varlıklar | C27: 5206420 | D27: 7677352 | E27: 9561802 | F27: 9260000 | G27: 10891000 | H27: 16543000 | I27: 12458000
B28: Nakit Dışı Serbest Kullanılabilir Teminatlar | C28: 0 | D28: 0 | E28: 0 | F28: 0 | G28: 0 | H28: 0 | I28: 0
B29: Diğer Dönen Varlıklar | C29: 18517867 | D29: 26285309 | E29: 27739767 | F29: 14336000 | G29: 19600000 | H29: 26472000 | I29: 38431000
B30: Vadesine kadar elde tut. men. kıy. | C30: 0 | D30: 0 | E30: 0 | F30: 0 | G30: 0 | H30: 0 | I30: 0
B31: Satılmaya Hazır Finansal Varlıklar | C31: 0 | D31: 0 | E31: 0 | F31: 0 | G31: 0 | H31: 0 | I31: 0
B32: Alım Satım Amaçlı Menkul Kıymetler | C32: 0 | D32: 0 | E32: 0 | F32: 0 | G32: 0 | H32: 0 | I32: 0
B33: İş Ortaklıklarının Dönen Varlıklar İçindeki Payı | C33: 0 | D33: 0 | E33: 0 | F33: 0 | G33: 0 | H33: 0 | I33: 0
B34: Elden Çıkarılacak Faaliyetler ile İlgili Varlıklar | C34: 0 | D34: 0 | E34: 0 | F34: 0 | G34: 0 | H34: 0 | I34: 0
B35: Satım amaçlı elde tutulan maddi duran varlıklar | C35: 0 | D35: 0 | E35: 0 | F35: 0 | G35: 0 | H35: 0 | I35: 0
B36: Ortaklara Dağıtılmak Üzere Elde Tutulan Duran Varlıklar | C36: 0 | D36: 0 | E36: 0 | F36: 0 | G36: 0 | H36: 0 | I36: 0
B37: DURAN VARLIKLAR | C37: 44533706 | D37: 89586081 | E37: 116350523 | F37: 114645000 | G37: 114928000 | H37: 124745000 | I37: 128457000
B38: Menkul Kıymetler | C38: 0 | D38: 0 | E38: 0 | F38: 0 | G38: 0 | H38: 0 | I38: 0
B39: Krediler ve Avanslar | C39: 0 | D39: 0 | E39: 0 | F39: 0 | G39: 0 | H39: 0 | I39: 0
B40: Faktoring alacakları (net) | C40: 0 | D40: 0 | E40: 0 | F40: 0 | G40: 0 | H40: 0 | I40: 0
B41: Uzun Vadeli Ticari Alacaklar | C41: 0 | D41: 0 | E41: 0 | F41: 0 | G41: 0 | H41: 0 | I41: 0
B42: Finansal Kiralama Alacakları | C42: 0 | D42: 0 | E42: 0 | F42: 0 | G42: 0 | H42: 0 | I42: 0
B43: Finans Sektörü Faal. Alacaklar | C43: 0 | D43: 0 | E43: 0 | F43: 0 | G43: 0 | H43: 0 | I43: 0
B44: İlişkili Taraflardan Alacaklar | C44: 0 | D44: 0 | E44: 0 | F44: 0 | G44: 0 | H44: 0 | I44: 0
B45: Türev Enstrümanlar | C45: 0 | D45: 0 | E45: 0 | F45: 0 | G45: 0 | H45: 0 | I45: 0
B46: Diğer Uzun Vadeli Alacaklar | C46: 0 | D46: 0 | E46: 0 | F46: 0 | G46: 0 | H46: 0 | I46: 0
B47: Finansal Yatırımlar | C47: 233985 | D47: 233985 | E47: 233985 | F47: 234000 | G47: 234000 | H47: 234000 | I47: 234000
B48: Özkaynak Yöntemiyle Değerlenen Yatırımlar | C48: 747661 | D48: 0 | E48: 0 | F48: 1294000 | G48: 667000 | H48: 0 | I48: 0
B49: Canlı Varlıklar | C49: 0 | D49: 0 | E49: 0 | F49: 0 | G49: 0 | H49: 0 | I49: 0
B50: İmtiyaz Sözleşmelerine İlişkin Finansal Varlıklar | C50: 0 | D50: 0 | E50: 0 | F50: 0 | G50: 0 | H50: 0 | I50: 0
B51: Stoklar | C51: 0 | D51: 0 | E51: 0 | F51: 0 | G51: 0 | H51: 0 | I51: 0
B52: Finansal Duran Varlıklar | C52: 0 | D52: 0 | E52: 0 | F52: 0 | G52: 0 | H52: 0 | I52: 0
B53: Pozitif/Negatif Şerefiye | C53: 0 | D53: 0 | E53: 0 | F53: 0 | G53: 0 | H53: 0 | I53: 0
B54: Yatırım Amaçlı Gayrimenkuller | C54: 0 | D54: 0 | E54: 0 | F54: 0 | G54: 0 | H54: 0 | I54: 0
B55: Proje Halindeki Yatırım Amaçlı Gayrimenkuller | C55: 0 | D55: 0 | E55: 0 | F55: 0 | G55: 0 | H55: 0 | I55: 0
B56: Alım Satım Amaçlı Gayrimenkuller (net) | C56: 0 | D56: 0 | E56: 0 | F56: 0 | G56: 0 | H56: 0 | I56: 0
B57: Maddi Duran Varlıklar | C57: 30524973 | D57: 80851578 | E57: 110536560 | F57: 107899000 | G57: 109575000 | H57: 111082000 | I57: 110098000
B58: Kullanım Hakkı Varlıkları | C58: 0 | D58: 0 | E58: 0 | F58: 0 | G58: 0 | H58: 0 | I58: 3503000
B59: Maddi Olmayan Duran Varlıklar | C59: 2232857 | D59: 4522268 | E59: 3965439 | F59: 4172000 | G59: 3122000 | H59: 6860000 | I59: 6677000
B60: Müşteri Sözleşmelerinden Doğan Varlıklar | C60: 0 | D60: 0 | E60: 0 | F60: 0 | G60: 0 | H60: 0 | I60: 0
B61: Ertelenen Vergi Varlıkları | C61: 1888925 | D61: 1443990 | E61: 1443779 | F61: 598000 | G61: 508000 | H61: 4135000 | I61: 5190000
B62: Cari Dönem Vergisiyle İlgili Duran Varlıklar | C62: 0 | D62: 0 | E62: 0 | F62: 0 | G62: 0 | H62: 0 | I62: 0
B63: Nakit Dışı Serbest Kullanılabilir Teminatlar | C63: 0 | D63: 0 | E63: 0 | F63: 0 | G63: 0 | H63: 0 | I63: 0
B64: Peşin Ödenen Kira Giderleri | C64: 0 | D64: 0 | E64: 0 | F64: 0 | G64: 0 | H64: 0 | I64: 0
B65: Peşin Ödenmiş Giderler | C65: 70194 | D65: 101479 | E65: 116268 | F65: 386000 | G65: 822000 | H65: 2427000 | I65: 1901000
B66: Diğer Duran Varlıklar | C66: 8835111 | D66: 2432781 | E66: 54492 | F66: 62000 | G66: 0 | H66: 7000 | I66: 854000
B67: Vadesine kadar elde tut. men. kıy. | C67: 0 | D67: 0 | E67: 0 | F67: 0 | G67: 0 | H67: 0 | I67: 0
B68: Satılmaya Hazır Finansal Varlıklar | C68: 0 | D68: 0 | E68: 0 | F68: 0 | G68: 0 | H68: 0 | I68: 0
B69: İş Ortaklıklarının Duran Varlıklar İçindeki Payı | C69: 0 | D69: 0 | E69: 0 | F69: 0 | G69: 0 | H69: 0 | I69: 0
B70: Ana Ortaklık Dışı Paylar | C70: 0 | D70: 0 | E70: 0 | F70: 0 | G70: 0 | H70: 0 | I70: 0
B71: TOPLAM AKTİFLER | C71: 207069865 | D71: 282060860 | E71: 379756095 | F71: 311431000 | G71: 356244000 | H71: 466032000 | I71: 489296000
B72: KISA VADELİ YÜKÜMLÜLÜKLER | C72: 40402979 | D72: 108047468 | E72: 168014498 | F72: 85549000 | G72: 129331000 | H72: 266216000 | I72: 260077000
B73: Finansal Borçlar | C73: 25555716 | D73: 79347560 | E73: 139647645 | F73: 54480000 | G73: 77939000 | H73: 205390000 | I73: 207973000
B74: Uzun Vadeli Finansal Borçların Kısa Vadeli Kısımları | C74: 0 | D74: 0 | E74: 0 | F74: 7921000 | G74: 8978000 | H74: 10083000 | I74: 12500000
B75: Mevduat | C75: 0 | D75: 0 | E75: 0 | F75: 0 | G75: 0 | H75: 0 | I75: 0
B76: Türev Araçlar | C76: 0 | D76: 0 | E76: 0 | F76: 0 | G76: 0 | H76: 11205000 | I76: 1696000
B77: Faktoring borçları | C77: 0 | D77: 0 | E77: 0 | F77: 0 | G77: 0 | H77: 0 | I77: 0
B78: Finansal Kiralama İşlemlerinden Borçlar | C78: 0 | D78: 0 | E78: 0 | F78: 0 | G78: 0 | H78: 0 | I78: 0
B79: Finans Sektörü Faaliyetlerinden Borçlar | C79: 0 | D79: 0 | E79: 0 | F79: 0 | G79: 0 | H79: 0 | I79: 0
B80: Sigorta Teknik Karşılığı | C80: 0 | D80: 0 | E80: 0 | F80: 0 | G80: 0 | H80: 0 | I80: 0
B81: Diğer Finansal Yükümlülükler | C81: 0 | D81: 0 | E81: 0 | F81: 0 | G81: 0 | H81: 0 | I81: 0
B82: Ticari Borçlar | C82: 9601500 | D82: 11623337 | E82: 18487275 | F82: 12708000 | G82: 26210000 | H82: 24115000 | I82: 23097000
B83: İlişkili Taraflara Borçlar | C83: 0 | D83: 0 | E83: 0 | F83: 0 | G83: 0 | H83: 0 | I83: 0
B84: Alınan Krediler | C84: 0 | D84: 0 | E84: 0 | F84: 0 | G84: 0 | H84: 0 | I84: 0
B85: Diğer Borçlar | C85: 2340224 | D85: 3393751 | E85: 3393194 | F85: 4441000 | G85: 3624000 | H85: 3419000 | I85: 2177000
B86: Alınan Avanslar | C86: 0 | D86: 0 | E86: 0 | F86: 0 | G86: 0 | H86: 0 | I86: 0
B87: Devlet Teşvik ve Yardımları | C87: 0 | D87: 0 | E87: 0 | F87: 0 | G87: 0 | H87: 0 | I87: 0
B88: Ertelenmiş Gelirler | C88: 0 | D88: 0 | E88: 0 | F88: 0 | G88: 0 | H88: 0 | I88: 0
B89: Cari Dönem Vergi Yükümlülüğü | C89: 0 | D89: 0 | E89: 0 | F89: 0 | G89: 0 | H89: 0 | I89: 0
B90: Cari Dönem Vergisi ile İlgili Borçlar | C90: 0 | D90: 0 | E90: 0 | F90: 0 | G90: 0 | H90: 0 | I90: 0
B91: Bloke Hesaplar | C91: 0 | D91: 0 | E91: 0 | F91: 0 | G91: 0 | H91: 0 | I91: 0
B92: Müşteri Sözleşmelerinden Doğan Yükümlülükler | C92: 0 | D92: 0 | E92: 0 | F92: 0 | G92: 0 | H92: 0 | I92: 0
B93: Özkaynak Yöntemiyle Değerlenen Yatırımlardan Yükümlülükler | C93: 0 | D93: 0 | E93: 0 | F93: 0 | G93: 0 | H93: 0 | I93: 0
B94: Borç ve Gider Karşılıkları | C94: 1405059 | D94: 1852204 | E94: 1740149 | F94: 1845000 | G94: 1823000 | H94: 3394000 | I94: 4265000
B95: Çalışanlara Sağlanan Faydalara İlişkin Karşılıklar | C95: 329842 | D95: 754444 | E95: 552477 | F95: 4154000 | G95: 4568000 | H95: 6215000 | I95: 4659000
B96: Ertelenen Vergi Yükümlülüğü | C96: 0 | D96: 0 | E96: 0 | F96: 0 | G96: 0 | H96: 0 | I96: 0
B97: Durdurulan faaliyetler ile ilgili yükümlülükler | C97: 0 | D97: 0 | E97: 0 | F97: 0 | G97: 0 | H97: 0 | I97: 0
B98: Diğer Kısa Vadeli Borçlar | C98: 1170638 | D98: 11076172 | E98: 4193758 | F98: 0 | G98: 6189000 | H98: 2395000 | I98: 3710000
B99: İş Ortaklıklarının Kısa Vadeli Yükümlülükler İçindeki Payı | C99: 0 | D99: 0 | E99: 0 | F99: 0 | G99: 0 | H99: 0 | I99: 0
B100: Elden Çıkarılacak Faaliyetler ile İlgili Yükümlülükler | C100: 0 | D100: 0 | E100: 0 | F100: 0 | G100: 0 | H100: 0 | I100: 0
B101: Ortaklara Dağıtılmak Üzere Elde Tutulan Varlık Gruplarına İlişkin Yükümlülükler | C101: 0 | D101: 0 | E101: 0 | F101: 0 | G101: 0 | H101: 0 | I101: 0
B102: UZUN VADELİ YÜKÜMLÜLÜKLER | C102: 23872084 | D102: 25693098 | E102: 5994980 | F102: 30391000 | G102: 21514000 | H102: 11035000 | I102: 29929000
B103: Mevduatlar | C103: 0 | D103: 0 | E103: 0 | F103: 0 | G103: 0 | H103: 0 | I103: 0
B104: Finansal Borçlar | C104: 18815801 | D104: 19970556 | E104: 0 | F104: 23787000 | G104: 14809000 | H104: 4668000 | I104: 23408000
B105: Faktoring borçları | C105: 0 | D105: 0 | E105: 0 | F105: 0 | G105: 0 | H105: 0 | I105: 0
B106: Finansal Kiralama İşlemlerinden Borçlar | C106: 0 | D106: 0 | E106: 0 | F106: 0 | G106: 0 | H106: 0 | I106: 0
B107: Finans Sektörü Faaliyetlerinden Borçlar | C107: 0 | D107: 0 | E107: 0 | F107: 0 | G107: 0 | H107: 0 | I107: 0
B108: Sigorta teknik karşılıkları | C108: 0 | D108: 0 | E108: 0 | F108: 0 | G108: 0 | H108: 0 | I108: 0
B109: Diğer Finansal Yükümlülükler | C109: 0 | D109: 0 | E109: 0 | F109: 0 | G109: 0 | H109: 0 | I109: 0
B110: Ticari Borçlar | C110: 0 | D110: 0 | E110: 0 | F110: 0 | G110: 0 | H110: 0 | I110: 0
B111: İlişkili Taraflara Borçlar | C111: 0 | D111: 0 | E111: 0 | F111: 0 | G111: 0 | H111: 0 | I111: 0
B112: Alınan Krediler | C112: 0 | D112: 0 | E112: 0 | F112: 0 | G112: 0 | H112: 0 | I112: 0
B113: Diğer Borçlar | C113: 0 | D113: 0 | E113: 0 | F113: 0 | G113: 0 | H113: 0 | I113: 0
B114: Müşteri Sözleşmelerinden Doğan Yükümlülükler | C114: 0 | D114: 0 | E114: 0 | F114: 0 | G114: 0 | H114: 0 | I114: 0
B115: Bloke Hesaplar | C115: 0 | D115: 0 | E115: 0 | F115: 0 | G115: 0 | H115: 0 | I115: 0
B116: Alınan Avanslar | C116: 0 | D116: 0 | E116: 0 | F116: 0 | G116: 0 | H116: 0 | I116: 0
B117: Çalışanlara Sağlanan Faydalar Kapsamında Borçlar | C117: 0 | D117: 0 | E117: 0 | F117: 0 | G117: 0 | H117: 0 | I117: 0
B118: Borç ve Gider Karşılıkları | C118: 5056283 | D118: 5722542 | E118: 5994980 | F118: 6604000 | G118: 6705000 | H118: 6367000 | I118: 6521000
B119: Türev Finansal Araçlardan Borçlar | C119: 0 | D119: 0 | E119: 0 | F119: 0 | G119: 0 | H119: 0 | I119: 0
B120: Cari Dönem Vergisiyle İlgili Borçlar | C120: 0 | D120: 0 | E120: 0 | F120: 0 | G120: 0 | H120: 0 | I120: 0
B121: Ertelenen Vergi Yükümlülüğü | C121: 0 | D121: 0 | E121: 0 | F121: 0 | G121: 0 | H121: 0 | I121: 0
B122: Devlet Teşvik ve Yardımları | C122: 0 | D122: 0 | E122: 0 | F122: 0 | G122: 0 | H122: 0 | I122: 0
B123: Ertelenmiş Gelirler | C123: 0 | D123: 0 | E123: 0 | F123: 0 | G123: 0 | H123: 0 | I123: 0
B124: Devam Eden Sözleşmeler Hakediş Bedelleri | C124: 0 | D124: 0 | E124: 0 | F124: 0 | G124: 0 | H124: 0 | I124: 0
B125: Pozitif/Negatif Şerefiye | C125: 0 | D125: 0 | E125: 0 | F125: 0 | G125: 0 | H125: 0 | I125: 0
B126: Diğer Uzun Vadeli Borçlar | C126: 0 | D126: 0 | E126: 0 | F126: 0 | G126: 0 | H126: 0 | I126: 0
B127: İş Ortaklıklarının Uzun Vadeli Yükümlülükler İçindeki Payı | C127: 0 | D127: 0 | E127: 0 | F127: 0 | G127: 0 | H127: 0 | I127: 0
B128: ÖZ SERMAYE (AZINLIK PAYI DAHİL) | C128: 142794802 | D128: 148320294 | E128: 205746617 | F128: 195491000 | G128: 205399000 | H128: 188781000 | I128: 199290000
B129: ANA ORTAKLIK DIŞI ÖZSERMAYE | C129: 0 | D129: 0 | E129: 0 | F129: 0 | G129: 0 | H129: 0 | I129: 0
B130: Aile Üyeleri | C130: 0 | D130: 0 | E130: 0 | F130: 0 | G130: 0 | H130: 0 | I130: 0
B131: Diğerleri | C131: 0 | D131: 0 | E131: 0 | F131: 0 | G131: 0 | H131: 0 | I131: 0
B132: ÖZ SERMAYE (ANA ORTAKLIĞA AİT) | C132: 142794802 | D132: 148320294 | E132: 205746617 | F132: 195491000 | G132: 205399000 | H132: 188781000 | I132: 199290000
B133: Sermaye | C133: 7875000 | D133: 7875000 | E133: 7875000 | F133: 23625000 | G133: 23625000 | H133: 23625000 | I133: 23625000
B134: Ödenmeyen Sermaye(-) | C134: 0 | D134: 0 | E134: 0 | F134: 0 | G134: 0 | H134: 0 | I134: 0
B135: Karşılıklı İştirak Sermaye Düzeltmesi | C135: 0 | D135: 0 | E135: 0 | F135: 0 | G135: 0 | H135: 0 | I135: 0
B136: Paylara İlişkin Primler/İskontolar | C136: 0 | D136: 0 | E136: 0 | F136: 0 | G136: 0 | H136: 0 | I136: 0
B137: İşletmenin Geri Satın Alınan Kendi Hisseleri | C137: 0 | D137: 0 | E137: 0 | F137: 0 | G137: 0 | H137: 0 | I137: 0
B138: İşletmenin Geri Alınan Kendi Hisse Senetlerinin Satışından Doğan Kar | C138: 0 | D138: 0 | E138: 0 | F138: 0 | G138: 0 | H138: 0 | I138: 0
B139: Sermaye Avansı | C139: 0 | D139: 0 | E139: 0 | F139: 0 | G139: 0 | H139: 0 | I139: 0
B140: Kar veya Zararda Yeniden Sınıflandırılmayacak Birikmiş Diğer Kapsamlı Gel. veya Gid. | C140: -395595 | D140: -717927 | E140: -775394 | F140: -1017000 | G140: -1076000 | H140: -870000 | I140: -1077000
B141: Kar veya Zararda Yeniden Sınıflandırılacak Birikmiş Diğer Kapsamlı Gelir. veya Gid. | C141: 332040 | D141: -1906955 | E141: -1906955 | F141: -774000 | G141: -667000 | H141: -9321000 | I141: -1904000
B142: Sermaye Yedekleri | C142: 0 | D142: 0 | E142: 0 | F142: 0 | G142: 0 | H142: 0 | I142: 0
B143: Sermaye Taahhütleri (-) | C143: 0 | D143: 0 | E143: 0 | F143: 0 | G143: 0 | H143: 0 | I143: 0
B144: Katkı sermaye | C144: 0 | D144: 0 | E144: 0 | F144: 0 | G144: 0 | H144: 0 | I144: 0
B145: Azınlık Hisseleri Satış Opsiyonu Değerleme Fonu | C145: 0 | D145: 0 | E145: 0 | F145: 0 | G145: 0 | H145: 0 | I145: 0
B146: Emisyon Primi | C146: 0 | D146: 0 | E146: 0 | F146: 0 | G146: 0 | H146: 0 | I146: 0
B147: Yeniden Değerleme Artışı | C147: -395595 | D147: -717927 | E147: -775394 | F147: -1017000 | G147: -1076000 | H147: -870000 | I147: -1077000
B148: Kar Yedekleri | C148: 0 | D148: 0 | E148: 0 | F148: 0 | G148: 0 | H148: -8740000 | I148: -1323000
B149: Dağıtılmamış Kar | C149: 0 | D149: 0 | E149: 0 | F149: 0 | G149: 0 | H149: 0 | I149: 0
B150: Sermaye artırımı ile ilgili masraflar | C150: 0 | D150: 0 | E150: 0 | F150: 0 | G150: 0 | H150: 0 | I150: 0
B151: Nakit Akım Koruması ile İlgili Birikmiş Kar | C151: 0 | D151: 0 | E151: 0 | F151: 0 | G151: 0 | H151: 0 | I151: 0
B152: Karşılıklı İştirak Serm. Düzeltmesinin Nom. Tut. Aşan Kısım | C152: 0 | D152: 0 | E152: 0 | F152: 0 | G152: 0 | H152: 0 | I152: 0
B153: Finansal Yatırımlar Değer Artış Fonu | C153: 0 | D153: 0 | E153: 0 | F153: 0 | G153: 0 | H153: 0 | I153: 0
B154: Diğer Özkaynak Payları | C154: 0 | D154: 0 | E154: 0 | F154: 0 | G154: 0 | H154: 0 | I154: 0
B155: Diğer Yedekler | C155: 0 | D155: 0 | E155: 0 | F155: 0 | G155: 0 | H155: 0 | I155: 0
B156: Net Dönem Karı | C156: 49662101 | D156: 28089319 | E156: 71501290 | F156: 18857000 | G156: 26870000 | H156: 13830000 | I156: 3299000
B157: Dönem Zararı (-) | C157: 0 | D157: 0 | E157: 0 | F157: 0 | G157: 0 | H157: 0 | I157: 0
B158: Geçmiş Yıl Karları | C158: 63339658 | D158: 63971524 | E158: 76680968 | F158: 68886000 | G158: 69150000 | H158: 93523000 | I158: 107353000
B159: Net Dön. Kar. Ser. Hes. Ed. Tran. Ed. M. Dur. V. Sa. Karı | C159: 0 | D159: 0 | E159: 0 | F159: 0 | G159: 0 | H159: 0 | I159: 0
B160: Geçmiş Yıl Zararları (-) | C160: 0 | D160: 0 | E160: 0 | F160: 0 | G160: 0 | H160: 0 | I160: 0
B161: Yabancı Para Çevrim Farkları | C161: 332040 | D161: -1906955 | E161: -1906955 | F161: -774000 | G161: -667000 | H161: -581000 | I161: -581000
B162: Kardan Ayrılan Kısıtlanmış Yedekler | C162: 8606613 | D162: 37634348 | E162: 38996723 | F162: 84330000 | G162: 85913000 | H162: 66410000 | I162: 66410000
B163: Kardan Ayrılan Kısıtlanmış Yedekler (27) | C163: 0 | D163: 0 | E163: 0 | F163: 0 | G163: 0 | H163: 0 | I163: 0
B164: Zarar Telafi Fonu | C164: 0 | D164: 0 | E164: 0 | F164: 0 | G164: 0 | H164: 0 | I164: 0
B165: Özsermaye Enf. Düz. Farkları | C165: 13374985 | D165: 13374985 | E165: 13374985 | F165: 1584000 | G165: 1584000 | H165: 1584000 | I165: 1584000
B166: Sermaye Birleşme Fonu | C166: 0 | D166: 0 | E166: 0 | F166: 0 | G166: 0 | H166: 0 | I166: 0
B167: İlave Ödenmiş Sermaye | C167: 0 | D167: 0 | E167: 0 | F167: 0 | G167: 0 | H167: 0 | I167: 0
B168: Birikmiş Karlar/Zararlar | C168: 0 | D168: 0 | E168: 0 | F168: 0 | G168: 0 | H168: 0 | I168: 0
B169: Yatırım Teşvikleri | C169: 0 | D169: 0 | E169: 0 | F169: 0 | G169: 0 | H169: 0 | I169: 0
B170: Satılmaya Haz. Var. Üz. Gerçekleşmemiş Net Gelir | C170: 0 | D170: 0 | E170: 0 | F170: 0 | G170: 0 | H170: 0 | I170: 0
B171: Ana ortaklık hisse satış kar/zarar | C171: 0 | D171: 0 | E171: 0 | F171: 0 | G171: 0 | H171: 0 | I171: 0
B172: AZINLIK PAYLARI | C172: 0 | D172: 0 | E172: 0 | F172: 0 | G172: 0 | H172: 0 | I172: 0
B173: TOPLAM PASİFLER | C173: 207069865 | D173: 282060860 | E173: 379756095 | F173: 311431000 | G173: 356244000 | H173: 466032000 | I173: 489296000
B178: Gelir Tablosu | C178: 2013/12 | D178: 2014/12 | E178: 2015/12 | F178: 2016/12 | G178: 2017/12 | H178: 2018/12 | I178: 2019/03
B179: BRÜT SATIŞLAR | C179: 234935220 | D179: 278646040 | E179: 318651318 | F179: 344139000 | G179: 404805000 | H179: 487655000 | I179: 147513000
B180: Yurtiçi Satışlar | C180: 224920805 | D180: 265376983 | E180: 305577325 | F180: 330089000 | G180: 385646000 | H180: 456783000 | I180: 143417000
B181: Yurtdışı Satışlar | C181: 10014415 | D181: 13269057 | E181: 13073993 | F181: 14050000 | G181: 19159000 | H181: 30872000 | I181: 4096000
B182: Diğer Satışlar | C182: 0 | D182: 0 | E182: 0 | F182: 0 | G182: 0 | H182: 0 | I182: 0
B183: SATIŞLARDAN İNDİRİMLER (-) | C183: 48835312 | D183: 57298249 | E183: 67036629 | F183: 71851000 | G183: 82408000 | H183: 102540000 | I183: 38882000
B184: Satışdan İadeler (-) | C184: 0 | D184: 0 | E184: 0 | F184: 0 | G184: 0 | H184: 0 | I184: 0
B185: Satış İskontoları (-) | C185: 0 | D185: 57298249 | E185: 0 | F185: 0 | G185: 0 | H185: 0 | I185: 0
B186: Diğer İndirimler (-) | C186: 0 | D186: 0 | E186: 0 | F186: 0 | G186: 0 | H186: 0 | I186: 0
B187: ESAS FAALİYET GELİRLERİ | C187: 0 | D187: 0 | E187: 0 | F187: 0 | G187: 0 | H187: 0 | I187: 0
B188: SATIŞ GELİRLERİ | C188: 186099908 | D188: 221347791 | E188: 251614689 | F188: 272288000 | G188: 322397000 | H188: 385115000 | I188: 108631000
B189: FAİZ GELİRİ | C189: 0 | D189: 0 | E189: 0 | F189: 0 | G189: 0 | H189: 0 | I189: 0
B190: SATIŞLARIN MALİYETİ (-) | C190: 96103392 | D190: 111360312 | E190: 134540648 | F190: 142851000 | G190: 176818000 | H190: 210841000 | I190: 55886000
B191: FAİZ GİDERİ | C191: 0 | D191: 0 | E191: 0 | F191: 0 | G191: 0 | H191: 0 | I191: 0
B192: MUHTEMEL KREDİ ZARAR KARŞ. FİN.KİR. ALCK. KARŞ. VE FAKT. DEĞ. DÜŞ. KARŞ. | C192: 0 | D192: 0 | E192: 0 | F192: 0 | G192: 0 | H192: 0 | I192: 0
B193: HİZMET GELİRLERİ | C193: 0 | D193: 0 | E193: 0 | F193: 0 | G193: 0 | H193: 0 | I193: 0
B194: HİZMET GİDERLERİ (-) | C194: 0 | D194: 0 | E194: 0 | F194: 0 | G194: 0 | H194: 0 | I194: 0
B195: KAMBİYO KARI/ZARARI | C195: 0 | D195: 0 | E195: 0 | F195: 0 | G195: 0 | H195: 0 | I195: 0
B196: SERMAYE PİYASASI İŞLEM KARI/ZARARI | C196: 0 | D196: 0 | E196: 0 | F196: 0 | G196: 0 | H196: 0 | I196: 0
B197: ESAS FAALİYETLERDEN DİĞER GİDER/GELİR | C197: 0 | D197: 0 | E197: 0 | F197: 0 | G197: 0 | H197: 0 | I197: 0
B198: FAİZ, ÜCRET, PRİM, KOMİSYON VE DİĞER GELİRLER | C198: 0 | D198: 0 | E198: 0 | F198: 0 | G198: 0 | H198: 0 | I198: 0
B199: Kambiyo Gelirleri | C199: 0 | D199: 0 | E199: 0 | F199: 0 | G199: 0 | H199: 0 | I199: 0
B200: Faiz Gelirleri | C200: 0 | D200: 0 | E200: 0 | F200: 0 | G200: 0 | H200: 0 | I200: 0
B201: Kar Payı Gelirleri | C201: 0 | D201: 0 | E201: 0 | F201: 0 | G201: 0 | H201: 0 | I201: 0
B202: Türev Finansal İşlemlerden Kazanç | C202: 0 | D202: 0 | E202: 0 | F202: 0 | G202: 0 | H202: 0 | I202: 0
B203: Portföy İşletmeciliği Faaliyetinden Elde Edilen Gelir | C203: 0 | D203: 0 | E203: 0 | F203: 0 | G203: 0 | H203: 0 | I203: 0
B204: Sigortacılık Hizmetlerinden Elde Edilen Gelir | C204: 0 | D204: 0 | E204: 0 | F204: 0 | G204: 0 | H204: 0 | I204: 0
... 135 more rows

Sheet ADESE (hidden)
A1: ADESE
B2: BİLANÇO | C2: 2013/12 | D2: 2014/12 | E2: 2015/12 | F2: 2016/12 | G2: 2017/12 | H2: 2018/12 | I2: 2019/03
B3: DÖNEN VARLIKLAR | C3: 226317354 | D3: 286090897 | E3: 309756162 | F3: 317549733 | G3: 326175132 | H3: 300491906 | I3: 407290314
B4: Hazır Değerler | C4: 15780050 | D4: 15327997 | E4: 13558230 | F4: 16415860 | G4: 14734806 | H4: 7324951 | I4: 7246286
B5: Gayrimenkul Projeleri Kapsamında Açılan Nakit Hesapları | C5: 0 | D5: 0 | E5: 0 | F5: 0 | G5: 0 | H5: 0 | I5: 0
B6: Finansal Yatırımlar | C6: 0 | D6: 0 | E6: 0 | F6: 0 | G6: 0 | H6: 0 | I6: 0
B7: Menkul Kıymetler | C7: 0 | D7: 0 | E7: 0 | F7: 0 | G7: 0 | H7: 0 | I7: 0
B8: Türkiye Cumhuriyet Merkez Bankası Hesabı | C8: 0 | D8: 0 | E8: 0 | F8: 0 | G8: 0 | H8: 0 | I8: 0
B9: Krediler ve Avanslar | C9: 0 | D9: 0 | E9: 0 | F9: 0 | G9: 0 | H9: 0 | I9: 0
B10: Faktoring alacakları (net) | C10: 0 | D10: 0 | E10: 0 | F10: 0 | G10: 0 | H10: 0 | I10: 0
B11: Teminata Verilen Finansal Varlıklar | C11: 0 | D11: 0 | E11: 0 | F11: 0 | G11: 0 | H11: 0 | I11: 0
B12: Kısa Vadeli Ticari Alacaklar | C12: 24612513 | D12: 21146310 | E12: 34510026 | F12: 31514722 | G12: 27280451 | H12: 39078867 | I12: 37206239
B13: Finansal Kiralama Alacakları | C13: 0 | D13: 0 | E13: 0 | F13: 0 | G13: 0 | H13: 0 | I13: 0
B14: Finans Sektörü Faal. Alacaklar | C14: 0 | D14: 0 | E14: 0 | F14: 0 | G14: 0 | H14: 0 | I14: 0
B15: İlişkili Taraflardan Alacaklar | C15: 0 | D15: 0 | E15: 0 | F15: 0 | G15: 0 | H15: 0 | I15: 0
B16: Diğer Kısa Vadeli Alacaklar | C16: 43436787 | D16: 101684262 | E16: 131645939 | F16: 144197351 | G16: 149314201 | H16: 194692468 | I16: 315702212
B17: Canlı Varlıklar | C17: 0 | D17: 0 | E17: 0 | F17: 0 | G17: 0 | H17: 0 | I17: 0
B18: Kullanımı Kısıtlı Banka Bakiyeleri | C18: 0 | D18: 0 | E18: 0 | F18: 0 | G18: 0 | H18: 0 | I18: 0
B19: Stoklar | C19: 113410309 | D19: 122771881 | E19: 115471235 | F19: 111894302 | G19: 121377113 | H19: 54439956 | I19: 36665023
B20: Peşin Ödenen Kira Giderleri | C20: 0 | D20: 0 | E20: 0 | F20: 0 | G20: 0 | H20: 0 | I20: 0
B21: Müşteri Sözleşmelerinden Doğan Varlıklar | C21: 0 | D21: 0 | E21: 0 | F21: 0 | G21: 0 | H21: 0 | I21: 0
B22: İmtiyaz Sözleşmelerine İlişkin Finansal Varlıklar | C22: 0 | D22: 0 | E22: 0 | F22: 0 | G22: 0 | H22: 0 | I22: 0
B23: Türev Enstrümanlar | C23: 0 | D23: 0 | E23: 0 | F23: 0 | G23: 0 | H23: 0 | I23: 0
B24: Ertelenen Vergi Varlıkları | C24: 0 | D24: 0 | E24: 0 | F24: 0 | G24: 0 | H24: 0 | I24: 0
B25: Durdurulan faaliyetler ile ilgili varlıklar | C25: 0 | D25: 0 | E25: 0 | F25: 0 | G25: 0 | H25: 0 | I25: 0
B26: Peşin Ödenmiş Giderler | C26: 29018803 | D26: 25056937 | E26: 14518153 | F26: 11527194 | G26: 8326041 | H26: 4451403 | I26: 10355769
B27: Cari Dönem Vergisiyle İlgili Varlıklar | C27: 16552 | D27: 15531 | E27: 0 | F27: 23871 | G27: 413360 | H27: 19769 | I27: 0
B28: Nakit Dışı Serbest Kullanılabilir Teminatlar | C28: 0 | D28: 0 | E28: 0 | F28: 0 | G28: 0 | H28: 0 | I28: 0
B29: Diğer Dönen Varlıklar | C29: 42340 | D29: 87979 | E29: 52579 | F29: 1976433 | G29: 4729160 | H29: 484492 | I29: 114785
B30: Vadesine kadar elde tut. men. kıy. | C30: 0 | D30: 0 | E30: 0 | F30: 0 | G30: 0 | H30: 0 | I30: 0
B31: Satılmaya Hazır Finansal Varlıklar | C31: 0 | D31: 0 | E31: 0 | F31: 0 | G31: 0 | H31: 0 | I31: 0
B32: Alım Satım Amaçlı Menkul Kıymetler | C32: 0 | D32: 0 | E32: 0 | F32: 0 | G32: 0 | H32: 0 | I32: 0
B33: İş Ortaklıklarının Dönen Varlıklar İçindeki Payı | C33: 0 | D33: 0 | E33: 0 | F33: 0 | G33: 0 | H33: 0 | I33: 0
B34: Elden Çıkarılacak Faaliyetler ile İlgili Varlıklar | C34: 0 | D34: 0 | E34: 0 | F34: 0 | G34: 0 | H34: 0 | I34: 0
B35: Satım amaçlı elde tutulan maddi duran varlıklar | C35: 0 | D35: 0 | E35: 0 | F35: 0 | G35: 0 | H35: 0 | I35: 0
B36: Ortaklara Dağıtılmak Üzere Elde Tutulan Duran Varlıklar | C36: 0 | D36: 0 | E36: 0 | F36: 0 | G36: 0 | H36: 0 | I36: 0
B37: DURAN VARLIKLAR | C37: 435089159 | D37: 487983853 | E37: 553058132 | F37: 654618145 | G37: 802575479 | H37: 918042977 | I37: 954605748
B38: Menkul Kıymetler | C38: 0 | D38: 0 | E38: 0 | F38: 0 | G38: 0 | H38: 0 | I38: 0
B39: Krediler ve Avanslar | C39: 0 | D39: 0 | E39: 0 | F39: 0 | G39: 0 | H39: 0 | I39: 0
B40: Faktoring alacakları (net) | C40: 0 | D40: 0 | E40: 0 | F40: 0 | G40: 0 | H40: 0 | I40: 0
B41: Uzun Vadeli Ticari Alacaklar | C41: 134293 | D41: 0 | E41: 0 | F41: 0 | G41: 610703 | H41: 10525953 | I41: 8396960
B42: Finansal Kiralama Alacakları | C42: 0 | D42: 0 | E42: 0 | F42: 0 | G42: 0 | H42: 0 | I42: 0
B43: Finans Sektörü Faal. Alacaklar | C43: 0 | D43: 0 | E43: 0 | F43: 0 | G43: 0 | H43: 0 | I43: 0
B44: İlişkili Taraflardan Alacaklar | C44: 0 | D44: 0 | E44: 0 | F44: 0 | G44: 0 | H44: 0 | I44: 0
B45: Türev Enstrümanlar | C45: 0 | D45: 0 | E45: 0 | F45: 0 | G45: 0 | H45: 0 | I45: 0
B46: Diğer Uzun Vadeli Alacaklar | C46: 1173673 | D46: 1221815 | E46: 1207979 | F46: 1570686 | G46: 2290944 | H46: 3558823 | I46: 3461037
B47: Finansal Yatırımlar | C47: 6878127 | D47: 9171769 | E47: 8688303 | F47: 0 | G47: 0 | H47: 0 | I47: 0
B48: Özkaynak Yöntemiyle Değerlenen Yatırımlar | C48: 0 | D48: 0 | E48: 0 | F48: 0 | G48: 0 | H48: 0 | I48: 0
B49: Canlı Varlıklar | C49: 0 | D49: 0 | E49: 0 | F49: 0 | G49: 0 | H49: 0 | I49: 0
B50: İmtiyaz Sözleşmelerine İlişkin Finansal Varlıklar | C50: 0 | D50: 0 | E50: 0 | F50: 0 | G50: 0 | H50: 0 | I50: 0
B51: Stoklar | C51: 0 | D51: 0 | E51: 0 | F51: 0 | G51: 0 | H51: 0 | I51: 0
B52: Finansal Duran Varlıklar | C52: 0 | D52: 0 | E52: 0 | F52: 0 | G52: 0 | H52: 0 | I52: 0
B53: Pozitif/Negatif Şerefiye | C53: 0 | D53: 0 | E53: 0 | F53: 0 | G53: 0 | H53: 0 | I53: 0
B54: Yatırım Amaçlı Gayrimenkuller | C54: 245504782 | D54: 267605262 | E54: 336858617 | F54: 381664125 | G54: 473421718 | H54: 528561559 | I54: 530436020
B55: Proje Halindeki Yatırım Amaçlı Gayrimenkuller | C55: 0 | D55: 0 | E55: 0 | F55: 0 | G55: 0 | H55: 0 | I55: 0
B56: Alım Satım Amaçlı Gayrimenkuller (net) | C56: 0 | D56: 0 | E56: 0 | F56: 0 | G56: 0 | H56: 0 | I56: 0
B57: Maddi Duran Varlıklar | C57: 179952430 | D57: 207633085 | E57: 200598126 | F57: 203933816 | G57: 256327914 | H57: 264235317 | I57: 260340305
B58: Kullanım Hakkı Varlıkları | C58: 0 | D58: 0 | E58: 0 | F58: 0 | G58: 0 | H58: 0 | I58: 61264306
B59: Maddi Olmayan Duran Varlıklar | C59: 538227 | D59: 182420 | E59: 192794 | F59: 446131 | G59: 508892 | H59: 14129330 | I59: 13884042
B60: Müşteri Sözleşmelerinden Doğan Varlıklar | C60: 0 | D60: 0 | E60: 0 | F60: 0 | G60: 0 | H60: 0 | I60: 0
B61: Ertelenen Vergi Varlıkları | C61: 0 | D61: 158027 | E61: 3383881 | F61: 3585995 | G61: 3827658 | H61: 20303242 | I61: 182141
B62: Cari Dönem Vergisiyle İlgili Duran Varlıklar | C62: 0 | D62: 0 | E62: 0 | F62: 0 | G62: 0 | H62: 0 | I62: 0
B63: Nakit Dışı Serbest Kullanılabilir Teminatlar | C63: 0 | D63: 0 | E63: 0 | F63: 0 | G63: 0 | H63: 0 | I63: 0
B64: Peşin Ödenen Kira Giderleri | C64: 0 | D64: 0 | E64: 0 | F64: 0 | G64: 0 | H64: 0 | I64: 0
B65: Peşin Ödenmiş Giderler | C65: 907627 | D65: 2011475 | E65: 2128432 | F65: 56011783 | G65: 56321429 | H65: 74607501 | I65: 74296122
B66: Diğer Duran Varlıklar | C66: 0 | D66: 0 | E66: 0 | F66: 0 | G66: 0 | H66: 0 | I66: 0
B67: Vadesine kadar elde tut. men. kıy. | C67: 0 | D67: 0 | E67: 0 | F67: 0 | G67: 0 | H67: 0 | I67: 0
B68: Satılmaya Hazır Finansal Varlıklar | C68: 0 | D68: 0 | E68: 0 | F68: 0 | G68: 0 | H68: 0 | I68: 0
B69: İş Ortaklıklarının Duran Varlıklar İçindeki Payı | C69: 0 | D69: 0 | E69: 0 | F69: 7405609 | G69: 9266221 | H69: 2121252 | I69: 2344815
B70: Ana Ortaklık Dışı Paylar | C70: 0 | D70: 0 | E70: 0 | F70: 0 | G70: 0 | H70: 0 | I70: 0
B71: TOPLAM AKTİFLER | C71: 661406513 | D71: 774074750 | E71: 862814294 | F71: 972167878 | G71: 1128750611 | H71: 1218534883 | I71: 1361896062
B72: KISA VADELİ YÜKÜMLÜLÜKLER | C72: 204313566 | D72: 278268194 | E72: 262060044 | F72: 336117745 | G72: 388411147 | H72: 489579959 | I72: 607485639
B73: Finansal Borçlar | C73: 52467565 | D73: 43346868 | E73: 22342014 | F73: 46611027 | G73: 3882835 | H73: 29732575 | I73: 179043655
B74: Uzun Vadeli Finansal Borçların Kısa Vadeli Kısımları | C74: 17976083 | D74: 77934658 | E74: 62954821 | F74: 85796980 | G74: 112441853 | H74: 91604023 | I74: 87386565
B75: Mevduat | C75: 0 | D75: 0 | E75: 0 | F75: 0 | G75: 0 | H75: 0 | I75: 0
B76: Türev Araçlar | C76: 0 | D76: 0 | E76: 0 | F76: 0 | G76: 0 | H76: 0 | I76: 0
B77: Faktoring borçları | C77: 0 | D77: 0 | E77: 0 | F77: 0 | G77: 0 | H77: 0 | I77: 0
B78: Finansal Kiralama İşlemlerinden Borçlar | C78: 0 | D78: 0 | E78: 0 | F78: 0 | G78: 0 | H78: 0 | I78: 0
B79: Finans Sektörü Faaliyetlerinden Borçlar | C79: 0 | D79: 0 | E79: 0 | F79: 0 | G79: 0 | H79: 0 | I79: 0
B80: Sigorta Teknik Karşılığı | C80: 0 | D80: 0 | E80: 0 | F80: 0 | G80: 0 | H80: 0 | I80: 0
B81: Diğer Finansal Yükümlülükler | C81: 0 | D81: 0 | E81: 0 | F81: 0 | G81: 0 | H81: 0 | I81: 0
B82: Ticari Borçlar | C82: 113404169 | D82: 129599375 | E82: 149262809 | F82: 151151049 | G82: 167165359 | H82: 196974964 | I82: 170982248
B83: İlişkili Taraflara Borçlar | C83: 0 | D83: 0 | E83: 0 | F83: 0 | G83: 0 | H83: 0 | I83: 0
B84: Alınan Krediler | C84: 0 | D84: 0 | E84: 0 | F84: 0 | G84: 0 | H84: 0 | I84: 0
B85: Diğer Borçlar | C85: 9818787 | D85: 10730912 | E85: 11251700 | F85: 32627734 | G85: 88349769 | H85: 96840396 | I85: 91871340
B86: Alınan Avanslar | C86: 0 | D86: 0 | E86: 0 | F86: 0 | G86: 0 | H86: 0 | I86: 0
B87: Devlet Teşvik ve Yardımları | C87: 0 | D87: 0 | E87: 0 | F87: 0 | G87: 0 | H87: 0 | I87: 0
B88: Ertelenmiş Gelirler | C88: 1407356 | D88: 1582095 | E88: 3907728 | F88: 4092010 | G88: 2096918 | H88: 41010836 | I88: 38932865
B89: Cari Dönem Vergi Yükümlülüğü | C89: 28564 | D89: 0 | E89: 213 | F89: 744430 | G89: 8 | H89: 0 | I89: 0
B90: Cari Dönem Vergisi ile İlgili Borçlar | C90: 0 | D90: 1402822 | E90: 0 | F90: 0 | G90: 0 | H90: 0 | I90: 0
B91: Bloke Hesaplar | C91: 0 | D91: 0 | E91: 0 | F91: 0 | G91: 0 | H91: 0 | I91: 0
B92: Müşteri Sözleşmelerinden Doğan Yükümlülükler | C92: 0 | D92: 0 | E92: 0 | F92: 0 | G92: 0 | H92: 0 | I92: 0
B93: Özkaynak Yöntemiyle Değerlenen Yatırımlardan Yükümlülükler | C93: 0 | D93: 0 | E93: 0 | F93: 0 | G93: 0 | H93: 0 | I93: 0
B94: Borç ve Gider Karşılıkları | C94: 2049956 | D94: 7091098 | E94: 7126793 | F94: 8242350 | G94: 6810043 | H94: 17925199 | I94: 14754709
B95: Çalışanlara Sağlanan Faydalara İlişkin Karşılıklar | C95: 6957528 | D95: 6580366 | E95: 5213966 | F95: 6852165 | G95: 7503215 | H95: 15440853 | I95: 23501106
B96: Ertelenen Vergi Yükümlülüğü | C96: 0 | D96: 0 | E96: 0 | F96: 0 | G96: 0 | H96: 0 | I96: 0
B97: Durdurulan faaliyetler ile ilgili yükümlülükler | C97: 0 | D97: 0 | E97: 0 | F97: 0 | G97: 0 | H97: 0 | I97: 0
B98: Diğer Kısa Vadeli Borçlar | C98: 203558 | D98: 0 | E98: 0 | F98: 0 | G98: 161147 | H98: 51113 | I98: 1013151
B99: İş Ortaklıklarının Kısa Vadeli Yükümlülükler İçindeki Payı | C99: 0 | D99: 0 | E99: 0 | F99: 0 | G99: 0 | H99: 0 | I99: 0
B100: Elden Çıkarılacak Faaliyetler ile İlgili Yükümlülükler | C100: 0 | D100: 0 | E100: 0 | F100: 0 | G100: 0 | H100: 0 | I100: 0
B101: Ortaklara Dağıtılmak Üzere Elde Tutulan Varlık Gruplarına İlişkin Yükümlülükler | C101: 0 | D101: 0 | E101: 0 | F101: 0 | G101: 0 | H101: 0 | I101: 0
B102: UZUN VADELİ YÜKÜMLÜLÜKLER | C102: 87399976 | D102: 96068757 | E102: 156853562 | F102: 160726880 | G102: 177430710 | H102: 173267852 | I102: 221544673
B103: Mevduatlar | C103: 0 | D103: 0 | E103: 0 | F103: 0 | G103: 0 | H103: 0 | I103: 0
B104: Finansal Borçlar | C104: 21885234 | D104: 22629062 | E104: 69506864 | F104: 63011346 | G104: 59715394 | H104: 43236741 | I104: 111838911
B105: Faktoring borçları | C105: 0 | D105: 0 | E105: 0 | F105: 0 | G105: 0 | H105: 0 | I105: 0
B106: Finansal Kiralama İşlemlerinden Borçlar | C106: 0 | D106: 0 | E106: 0 | F106: 0 | G106: 0 | H106: 0 | I106: 0
B107: Finans Sektörü Faaliyetlerinden Borçlar | C107: 0 | D107: 0 | E107: 0 | F107: 0 | G107: 0 | H107: 0 | I107: 0
B108: Sigorta teknik karşılıkları | C108: 0 | D108: 0 | E108: 0 | F108: 0 | G108: 0 | H108: 0 | I108: 0
B109: Diğer Finansal Yükümlülükler | C109: 0 | D109: 0 | E109: 0 | F109: 0 | G109: 0 | H109: 0 | I109: 0
B110: Ticari Borçlar | C110: 0 | D110: 0 | E110: 0 | F110: 0 | G110: 0 | H110: 0 | I110: 0
B111: İlişkili Taraflara Borçlar | C111: 0 | D111: 0 | E111: 0 | F111: 0 | G111: 0 | H111: 0 | I111: 0
B112: Alınan Krediler | C112: 0 | D112: 0 | E112: 0 | F112: 0 | G112: 0 | H112: 0 | I112: 0
B113: Diğer Borçlar | C113: 0 | D113: 0 | E113: 0 | F113: 0 | G113: 0 | H113: 0 | I113: 0
B114: Müşteri Sözleşmelerinden Doğan Yükümlülükler | C114: 0 | D114: 0 | E114: 0 | F114: 0 | G114: 0 | H114: 0 | I114: 0
B115: Bloke Hesaplar | C115: 0 | D115: 0 | E115: 0 | F115: 0 | G115: 0 | H115: 0 | I115: 0
B116: Alınan Avanslar | C116: 0 | D116: 0 | E116: 0 | F116: 0 | G116: 0 | H116: 0 | I116: 0
B117: Çalışanlara Sağlanan Faydalar Kapsamında Borçlar | C117: 0 | D117: 0 | E117: 0 | F117: 0 | G117: 0 | H117: 0 | I117: 0
B118: Borç ve Gider Karşılıkları | C118: 5771410 | D118: 4011675 | E118: 5187624 | F118: 5839994 | G118: 6097406 | H118: 5098796 | I118: 4672976
B119: Türev Finansal Araçlardan Borçlar | C119: 0 | D119: 0 | E119: 0 | F119: 0 | G119: 0 | H119: 0 | I119: 0
B120: Cari Dönem Vergisiyle İlgili Borçlar | C120: 0 | D120: 0 | E120: 0 | F120: 0 | G120: 0 | H120: 0 | I120: 0
B121: Ertelenen Vergi Yükümlülüğü | C121: 59743332 | D121: 69428020 | E121: 82159074 | F121: 91875540 | G121: 111617910 | H121: 124932315 | I121: 105032786
B122: Devlet Teşvik ve Yardımları | C122: 0 | D122: 0 | E122: 0 | F122: 0 | G122: 0 | H122: 0 | I122: 0
B123: Ertelenmiş Gelirler | C123: 0 | D123: 0 | E123: 0 | F123: 0 | G123: 0 | H123: 0 | I123: 0
B124: Devam Eden Sözleşmeler Hakediş Bedelleri | C124: 0 | D124: 0 | E124: 0 | F124: 0 | G124: 0 | H124: 0 | I124: 0
B125: Pozitif/Negatif Şerefiye | C125: 0 | D125: 0 | E125: 0 | F125: 0 | G125: 0 | H125: 0 | I125: 0
B126: Diğer Uzun Vadeli Borçlar | C126: 0 | D126: 0 | E126: 0 | F126: 0 | G126: 0 | H126: 0 | I126: 0
B127: İş Ortaklıklarının Uzun Vadeli Yükümlülükler İçindeki Payı | C127: 0 | D127: 0 | E127: 0 | F127: 0 | G127: 0 | H127: 0 | I127: 0
B128: ÖZ SERMAYE (AZINLIK PAYI DAHİL) | C128: 369692971 | D128: 399737799 | E128: 443900688 | F128: 475323253 | G128: 562908754 | H128: 555687072 | I128: 532865750
B129: ANA ORTAKLIK DIŞI ÖZSERMAYE | C129: 76936 | D129: 18861 | E129: -102814 | F129: -117513 | G129: 34321 | H129: 34673 | I129: 34677
B130: Aile Üyeleri | C130: 0 | D130: 0 | E130: 0 | F130: 0 | G130: 0 | H130: 0 | I130: 0
B131: Diğerleri | C131: 0 | D131: 0 | E131: 0 | F131: 0 | G131: 0 | H131: 0 | I131: 0
B132: ÖZ SERMAYE (ANA ORTAKLIĞA AİT) | C132: 369616035 | D132: 399718938 | E132: 444003502 | F132: 475440766 | G132: 562874433 | H132: 555652399 | I132: 532831073
B133: Sermaye | C133: 30000000 | D133: 90000000 | E133: 90000000 | F133: 126000000 | G133: 126000000 | H133: 126000000 | I133: 126000000
B134: Ödenmeyen Sermaye(-) | C134: 0 | D134: 0 | E134: 0 | F134: 0 | G134: 0 | H134: 0 | I134: 0
B135: Karşılıklı İştirak Sermaye Düzeltmesi | C135: 0 | D135: 0 | E135: 0 | F135: 0 | G135: 0 | H135: 0 | I135: 0
B136: Paylara İlişkin Primler/İskontolar | C136: 56754362 | D136: 0 | E136: 0 | F136: 0 | G136: 0 | H136: 0 | I136: 0
B137: İşletmenin Geri Satın Alınan Kendi Hisseleri | C137: 0 | D137: 0 | E137: 0 | F137: 0 | G137: 0 | H137: 0 | I137: 0
B138: İşletmenin Geri Alınan Kendi Hisse Senetlerinin Satışından Doğan Kar | C138: 0 | D138: 0 | E138: 0 | F138: 0 | G138: 0 | H138: 0 | I138: 0
B139: Sermaye Avansı | C139: 0 | D139: 0 | E139: 0 | F139: 0 | G139: 0 | H139: 0 | I139: 0
B140: Kar veya Zararda Yeniden Sınıflandırılmayacak Birikmiş Diğer Kapsamlı Gel. veya Gid. | C140: 190238305 | D140: 201806756 | E140: 194798810 | F140: 195211309 | G140: 237199963 | H140: 248129969 | I140: 247421176
B141: Kar veya Zararda Yeniden Sınıflandırılacak Birikmiş Diğer Kapsamlı Gelir. veya Gid. | C141: 0 | D141: 0 | E141: -180022 | F141: -1257849 | G141: 663866 | H141: -3258952 | I141: -3010541
B142: Sermaye Yedekleri | C142: 56754362 | D142: 0 | E142: 0 | F142: 0 | G142: 0 | H142: 0 | I142: 0
B143: Sermaye Taahhütleri (-) | C143: 0 | D143: 0 | E143: 0 | F143: 0 | G143: 0 | H143: 0 | I143: 0
B144: Katkı sermaye | C144: 0 | D144: 0 | E144: 0 | F144: 0 | G144: 0 | H144: 0 | I144: 0
B145: Azınlık Hisseleri Satış Opsiyonu Değerleme Fonu | C145: 0 | D145: 0 | E145: 0 | F145: 0 | G145: 0 | H145: 0 | I145: 0
B146: Emisyon Primi | C146: 0 | D146: 0 | E146: 0 | F146: 0 | G146: 0 | H146: 0 | I146: 0
B147: Yeniden Değerleme Artışı | C147: 190238305 | D147: 201806756 | E147: 194618788 | F147: 193953460 | G147: 237863829 | H147: 244871017 | I147: 244410635
B148: Kar Yedekleri | C148: 0 | D148: 0 | E148: 0 | F148: 0 | G148: 0 | H148: 0 | I148: 500000
B149: Dağıtılmamış Kar | C149: 0 | D149: 0 | E149: 0 | F149: 0 | G149: 0 | H149: 0 | I149: 0
B150: Sermaye artırımı ile ilgili masraflar | C150: 0 | D150: 0 | E150: 0 | F150: 0 | G150: 0 | H150: 0 | I150: 0
B151: Nakit Akım Koruması ile İlgili Birikmiş Kar | C151: 0 | D151: 0 | E151: 0 | F151: 0 | G151: 0 | H151: 0 | I151: 0
B152: Karşılıklı İştirak Serm. Düzeltmesinin Nom. Tut. Aşan Kısım | C152: 0 | D152: 0 | E152: 0 | F152: 0 | G152: 0 | H152: 0 | I152: 0
B153: Finansal Yatırımlar Değer Artış Fonu | C153: 0 | D153: 0 | E153: 0 | F153: 0 | G153: 0 | H153: 0 | I153: 0
B154: Diğer Özkaynak Payları | C154: 0 | D154: 0 | E154: 0 | F154: 0 | G154: 0 | H154: 0 | I154: 0
B155: Diğer Yedekler | C155: 0 | D155: 0 | E155: 0 | F155: 0 | G155: 0 | H155: 0 | I155: 0
B156: Net Dönem Karı | C156: 17402454 | D156: 18534453 | E156: 51325425 | F156: 31671613 | G156: 43922966 | H156: 0 | I156: 0
B157: Dönem Zararı (-) | C157: 0 | D157: 0 | E157: 0 | F157: 0 | G157: 0 | H157: 15784185 | I157: 22471788
B158: Geçmiş Yıl Karları | C158: 52823095 | D158: 70225548 | E158: 88907108 | F158: 119427849 | G158: 150605549 | H158: 196083478 | I158: 179910137
B159: Net Dön. Kar. Ser. Hes. Ed. Tran. Ed. M. Dur. V. Sa. Karı | C159: 0 | D159: 0 | E159: 0 | F159: 0 | G159: 0 | H159: 0 | I159: 0
B160: Geçmiş Yıl Zararları (-) | C160: 0 | D160: 0 | E160: 0 | F160: 0 | G160: 0 | H160: 0 | I160: 0
B161: Yabancı Para Çevrim Farkları | C161: 0 | D161: 0 | E161: 0 | F161: 0 | G161: 0 | H161: 0 | I161: 0
B162: Kardan Ayrılan Kısıtlanmış Yedekler | C162: 4387844 | D162: 4387844 | E162: 4387844 | F162: 4387844 | G162: 4482089 | H162: 4482089 | I162: 4482089
B163: Kardan Ayrılan Kısıtlanmış Yedekler (27) | C163: 0 | D163: 0 | E163: 0 | F163: 0 | G163: 0 | H163: 0 | I163: 0
B164: Zarar Telafi Fonu | C164: 0 | D164: 0 | E164: 0 | F164: 0 | G164: 0 | H164: 0 | I164: 0
B165: Özsermaye Enf. Düz. Farkları | C165: 18009975 | D165: 14764337 | E165: 14764337 | F165: 0 | G165: 0 | H165: 0 | I165: 0
B166: Sermaye Birleşme Fonu | C166: 0 | D166: 0 | E166: 0 | F166: 0 | G166: 0 | H166: 0 | I166: 0
B167: İlave Ödenmiş Sermaye | C167: 0 | D167: 0 | E167: 0 | F167: 0 | G167: 0 | H167: 0 | I167: 0
B168: Birikmiş Karlar/Zararlar | C168: 0 | D168: 0 | E168: 0 | F168: 0 | G168: 0 | H168: 0 | I168: 0
B169: Yatırım Teşvikleri | C169: 0 | D169: 0 | E169: 0 | F169: 0 | G169: 0 | H169: 0 | I169: 0
B170: Satılmaya Haz. Var. Üz. Gerçekleşmemiş Net Gelir | C170: 0 | D170: 0 | E170: 0 | F170: 0 | G170: 0 | H170: 0 | I170: 0
B171: Ana ortaklık hisse satış kar/zarar | C171: 0 | D171: 0 | E171: 0 | F171: 0 | G171: 0 | H171: 0 | I171: 0
B172: AZINLIK PAYLARI | C172: 0 | D172: 0 | E172: 0 | F172: 0 | G172: 0 | H172: 0 | I172: 0
B173: TOPLAM PASİFLER | C173: 661406513 | D173: 774074750 | E173: 862814294 | F173: 972167878 | G173: 1128750611 | H173: 1218534883 | I173: 1361896062
B178: Gelir Tablosu | C178: 2013/12 | D178: 2014/12 | E178: 2015/12 | F178: 2016/12 | G178: 2017/12 | H178: 2018/12 | I178: 2019/03
B179: BRÜT SATIŞLAR | C179: 591617610 | D179: 612589217 | E179: 646848864 | F179: 0 | G179: 696868885 | H179: 553961592 | I179: 0
B180: Yurtiçi Satışlar | C180: 591566606 | D180: 612552428 | E180: 646816676 | F180: 0 | G180: 670173939 | H180: 524587188 | I180: 0
B181: Yurtdışı Satışlar | C181: 0 | D181: 0 | E181: 0 | F181: 0 | G181: 0 | H181: 0 | I181: 0
B182: Diğer Satışlar | C182: 51004 | D182: 36789 | E182: 32188 | F182: 0 | G182: 26694946 | H182: 29374404 | I182: 0
B183: SATIŞLARDAN İNDİRİMLER (-) | C183: 3111479 | D183: 3323979 | E183: 3957637 | F183: 0 | G183: 3368286 | H183: 3920414 | I183: 0
B184: Satışdan İadeler (-) | C184: 0 | D184: 0 | E184: 0 | F184: 0 | G184: 0 | H184: 0 | I184: 0
B185: Satış İskontoları (-) | C185: 0 | D185: 3323979 | E185: 3957637 | F185: 0 | G185: 3368286 | H185: 3920414 | I185: 0
B186: Diğer İndirimler (-) | C186: 0 | D186: 0 | E186: 0 | F186: 0 | G186: 0 | H186: 0 | I186: 0
B187: ESAS FAALİYET GELİRLERİ | C187: 0 | D187: 0 | E187: 0 | F187: 0 | G187: 0 | H187: 0 | I187: 0
B188: SATIŞ GELİRLERİ | C188: 588506131 | D188: 609265238 | E188: 642891227 | F188: 649314128 | G188: 693500599 | H188: 550041178 | I188: 51483917
B189: FAİZ GELİRİ | C189: 0 | D189: 0 | E189: 0 | F189: 0 | G189: 0 | H189: 0 | I189: 0
B190: SATIŞLARIN MALİYETİ (-) | C190: 463201530 | D190: 480244839 | E190: 496632738 | F190: 498627842 | G190: 533704343 | H190: 434622398 | I190: 40377204
B191: FAİZ GİDERİ | C191: 0 | D191: 0 | E191: 0 | F191: 0 | G191: 0 | H191: 0 | I191: 0
B192: MUHTEMEL KREDİ ZARAR KARŞ. FİN.KİR. ALCK. KARŞ. VE FAKT. DEĞ. DÜŞ. KARŞ. | C192: 0 | D192: 0 | E192: 0 | F192: 0 | G192: 0 | H192: 0 | I192: 0
B193: HİZMET GELİRLERİ | C193: 0 | D193: 0 | E193: 0 | F193: 0 | G193: 0 | H193: 0 | I193: 0
B194: HİZMET GİDERLERİ (-) | C194: 0 | D194: 0 | E194: 0 | F194: 0 | G194: 0 | H194: 0 | I194: 0
B195: KAMBİYO KARI/ZARARI | C195: 0 | D195: 0 | E195: 0 | F195: 0 | G195: 0 | H195: 0 | I195: 0
B196: SERMAYE PİYASASI İŞLEM KARI/ZARARI | C196: 0 | D196: 0 | E196: 0 | F196: 0 | G196: 0 | H196: 0 | I196: 0
B197: ESAS FAALİYETLERDEN DİĞER GİDER/GELİR | C197: 0 | D197: 0 | E197: 0 | F197: 0 | G197: 0 | H197: 0 | I197: 0
B198: FAİZ, ÜCRET, PRİM, KOMİSYON VE DİĞER GELİRLER | C198: 0 | D198: 0 | E198: 0 | F198: 0 | G198: 0 | H198: 0 | I198: 0
B199: Kambiyo Gelirleri | C199: 0 | D199: 0 | E199: 0 | F199: 0 | G199: 0 | H199: 0 | I199: 0
B200: Faiz Gelirleri | C200: 0 | D200: 0 | E200: 0 | F200: 0 | G200: 0 | H200: 0 | I200: 0
B201: Kar Payı Gelirleri | C201: 0 | D201: 0 | E201: 0 | F201: 0 | G201: 0 | H201: 0 | I201: 0
B202: Türev Finansal İşlemlerden Kazanç | C202: 0 | D202: 0 | E202: 0 | F202: 0 | G202: 0 | H202: 0 | I202: 0
B203: Portföy İşletmeciliği Faaliyetinden Elde Edilen Gelir | C203: 0 | D203: 0 | E203: 0 | F203: 0 | G203: 0 | H203: 0 | I203: 0
B204: Sigortacılık Hizmetlerinden Elde Edilen Gelir | C204: 0 | D204: 0 | E204: 0 | F204: 0 | G204: 0 | H204: 0 | I204: 0
... 135 more rows

Sheet AFYON (hidden)
A1: AFYON
B2: BİLANÇO | C2: 2013/12 | D2: 2014/12 | E2: 2015/12 | F2: 2016/12 | G2: 2017/12 | H2: 2018/12 | I2: 2019/03
B3: DÖNEN VARLIKLAR | C3: 23352672 | D3: 38484470 | E3: 194190624 | F3: 35638796 | G3: 188133038 | H3: 86051834 | I3: 76976820
B4: Hazır Değerler | C4: 3362740 | D4: 12688794 | E4: 164939002 | F4: 522924 | G4: 65247953 | H4: 18748857 | I4: 10679807
B5: Gayrimenkul Projeleri Kapsamında Açılan Nakit Hesapları | C5: 0 | D5: 0 | E5: 0 | F5: 0 | G5: 0 | H5: 0 | I5: 0
B6: Finansal Yatırımlar | C6: 0 | D6: 0 | E6: 0 | F6: 0 | G6: 0 | H6: 0 | I6: 0
B7: Menkul Kıymetler | C7: 0 | D7: 0 | E7: 0 | F7: 0 | G7: 0 | H7: 0 | I7: 0
B8: Türkiye Cumhuriyet Merkez Bankası Hesabı | C8: 0 | D8: 0 | E8: 0 | F8: 0 | G8: 0 | H8: 0 | I8: 0
B9: Krediler ve Avanslar | C9: 0 | D9: 0 | E9: 0 | F9: 0 | G9: 0 | H9: 0 | I9: 0
B10: Faktoring alacakları (net) | C10: 0 | D10: 0 | E10: 0 | F10: 0 | G10: 0 | H10: 0 | I10: 0
B11: Teminata Verilen Finansal Varlıklar | C11: 0 | D11: 0 | E11: 0 | F11: 0 | G11: 0 | H11: 0 | I11: 0
B12: Kısa Vadeli Ticari Alacaklar | C12: 12268704 | D12: 17521938 | E12: 14737557 | F12: 10046145 | G12: 75999997 | H12: 29849506 | I12: 17978083
B13: Finansal Kiralama Alacakları | C13: 0 | D13: 0 | E13: 0 | F13: 0 | G13: 0 | H13: 0 | I13: 0
B14: Finans Sektörü Faal. Alacaklar | C14: 0 | D14: 0 | E14: 0 | F14: 0 | G14: 0 | H14: 0 | I14: 0
B15: İlişkili Taraflardan Alacaklar | C15: 0 | D15: 0 | E15: 0 | F15: 0 | G15: 0 | H15: 0 | I15: 0
B16: Diğer Kısa Vadeli Alacaklar | C16: 0 | D16: 0 | E16: 0 | F16: 0 | G16: 18854342 | H16: 0 | I16: 0
B17: Canlı Varlıklar | C17: 0 | D17: 0 | E17: 0 | F17: 0 | G17: 0 | H17: 0 | I17: 0
B18: Kullanımı Kısıtlı Banka Bakiyeleri | C18: 0 | D18: 0 | E18: 0 | F18: 0 | G18: 0 | H18: 0 | I18: 0
B19: Stoklar | C19: 6863067 | D19: 7903446 | E19: 6913742 | F19: 8571141 | G19: 10954160 | H19: 16958481 | I19: 35577678
B20: Peşin Ödenen Kira Giderleri | C20: 0 | D20: 0 | E20: 0 | F20: 0 | G20: 0 | H20: 0 | I20: 0
B21: Müşteri Sözleşmelerinden Doğan Varlıklar | C21: 0 | D21: 0 | E21: 0 | F21: 0 | G21: 0 | H21: 0 | I21: 0
B22: İmtiyaz Sözleşmelerine İlişkin Finansal Varlıklar | C22: 0 | D22: 0 | E22: 0 | F22: 0 | G22: 0 | H22: 0 | I22: 0
B23: Türev Enstrümanlar | C23: 0 | D23: 0 | E23: 0 | F23: 0 | G23: 0 | H23: 0 | I23: 0
B24: Ertelenen Vergi Varlıkları | C24: 0 | D24: 0 | E24: 0 | F24: 0 | G24: 0 | H24: 0 | I24: 0
B25: Durdurulan faaliyetler ile ilgili varlıklar | C25: 0 | D25: 0 | E25: 0 | F25: 0 | G25: 0 | H25: 0 | I25: 0
B26: Peşin Ödenmiş Giderler | C26: 260128 | D26: 67069 | E26: 161922 | F26: 59671 | G26: 224880 | H26: 483099 | I26: 1464998
B27: Cari Dönem Vergisiyle İlgili Varlıklar | C27: 0 | D27: 0 | E27: 289944 | F27: 3158618 | G27: 2727361 | H27: 2166881 | I27: 912010
B28: Nakit Dışı Serbest Kullanılabilir Teminatlar | C28: 0 | D28: 0 | E28: 0 | F28: 0 | G28: 0 | H28: 0 | I28: 0
B29: Diğer Dönen Varlıklar | C29: 598033 | D29: 303223 | E29: 7148457 | F29: 13280297 | G29: 14026528 | H29: 17779677 | I29: 10298911
B30: Vadesine kadar elde tut. men. kıy. | C30: 0 | D30: 0 | E30: 0 | F30: 0 | G30: 0 | H30: 0 | I30: 0
B31: Satılmaya Hazır Finansal Varlıklar | C31: 0 | D31: 0 | E31: 0 | F31: 0 | G31: 0 | H31: 0 | I31: 0
B32: Alım Satım Amaçlı Menkul Kıymetler | C32: 0 | D32: 0 | E32: 0 | F32: 0 | G32: 0 | H32: 0 | I32: 0
B33: İş Ortaklıklarının Dönen Varlıklar İçindeki Payı | C33: 0 | D33: 0 | E33: 0 | F33: 0 | G33: 0 | H33: 0 | I33: 0
B34: Elden Çıkarılacak Faaliyetler ile İlgili Varlıklar | C34: 0 | D34: 0 | E34: 0 | F34: 0 | G34: 0 | H34: 0 | I34: 0
B35: Satım amaçlı elde tutulan maddi duran varlıklar | C35: 0 | D35: 0 | E35: 0 | F35: 0 | G35: 97817 | H35: 65333 | I35: 65333
B36: Ortaklara Dağıtılmak Üzere Elde Tutulan Duran Varlıklar | C36: 0 | D36: 0 | E36: 0 | F36: 0 | G36: 0 | H36: 0 | I36: 0
B37: DURAN VARLIKLAR | C37: 28265392 | D37: 32477270 | E37: 179229003 | F37: 553613623 | G37: 601060839 | H37: 575309062 | I37: 594900855
B38: Menkul Kıymetler | C38: 0 | D38: 0 | E38: 0 | F38: 0 | G38: 0 | H38: 0 | I38: 0
B39: Krediler ve Avanslar | C39: 0 | D39: 0 | E39: 0 | F39: 0 | G39: 0 | H39: 0 | I39: 0
B40: Faktoring alacakları (net) | C40: 0 | D40: 0 | E40: 0 | F40: 0 | G40: 0 | H40: 0 | I40: 0
B41: Uzun Vadeli Ticari Alacaklar | C41: 0 | D41: 0 | E41: 0 | F41: 0 | G41: 0 | H41: 0 | I41: 0
B42: Finansal Kiralama Alacakları | C42: 0 | D42: 0 | E42: 0 | F42: 0 | G42: 0 | H42: 0 | I42: 0
B43: Finans Sektörü Faal. Alacaklar | C43: 0 | D43: 0 | E43: 0 | F43: 0 | G43: 0 | H43: 0 | I43: 0
B44: İlişkili Taraflardan Alacaklar | C44: 0 | D44: 0 | E44: 0 | F44: 0 | G44: 0 | H44: 0 | I44: 0
B45: Türev Enstrümanlar | C45: 0 | D45: 0 | E45: 0 | F45: 0 | G45: 0 | H45: 0 | I45: 0
B46: Diğer Uzun Vadeli Alacaklar | C46: 190030 | D46: 206800 | E46: 206800 | F46: 155589 | G46: 155589 | H46: 94581 | I46: 94581
B47: Finansal Yatırımlar | C47: 0 | D47: 0 | E47: 0 | F47: 0 | G47: 0 | H47: 0 | I47: 0
B48: Özkaynak Yöntemiyle Değerlenen Yatırımlar | C48: 0 | D48: 0 | E48: 0 | F48: 0 | G48: 0 | H48: 0 | I48: 0
B49: Canlı Varlıklar | C49: 0 | D49: 0 | E49: 0 | F49: 0 | G49: 0 | H49: 0 | I49: 0
B50: İmtiyaz Sözleşmelerine İlişkin Finansal Varlıklar | C50: 0 | D50: 0 | E50: 0 | F50: 0 | G50: 0 | H50: 0 | I50: 0
B51: Stoklar | C51: 0 | D51: 0 | E51: 0 | F51: 0 | G51: 0 | H51: 0 | I51: 0
B52: Finansal Duran Varlıklar | C52: 0 | D52: 0 | E52: 0 | F52: 0 | G52: 0 | H52: 0 | I52: 0
B53: Pozitif/Negatif Şerefiye | C53: 0 | D53: 0 | E53: 0 | F53: 0 | G53: 0 | H53: 0 | I53: 0
B54: Yatırım Amaçlı Gayrimenkuller | C54: 0 | D54: 0 | E54: 0 | F54: 0 | G54: 0 | H54: 0 | I54: 0
B55: Proje Halindeki Yatırım Amaçlı Gayrimenkuller | C55: 0 | D55: 0 | E55: 0 | F55: 0 | G55: 0 | H55: 0 | I55: 0
B56: Alım Satım Amaçlı Gayrimenkuller (net) | C56: 0 | D56: 0 | E56: 0 | F56: 0 | G56: 0 | H56: 0 | I56: 0
B57: Maddi Duran Varlıklar | C57: 25412971 | D57: 24446808 | E57: 154292865 | F57: 516709178 | G57: 567257185 | H57: 542814527 | I57: 535515727
B58: Kullanım Hakkı Varlıkları | C58: 0 | D58: 0 | E58: 0 | F58: 0 | G58: 0 | H58: 0 | I58: 7502419
B59: Maddi Olmayan Duran Varlıklar | C59: 1096305 | D59: 1136712 | E59: 1039261 | F59: 944050 | G59: 1179267 | H59: 709250 | I59: 664250
B60: Müşteri Sözleşmelerinden Doğan Varlıklar | C60: 0 | D60: 0 | E60: 0 | F60: 0 | G60: 0 | H60: 0 | I60: 0
B61: Ertelenen Vergi Varlıkları | C61: 1536650 | D61: 313698 | E61: 780287 | F61: 2452409 | G61: 5510878 | H61: 17770608 | I61: 23926399
B62: Cari Dönem Vergisiyle İlgili Duran Varlıklar | C62: 0 | D62: 0 | E62: 0 | F62: 0 | G62: 0 | H62: 0 | I62: 0
B63: Nakit Dışı Serbest Kullanılabilir Teminatlar | C63: 0 | D63: 0 | E63: 0 | F63: 0 | G63: 0 | H63: 0 | I63: 0
B64: Peşin Ödenen Kira Giderleri | C64: 0 | D64: 0 | E64: 0 | F64: 0 | G64: 0 | H64: 0 | I64: 0
B65: Peşin Ödenmiş Giderler | C65: 29436 | D65: 6373252 | E65: 22909790 | F65: 3918055 | G65: 17191 | H65: 0 | I65: 0
B66: Diğer Duran Varlıklar | C66: 0 | D66: 0 | E66: 0 | F66: 29434342 | G66: 26940729 | H66: 13920096 | I66: 27197479
B67: Vadesine kadar elde tut. men. kıy. | C67: 0 | D67: 0 | E67: 0 | F67: 0 | G67: 0 | H67: 0 | I67: 0
B68: Satılmaya Hazır Finansal Varlıklar | C68: 0 | D68: 0 | E68: 0 | F68: 0 | G68: 0 | H68: 0 | I68: 0
B69: İş Ortaklıklarının Duran Varlıklar İçindeki Payı | C69: 0 | D69: 0 | E69: 0 | F69: 0 | G69: 0 | H69: 0 | I69: 0
B70: Ana Ortaklık Dışı Paylar | C70: 0 | D70: 0 | E70: 0 | F70: 0 | G70: 0 | H70: 0 | I70: 0
B71: TOPLAM AKTİFLER | C71: 51618064 | D71: 70961740 | E71: 373419627 | F71: 589252419 | G71: 789193877 | H71: 661360896 | I71: 671877675
B72: KISA VADELİ YÜKÜMLÜLÜKLER | C72: 8299666 | D72: 14573360 | E72: 39973424 | F72: 240735043 | G72: 337015628 | H72: 306179373 | I72: 271413904
B73: Finansal Borçlar | C73: 84582 | D73: 82785 | E73: 56128 | F73: 69794807 | G73: 117545370 | H73: 124629923 | I73: 52495366
B74: Uzun Vadeli Finansal Borçların Kısa Vadeli Kısımları | C74: 0 | D74: 0 | E74: 18731513 | F74: 136245598 | G74: 158903730 | H74: 161328341 | I74: 176104560
B75: Mevduat | C75: 0 | D75: 0 | E75: 0 | F75: 0 | G75: 0 | H75: 0 | I75: 0
B76: Türev Araçlar | C76: 0 | D76: 0 | E76: 0 | F76: 0 | G76: 0 | H76: 0 | I76: 0
B77: Faktoring borçları | C77: 0 | D77: 0 | E77: 0 | F77: 0 | G77: 0 | H77: 0 | I77: 0
B78: Finansal Kiralama İşlemlerinden Borçlar | C78: 0 | D78: 0 | E78: 0 | F78: 0 | G78: 0 | H78: 0 | I78: 0
B79: Finans Sektörü Faaliyetlerinden Borçlar | C79: 0 | D79: 0 | E79: 0 | F79: 0 | G79: 0 | H79: 0 | I79: 0
B80: Sigorta Teknik Karşılığı | C80: 0 | D80: 0 | E80: 0 | F80: 0 | G80: 0 | H80: 0 | I80: 0
B81: Diğer Finansal Yükümlülükler | C81: 0 | D81: 0 | E81: 0 | F81: 0 | G81: 0 | H81: 0 | I81: 0
B82: Ticari Borçlar | C82: 7494277 | D82: 12746097 | E82: 19085201 | F82: 30991391 | G82: 46751137 | H82: 18267360 | I82: 37346914
B83: İlişkili Taraflara Borçlar | C83: 0 | D83: 0 | E83: 0 | F83: 0 | G83: 0 | H83: 0 | I83: 0
B84: Alınan Krediler | C84: 0 | D84: 0 | E84: 0 | F84: 0 | G84: 0 | H84: 0 | I84: 0
B85: Diğer Borçlar | C85: 39191 | D85: 6509 | E85: 12781 | F85: 0 | G85: 946844 | H85: 95 | I85: 95
B86: Alınan Avanslar | C86: 0 | D86: 0 | E86: 0 | F86: 0 | G86: 0 | H86: 0 | I86: 0
B87: Devlet Teşvik ve Yardımları | C87: 0 | D87: 0 | E87: 0 | F87: 0 | G87: 0 | H87: 0 | I87: 0
B88: Ertelenmiş Gelirler | C88: 28841 | D88: 1816 | E88: 15881 | F88: 301141 | G88: 10323369 | H88: 372302 | I88: 692097
B89: Cari Dönem Vergi Yükümlülüğü | C89: 0 | D89: 732737 | E89: 0 | F89: 0 | G89: 0 | H89: 0 | I89: 0
B90: Cari Dönem Vergisi ile İlgili Borçlar | C90: 0 | D90: 0 | E90: 0 | F90: 0 | G90: 0 | H90: 0 | I90: 0
B91: Bloke Hesaplar | C91: 0 | D91: 0 | E91: 0 | F91: 0 | G91: 0 | H91: 0 | I91: 0
B92: Müşteri Sözleşmelerinden Doğan Yükümlülükler | C92: 0 | D92: 0 | E92: 0 | F92: 0 | G92: 0 | H92: 0 | I92: 0
B93: Özkaynak Yöntemiyle Değerlenen Yatırımlardan Yükümlülükler | C93: 0 | D93: 0 | E93: 0 | F93: 0 | G93: 0 | H93: 0 | I93: 0
B94: Borç ve Gider Karşılıkları | C94: 0 | D94: 0 | E94: 114664 | F94: 652900 | G94: 1080295 | H94: 689243 | I94: 2882242
B95: Çalışanlara Sağlanan Faydalara İlişkin Karşılıklar | C95: 370700 | D95: 429201 | E95: 467548 | F95: 1075153 | G95: 782639 | H95: 644862 | I95: 1122989
B96: Ertelenen Vergi Yükümlülüğü | C96: 0 | D96: 0 | E96: 0 | F96: 0 | G96: 0 | H96: 0 | I96: 0
B97: Durdurulan faaliyetler ile ilgili yükümlülükler | C97: 0 | D97: 0 | E97: 0 | F97: 0 | G97: 0 | H97: 0 | I97: 0
B98: Diğer Kısa Vadeli Borçlar | C98: 282075 | D98: 574215 | E98: 1489708 | F98: 1674053 | G98: 682244 | H98: 247247 | I98: 769641
B99: İş Ortaklıklarının Kısa Vadeli Yükümlülükler İçindeki Payı | C99: 0 | D99: 0 | E99: 0 | F99: 0 | G99: 0 | H99: 0 | I99: 0
B100: Elden Çıkarılacak Faaliyetler ile İlgili Yükümlülükler | C100: 0 | D100: 0 | E100: 0 | F100: 0 | G100: 0 | H100: 0 | I100: 0
B101: Ortaklara Dağıtılmak Üzere Elde Tutulan Varlık Gruplarına İlişkin Yükümlülükler | C101: 0 | D101: 0 | E101: 0 | F101: 0 | G101: 0 | H101: 0 | I101: 0
B102: UZUN VADELİ YÜKÜMLÜLÜKLER | C102: 2883693 | D102: 3062053 | E102: 168049759 | F102: 173677679 | G102: 223317368 | H102: 122467440 | I102: 182222003
B103: Mevduatlar | C103: 0 | D103: 0 | E103: 0 | F103: 0 | G103: 0 | H103: 0 | I103: 0
B104: Finansal Borçlar | C104: 0 | D104: 0 | E104: 164523352 | F104: 169909965 | G104: 219285066 | H104: 117901128 | I104: 177053941
B105: Faktoring borçları | C105: 0 | D105: 0 | E105: 0 | F105: 0 | G105: 0 | H105: 0 | I105: 0
B106: Finansal Kiralama İşlemlerinden Borçlar | C106: 0 | D106: 0 | E106: 0 | F106: 0 | G106: 0 | H106: 0 | I106: 0
B107: Finans Sektörü Faaliyetlerinden Borçlar | C107: 0 | D107: 0 | E107: 0 | F107: 0 | G107: 0 | H107: 0 | I107: 0
B108: Sigorta teknik karşılıkları | C108: 0 | D108: 0 | E108: 0 | F108: 0 | G108: 0 | H108: 0 | I108: 0
B109: Diğer Finansal Yükümlülükler | C109: 0 | D109: 0 | E109: 0 | F109: 0 | G109: 0 | H109: 0 | I109: 0
B110: Ticari Borçlar | C110: 0 | D110: 0 | E110: 0 | F110: 0 | G110: 0 | H110: 0 | I110: 0
B111: İlişkili Taraflara Borçlar | C111: 0 | D111: 0 | E111: 0 | F111: 0 | G111: 0 | H111: 0 | I111: 0
B112: Alınan Krediler | C112: 0 | D112: 0 | E112: 0 | F112: 0 | G112: 0 | H112: 0 | I112: 0
B113: Diğer Borçlar | C113: 0 | D113: 0 | E113: 0 | F113: 0 | G113: 0 | H113: 0 | I113: 0
B114: Müşteri Sözleşmelerinden Doğan Yükümlülükler | C114: 0 | D114: 0 | E114: 0 | F114: 0 | G114: 0 | H114: 0 | I114: 0
B115: Bloke Hesaplar | C115: 0 | D115: 0 | E115: 0 | F115: 0 | G115: 0 | H115: 0 | I115: 0
B116: Alınan Avanslar | C116: 0 | D116: 0 | E116: 0 | F116: 0 | G116: 0 | H116: 0 | I116: 0
B117: Çalışanlara Sağlanan Faydalar Kapsamında Borçlar | C117: 0 | D117: 0 | E117: 0 | F117: 0 | G117: 0 | H117: 0 | I117: 0
B118: Borç ve Gider Karşılıkları | C118: 2883693 | D118: 3062053 | E118: 3526407 | F118: 3767714 | G118: 4032302 | H118: 4566312 | I118: 5168062
B119: Türev Finansal Araçlardan Borçlar | C119: 0 | D119: 0 | E119: 0 | F119: 0 | G119: 0 | H119: 0 | I119: 0
B120: Cari Dönem Vergisiyle İlgili Borçlar | C120: 0 | D120: 0 | E120: 0 | F120: 0 | G120: 0 | H120: 0 | I120: 0
B121: Ertelenen Vergi Yükümlülüğü | C121: 0 | D121: 0 | E121: 0 | F121: 0 | G121: 0 | H121: 0 | I121: 0
B122: Devlet Teşvik ve Yardımları | C122: 0 | D122: 0 | E122: 0 | F122: 0 | G122: 0 | H122: 0 | I122: 0
B123: Ertelenmiş Gelirler | C123: 0 | D123: 0 | E123: 0 | F123: 0 | G123: 0 | H123: 0 | I123: 0
B124: Devam Eden Sözleşmeler Hakediş Bedelleri | C124: 0 | D124: 0 | E124: 0 | F124: 0 | G124: 0 | H124: 0 | I124: 0
B125: Pozitif/Negatif Şerefiye | C125: 0 | D125: 0 | E125: 0 | F125: 0 | G125: 0 | H125: 0 | I125: 0
B126: Diğer Uzun Vadeli Borçlar | C126: 0 | D126: 0 | E126: 0 | F126: 0 | G126: 0 | H126: 0 | I126: 0
B127: İş Ortaklıklarının Uzun Vadeli Yükümlülükler İçindeki Payı | C127: 0 | D127: 0 | E127: 0 | F127: 0 | G127: 0 | H127: 0 | I127: 0
B128: ÖZ SERMAYE (AZINLIK PAYI DAHİL) | C128: 40434705 | D128: 53326327 | E128: 165396444 | F128: 174839697 | G128: 228860881 | H128: 232714083 | I128: 218241768
B129: ANA ORTAKLIK DIŞI ÖZSERMAYE | C129: 0 | D129: 0 | E129: 0 | F129: 0 | G129: 0 | H129: 0 | I129: 0
B130: Aile Üyeleri | C130: 0 | D130: 0 | E130: 0 | F130: 0 | G130: 0 | H130: 0 | I130: 0
B131: Diğerleri | C131: 0 | D131: 0 | E131: 0 | F131: 0 | G131: 0 | H131: 0 | I131: 0
B132: ÖZ SERMAYE (ANA ORTAKLIĞA AİT) | C132: 40434705 | D132: 53326327 | E132: 165396444 | F132: 174839697 | G132: 228860881 | H132: 232714083 | I132: 218241768
B133: Sermaye | C133: 3000000 | D133: 3000000 | E133: 100000000 | F133: 100000000 | G133: 100000000 | H133: 100000000 | I133: 100000000
B134: Ödenmeyen Sermaye(-) | C134: 0 | D134: 0 | E134: 0 | F134: 0 | G134: 0 | H134: 0 | I134: 0
B135: Karşılıklı İştirak Sermaye Düzeltmesi | C135: 0 | D135: 0 | E135: 0 | F135: 0 | G135: 0 | H135: 0 | I135: 0
B136: Paylara İlişkin Primler/İskontolar | C136: 0 | D136: 0 | E136: 1069284 | F136: 1069284 | G136: 1069284 | H136: 1069284 | I136: 1069284
B137: İşletmenin Geri Satın Alınan Kendi Hisseleri | C137: 0 | D137: 0 | E137: 0 | F137: 0 | G137: 0 | H137: 0 | I137: 0
B138: İşletmenin Geri Alınan Kendi Hisse Senetlerinin Satışından Doğan Kar | C138: 0 | D138: 0 | E138: 0 | F138: 0 | G138: 0 | H138: 0 | I138: 0
B139: Sermaye Avansı | C139: 0 | D139: 0 | E139: 0 | F139: 0 | G139: 0 | H139: 0 | I139: 0
B140: Kar veya Zararda Yeniden Sınıflandırılmayacak Birikmiş Diğer Kapsamlı Gel. veya Gid. | C140: -896598 | D140: -977276 | E140: -1203522 | F140: -1362584 | G140: -1352726 | H140: -1422488 | I140: -1433384
B141: Kar veya Zararda Yeniden Sınıflandırılacak Birikmiş Diğer Kapsamlı Gelir. veya Gid. | C141: 0 | D141: 0 | E141: 0 | F141: 0 | G141: 0 | H141: 0 | I141: 0
B142: Sermaye Yedekleri | C142: 0 | D142: 0 | E142: 1069284 | F142: 1069284 | G142: 1069284 | H142: 1069284 | I142: 1069284
B143: Sermaye Taahhütleri (-) | C143: 0 | D143: 0 | E143: 0 | F143: 0 | G143: 0 | H143: 0 | I143: 0
B144: Katkı sermaye | C144: 0 | D144: 0 | E144: 0 | F144: 0 | G144: 0 | H144: 0 | I144: 0
B145: Azınlık Hisseleri Satış Opsiyonu Değerleme Fonu | C145: 0 | D145: 0 | E145: 0 | F145: 0 | G145: 0 | H145: 0 | I145: 0
B146: Emisyon Primi | C146: 0 | D146: 0 | E146: 0 | F146: 0 | G146: 0 | H146: 0 | I146: 0
B147: Yeniden Değerleme Artışı | C147: -896598 | D147: -977276 | E147: -1203522 | F147: -1362584 | G147: -1352726 | H147: -1422488 | I147: -1433384
B148: Kar Yedekleri | C148: 0 | D148: 0 | E148: 0 | F148: 0 | G148: 0 | H148: 0 | I148: 0
B149: Dağıtılmamış Kar | C149: 0 | D149: 0 | E149: 0 | F149: 0 | G149: 0 | H149: 0 | I149: 0
B150: Sermaye artırımı ile ilgili masraflar | C150: 0 | D150: 0 | E150: 0 | F150: 0 | G150: 0 | H150: 0 | I150: 0
B151: Nakit Akım Koruması ile İlgili Birikmiş Kar | C151: 0 | D151: 0 | E151: 0 | F151: 0 | G151: 0 | H151: 0 | I151: 0
B152: Karşılıklı İştirak Serm. Düzeltmesinin Nom. Tut. Aşan Kısım | C152: 0 | D152: 0 | E152: 0 | F152: 0 | G152: 0 | H152: 0 | I152: 0
B153: Finansal Yatırımlar Değer Artış Fonu | C153: 0 | D153: 0 | E153: 0 | F153: 0 | G153: 0 | H153: 0 | I153: 0
B154: Diğer Özkaynak Payları | C154: 0 | D154: 0 | E154: 0 | F154: 0 | G154: 0 | H154: 0 | I154: 0
B155: Diğer Yedekler | C155: 0 | D155: 0 | E155: 0 | F155: 0 | G155: 0 | H155: 0 | I155: 0
B156: Net Dönem Karı | C156: 2021623 | D156: 12972300 | E156: 14227079 | F156: 9602315 | G156: 54011326 | H156: 3922964 | I156: 0
B157: Dönem Zararı (-) | C157: 0 | D157: 0 | E157: 0 | F157: 0 | G157: 0 | H157: 0 | I157: 14461419
B158: Geçmiş Yıl Karları | C158: 18534814 | D158: 20556437 | E158: 33197305 | F158: 46631083 | G158: 55540539 | H158: 106092076 | I158: 110015040
B159: Net Dön. Kar. Ser. Hes. Ed. Tran. Ed. M. Dur. V. Sa. Karı | C159: 0 | D159: 0 | E159: 0 | F159: 0 | G159: 0 | H159: 0 | I159: 0
B160: Geçmiş Yıl Zararları (-) | C160: 0 | D160: 0 | E160: 0 | F160: 0 | G160: 0 | H160: 0 | I160: 0
B161: Yabancı Para Çevrim Farkları | C161: 0 | D161: 0 | E161: 0 | F161: 0 | G161: 0 | H161: 0 | I161: 0
B162: Kardan Ayrılan Kısıtlanmış Yedekler | C162: 1042788 | D162: 1042788 | E162: 1374220 | F162: 2167521 | G162: 2860380 | H162: 6320169 | I162: 6320169
B163: Kardan Ayrılan Kısıtlanmış Yedekler (27) | C163: 0 | D163: 0 | E163: 0 | F163: 0 | G163: 0 | H163: 0 | I163: 0
B164: Zarar Telafi Fonu | C164: 0 | D164: 0 | E164: 0 | F164: 0 | G164: 0 | H164: 0 | I164: 0
B165: Özsermaye Enf. Düz. Farkları | C165: 16732078 | D165: 16732078 | E165: 16732078 | F165: 16732078 | G165: 16732078 | H165: 16732078 | I165: 16732078
B166: Sermaye Birleşme Fonu | C166: 0 | D166: 0 | E166: 0 | F166: 0 | G166: 0 | H166: 0 | I166: 0
B167: İlave Ödenmiş Sermaye | C167: 0 | D167: 0 | E167: 0 | F167: 0 | G167: 0 | H167: 0 | I167: 0
B168: Birikmiş Karlar/Zararlar | C168: 0 | D168: 0 | E168: 0 | F168: 0 | G168: 0 | H168: 0 | I168: 0
B169: Yatırım Teşvikleri | C169: 0 | D169: 0 | E169: 0 | F169: 0 | G169: 0 | H169: 0 | I169: 0
B170: Satılmaya Haz. Var. Üz. Gerçekleşmemiş Net Gelir | C170: 0 | D170: 0 | E170: 0 | F170: 0 | G170: 0 | H170: 0 | I170: 0
B171: Ana ortaklık hisse satış kar/zarar | C171: 0 | D171: 0 | E171: 0 | F171: 0 | G171: 0 | H171: 0 | I171: 0
B172: AZINLIK PAYLARI | C172: 0 | D172: 0 | E172: 0 | F172: 0 | G172: 0 | H172: 0 | I172: 0
B173: TOPLAM PASİFLER | C173: 51618064 | D173: 70961740 | E173: 373419627 | F173: 589252419 | G173: 789193877 | H173: 661360896 | I173: 671877675
B178: Gelir Tablosu | C178: 2013/12 | D178: 2014/12 | E178: 2015/12 | F178: 2016/12 | G178: 2017/12 | H178: 2018/12 | I178: 2019/03
B179: BRÜT SATIŞLAR | C179: 57084892 | D179: 77508349 | E179: 65144618 | F179: 61541689 | G179: 169336446 | H179: 176252779 | I179: 26972443
B180: Yurtiçi Satışlar | C180: 57084892 | D180: 77508349 | E180: 65144618 | F180: 61541689 | G180: 169336446 | H180: 176252779 | I180: 15298934
B181: Yurtdışı Satışlar | C181: 0 | D181: 0 | E181: 0 | F181: 0 | G181: 0 | H181: 0 | I181: 11673509
B182: Diğer Satışlar | C182: 0 | D182: 0 | E182: 0 | F182: 0 | G182: 0 | H182: 0 | I182: 0
B183: SATIŞLARDAN İNDİRİMLER (-) | C183: 1386142 | D183: 472395 | E183: 684278 | F183: 714793 | G183: 1183348 | H183: 1053605 | I183: 254266
B184: Satışdan İadeler (-) | C184: 0 | D184: 0 | E184: 0 | F184: 0 | G184: 0 | H184: 0 | I184: 0
B185: Satış İskontoları (-) | C185: 1386142 | D185: 472395 | E185: 684278 | F185: 714793 | G185: 1183348 | H185: 1053605 | I185: 254266
B186: Diğer İndirimler (-) | C186: 0 | D186: 0 | E186: 0 | F186: 0 | G186: 0 | H186: 0 | I186: 0
B187: ESAS FAALİYET GELİRLERİ | C187: 0 | D187: 0 | E187: 0 | F187: 0 | G187: 0 | H187: 0 | I187: 0
B188: SATIŞ GELİRLERİ | C188: 55698750 | D188: 77035954 | E188: 64460340 | F188: 60826896 | G188: 168153098 | H188: 175199174 | I188: 26718177
B189: FAİZ GELİRİ | C189: 0 | D189: 0 | E189: 0 | F189: 0 | G189: 0 | H189: 0 | I189: 0
B190: SATIŞLARIN MALİYETİ (-) | C190: 50048546 | D190: 57430392 | E190: 49389930 | F190: 55188789 | G190: 133230098 | H190: 142690797 | I190: 31342916
B191: FAİZ GİDERİ | C191: 0 | D191: 0 | E191: 0 | F191: 0 | G191: 0 | H191: 0 | I191: 0
B192: MUHTEMEL KREDİ ZARAR KARŞ. FİN.KİR. ALCK. KARŞ. VE FAKT. DEĞ. DÜŞ. KARŞ. | C192: 0 | D192: 0 | E192: 0 | F192: 0 | G192: 0 | H192: 0 | I192: 0
B193: HİZMET GELİRLERİ | C193: 0 | D193: 0 | E193: 0 | F193: 0 | G193: 0 | H193: 0 | I193: 0
B194: HİZMET GİDERLERİ (-) | C194: 0 | D194: 0 | E194: 0 | F194: 0 | G194: 0 | H194: 0 | I194: 0
B195: KAMBİYO KARI/ZARARI | C195: 0 | D195: 0 | E195: 0 | F195: 0 | G195: 0 | H195: 0 | I195: 0
B196: SERMAYE PİYASASI İŞLEM KARI/ZARARI | C196: 0 | D196: 0 | E196: 0 | F196: 0 | G196: 0 | H196: 0 | I196: 0
B197: ESAS FAALİYETLERDEN DİĞER GİDER/GELİR | C197: 0 | D197: 0 | E197: 0 | F197: 0 | G197: 0 | H197: 0 | I197: 0
B198: FAİZ, ÜCRET, PRİM, KOMİSYON VE DİĞER GELİRLER | C198: 0 | D198: 0 | E198: 0 | F198: 0 | G198: 0 | H198: 0 | I198: 0
B199: Kambiyo Gelirleri | C199: 0 | D199: 0 | E199: 0 | F199: 0 | G199: 0 | H199: 0 | I199: 0
B200: Faiz Gelirleri | C200: 0 | D200: 0 | E200: 0 | F200: 0 | G200: 0 | H200: 0 | I200: 0
B201: Kar Payı Gelirleri | C201: 0 | D201: 0 | E201: 0 | F201: 0 | G201: 0 | H201: 0 | I201: 0
B202: Türev Finansal İşlemlerden Kazanç | C202: 0 | D202: 0 | E202: 0 | F202: 0 | G202: 0 | H202: 0 | I202: 0
B203: Portföy İşletmeciliği Faaliyetinden Elde Edilen Gelir | C203: 0 | D203: 0 | E203: 0 | F203: 0 | G203: 0 | H203: 0 | I203: 0
B204: Sigortacılık Hizmetlerinden Elde Edilen Gelir | C204: 0 | D204: 0 | E204: 0 | F204: 0 | G204: 0 | H204: 0 | I204: 0
... 135 more rows

Sheet AKENR (hidden)
A1: AKENR
B2: BİLANÇO | C2: 2013/12 | D2: 2014/12 | E2: 2015/12 | F2: 2016/12 | G2: 2017/12 | H2: 2018/12 | I2: 2019/03
B3: DÖNEN VARLIKLAR | C3: 398264030 | D3: 304508812 | E3: 932409518 | F3: 630295752 | G3: 172776667 | H3: 325456992 | I3: 290398287
B4: Hazır Değerler | C4: 242897506 | D4: 82229586 | E4: 476767228 | F4: 433746318 | G4: 45241003 | H4: 19319811 | I4: 74605967
B5: Gayrimenkul Projeleri Kapsamında Açılan Nakit Hesapları | C5: 0 | D5: 0 | E5: 0 | F5: 0 | G5: 0 | H5: 0 | I5: 0
B6: Finansal Yatırımlar | C6: 0 | D6: 0 | E6: 0 | F6: 0 | G6: 0 | H6: 0 | I6: 0
B7: Menkul Kıymetler | C7: 0 | D7: 0 | E7: 0 | F7: 0 | G7: 0 | H7: 0 | I7: 0
B8: Türkiye Cumhuriyet Merkez Bankası Hesabı | C8: 0 | D8: 0 | E8: 0 | F8: 0 | G8: 0 | H8: 0 | I8: 0
B9: Krediler ve Avanslar | C9: 0 | D9: 0 | E9: 0 | F9: 0 | G9: 0 | H9: 0 | I9: 0
B10: Faktoring alacakları (net) | C10: 0 | D10: 0 | E10: 0 | F10: 0 | G10: 0 | H10: 0 | I10: 0
B11: Teminata Verilen Finansal Varlıklar | C11: 0 | D11: 0 | E11: 0 | F11: 0 | G11: 0 | H11: 0 | I11: 0
B12: Kısa Vadeli Ticari Alacaklar | C12: 92060615 | D12: 125329514 | E12: 105827317 | F12: 141712737 | G12: 90301108 | H12: 172518893 | I12: 93279044
B13: Finansal Kiralama Alacakları | C13: 0 | D13: 0 | E13: 0 | F13: 0 | G13: 0 | H13: 0 | I13: 0
B14: Finans Sektörü Faal. Alacaklar | C14: 0 | D14: 0 | E14: 0 | F14: 0 | G14: 0 | H14: 0 | I14: 0
B15: İlişkili Taraflardan Alacaklar | C15: 0 | D15: 0 | E15: 0 | F15: 0 | G15: 0 | H15: 0 | I15: 0
B16: Diğer Kısa Vadeli Alacaklar | C16: 7386362 | D16: 7547465 | E16: 280985385 | F16: 1994853 | G16: 2395192 | H16: 13753685 | I16: 16194354
B17: Canlı Varlıklar | C17: 0 | D17: 0 | E17: 0 | F17: 0 | G17: 0 | H17: 0 | I17: 0
B18: Kullanımı Kısıtlı Banka Bakiyeleri | C18: 0 | D18: 0 | E18: 0 | F18: 0 | G18: 0 | H18: 0 | I18: 0
B19: Stoklar | C19: 15195862 | D19: 21839480 | E19: 17531489 | F19: 5669202 | G19: 1666918 | H19: 674399 | I19: 721351
B20: Peşin Ödenen Kira Giderleri | C20: 0 | D20: 0 | E20: 0 | F20: 0 | G20: 0 | H20: 0 | I20: 0
B21: Müşteri Sözleşmelerinden Doğan Varlıklar | C21: 0 | D21: 0 | E21: 0 | F21: 0 | G21: 0 | H21: 0 | I21: 0
B22: İmtiyaz Sözleşmelerine İlişkin Finansal Varlıklar | C22: 0 | D22: 0 | E22: 0 | F22: 0 | G22: 0 | H22: 0 | I22: 0
B23: Türev Enstrümanlar | C23: 4483255 | D23: 2420140 | E23: 859845 | F23: 0 | G23: 497923 | H23: 24345 | I23: 996200
B24: Ertelenen Vergi Varlıkları | C24: 0 | D24: 0 | E24: 0 | F24: 0 | G24: 0 | H24: 0 | I24: 0
B25: Durdurulan faaliyetler ile ilgili varlıklar | C25: 0 | D25: 0 | E25: 0 | F25: 0 | G25: 0 | H25: 0 | I25: 0
B26: Peşin Ödenmiş Giderler | C26: 12511677 | D26: 25627979 | E26: 14569525 | F26: 11743652 | G26: 9416948 | H26: 13571389 | I26: 15993596
B27: Cari Dönem Vergisiyle İlgili Varlıklar | C27: 5805264 | D27: 1042354 | E27: 2253044 | F27: 3193413 | G27: 2262033 | H27: 534121 | I27: 843875
B28: Nakit Dışı Serbest Kullanılabilir Teminatlar | C28: 0 | D28: 0 | E28: 0 | F28: 0 | G28: 0 | H28: 0 | I28: 0
B29: Diğer Dönen Varlıklar | C29: 17923489 | D29: 35423202 | E29: 14253927 | F29: 15271729 | G29: 20995542 | H29: 105060349 | I29: 86253925
B30: Vadesine kadar elde tut. men. kıy. | C30: 0 | D30: 0 | E30: 0 | F30: 0 | G30: 0 | H30: 0 | I30: 0
B31: Satılmaya Hazır Finansal Varlıklar | C31: 0 | D31: 0 | E31: 0 | F31: 0 | G31: 0 | H31: 0 | I31: 0
B32: Alım Satım Amaçlı Menkul Kıymetler | C32: 0 | D32: 0 | E32: 0 | F32: 0 | G32: 0 | H32: 0 | I32: 0
B33: İş Ortaklıklarının Dönen Varlıklar İçindeki Payı | C33: 0 | D33: 0 | E33: 0 | F33: 0 | G33: 0 | H33: 0 | I33: 0
B34: Elden Çıkarılacak Faaliyetler ile İlgili Varlıklar | C34: 0 | D34: 0 | E34: 0 | F34: 0 | G34: 0 | H34: 0 | I34: 0
B35: Satım amaçlı elde tutulan maddi duran varlıklar | C35: 0 | D35: 3049092 | E35: 19361758 | F35: 16963848 | G35: 0 | H35: 0 | I35: 1509975
B36: Ortaklara Dağıtılmak Üzere Elde Tutulan Duran Varlıklar | C36: 0 | D36: 0 | E36: 0 | F36: 0 | G36: 0 | H36: 0 | I36: 0
B37: DURAN VARLIKLAR | C37: 2803118614 | D37: 2939601902 | E37: 4398447784 | F37: 4414255790 | G37: 5706436935 | H37: 5379111710 | I37: 5300488530
B38: Menkul Kıymetler | C38: 0 | D38: 0 | E38: 0 | F38: 0 | G38: 0 | H38: 0 | I38: 0
B39: Krediler ve Avanslar | C39: 0 | D39: 0 | E39: 0 | F39: 0 | G39: 0 | H39: 0 | I39: 0
B40: Faktoring alacakları (net) | C40: 0 | D40: 0 | E40: 0 | F40: 0 | G40: 0 | H40: 0 | I40: 0
B41: Uzun Vadeli Ticari Alacaklar | C41: 17575895 | D41: 23172747 | E41: 18780940 | F41: 16624553 | G41: 8055071 | H41: 0 | I41: 0
B42: Finansal Kiralama Alacakları | C42: 0 | D42: 0 | E42: 0 | F42: 0 | G42: 0 | H42: 0 | I42: 0
B43: Finans Sektörü Faal. Alacaklar | C43: 0 | D43: 0 | E43: 0 | F43: 0 | G43: 0 | H43: 0 | I43: 0
B44: İlişkili Taraflardan Alacaklar | C44: 0 | D44: 0 | E44: 0 | F44: 0 | G44: 0 | H44: 0 | I44: 0
B45: Türev Enstrümanlar | C45: 0 | D45: 0 | E45: 0 | F45: 0 | G45: 0 | H45: 0 | I45: 0
B46: Diğer Uzun Vadeli Alacaklar | C46: 336094 | D46: 457937 | E46: 302948 | F46: 295247 | G46: 7325006 | H46: 939624 | I46: 969953
B47: Finansal Yatırımlar | C47: 1988942 | D47: 100000 | E47: 100000 | F47: 100000 | G47: 100000 | H47: 100000 | I47: 100000
B48: Özkaynak Yöntemiyle Değerlenen Yatırımlar | C48: 0 | D48: 0 | E48: 0 | F48: 0 | G48: 0 | H48: 0 | I48: 0
B49: Canlı Varlıklar | C49: 0 | D49: 0 | E49: 0 | F49: 0 | G49: 0 | H49: 0 | I49: 0
B50: İmtiyaz Sözleşmelerine İlişkin Finansal Varlıklar | C50: 0 | D50: 0 | E50: 0 | F50: 0 | G50: 0 | H50: 0 | I50: 0
B51: Stoklar | C51: 0 | D51: 25954366 | E51: 25954366 | F51: 13016604 | G51: 17154844 | H51: 18769298 | I51: 19329330
B52: Finansal Duran Varlıklar | C52: 0 | D52: 0 | E52: 0 | F52: 0 | G52: 0 | H52: 0 | I52: 0
B53: Pozitif/Negatif Şerefiye | C53: 0 | D53: 0 | E53: 0 | F53: 0 | G53: 0 | H53: 0 | I53: 0
B54: Yatırım Amaçlı Gayrimenkuller | C54: 0 | D54: 0 | E54: 0 | F54: 0 | G54: 0 | H54: 0 | I54: 0
B55: Proje Halindeki Yatırım Amaçlı Gayrimenkuller | C55: 0 | D55: 0 | E55: 0 | F55: 0 | G55: 0 | H55: 0 | I55: 0
B56: Alım Satım Amaçlı Gayrimenkuller (net) | C56: 0 | D56: 0 | E56: 0 | F56: 0 | G56: 0 | H56: 0 | I56: 0
B57: Maddi Duran Varlıklar | C57: 2392396882 | D57: 2498864172 | E57: 4049357799 | F57: 3974599720 | G57: 5474149740 | H57: 5227937915 | I57: 5165656573
B58: Kullanım Hakkı Varlıkları | C58: 0 | D58: 0 | E58: 0 | F58: 0 | G58: 0 | H58: 0 | I58: 4060633
B59: Maddi Olmayan Duran Varlıklar | C59: 121186496 | D59: 118567643 | E59: 115808714 | F59: 113364043 | G59: 113308159 | H59: 110933961 | I59: 110316286
B60: Müşteri Sözleşmelerinden Doğan Varlıklar | C60: 0 | D60: 0 | E60: 0 | F60: 0 | G60: 0 | H60: 0 | I60: 0
B61: Ertelenen Vergi Varlıkları | C61: 93346269 | D61: 114480523 | E61: 119312614 | F61: 212888977 | G61: 16795470 | H61: 741959 | I61: 21174
B62: Cari Dönem Vergisiyle İlgili Duran Varlıklar | C62: 0 | D62: 0 | E62: 0 | F62: 0 | G62: 0 | H62: 0 | I62: 0
B63: Nakit Dışı Serbest Kullanılabilir Teminatlar | C63: 0 | D63: 0 | E63: 0 | F63: 0 | G63: 0 | H63: 0 | I63: 0
B64: Peşin Ödenen Kira Giderleri | C64: 0 | D64: 0 | E64: 0 | F64: 0 | G64: 0 | H64: 0 | I64: 0
B65: Peşin Ödenmiş Giderler | C65: 52774780 | D65: 28075484 | E65: 8356882 | F65: 15193847 | G65: 1894505 | H65: 590860 | I65: 34581
B66: Diğer Duran Varlıklar | C66: 123513256 | D66: 129929030 | E66: 60473521 | F66: 68172799 | G66: 67654140 | H66: 19098093 | I66: 0
B67: Vadesine kadar elde tut. men. kıy. | C67: 0 | D67: 0 | E67: 0 | F67: 0 | G67: 0 | H67: 0 | I67: 0
B68: Satılmaya Hazır Finansal Varlıklar | C68: 0 | D68: 0 | E68: 0 | F68: 0 | G68: 0 | H68: 0 | I68: 0
B69: İş Ortaklıklarının Duran Varlıklar İçindeki Payı | C69: 0 | D69: 0 | E69: 0 | F69: 0 | G69: 0 | H69: 0 | I69: 0
B70: Ana Ortaklık Dışı Paylar | C70: 0 | D70: 0 | E70: 0 | F70: 0 | G70: 0 | H70: 0 | I70: 0
B71: TOPLAM AKTİFLER | C71: 3201382644 | D71: 3244110714 | E71: 5330857302 | F71: 5044551542 | G71: 5879213602 | H71: 5704568702 | I71: 5590886817
B72: KISA VADELİ YÜKÜMLÜLÜKLER | C72: 381928345 | D72: 613681536 | E72: 369775228 | F72: 565888847 | G72: 609525198 | H72: 1467969393 | I72: 1698802494
B73: Finansal Borçlar | C73: 4868 | D73: 31863964 | E73: 0 | F73: 0 | G73: 0 | H73: 236637968 | I73: 150240625
B74: Uzun Vadeli Finansal Borçların Kısa Vadeli Kısımları | C74: 206444281 | D74: 463146041 | E74: 190425177 | F74: 362916443 | G74: 382791156 | H74: 880492258 | I74: 1243516537
B75: Mevduat | C75: 0 | D75: 0 | E75: 0 | F75: 0 | G75: 0 | H75: 0 | I75: 0
B76: Türev Araçlar | C76: 23238520 | D76: 17472415 | E76: 12409975 | F76: 11669327 | G76: 15163211 | H76: 12919531 | I76: 7297710
B77: Faktoring borçları | C77: 0 | D77: 0 | E77: 0 | F77: 0 | G77: 0 | H77: 0 | I77: 0
B78: Finansal Kiralama İşlemlerinden Borçlar | C78: 0 | D78: 0 | E78: 0 | F78: 0 | G78: 0 | H78: 0 | I78: 0
B79: Finans Sektörü Faaliyetlerinden Borçlar | C79: 0 | D79: 0 | E79: 0 | F79: 0 | G79: 0 | H79: 0 | I79: 0
B80: Sigorta Teknik Karşılığı | C80: 0 | D80: 0 | E80: 0 | F80: 0 | G80: 0 | H80: 0 | I80: 0
B81: Diğer Finansal Yükümlülükler | C81: 0 | D81: 0 | E81: 0 | F81: 0 | G81: 0 | H81: 0 | I81: 0
B82: Ticari Borçlar | C82: 119265819 | D82: 77093589 | E82: 136168572 | F82: 166639823 | G82: 187880851 | H82: 313211446 | I82: 273835854
B83: İlişkili Taraflara Borçlar | C83: 0 | D83: 0 | E83: 0 | F83: 0 | G83: 0 | H83: 0 | I83: 0
B84: Alınan Krediler | C84: 0 | D84: 0 | E84: 0 | F84: 0 | G84: 0 | H84: 0 | I84: 0
B85: Diğer Borçlar | C85: 15654843 | D85: 4256991 | E85: 2917414 | F85: 4014232 | G85: 1770447 | H85: 2341912 | I85: 1611152
B86: Alınan Avanslar | C86: 0 | D86: 0 | E86: 0 | F86: 0 | G86: 0 | H86: 0 | I86: 0
B87: Devlet Teşvik ve Yardımları | C87: 0 | D87: 0 | E87: 0 | F87: 0 | G87: 0 | H87: 0 | I87: 0
B88: Ertelenmiş Gelirler | C88: 1809354 | D88: 5268242 | E88: 1211114 | F88: 2196463 | G88: 0 | H88: 0 | I88: 0
B89: Cari Dönem Vergi Yükümlülüğü | C89: 498855 | D89: 229809 | E89: 249580 | F89: 505297 | G89: 568374 | H89: 107071 | I89: 50058
B90: Cari Dönem Vergisi ile İlgili Borçlar | C90: 0 | D90: 0 | E90: 0 | F90: 0 | G90: 0 | H90: 0 | I90: 0
B91: Bloke Hesaplar | C91: 0 | D91: 0 | E91: 0 | F91: 0 | G91: 0 | H91: 0 | I91: 0
B92: Müşteri Sözleşmelerinden Doğan Yükümlülükler | C92: 0 | D92: 0 | E92: 0 | F92: 0 | G92: 0 | H92: 0 | I92: 0
B93: Özkaynak Yöntemiyle Değerlenen Yatırımlardan Yükümlülükler | C93: 0 | D93: 0 | E93: 0 | F93: 0 | G93: 0 | H93: 0 | I93: 0
B94: Borç ve Gider Karşılıkları | C94: 13883740 | D94: 13868718 | E94: 25872329 | F94: 17006183 | G94: 20415977 | H94: 21678205 | I94: 20616952
B95: Çalışanlara Sağlanan Faydalara İlişkin Karşılıklar | C95: 1128065 | D95: 481767 | E95: 521067 | F95: 941079 | G95: 935182 | H95: 581002 | I95: 1633606
B96: Ertelenen Vergi Yükümlülüğü | C96: 0 | D96: 0 | E96: 0 | F96: 0 | G96: 0 | H96: 0 | I96: 0
B97: Durdurulan faaliyetler ile ilgili yükümlülükler | C97: 0 | D97: 0 | E97: 0 | F97: 0 | G97: 0 | H97: 0 | I97: 0
B98: Diğer Kısa Vadeli Borçlar | C98: 0 | D98: 0 | E98: 0 | F98: 0 | G98: 0 | H98: 0 | I98: 0
B99: İş Ortaklıklarının Kısa Vadeli Yükümlülükler İçindeki Payı | C99: 0 | D99: 0 | E99: 0 | F99: 0 | G99: 0 | H99: 0 | I99: 0
B100: Elden Çıkarılacak Faaliyetler ile İlgili Yükümlülükler | C100: 0 | D100: 0 | E100: 0 | F100: 0 | G100: 0 | H100: 0 | I100: 0
B101: Ortaklara Dağıtılmak Üzere Elde Tutulan Varlık Gruplarına İlişkin Yükümlülükler | C101: 0 | D101: 0 | E101: 0 | F101: 0 | G101: 0 | H101: 0 | I101: 0
B102: UZUN VADELİ YÜKÜMLÜLÜKLER | C102: 1991426717 | D102: 2122337791 | E102: 3325967763 | F102: 3378484021 | G102: 3401255268 | H102: 3776034316 | I102: 3678538214
B103: Mevduatlar | C103: 0 | D103: 0 | E103: 0 | F103: 0 | G103: 0 | H103: 0 | I103: 0
B104: Finansal Borçlar | C104: 1845729285 | D104: 1980847630 | E104: 2915437903 | F104: 2911202076 | G104: 2833787191 | H104: 3394757187 | I104: 3383707799
B105: Faktoring borçları | C105: 0 | D105: 0 | E105: 0 | F105: 0 | G105: 0 | H105: 0 | I105: 0
B106: Finansal Kiralama İşlemlerinden Borçlar | C106: 0 | D106: 0 | E106: 0 | F106: 0 | G106: 0 | H106: 0 | I106: 0
B107: Finans Sektörü Faaliyetlerinden Borçlar | C107: 0 | D107: 0 | E107: 0 | F107: 0 | G107: 0 | H107: 0 | I107: 0
B108: Sigorta teknik karşılıkları | C108: 0 | D108: 0 | E108: 0 | F108: 0 | G108: 0 | H108: 0 | I108: 0
B109: Diğer Finansal Yükümlülükler | C109: 0 | D109: 0 | E109: 0 | F109: 0 | G109: 0 | H109: 0 | I109: 0
B110: Ticari Borçlar | C110: 123975785 | D110: 118683597 | E110: 117662450 | F110: 184556881 | G110: 200734583 | H110: 177807845 | I110: 127448135
B111: İlişkili Taraflara Borçlar | C111: 0 | D111: 0 | E111: 0 | F111: 0 | G111: 0 | H111: 0 | I111: 0
B112: Alınan Krediler | C112: 0 | D112: 0 | E112: 0 | F112: 0 | G112: 0 | H112: 0 | I112: 0
B113: Diğer Borçlar | C113: 216118 | D113: 15147 | E113: 92460 | F113: 15627 | G113: 15728 | H113: 16324 | I113: 16471
B114: Müşteri Sözleşmelerinden Doğan Yükümlülükler | C114: 0 | D114: 0 | E114: 0 | F114: 0 | G114: 0 | H114: 0 | I114: 0
B115: Bloke Hesaplar | C115: 0 | D115: 0 | E115: 0 | F115: 0 | G115: 0 | H115: 0 | I115: 0
B116: Alınan Avanslar | C116: 0 | D116: 0 | E116: 0 | F116: 0 | G116: 0 | H116: 0 | I116: 0
B117: Çalışanlara Sağlanan Faydalar Kapsamında Borçlar | C117: 0 | D117: 0 | E117: 0 | F117: 0 | G117: 0 | H117: 0 | I117: 0
B118: Borç ve Gider Karşılıkları | C118: 1411684 | D118: 1565946 | E118: 1492719 | F118: 1770806 | G118: 3746304 | H118: 4331412 | I118: 5071275
B119: Türev Finansal Araçlardan Borçlar | C119: 20041630 | D119: 21163450 | E119: 35831256 | F119: 30927705 | G119: 17585703 | H119: 17282246 | I119: 24069740
B120: Cari Dönem Vergisiyle İlgili Borçlar | C120: 0 | D120: 0 | E120: 0 | F120: 0 | G120: 0 | H120: 0 | I120: 0
B121: Ertelenen Vergi Yükümlülüğü | C121: 52215 | D121: 62021 | E121: 255450975 | F121: 250010926 | G121: 345385759 | H121: 181839302 | I121: 138224794
B122: Devlet Teşvik ve Yardımları | C122: 0 | D122: 0 | E122: 0 | F122: 0 | G122: 0 | H122: 0 | I122: 0
B123: Ertelenmiş Gelirler | C123: 0 | D123: 0 | E123: 0 | F123: 0 | G123: 0 | H123: 0 | I123: 0
B124: Devam Eden Sözleşmeler Hakediş Bedelleri | C124: 0 | D124: 0 | E124: 0 | F124: 0 | G124: 0 | H124: 0 | I124: 0
B125: Pozitif/Negatif Şerefiye | C125: 0 | D125: 0 | E125: 0 | F125: 0 | G125: 0 | H125: 0 | I125: 0
B126: Diğer Uzun Vadeli Borçlar | C126: 0 | D126: 0 | E126: 0 | F126: 0 | G126: 0 | H126: 0 | I126: 0
B127: İş Ortaklıklarının Uzun Vadeli Yükümlülükler İçindeki Payı | C127: 0 | D127: 0 | E127: 0 | F127: 0 | G127: 0 | H127: 0 | I127: 0
B128: ÖZ SERMAYE (AZINLIK PAYI DAHİL) | C128: 828027582 | D128: 508091387 | E128: 1635114311 | F128: 1100178674 | G128: 1868433136 | H128: 460564993 | I128: 213546109
B129: ANA ORTAKLIK DIŞI ÖZSERMAYE | C129: 0 | D129: 0 | E129: 0 | F129: 0 | G129: 0 | H129: 0 | I129: 0
B130: Aile Üyeleri | C130: 0 | D130: 0 | E130: 0 | F130: 0 | G130: 0 | H130: 0 | I130: 0
B131: Diğerleri | C131: 0 | D131: 0 | E131: 0 | F131: 0 | G131: 0 | H131: 0 | I131: 0
B132: ÖZ SERMAYE (ANA ORTAKLIĞA AİT) | C132: 828027582 | D132: 508091387 | E132: 1635114311 | F132: 1100178674 | G132: 1868433136 | H132: 460564993 | I132: 213546109
B133: Sermaye | C133: 729164000 | D133: 729164000 | E133: 729164000 | F133: 729164000 | G133: 729164000 | H133: 729164000 | I133: 729164000
B134: Ödenmeyen Sermaye(-) | C134: 0 | D134: 0 | E134: 0 | F134: 0 | G134: 0 | H134: 0 | I134: 0
B135: Karşılıklı İştirak Sermaye Düzeltmesi | C135: 0 | D135: 0 | E135: 0 | F135: 0 | G135: 0 | H135: 0 | I135: 0
B136: Paylara İlişkin Primler/İskontolar | C136: 50220043 | D136: 50220043 | E136: 50220043 | F136: 50220043 | G136: 50220043 | H136: 50220043 | I136: 50220043
B137: İşletmenin Geri Satın Alınan Kendi Hisseleri | C137: 0 | D137: 0 | E137: 0 | F137: 0 | G137: 0 | H137: 0 | I137: 0
B138: İşletmenin Geri Alınan Kendi Hisse Senetlerinin Satışından Doğan Kar | C138: 0 | D138: 0 | E138: 0 | F138: 0 | G138: 0 | H138: 0 | I138: 0
B139: Sermaye Avansı | C139: 0 | D139: 0 | E139: 0 | F139: 0 | G139: 0 | H139: 0 | I139: 0
B140: Kar veya Zararda Yeniden Sınıflandırılmayacak Birikmiş Diğer Kapsamlı Gel. veya Gid. | C140: 0 | D140: 0 | E140: 1476834316 | F140: 1409709068 | G140: 2562384731 | H140: 2547891332 | I140: 2521883080
B141: Kar veya Zararda Yeniden Sınıflandırılacak Birikmiş Diğer Kapsamlı Gelir. veya Gid. | C141: -32017080 | D141: -30701689 | E141: -45977850 | F141: -30964517 | G141: -15159903 | H141: -11891988 | I141: -11279523
B142: Sermaye Yedekleri | C142: 50220043 | D142: 50220043 | E142: 50220043 | F142: 50220043 | G142: 50220043 | H142: 50220043 | I142: 50220043
B143: Sermaye Taahhütleri (-) | C143: 0 | D143: 0 | E143: 0 | F143: 0 | G143: 0 | H143: 0 | I143: 0
B144: Katkı sermaye | C144: 0 | D144: 0 | E144: 0 | F144: 0 | G144: 0 | H144: 0 | I144: 0
B145: Azınlık Hisseleri Satış Opsiyonu Değerleme Fonu | C145: 0 | D145: 0 | E145: 0 | F145: 0 | G145: 0 | H145: 0 | I145: 0
B146: Emisyon Primi | C146: 0 | D146: 0 | E146: 0 | F146: 0 | G146: 0 | H146: 0 | I146: 0
B147: Yeniden Değerleme Artışı | C147: 0 | D147: 0 | E147: 1476834316 | F147: 1409709068 | G147: 2562384731 | H147: 2547891332 | I147: 2521883080
B148: Kar Yedekleri | C148: -36339802 | D148: -35024411 | E148: -50300572 | F148: -35287239 | G148: -19482625 | H148: -16214710 | I148: -15602245
B149: Dağıtılmamış Kar | C149: 0 | D149: 0 | E149: 0 | F149: 0 | G149: 0 | H149: 0 | I149: 0
B150: Sermaye artırımı ile ilgili masraflar | C150: 0 | D150: 0 | E150: 0 | F150: 0 | G150: 0 | H150: 0 | I150: 0
B151: Nakit Akım Koruması ile İlgili Birikmiş Kar | C151: 0 | D151: 0 | E151: 0 | F151: 0 | G151: 0 | H151: 0 | I151: 0
B152: Karşılıklı İştirak Serm. Düzeltmesinin Nom. Tut. Aşan Kısım | C152: 0 | D152: 0 | E152: 0 | F152: 0 | G152: 0 | H152: 0 | I152: 0
B153: Finansal Yatırımlar Değer Artış Fonu | C153: 0 | D153: 0 | E153: 0 | F153: 0 | G153: 0 | H153: 0 | I153: 0
B154: Diğer Özkaynak Payları | C154: 0 | D154: 0 | E154: 0 | F154: 0 | G154: 0 | H154: 0 | I154: 0
B155: Diğer Yedekler | C155: 0 | D155: 0 | E155: 0 | F155: 0 | G155: 0 | H155: 0 | I155: 0
B156: Net Dönem Karı | C156: 0 | D156: 0 | E156: 0 | F156: 0 | G156: 0 | H156: 0 | I156: 0
B157: Dönem Zararı (-) | C157: 127081836 | D157: 321251586 | E157: 351005560 | F157: 548673970 | G157: 507197153 | H157: 1556396550 | I157: 259397998
B158: Geçmiş Yıl Karları | C158: 98272567 | D158: 0 | E158: 0 | F158: 0 | G158: 0 | H158: 0 | I158: 0
B159: Net Dön. Kar. Ser. Hes. Ed. Tran. Ed. M. Dur. V. Sa. Karı | C159: 0 | D159: 0 | E159: 0 | F159: 0 | G159: 0 | H159: 0 | I159: 0
B160: Geçmiş Yıl Zararları (-) | C160: 0 | D160: 28809269 | E160: 333839998 | F160: 618995310 | G160: 1060697942 | H160: 1408141204 | I160: 2926762853
B161: Yabancı Para Çevrim Farkları | C161: 0 | D161: 0 | E161: 0 | F161: 0 | G161: 0 | H161: 0 | I161: 0
B162: Kardan Ayrılan Kısıtlanmış Yedekler | C162: 11803700 | D162: 11803700 | E162: 12053172 | F162: 12053172 | G162: 12053172 | H162: 12053172 | I162: 12053172
B163: Kardan Ayrılan Kısıtlanmış Yedekler (27) | C163: 0 | D163: 0 | E163: 0 | F163: 0 | G163: 0 | H163: 0 | I163: 0
B164: Zarar Telafi Fonu | C164: 0 | D164: 0 | E164: 0 | F164: 0 | G164: 0 | H164: 0 | I164: 0
B165: Özsermaye Enf. Düz. Farkları | C165: 101988910 | D165: 101988910 | E165: 101988910 | F165: 101988910 | G165: 101988910 | H165: 101988910 | I165: 101988910
B166: Sermaye Birleşme Fonu | C166: 0 | D166: 0 | E166: 0 | F166: 0 | G166: 0 | H166: 0 | I166: 0
B167: İlave Ödenmiş Sermaye | C167: 0 | D167: 0 | E167: 0 | F167: 0 | G167: 0 | H167: 0 | I167: 0
B168: Birikmiş Karlar/Zararlar | C168: 0 | D168: 0 | E168: 0 | F168: 0 | G168: 0 | H168: 0 | I168: 0
B169: Yatırım Teşvikleri | C169: 0 | D169: 0 | E169: 0 | F169: 0 | G169: 0 | H169: 0 | I169: 0
B170: Satılmaya Haz. Var. Üz. Gerçekleşmemiş Net Gelir | C170: 0 | D170: 0 | E170: 0 | F170: 0 | G170: 0 | H170: 0 | I170: 0
B171: Ana ortaklık hisse satış kar/zarar | C171: 0 | D171: 0 | E171: 0 | F171: 0 | G171: 0 | H171: 0 | I171: 0
B172: AZINLIK PAYLARI | C172: 0 | D172: 0 | E172: 0 | F172: 0 | G172: 0 | H172: 0 | I172: 0
B173: TOPLAM PASİFLER | C173: 3201382644 | D173: 3244110714 | E173: 5330857302 | F173: 5044551542 | G173: 5879213602 | H173: 5704568702 | I173: 5590886817
B178: Gelir Tablosu | C178: 2013/12 | D178: 2014/12 | E178: 2015/12 | F178: 2016/12 | G178: 2017/12 | H178: 2018/12 | I178: 2019/03
B179: BRÜT SATIŞLAR | C179: 771837927 | D179: 1125461741 | E179: 0 | F179: 0 | G179: 0 | H179: 0 | I179: 0
B180: Yurtiçi Satışlar | C180: 0 | D180: 0 | E180: 0 | F180: 0 | G180: 0 | H180: 0 | I180: 0
B181: Yurtdışı Satışlar | C181: 0 | D181: 0 | E181: 0 | F181: 0 | G181: 0 | H181: 0 | I181: 0
B182: Diğer Satışlar | C182: 0 | D182: 0 | E182: 0 | F182: 0 | G182: 0 | H182: 0 | I182: 0
B183: SATIŞLARDAN İNDİRİMLER (-) | C183: 809363 | D183: 790727 | E183: 0 | F183: 0 | G183: 0 | H183: 0 | I183: 0
B184: Satışdan İadeler (-) | C184: 809363 | D184: 790727 | E184: 0 | F184: 0 | G184: 0 | H184: 0 | I184: 0
B185: Satış İskontoları (-) | C185: 0 | D185: 0 | E185: 0 | F185: 0 | G185: 0 | H185: 0 | I185: 0
B186: Diğer İndirimler (-) | C186: 0 | D186: 0 | E186: 0 | F186: 0 | G186: 0 | H186: 0 | I186: 0
B187: ESAS FAALİYET GELİRLERİ | C187: 0 | D187: 0 | E187: 0 | F187: 0 | G187: 0 | H187: 0 | I187: 0
B188: SATIŞ GELİRLERİ | C188: 771028564 | D188: 1124671014 | E188: 1802888608 | F188: 1420842034 | G188: 1855097831 | H188: 2215717988 | I188: 466242068
B189: FAİZ GELİRİ | C189: 0 | D189: 0 | E189: 0 | F189: 0 | G189: 0 | H189: 0 | I189: 0
B190: SATIŞLARIN MALİYETİ (-) | C190: 621594161 | D190: 1135271969 | E190: 1643532534 | F190: 1376630683 | G190: 1801560026 | H190: 2156701251 | I190: 358112678
B191: FAİZ GİDERİ | C191: 0 | D191: 0 | E191: 0 | F191: 0 | G191: 0 | H191: 0 | I191: 0
B192: MUHTEMEL KREDİ ZARAR KARŞ. FİN.KİR. ALCK. KARŞ. VE FAKT. DEĞ. DÜŞ. KARŞ. | C192: 0 | D192: 0 | E192: 0 | F192: 0 | G192: 0 | H192: 0 | I192: 0
B193: HİZMET GELİRLERİ | C193: 0 | D193: 0 | E193: 0 | F193: 0 | G193: 0 | H193: 0 | I193: 0
B194: HİZMET GİDERLERİ (-) | C194: 0 | D194: 0 | E194: 0 | F194: 0 | G194: 0 | H194: 0 | I194: 0
B195: KAMBİYO KARI/ZARARI | C195: 0 | D195: 0 | E195: 0 | F195: 0 | G195: 0 | H195: 0 | I195: 0
B196: SERMAYE PİYASASI İŞLEM KARI/ZARARI | C196: 0 | D196: 0 | E196: 0 | F196: 0 | G196: 0 | H196: 0 | I196: 0
B197: ESAS FAALİYETLERDEN DİĞER GİDER/GELİR | C197: 0 | D197: 0 | E197: 0 | F197: 0 | G197: 0 | H197: 0 | I197: 0
B198: FAİZ, ÜCRET, PRİM, KOMİSYON VE DİĞER GELİRLER | C198: 0 | D198: 0 | E198: 0 | F198: 0 | G198: 0 | H198: 0 | I198: 0
B199: Kambiyo Gelirleri | C199: 0 | D199: 0 | E199: 0 | F199: 0 | G199: 0 | H199: 0 | I199: 0
B200: Faiz Gelirleri | C200: 0 | D200: 0 | E200: 0 | F200: 0 | G200: 0 | H200: 0 | I200: 0
B201: Kar Payı Gelirleri | C201: 0 | D201: 0 | E201: 0 | F201: 0 | G201: 0 | H201: 0 | I201: 0
B202: Türev Finansal İşlemlerden Kazanç | C202: 0 | D202: 0 | E202: 0 | F202: 0 | G202: 0 | H202: 0 | I202: 0
B203: Portföy İşletmeciliği Faaliyetinden Elde Edilen Gelir | C203: 0 | D203: 0 | E203: 0 | F203: 0 | G203: 0 | H203: 0 | I203: 0
B204: Sigortacılık Hizmetlerinden Elde Edilen Gelir | C204: 0 | D204: 0 | E204: 0 | F204: 0 | G204: 0 | H204: 0 | I204: 0
... 135 more rows

Sheet AKBNK (hidden)
A1: AKBNK
B2: BİLANÇO | C2: 2013/12 | D2: 2014/12 | E2: 2015/12 | F2: 2016/12 | G2: 2017/12 | H2: 2018/12 | I2: 2019/03
B3: DÖNEN VARLIKLAR | C3: 18223112000 | D3: 20440041000 | E3: 25473423000 | F3: 35012272000 | G3: 35363166000 | H3: 30113792000 | I3: 36637176000
B4: Hazır Değerler | C4: 0 | D4: 0 | E4: 0 | F4: 0 | G4: 0 | H4: 0 | I4: 0
B5: Gayrimenkul Projeleri Kapsamında Açılan Nakit Hesapları | C5: 0 | D5: 0 | E5: 0 | F5: 0 | G5: 0 | H5: 0 | I5: 0
B6: Finansal Yatırımlar | C6: 0 | D6: 0 | E6: 0 | F6: 0 | G6: 0 | H6: 0 | I6: 0
B7: Menkul Kıymetler | C7: 0 | D7: 0 | E7: 0 | F7: 0 | G7: 0 | H7: 0 | I7: 0
B8: Türkiye Cumhuriyet Merkez Bankası Hesabı | C8: 66843000 | D8: 11649000 | E8: 146184000 | F8: 14295000 | G8: 9075000 | H8: 23410000 | I8: 0
B9: Krediler ve Avanslar | C9: 0 | D9: 0 | E9: 0 | F9: 0 | G9: 0 | H9: 0 | I9: 0
B10: Faktoring alacakları (net) | C10: 0 | D10: 0 | E10: 0 | F10: 0 | G10: 0 | H10: 0 | I10: 0
B11: Teminata Verilen Finansal Varlıklar | C11: 0 | D11: 0 | E11: 0 | F11: 0 | G11: 0 | H11: 0 | I11: 0
B12: Kısa Vadeli Ticari Alacaklar | C12: 0 | D12: 0 | E12: 0 | F12: 0 | G12: 0 | H12: 0 | I12: 0
B13: Finansal Kiralama Alacakları | C13: 28684000 | D13: 32742000 | E13: 35031000 | F13: 39295000 | G13: 44019000 | H13: 79156000 | I13: 69861000
B14: Finans Sektörü Faal. Alacaklar | C14: 1710783000 | D14: 1401746000 | E14: 2716299000 | F14: 7725711000 | G14: 8277507000 | H14: 0 | I14: 0
B15: İlişkili Taraflardan Alacaklar | C15: 2447713000 | D15: 2753364000 | E15: 2821774000 | F15: 2931626000 | G15: 3442031000 | H15: 4475751000 | I15: 1430352000
B16: Diğer Kısa Vadeli Alacaklar | C16: 0 | D16: 0 | E16: 0 | F16: 0 | G16: 0 | H16: 0 | I16: 0
B17: Canlı Varlıklar | C17: 283964000 | D17: 394584000 | E17: 467520000 | F17: 533679000 | G17: 697268000 | H17: 1025704000 | I17: 304053000
B18: Kullanımı Kısıtlı Banka Bakiyeleri | C18: 0 | D18: 0 | E18: 0 | F18: 0 | G18: 0 | H18: 0 | I18: 0
B19: Stoklar | C19: 5722000 | D19: 5196000 | E19: 1655000 | F19: 0 | G19: 0 | H19: 0 | I19: 0
B20: Peşin Ödenen Kira Giderleri | C20: 0 | D20: 0 | E20: 0 | F20: 0 | G20: 0 | H20: 0 | I20: 0
B21: Müşteri Sözleşmelerinden Doğan Varlıklar | C21: 0 | D21: 0 | E21: 0 | F21: 0 | G21: 0 | H21: 0 | I21: 0
B22: İmtiyaz Sözleşmelerine İlişkin Finansal Varlıklar | C22: 0 | D22: 0 | E22: 0 | F22: 0 | G22: 0 | H22: 0 | I22: 0
B23: Türev Enstrümanlar | C23: 30076145000 | D23: 32437908000 | E23: 35306201000 | F23: 29240863000 | G23: 36816619000 | H23: 36502564000 | I23: 38696213000
B24: Ertelenen Vergi Varlıkları | C24: 4000000000 | D24: 4000000000 | E24: 4000000000 | F24: 4000000000 | G24: 4000000000 | H24: 4000000000 | I24: 5200000000
B25: Durdurulan faaliyetler ile ilgili varlıklar | C25: 630177000 | D25: 284135000 | E25: 648858000 | F25: 712398000 | G25: 1003406000 | H25: 0 | I25: 0
B26: Peşin Ödenmiş Giderler | C26: 0 | D26: 0 | E26: 0 | F26: 0 | G26: 0 | H26: 0 | I26: 0
B27: Cari Dönem Vergisiyle İlgili Varlıklar | C27: 0 | D27: 0 | E27: 0 | F27: 0 | G27: 0 | H27: 0 | I27: 0
B28: Nakit Dışı Serbest Kullanılabilir Teminatlar | C28: 0 | D28: 0 | E28: 0 | F28: 0 | G28: 0 | H28: 0 | I28: 0
B29: Diğer Dönen Varlıklar | C29: 55903000 | D29: 68000 | E29: 0 | F29: 0 | G29: 0 | H29: 137461000 | I29: 173245000
B30: Vadesine kadar elde tut. men. kıy. | C30: 442661000 | D30: 570729000 | E30: 681358000 | F30: 660434000 | G30: 877811000 | H30: 1377885000 | I30: 424068000
B31: Satılmaya Hazır Finansal Varlıklar | C31: 443833000 | D31: 395443000 | E31: 433846000 | F31: 373212000 | G31: 847143000 | H31: 983468000 | I31: 1051019000
B32: Alım Satım Amaçlı Menkul Kıymetler | C32: 0 | D32: 0 | E32: 0 | F32: 0 | G32: 0 | H32: 0 | I32: 0
B33: İş Ortaklıklarının Dönen Varlıklar İçindeki Payı | C33: 286458000 | D33: -161039000 | E33: 26025000 | F33: 247306000 | G33: 41468000 | H33: 467451000 | I33: 384082000
B34: Elden Çıkarılacak Faaliyetler ile İlgili Varlıklar | C34: 0 | D34: 0 | E34: 0 | F34: 0 | G34: 0 | H34: 90305000 | I34: 102195000
B35: Satım amaçlı elde tutulan maddi duran varlıklar | C35: 0 | D35: 0 | E35: 0 | F35: 0 | G35: 0 | H35: 0 | I35: 0
B36: Ortaklara Dağıtılmak Üzere Elde Tutulan Duran Varlıklar | C36: 0 | D36: 0 | E36: 0 | F36: 0 | G36: 0 | H36: 0 | I36: 0
B37: DURAN VARLIKLAR | C37: 4945218000 | D37: 4756097000 | E37: 7858297000 | F37: 9972809000 | G37: 8116779000 | H37: 18001985000 | I37: 23385360000
B38: Menkul Kıymetler | C38: 110582770000 | D38: 125826658000 | E38: 141616170000 | F38: 161672938000 | G38: 190356348000 | H38: 186376300000 | I38: 196827570000
B39: Krediler ve Avanslar | C39: 0 | D39: 0 | E39: 0 | F39: 0 | G39: 0 | H39: 0 | I39: 0
B40: Faktoring alacakları (net) | C40: 0 | D40: 0 | E40: 0 | F40: 0 | G40: 0 | H40: 0 | I40: 0
B41: Uzun Vadeli Ticari Alacaklar | C41: 0 | D41: 0 | E41: 9958000 | F41: 0 | G41: 0 | H41: 6696334000 | I41: 6821169000
B42: Finansal Kiralama Alacakları | C42: 0 | D42: 0 | E42: 0 | F42: 0 | G42: 0 | H42: 0 | I42: 0
B43: Finans Sektörü Faal. Alacaklar | C43: 0 | D43: 0 | E43: 0 | F43: 0 | G43: 0 | H43: 20680400000 | I43: 21834897000
B44: İlişkili Taraflardan Alacaklar | C44: 643047000 | D44: 707037000 | E44: 211903000 | F44: 156720000 | G44: 192292000 | H44: -1105607000 | I44: 64633000
B45: Türev Enstrümanlar | C45: 0 | D45: 0 | E45: 0 | F45: 0 | G45: 0 | H45: 0 | I45: 0
B46: Diğer Uzun Vadeli Alacaklar | C46: 0 | D46: 0 | E46: 0 | F46: 0 | G46: 0 | H46: 0 | I46: 0
B47: Finansal Yatırımlar | C47: 0 | D47: 0 | E47: 0 | F47: 0 | G47: 0 | H47: 0 | I47: 0
B48: Özkaynak Yöntemiyle Değerlenen Yatırımlar | C48: 0 | D48: 0 | E48: 0 | F48: 0 | G48: 0 | H48: 644958000 | I48: 717371000
B49: Canlı Varlıklar | C49: 0 | D49: 0 | E49: 0 | F49: 0 | G49: 0 | H49: 4784477000 | I49: 5080025000
B50: İmtiyaz Sözleşmelerine İlişkin Finansal Varlıklar | C50: 0 | D50: 0 | E50: 0 | F50: 0 | G50: 0 | H50: 0 | I50: 0
B51: Stoklar | C51: 0 | D51: 0 | E51: 0 | F51: 94338000 | G51: 131448000 | H51: 0 | I51: 0
B52: Finansal Duran Varlıklar | C52: 0 | D52: 0 | E52: 0 | F52: 0 | G52: 0 | H52: 0 | I52: 0
B53: Pozitif/Negatif Şerefiye | C53: 12700591000 | D53: 15170522000 | E53: 17766503000 | F53: 20161351000 | G53: 23790063000 | H53: 28233739000 | I53: 33923383000
B54: Yatırım Amaçlı Gayrimenkuller | C54: -978614000 | D54: 534382000 | E54: 372849000 | F54: -299006000 | G54: 318936000 | H54: -4281557000 | I54: -2441909000
B55: Proje Halindeki Yatırım Amaçlı Gayrimenkuller | C55: 0 | D55: 0 | E55: 0 | F55: 0 | G55: 0 | H55: 0 | I55: 0
B56: Alım Satım Amaçlı Gayrimenkuller (net) | C56: 0 | D56: 0 | E56: 0 | F56: 0 | G56: 0 | H56: 0 | I56: 0
B57: Maddi Duran Varlıklar | C57: 0 | D57: 0 | E57: 0 | F57: 0 | G57: 0 | H57: 0 | I57: 0
B58: Kullanım Hakkı Varlıkları | C58: 0 | D58: 0 | E58: 0 | F58: 0 | G58: 0 | H58: 0 | I58: 0
B59: Maddi Olmayan Duran Varlıklar | C59: 0 | D59: 0 | E59: 0 | F59: 0 | G59: 1552161000 | H59: 0 | I59: 0
B60: Müşteri Sözleşmelerinden Doğan Varlıklar | C60: 0 | D60: 0 | E60: 0 | F60: 0 | G60: 0 | H60: 0 | I60: 0
B61: Ertelenen Vergi Varlıkları | C61: 2942042000 | D61: 3159678000 | E61: 2994848000 | F61: 4820455000 | G61: 6039069000 | H61: 5689644000 | I61: 1412532000
B62: Cari Dönem Vergisiyle İlgili Duran Varlıklar | C62: 0 | D62: 0 | E62: 0 | F62: 0 | G62: 0 | H62: 0 | I62: 0
B63: Nakit Dışı Serbest Kullanılabilir Teminatlar | C63: 0 | D63: 0 | E63: 0 | F63: 0 | G63: 0 | H63: 0 | I63: 0
B64: Peşin Ödenen Kira Giderleri | C64: 0 | D64: 0 | E64: 0 | F64: 0 | G64: 0 | H64: 0 | I64: 0
B65: Peşin Ödenmiş Giderler | C65: 0 | D65: 0 | E65: 0 | F65: 0 | G65: 0 | H65: 0 | I65: 0
B66: Diğer Duran Varlıklar | C66: 0 | D66: 700215000 | E66: 0 | F66: 0 | G66: 0 | H66: 0 | I66: 0
B67: Vadesine kadar elde tut. men. kıy. | C67: 3938904000 | D67: 5316381000 | E67: 5979397000 | F67: 7877903000 | G67: 10136612000 | H67: 14504876000 | I67: 3955169000
B68: Satılmaya Hazır Finansal Varlıklar | C68: 1696545000 | D68: 2781626000 | E68: 1927826000 | F68: 3393852000 | G68: 6595374000 | H68: 3686298000 | I68: 5400628000
B69: İş Ortaklıklarının Duran Varlıklar İçindeki Payı | C69: 0 | D69: 0 | E69: 0 | F69: 0 | G69: 0 | H69: 0 | I69: 0
B70: Ana Ortaklık Dışı Paylar | C70: 0 | D70: 0 | E70: 0 | F70: 0 | G70: 0 | H70: 0 | I70: 0
B71: TOPLAM AKTİFLER | C71: 1772408000 | D71: 1407010000 | E71: 2727912000 | F71: 7725711000 | G71: 8277507000 | H71: 6833795000 | I71: 6994414000
B72: KISA VADELİ YÜKÜMLÜLÜKLER | C72: 0 | D72: 700215000 | E72: 0 | F72: 0 | G72: 1552161000 | H72: 539374000 | I72: 0
B73: Finansal Borçlar | C73: 11157000 | D73: 12323000 | E73: 128629000 | F73: 67176000 | G73: 97875000 | H73: 13455000 | I73: 16217000
B74: Uzun Vadeli Finansal Borçların Kısa Vadeli Kısımları | C74: 0 | D74: 0 | E74: 0 | F74: 0 | G74: 0 | H74: 0 | I74: 0
B75: Mevduat | C75: 0 | D75: 0 | E75: 0 | F75: 0 | G75: 0 | H75: 0 | I75: 0
B76: Türev Araçlar | C76: 3923000 | D76: 3923000 | E76: 3923000 | F76: 3923000 | G76: 3923000 | H76: 5521000 | I76: 5521000
B77: Faktoring borçları | C77: 0 | D77: 0 | E77: 0 | F77: 0 | G77: 0 | H77: 0 | I77: 0
B78: Finansal Kiralama İşlemlerinden Borçlar | C78: 8101052000 | D78: 10303447000 | E78: 11991681000 | F78: 14537886000 | G78: 18423884000 | H78: 25242030000 | I78: 6863648000
B79: Finans Sektörü Faaliyetlerinden Borçlar | C79: 0 | D79: 0 | E79: 0 | F79: 0 | G79: 0 | H79: 0 | I79: 23078000
B80: Sigorta Teknik Karşılığı | C80: 0 | D80: 0 | E80: 0 | F80: 0 | G80: 0 | H80: 262217000 | I80: 601308000
B81: Diğer Finansal Yükümlülükler | C81: 0 | D81: 0 | E81: 0 | F81: 0 | G81: 0 | H81: 0 | I81: 0
B82: Ticari Borçlar | C82: 2354486000 | D82: 5621240000 | E82: 6024877000 | F82: 3215425000 | G82: 3892076000 | H82: 5857488000 | I82: 10116884000
B83: İlişkili Taraflara Borçlar | C83: 122699000 | D83: 135775000 | E83: 145245000 | F83: 129895000 | G83: 151847000 | H83: 181736000 | I83: 70042000
B84: Alınan Krediler | C84: 0 | D84: 0 | E84: 0 | F84: 0 | G84: 0 | H84: 0 | I84: 0
B85: Diğer Borçlar | C85: 4226211000 | D85: 3881822000 | E85: 4735297000 | F85: 5219063000 | G85: 6222625000 | H85: 0 | I85: 0
B86: Alınan Avanslar | C86: 0 | D86: 0 | E86: 0 | F86: 0 | G86: 0 | H86: 0 | I86: 0
B87: Devlet Teşvik ve Yardımları | C87: 0 | D87: 0 | E87: 0 | F87: 0 | G87: 0 | H87: -1341622000 | I87: -2015968000
B88: Ertelenmiş Gelirler | C88: 0 | D88: 0 | E88: 0 | F88: 0 | G88: 0 | H88: 0 | I88: 0
B89: Cari Dönem Vergi Yükümlülüğü | C89: 0 | D89: 0 | E89: 0 | F89: 0 | G89: 0 | H89: 0 | I89: 0
B90: Cari Dönem Vergisi ile İlgili Borçlar | C90: 0 | D90: 0 | E90: 0 | F90: 0 | G90: 0 | H90: 0 | I90: 0
B91: Bloke Hesaplar | C91: 244426000 | D91: 509351000 | E91: 604078000 | F91: 645284000 | G91: 1189603000 | H91: 504394000 | I91: 528250000
B92: Müşteri Sözleşmelerinden Doğan Yükümlülükler | C92: 46554000 | D92: 64226000 | E92: 78094000 | F92: 85030000 | G92: 119344000 | H92: 169533000 | I92: 50480000
B93: Özkaynak Yöntemiyle Değerlenen Yatırımlardan Yükümlülükler | C93: 0 | D93: 0 | E93: 0 | F93: 0 | G93: 0 | H93: 0 | I93: 0
B94: Borç ve Gider Karşılıkları | C94: 1676682000 | D94: 2330155000 | E94: 3373323000 | F94: 4267191000 | G94: 4532711000 | H94: 0 | I94: 0
B95: Çalışanlara Sağlanan Faydalara İlişkin Karşılıklar | C95: 0 | D95: 0 | E95: 0 | F95: 0 | G95: 0 | H95: 0 | I95: 0
B96: Ertelenen Vergi Yükümlülüğü | C96: 30459668000 | D96: 32951691000 | E96: 32675228000 | F96: 40625562000 | G96: 52601178000 | H96: 53337556000 | I96: 51072559000
B97: Durdurulan faaliyetler ile ilgili yükümlülükler | C97: 0 | D97: 0 | E97: 0 | F97: 124843000 | G97: 392164000 | H97: 283695000 | I97: 737697000
B98: Diğer Kısa Vadeli Borçlar | C98: 0 | D98: 0 | E98: 0 | F98: 0 | G98: 0 | H98: 0 | I98: 0
B99: İş Ortaklıklarının Kısa Vadeli Yükümlülükler İçindeki Payı | C99: 0 | D99: 0 | E99: 0 | F99: 0 | G99: 0 | H99: 0 | I99: 0
B100: Elden Çıkarılacak Faaliyetler ile İlgili Yükümlülükler | C100: 0 | D100: 0 | E100: 0 | F100: 0 | G100: 0 | H100: 0 | I100: 0
B101: Ortaklara Dağıtılmak Üzere Elde Tutulan Varlık Gruplarına İlişkin Yükümlülükler | C101: 0 | D101: 0 | E101: 0 | F101: 0 | G101: 0 | H101: 0 | I101: 0
B102: UZUN VADELİ YÜKÜMLÜLÜKLER | C102: 12153241000 | D102: 10799905000 | E102: 10688242000 | F102: 17976682000 | G102: 18883032000 | H102: 12263481000 | I102: 12090561000
B103: Mevduatlar | C103: 63810000 | D103: 105952000 | E103: 157528000 | F103: 98645000 | G103: 74911000 | H103: 0 | I103: 0
B104: Finansal Borçlar | C104: 1583832000 | D104: 2178829000 | E104: 3226010000 | F104: 4112221000 | G104: 4380092000 | H104: 0 | I104: 0
B105: Faktoring borçları | C105: 0 | D105: 0 | E105: 0 | F105: 0 | G105: 0 | H105: 0 | I105: 0
B106: Finansal Kiralama İşlemlerinden Borçlar | C106: 0 | D106: 2915000 | E106: 58992000 | F106: 222852000 | G106: 256456000 | H106: 472136000 | I106: 120363000
B107: Finans Sektörü Faaliyetlerinden Borçlar | C107: 0 | D107: 0 | E107: 0 | F107: 0 | G107: 0 | H107: 0 | I107: 0
B108: Sigorta teknik karşılıkları | C108: 0 | D108: 0 | E108: 0 | F108: 0 | G108: 0 | H108: 0 | I108: 0
B109: Diğer Finansal Yükümlülükler | C109: 51509048000 | D109: 52166488000 | E109: 47423285000 | F109: 61720657000 | G109: 59454983000 | H109: 64559214000 | I109: 77100624000
B110: Ticari Borçlar | C110: 12153241000 | D110: 10799905000 | E110: 10688242000 | F110: 15461717000 | G110: 16143379000 | H110: 9754183000 | I110: 9409140000
B111: İlişkili Taraflara Borçlar | C111: 166830739000 | D111: 166127081000 | E111: 242225355000 | F111: 402662882000 | G111: 486371571000 | H111: 608503838000 | I111: 654702336000
B112: Alınan Krediler | C112: 0 | D112: 0 | E112: 0 | F112: 0 | G112: 0 | H112: 0 | I112: 0
B113: Diğer Borçlar | C113: 0 | D113: 0 | E113: 0 | F113: 0 | G113: 0 | H113: 0 | I113: 0
B114: Müşteri Sözleşmelerinden Doğan Yükümlülükler | C114: 0 | D114: 0 | E114: 0 | F114: 0 | G114: 0 | H114: 0 | I114: 0
B115: Bloke Hesaplar | C115: 0 | D115: 0 | E115: 0 | F115: 0 | G115: 0 | H115: 0 | I115: 0
B116: Alınan Avanslar | C116: 0 | D116: 0 | E116: 0 | F116: 0 | G116: 0 | H116: 0 | I116: 0
B117: Çalışanlara Sağlanan Faydalar Kapsamında Borçlar | C117: 0 | D117: 0 | E117: 0 | F117: 0 | G117: 0 | H117: 0 | I117: 0
B118: Borç ve Gider Karşılıkları | C118: 3923000 | D118: 3923000 | E118: 3923000 | F118: 3923000 | G118: 0 | H118: 0 | I118: 0
B119: Türev Finansal Araçlardan Borçlar | C119: 0 | D119: 0 | E119: 0 | F119: 0 | G119: 0 | H119: 0 | I119: 0
B120: Cari Dönem Vergisiyle İlgili Borçlar | C120: 0 | D120: 0 | E120: 0 | F120: 0 | G120: 0 | H120: 0 | I120: 0
B121: Ertelenen Vergi Yükümlülüğü | C121: 51110323000 | D121: 59721644000 | E121: 38666966000 | F121: 36093405000 | G121: 48539501000 | H121: 59090341000 | I121: 69484618000
B122: Devlet Teşvik ve Yardımları | C122: 0 | D122: 0 | E122: 0 | F122: 0 | G122: 0 | H122: 0 | I122: 0
B123: Ertelenmiş Gelirler | C123: 0 | D123: 0 | E123: 0 | F123: 0 | G123: 0 | H123: 0 | I123: 0
B124: Devam Eden Sözleşmeler Hakediş Bedelleri | C124: 0 | D124: 0 | E124: 0 | F124: 0 | G124: 0 | H124: 0 | I124: 0
B125: Pozitif/Negatif Şerefiye | C125: 573943000 | D125: 926412000 | E125: 812641000 | F125: 976047000 | G125: 727582000 | H125: 1561507000 | I125: 408308000
B126: Diğer Uzun Vadeli Borçlar | C126: 0 | D126: 0 | E126: 0 | F126: 2514965000 | G126: 2739653000 | H126: 2509298000 | I126: 2681421000
B127: İş Ortaklıklarının Uzun Vadeli Yükümlülükler İçindeki Payı | C127: 0 | D127: 0 | E127: 0 | F127: 0 | G127: 0 | H127: 0 | I127: 0
B128: ÖZ SERMAYE (AZINLIK PAYI DAHİL) | C128: 818797066000 | D128: 936564503000 | E128: 1093001326000 | F128: 1291326922000 | G128: 1531461814000 | H128: 1843989527000 | I128: 1931718832000
B129: ANA ORTAKLIK DIŞI ÖZSERMAYE | C129: 3405805000 | D129: 3297373000 | E129: 4461749000 | F129: 5176374000 | G129: 5917197000 | H129: 0 | I129: 0
B130: Aile Üyeleri | C130: 0 | D130: 0 | E130: 0 | F130: 0 | G130: 0 | H130: 0 | I130: 0
B131: Diğerleri | C131: 0 | D131: 0 | E131: 0 | F131: 0 | G131: 0 | H131: 0 | I131: 0
B132: ÖZ SERMAYE (ANA ORTAKLIĞA AİT) | C132: 110675620000 | D132: 125977984000 | E132: 141763483000 | F132: 161827908000 | G132: 190508967000 | H132: 178401071000 | I132: 187797809000
B133: Sermaye | C133: 879821000 | D133: 907230000 | E133: 1350741000 | F133: 3334164000 | G133: 4133098000 | H133: 5452141000 | I133: 5948982000
B134: Ödenmeyen Sermaye(-) | C134: 0 | D134: 0 | E134: 0 | F134: 0 | G134: 0 | H134: 0 | I134: 0
B135: Karşılıklı İştirak Sermaye Düzeltmesi | C135: 153957045000 | D135: 198606414000 | E135: 249866615000 | F135: 200444518000 | G135: 220569689000 | H135: 285062345000 | I135: 291530303000
B136: Paylara İlişkin Primler/İskontolar | C136: 0 | D136: 0 | E136: 0 | F136: 0 | G136: 0 | H136: 0 | I136: 0
B137: İşletmenin Geri Satın Alınan Kendi Hisseleri | C137: 0 | D137: 0 | E137: 0 | F137: 0 | G137: 0 | H137: 3541030000 | I137: 3643230000
B138: İşletmenin Geri Alınan Kendi Hisse Senetlerinin Satışından Doğan Kar | C138: 0 | D138: 0 | E138: 0 | F138: 0 | G138: 0 | H138: 0 | I138: 0
B139: Sermaye Avansı | C139: 0 | D139: 0 | E139: 0 | F139: 0 | G139: 0 | H139: 0 | I139: 0
B140: Kar veya Zararda Yeniden Sınıflandırılmayacak Birikmiş Diğer Kapsamlı Gel. veya Gid. | C140: 0 | D140: 0 | E140: 0 | F140: 0 | G140: 0 | H140: 0 | I140: 0
B141: Kar veya Zararda Yeniden Sınıflandırılacak Birikmiş Diğer Kapsamlı Gelir. veya Gid. | C141: 0 | D141: 0 | E141: 0 | F141: 0 | G141: 0 | H141: 0 | I141: 0
B142: Sermaye Yedekleri | C142: 0 | D142: 0 | E142: 0 | F142: 0 | G142: 0 | H142: 0 | I142: 0
B143: Sermaye Taahhütleri (-) | C143: 0 | D143: 0 | E143: 0 | F143: 0 | G143: 0 | H143: 0 | I143: 0
B144: Katkı sermaye | C144: 0 | D144: 0 | E144: 0 | F144: 0 | G144: 0 | H144: 0 | I144: 0
B145: Azınlık Hisseleri Satış Opsiyonu Değerleme Fonu | C145: 0 | D145: 0 | E145: 0 | F145: 0 | G145: 0 | H145: 0 | I145: 0
B146: Emisyon Primi | C146: 0 | D146: 0 | E146: 0 | F146: 0 | G146: 0 | H146: 0 | I146: 0
B147: Yeniden Değerleme Artışı | C147: 0 | D147: 0 | E147: 0 | F147: 0 | G147: 0 | H147: 0 | I147: 0
B148: Kar Yedekleri | C148: 0 | D148: 0 | E148: 0 | F148: 0 | G148: 0 | H148: 0 | I148: 0
B149: Dağıtılmamış Kar | C149: 0 | D149: 0 | E149: 0 | F149: 0 | G149: 0 | H149: 0 | I149: 0
B150: Sermaye artırımı ile ilgili masraflar | C150: 625107000 | D150: 1039327000 | E150: 806798000 | F150: 956572000 | G150: 1436074000 | H150: 818761000 | I150: 0
B151: Nakit Akım Koruması ile İlgili Birikmiş Kar | C151: 101050427000 | D151: 109491579000 | E151: 134207200000 | F151: 153659129000 | G151: 178681824000 | H151: 0 | I151: 0
B152: Karşılıklı İştirak Serm. Düzeltmesinin Nom. Tut. Aşan Kısım | C152: 803271000 | D152: -1352142000 | E152: -529940000 | F152: 1089735000 | G152: -938962000 | H152: 5051575000 | I152: 2670866000
B153: Finansal Yatırımlar Değer Artış Fonu | C153: 0 | D153: 0 | E153: 0 | F153: 0 | G153: 0 | H153: 1989608000 | I153: 2562210000
B154: Diğer Özkaynak Payları | C154: 0 | D154: 0 | E154: 0 | F154: 0 | G154: 0 | H154: 0 | I154: 0
B155: Diğer Yedekler | C155: 0 | D155: 0 | E155: 0 | F155: 0 | G155: 0 | H155: 0 | I155: 0
B156: Net Dönem Karı | C156: 0 | D156: 0 | E156: 0 | F156: 0 | G156: 0 | H156: 0 | I156: 0
B157: Dönem Zararı (-) | C157: 0 | D157: 0 | E157: 0 | F157: 0 | G157: 0 | H157: 0 | I157: 0
B158: Geçmiş Yıl Karları | C158: 0 | D158: 0 | E158: 0 | F158: 0 | G158: 0 | H158: 0 | I158: 0
B159: Net Dön. Kar. Ser. Hes. Ed. Tran. Ed. M. Dur. V. Sa. Karı | C159: 364930243000 | D159: 426991185000 | E159: 482143877000 | F159: 549779898000 | G159: 663924892000 | H159: 773436233000 | I159: 787828392000
B160: Geçmiş Yıl Zararları (-) | C160: 0 | D160: 0 | E160: 0 | F160: 0 | G160: 0 | H160: 0 | I160: 0
B161: Yabancı Para Çevrim Farkları | C161: 0 | D161: 0 | E161: 0 | F161: 0 | G161: 0 | H161: 0 | I161: 0
B162: Kardan Ayrılan Kısıtlanmış Yedekler | C162: 0 | D162: 0 | E162: 0 | F162: 0 | G162: 0 | H162: 0 | I162: 0
B163: Kardan Ayrılan Kısıtlanmış Yedekler (27) | C163: 0 | D163: 0 | E163: 0 | F163: 0 | G163: 0 | H163: 0 | I163: 0
B164: Zarar Telafi Fonu | C164: 0 | D164: 0 | E164: 0 | F164: 0 | G164: 0 | H164: 0 | I164: 0
B165: Özsermaye Enf. Düz. Farkları | C165: 0 | D165: 0 | E165: 0 | F165: 0 | G165: 0 | H165: 0 | I165: 0
B166: Sermaye Birleşme Fonu | C166: 0 | D166: 0 | E166: 0 | F166: 0 | G166: 0 | H166: 0 | I166: 0
B167: İlave Ödenmiş Sermaye | C167: 6269000 | D167: 8939000 | E167: 50154000 | F167: 81577000 | G167: 222614000 | H167: 696817000 | I167: 145073000
B168: Birikmiş Karlar/Zararlar | C168: 9953000 | D168: 34491000 | E168: 93883000 | F168: 22936000 | G168: 31249000 | H168: 225202000 | I168: 459000
B169: Yatırım Teşvikleri | C169: 3287587000 | D169: 3706507000 | E169: 2879319000 | F169: 3122563000 | G169: 4148615000 | H169: 6901394000 | I169: 1525419000
B170: Satılmaya Haz. Var. Üz. Gerçekleşmemiş Net Gelir | C170: 17181000 | D170: 37564000 | E170: 30775000 | F170: 30497000 | G170: 11908000 | H170: 51418000 | I170: 25088000
B171: Ana ortaklık hisse satış kar/zarar | C171: 264013000 | D171: 326327000 | E171: 401517000 | F171: 518091000 | G171: 763725000 | H171: 1499445000 | I171: 426086000
B172: AZINLIK PAYLARI | C172: 0 | D172: 0 | E172: 0 | F172: 0 | G172: 0 | H172: 0 | I172: 0
B173: TOPLAM PASİFLER | C173: 0 | D173: 0 | E173: 0 | F173: 0 | G173: 0 | H173: 0 | I173: 0
B178: Gelir Tablosu | C178: 2013/12 | D178: 2014/12 | E178: 2015/12 | F178: 2016/12 | G178: 2017/12 | H178: 2018/12 | I178: 2019/03
B179: BRÜT SATIŞLAR | C179: 0 | D179: 0 | E179: 0 | F179: 0 | G179: 0 | H179: 0 | I179: 0
B180: Yurtiçi Satışlar | C180: 0 | D180: 0 | E180: 0 | F180: 0 | G180: 0 | H180: 0 | I180: 0
B181: Yurtdışı Satışlar | C181: 0 | D181: 0 | E181: 0 | F181: 0 | G181: 0 | H181: 0 | I181: 0
B182: Diğer Satışlar | C182: 160815000 | D182: 226864000 | E182: 220664000 | F182: 356672000 | G182: 471650000 | H182: 624243000 | I182: 631931000
B183: SATIŞLARDAN İNDİRİMLER (-) | C183: 0 | D183: 0 | E183: 0 | F183: 0 | G183: 0 | H183: 0 | I183: 0
B184: Satışdan İadeler (-) | C184: 0 | D184: 0 | E184: 0 | F184: 0 | G184: 0 | H184: 0 | I184: 0
B185: Satış İskontoları (-) | C185: 0 | D185: 0 | E185: 0 | F185: 0 | G185: 0 | H185: 0 | I185: 0
B186: Diğer İndirimler (-) | C186: 0 | D186: 0 | E186: 0 | F186: 0 | G186: 0 | H186: 0 | I186: 0
B187: ESAS FAALİYET GELİRLERİ | C187: 29227000 | D187: 27552000 | E187: 13337000 | F187: 715000 | G187: 1822000 | H187: 4601000 | I187: 3993000
B188: SATIŞ GELİRLERİ | C188: 0 | D188: 0 | E188: 0 | F188: 0 | G188: 0 | H188: 0 | I188: 0
B189: FAİZ GELİRİ | C189: 2942042000 | D189: 3159678000 | E189: 2994848000 | F189: 4820455000 | G189: 6039069000 | H189: 5689644000 | I189: 1412532000
B190: SATIŞLARIN MALİYETİ (-) | C190: 0 | D190: 0 | E190: 0 | F190: 0 | G190: 0 | H190: 0 | I190: 0
B191: FAİZ GİDERİ | C191: 169253000 | D191: 200001000 | E191: 223339000 | F191: 214925000 | G191: 271191000 | H191: 351269000 | I191: 120522000
B192: MUHTEMEL KREDİ ZARAR KARŞ. FİN.KİR. ALCK. KARŞ. VE FAKT. DEĞ. DÜŞ. KARŞ. | C192: 1904096000 | D192: 2053317000 | E192: 2179616000 | F192: 2215920000 | G192: 2313232000 | H192: 0 | I192: 0
B193: HİZMET GELİRLERİ | C193: 6173837000 | D193: 6921272000 | E193: 7194860000 | F193: 7946541000 | G193: 10544977000 | H193: 14566128000 | I193: 3373480000
B194: HİZMET GİDERLERİ (-) | C194: 0 | D194: 0 | E194: 0 | F194: 0 | G194: 0 | H194: 0 | I194: 0
B195: KAMBİYO KARI/ZARARI | C195: 0 | D195: 0 | E195: 0 | F195: 0 | G195: 0 | H195: 0 | I195: 0
B196: SERMAYE PİYASASI İŞLEM KARI/ZARARI | C196: 371187000 | D196: 607066000 | E196: 603839000 | F196: 879996000 | G196: 1262507000 | H196: 985899000 | I196: 207513000
B197: ESAS FAALİYETLERDEN DİĞER GİDER/GELİR | C197: 1117797000 | D197: 907986000 | E197: 1446874000 | F197: 4513808000 | G197: 5520253000 | H197: 12956454000 | I197: 11903028000
B198: FAİZ, ÜCRET, PRİM, KOMİSYON VE DİĞER GELİRLER | C198: 0 | D198: 0 | E198: 0 | F198: 0 | G198: 0 | H198: 0 | I198: 0
B199: Kambiyo Gelirleri | C199: 0 | D199: 0 | E199: 0 | F199: 0 | G199: 0 | H199: 0 | I199: 0
B200: Faiz Gelirleri | C200: 0 | D200: 0 | E200: 0 | F200: 0 | G200: 0 | H200: 0 | I200: 0
B201: Kar Payı Gelirleri | C201: 0 | D201: 0 | E201: 0 | F201: 0 | G201: 0 | H201: 0 | I201: 0
B202: Türev Finansal İşlemlerden Kazanç | C202: 0 | D202: 0 | E202: 0 | F202: 0 | G202: 0 | H202: 0 | I202: 0
B203: Portföy İşletmeciliği Faaliyetinden Elde Edilen Gelir | C203: 0 | D203: 0 | E203: 0 | F203: 0 | G203: 0 | H203: 0 | I203: 0
B204: Sigortacılık Hizmetlerinden Elde Edilen Gelir | C204: 0 | D204: 0 | E204: 0 | F204: 0 | G204: 0 | H204: 0 | I204: 0
... 135 more rows

Sheet AKCNS (hidden)
A1: AKCNS
B2: BİLANÇO | C2: 2013/12 | D2: 2014/12 | E2: 2015/12 | F2: 2016/12 | G2: 2017/12 | H2: 2018/12 | I2: 2019/03
B3: DÖNEN VARLIKLAR | C3: 478717210 | D3: 500808551 | E3: 569277391 | F3: 644276471 | G3: 712990460 | H3: 995968009 | I3: 918463307
B4: Hazır Değerler | C4: 15833231 | D4: 13277590 | E4: 21854524 | F4: 23394673 | G4: 52746580 | H4: 275421213 | I4: 136675971
B5: Gayrimenkul Projeleri Kapsamında Açılan Nakit Hesapları | C5: 0 | D5: 0 | E5: 0 | F5: 0 | G5: 0 | H5: 0 | I5: 0
B6: Finansal Yatırımlar | C6: 0 | D6: 0 | E6: 0 | F6: 0 | G6: 0 | H6: 0 | I6: 0
B7: Menkul Kıymetler | C7: 0 | D7: 0 | E7: 0 | F7: 0 | G7: 0 | H7: 0 | I7: 0
B8: Türkiye Cumhuriyet Merkez Bankası Hesabı | C8: 0 | D8: 0 | E8: 0 | F8: 0 | G8: 0 | H8: 0 | I8: 0
B9: Krediler ve Avanslar | C9: 0 | D9: 0 | E9: 0 | F9: 0 | G9: 0 | H9: 0 | I9: 0
B10: Faktoring alacakları (net) | C10: 0 | D10: 0 | E10: 0 | F10: 0 | G10: 0 | H10: 0 | I10: 0
B11: Teminata Verilen Finansal Varlıklar | C11: 0 | D11: 0 | E11: 0 | F11: 0 | G11: 0 | H11: 0 | I11: 0
B12: Kısa Vadeli Ticari Alacaklar | C12: 326582606 | D12: 332836708 | E12: 398938211 | F12: 416772799 | G12: 470008393 | H12: 443942043 | I12: 441563924
B13: Finansal Kiralama Alacakları | C13: 0 | D13: 0 | E13: 0 | F13: 0 | G13: 0 | H13: 0 | I13: 0
B14: Finans Sektörü Faal. Alacaklar | C14: 0 | D14: 0 | E14: 0 | F14: 0 | G14: 0 | H14: 0 | I14: 0
B15: İlişkili Taraflardan Alacaklar | C15: 0 | D15: 0 | E15: 0 | F15: 0 | G15: 0 | H15: 0 | I15: 0
B16: Diğer Kısa Vadeli Alacaklar | C16: 1955926 | D16: 4451778 | E16: 3732343 | F16: 34375714 | G16: 28067951 | H16: 11030948 | I16: 42712280
B17: Canlı Varlıklar | C17: 0 | D17: 0 | E17: 0 | F17: 0 | G17: 0 | H17: 0 | I17: 0
B18: Kullanımı Kısıtlı Banka Bakiyeleri | C18: 0 | D18: 0 | E18: 0 | F18: 0 | G18: 0 | H18: 0 | I18: 0
B19: Stoklar | C19: 117073000 | D19: 138833800 | E19: 135204055 | F19: 159762070 | G19: 150954315 | H19: 244939954 | I19: 274960944
B20: Peşin Ödenen Kira Giderleri | C20: 0 | D20: 0 | E20: 0 | F20: 0 | G20: 0 | H20: 0 | I20: 0
B21: Müşteri Sözleşmelerinden Doğan Varlıklar | C21: 0 | D21: 0 | E21: 0 | F21: 0 | G21: 0 | H21: 0 | I21: 0
B22: İmtiyaz Sözleşmelerine İlişkin Finansal Varlıklar | C22: 0 | D22: 0 | E22: 0 | F22: 0 | G22: 0 | H22: 0 | I22: 0
B23: Türev Enstrümanlar | C23: 0 | D23: 0 | E23: 0 | F23: 0 | G23: 0 | H23: 0 | I23: 0
B24: Ertelenen Vergi Varlıkları | C24: 0 | D24: 0 | E24: 0 | F24: 0 | G24: 0 | H24: 0 | I24: 0
B25: Durdurulan faaliyetler ile ilgili varlıklar | C25: 0 | D25: 0 | E25: 0 | F25: 0 | G25: 0 | H25: 0 | I25: 0
B26: Peşin Ödenmiş Giderler | C26: 17271704 | D26: 11407932 | E26: 9548258 | F26: 9871662 | G26: 11213221 | H26: 20603356 | I26: 20966785
B27: Cari Dönem Vergisiyle İlgili Varlıklar | C27: 0 | D27: 0 | E27: 0 | F27: 0 | G27: 0 | H27: 0 | I27: 0
B28: Nakit Dışı Serbest Kullanılabilir Teminatlar | C28: 0 | D28: 0 | E28: 0 | F28: 0 | G28: 0 | H28: 0 | I28: 0
B29: Diğer Dönen Varlıklar | C29: 743 | D29: 743 | E29: 0 | F29: 99553 | G29: 0 | H29: 30495 | I29: 1583403
B30: Vadesine kadar elde tut. men. kıy. | C30: 0 | D30: 0 | E30: 0 | F30: 0 | G30: 0 | H30: 0 | I30: 0
B31: Satılmaya Hazır Finansal Varlıklar | C31: 0 | D31: 0 | E31: 0 | F31: 0 | G31: 0 | H31: 0 | I31: 0
B32: Alım Satım Amaçlı Menkul Kıymetler | C32: 0 | D32: 0 | E32: 0 | F32: 0 | G32: 0 | H32: 0 | I32: 0
B33: İş Ortaklıklarının Dönen Varlıklar İçindeki Payı | C33: 0 | D33: 0 | E33: 0 | F33: 0 | G33: 0 | H33: 0 | I33: 0
B34: Elden Çıkarılacak Faaliyetler ile İlgili Varlıklar | C34: 0 | D34: 0 | E34: 0 | F34: 0 | G34: 0 | H34: 0 | I34: 0
B35: Satım amaçlı elde tutulan maddi duran varlıklar | C35: 0 | D35: 0 | E35: 0 | F35: 0 | G35: 0 | H35: 0 | I35: 0
B36: Ortaklara Dağıtılmak Üzere Elde Tutulan Duran Varlıklar | C36: 0 | D36: 0 | E36: 0 | F36: 0 | G36: 0 | H36: 0 | I36: 0
B37: DURAN VARLIKLAR | C37: 998501198 | D37: 1101688032 | E37: 1135802540 | F37: 1198916709 | G37: 1203205382 | H37: 1164559084 | I37: 1215876481
B38: Menkul Kıymetler | C38: 0 | D38: 0 | E38: 0 | F38: 0 | G38: 0 | H38: 0 | I38: 0
B39: Krediler ve Avanslar | C39: 0 | D39: 0 | E39: 0 | F39: 0 | G39: 0 | H39: 0 | I39: 0
B40: Faktoring alacakları (net) | C40: 0 | D40: 0 | E40: 0 | F40: 0 | G40: 0 | H40: 0 | I40: 0
B41: Uzun Vadeli Ticari Alacaklar | C41: 0 | D41: 0 | E41: 0 | F41: 0 | G41: 0 | H41: 0 | I41: 0
B42: Finansal Kiralama Alacakları | C42: 0 | D42: 0 | E42: 0 | F42: 0 | G42: 0 | H42: 0 | I42: 0
B43: Finans Sektörü Faal. Alacaklar | C43: 0 | D43: 0 | E43: 0 | F43: 0 | G43: 0 | H43: 0 | I43: 0
B44: İlişkili Taraflardan Alacaklar | C44: 0 | D44: 0 | E44: 0 | F44: 0 | G44: 0 | H44: 0 | I44: 0
B45: Türev Enstrümanlar | C45: 0 | D45: 0 | E45: 0 | F45: 0 | G45: 0 | H45: 0 | I45: 0
B46: Diğer Uzun Vadeli Alacaklar | C46: 565961 | D46: 811889 | E46: 1086173 | F46: 1639051 | G46: 2464863 | H46: 2959286 | I46: 4286213
B47: Finansal Yatırımlar | C47: 164879006 | D47: 220771458 | E47: 212856782 | F47: 218922061 | G47: 193205274 | H47: 140844587 | I47: 130848389
B48: Özkaynak Yöntemiyle Değerlenen Yatırımlar | C48: 0 | D48: 0 | E48: 0 | F48: 0 | G48: 0 | H48: 0 | I48: 0
B49: Canlı Varlıklar | C49: 0 | D49: 0 | E49: 0 | F49: 0 | G49: 0 | H49: 0 | I49: 0
B50: İmtiyaz Sözleşmelerine İlişkin Finansal Varlıklar | C50: 0 | D50: 0 | E50: 0 | F50: 0 | G50: 0 | H50: 0 | I50: 0
B51: Stoklar | C51: 0 | D51: 0 | E51: 0 | F51: 0 | G51: 0 | H51: 0 | I51: 0
B52: Finansal Duran Varlıklar | C52: 0 | D52: 0 | E52: 0 | F52: 0 | G52: 0 | H52: 0 | I52: 0
B53: Pozitif/Negatif Şerefiye | C53: 0 | D53: 0 | E53: 0 | F53: 0 | G53: 0 | H53: 0 | I53: 0
B54: Yatırım Amaçlı Gayrimenkuller | C54: 0 | D54: 0 | E54: 0 | F54: 0 | G54: 0 | H54: 0 | I54: 0
B55: Proje Halindeki Yatırım Amaçlı Gayrimenkuller | C55: 0 | D55: 0 | E55: 0 | F55: 0 | G55: 0 | H55: 0 | I55: 0
B56: Alım Satım Amaçlı Gayrimenkuller (net) | C56: 0 | D56: 0 | E56: 0 | F56: 0 | G56: 0 | H56: 0 | I56: 0
B57: Maddi Duran Varlıklar | C57: 665042156 | D57: 708780431 | E57: 744073243 | F57: 800140028 | G57: 830479327 | H57: 842551526 | I57: 832142839
B58: Kullanım Hakkı Varlıkları | C58: 0 | D58: 0 | E58: 0 | F58: 0 | G58: 0 | H58: 0 | I58: 71014562
B59: Maddi Olmayan Duran Varlıklar | C59: 164686488 | D59: 165639978 | E59: 171828410 | F59: 170150295 | G59: 172499873 | H59: 175391221 | I59: 174263659
B60: Müşteri Sözleşmelerinden Doğan Varlıklar | C60: 0 | D60: 0 | E60: 0 | F60: 0 | G60: 0 | H60: 0 | I60: 0
B61: Ertelenen Vergi Varlıkları | C61: 1132006 | D61: 1071434 | E61: 1018071 | F61: 1008726 | G61: 989811 | H61: 1025662 | I61: 1354556
B62: Cari Dönem Vergisiyle İlgili Duran Varlıklar | C62: 0 | D62: 0 | E62: 0 | F62: 0 | G62: 0 | H62: 0 | I62: 0
B63: Nakit Dışı Serbest Kullanılabilir Teminatlar | C63: 0 | D63: 0 | E63: 0 | F63: 0 | G63: 0 | H63: 0 | I63: 0
B64: Peşin Ödenen Kira Giderleri | C64: 0 | D64: 0 | E64: 0 | F64: 0 | G64: 0 | H64: 0 | I64: 0
B65: Peşin Ödenmiş Giderler | C65: 2195581 | D65: 4612842 | E65: 4939861 | F65: 7056548 | G65: 3566234 | H65: 1786802 | I65: 1966263
B66: Diğer Duran Varlıklar | C66: 0 | D66: 0 | E66: 0 | F66: 0 | G66: 0 | H66: 0 | I66: 0
B67: Vadesine kadar elde tut. men. kıy. | C67: 0 | D67: 0 | E67: 0 | F67: 0 | G67: 0 | H67: 0 | I67: 0
B68: Satılmaya Hazır Finansal Varlıklar | C68: 0 | D68: 0 | E68: 0 | F68: 0 | G68: 0 | H68: 0 | I68: 0
B69: İş Ortaklıklarının Duran Varlıklar İçindeki Payı | C69: 0 | D69: 0 | E69: 0 | F69: 0 | G69: 0 | H69: 0 | I69: 0
B70: Ana Ortaklık Dışı Paylar | C70: 0 | D70: 0 | E70: 0 | F70: 0 | G70: 0 | H70: 0 | I70: 0
B71: TOPLAM AKTİFLER | C71: 1477218408 | D71: 1602496583 | E71: 1705079931 | F71: 1843193180 | G71: 1916195842 | H71: 2160527093 | I71: 2134339788
B72: KISA VADELİ YÜKÜMLÜLÜKLER | C72: 381051707 | D72: 324332668 | E72: 326711352 | F72: 528156480 | G72: 715060491 | H72: 864750419 | I72: 1026072293
B73: Finansal Borçlar | C73: 148554898 | D73: 17798105 | E73: 1361740 | F73: 96895623 | G73: 385419133 | H73: 461546990 | I73: 464887988
B74: Uzun Vadeli Finansal Borçların Kısa Vadeli Kısımları | C74: 825420 | D74: 30415094 | E74: 11047486 | F74: 111621900 | G74: 0 | H74: 0 | I74: 100699438
B75: Mevduat | C75: 0 | D75: 0 | E75: 0 | F75: 0 | G75: 0 | H75: 0 | I75: 0
B76: Türev Araçlar | C76: 0 | D76: 0 | E76: 0 | F76: 0 | G76: 0 | H76: 19766287 | I76: 17288408
B77: Faktoring borçları | C77: 0 | D77: 0 | E77: 0 | F77: 0 | G77: 0 | H77: 0 | I77: 0
B78: Finansal Kiralama İşlemlerinden Borçlar | C78: 0 | D78: 0 | E78: 0 | F78: 0 | G78: 0 | H78: 0 | I78: 0
B79: Finans Sektörü Faaliyetlerinden Borçlar | C79: 0 | D79: 0 | E79: 0 | F79: 0 | G79: 0 | H79: 0 | I79: 0
B80: Sigorta Teknik Karşılığı | C80: 0 | D80: 0 | E80: 0 | F80: 0 | G80: 0 | H80: 0 | I80: 0
B81: Diğer Finansal Yükümlülükler | C81: 0 | D81: 0 | E81: 0 | F81: 0 | G81: 0 | H81: 0 | I81: 0
B82: Ticari Borçlar | C82: 192717127 | D82: 238857608 | E82: 271084281 | F82: 276399902 | G82: 287484493 | H82: 339982221 | I82: 364290041
B83: İlişkili Taraflara Borçlar | C83: 0 | D83: 0 | E83: 0 | F83: 0 | G83: 0 | H83: 0 | I83: 0
B84: Alınan Krediler | C84: 0 | D84: 0 | E84: 0 | F84: 0 | G84: 0 | H84: 0 | I84: 0
B85: Diğer Borçlar | C85: 7087963 | D85: 7403233 | E85: 9839692 | F85: 10940729 | G85: 12988540 | H85: 12016581 | I85: 50257969
B86: Alınan Avanslar | C86: 0 | D86: 0 | E86: 0 | F86: 0 | G86: 0 | H86: 0 | I86: 0
B87: Devlet Teşvik ve Yardımları | C87: 0 | D87: 0 | E87: 0 | F87: 0 | G87: 0 | H87: 0 | I87: 0
B88: Ertelenmiş Gelirler | C88: 10528621 | D88: 3617335 | E88: 4338719 | F88: 4776908 | G88: 3487917 | H88: 5142166 | I88: 3010808
B89: Cari Dönem Vergi Yükümlülüğü | C89: 9934096 | D89: 9500180 | E89: 13984954 | F89: 10645831 | G89: 8813502 | H89: 4293754 | I89: 1338776
B90: Cari Dönem Vergisi ile İlgili Borçlar | C90: 0 | D90: 0 | E90: 0 | F90: 0 | G90: 0 | H90: 0 | I90: 0
B91: Bloke Hesaplar | C91: 0 | D91: 0 | E91: 0 | F91: 0 | G91: 0 | H91: 0 | I91: 0
B92: Müşteri Sözleşmelerinden Doğan Yükümlülükler | C92: 0 | D92: 0 | E92: 0 | F92: 0 | G92: 0 | H92: 0 | I92: 0
B93: Özkaynak Yöntemiyle Değerlenen Yatırımlardan Yükümlülükler | C93: 0 | D93: 0 | E93: 0 | F93: 0 | G93: 0 | H93: 0 | I93: 0
B94: Borç ve Gider Karşılıkları | C94: 6778445 | D94: 11654507 | E94: 9911364 | F94: 8781871 | G94: 8841080 | H94: 14630722 | I94: 12767694
B95: Çalışanlara Sağlanan Faydalara İlişkin Karşılıklar | C95: 4625137 | D95: 5086606 | E95: 5143116 | F95: 8093716 | G95: 8025826 | H95: 7371698 | I95: 11531171
B96: Ertelenen Vergi Yükümlülüğü | C96: 0 | D96: 0 | E96: 0 | F96: 0 | G96: 0 | H96: 0 | I96: 0
B97: Durdurulan faaliyetler ile ilgili yükümlülükler | C97: 0 | D97: 0 | E97: 0 | F97: 0 | G97: 0 | H97: 0 | I97: 0
B98: Diğer Kısa Vadeli Borçlar | C98: 0 | D98: 0 | E98: 0 | F98: 0 | G98: 0 | H98: 0 | I98: 0
B99: İş Ortaklıklarının Kısa Vadeli Yükümlülükler İçindeki Payı | C99: 0 | D99: 0 | E99: 0 | F99: 0 | G99: 0 | H99: 0 | I99: 0
B100: Elden Çıkarılacak Faaliyetler ile İlgili Yükümlülükler | C100: 0 | D100: 0 | E100: 0 | F100: 0 | G100: 0 | H100: 0 | I100: 0
B101: Ortaklara Dağıtılmak Üzere Elde Tutulan Varlık Gruplarına İlişkin Yükümlülükler | C101: 0 | D101: 0 | E101: 0 | F101: 0 | G101: 0 | H101: 0 | I101: 0
B102: UZUN VADELİ YÜKÜMLÜLÜKLER | C102: 96061153 | D102: 122256671 | E102: 177766146 | F102: 87582685 | G102: 92162311 | H102: 188210624 | I102: 146109728
B103: Mevduatlar | C103: 0 | D103: 0 | E103: 0 | F103: 0 | G103: 0 | H103: 0 | I103: 0
B104: Finansal Borçlar | C104: 29922691 | D104: 50081606 | E104: 100535155 | F104: 0 | G104: 0 | H104: 103614022 | I104: 62192295
B105: Faktoring borçları | C105: 0 | D105: 0 | E105: 0 | F105: 0 | G105: 0 | H105: 0 | I105: 0
B106: Finansal Kiralama İşlemlerinden Borçlar | C106: 0 | D106: 0 | E106: 0 | F106: 0 | G106: 0 | H106: 0 | I106: 0
B107: Finans Sektörü Faaliyetlerinden Borçlar | C107: 0 | D107: 0 | E107: 0 | F107: 0 | G107: 0 | H107: 0 | I107: 0
B108: Sigorta teknik karşılıkları | C108: 0 | D108: 0 | E108: 0 | F108: 0 | G108: 0 | H108: 0 | I108: 0
B109: Diğer Finansal Yükümlülükler | C109: 0 | D109: 0 | E109: 0 | F109: 0 | G109: 0 | H109: 0 | I109: 0
B110: Ticari Borçlar | C110: 0 | D110: 0 | E110: 0 | F110: 0 | G110: 0 | H110: 0 | I110: 0
B111: İlişkili Taraflara Borçlar | C111: 0 | D111: 0 | E111: 0 | F111: 0 | G111: 0 | H111: 0 | I111: 0
B112: Alınan Krediler | C112: 0 | D112: 0 | E112: 0 | F112: 0 | G112: 0 | H112: 0 | I112: 0
B113: Diğer Borçlar | C113: 0 | D113: 0 | E113: 0 | F113: 0 | G113: 0 | H113: 0 | I113: 0
B114: Müşteri Sözleşmelerinden Doğan Yükümlülükler | C114: 0 | D114: 0 | E114: 0 | F114: 0 | G114: 0 | H114: 0 | I114: 0
B115: Bloke Hesaplar | C115: 0 | D115: 0 | E115: 0 | F115: 0 | G115: 0 | H115: 0 | I115: 0
B116: Alınan Avanslar | C116: 0 | D116: 0 | E116: 0 | F116: 0 | G116: 0 | H116: 0 | I116: 0
B117: Çalışanlara Sağlanan Faydalar Kapsamında Borçlar | C117: 0 | D117: 0 | E117: 0 | F117: 0 | G117: 0 | H117: 0 | I117: 0
B118: Borç ve Gider Karşılıkları | C118: 21814474 | D118: 25534996 | E118: 29987422 | F118: 39729160 | G118: 44834267 | H118: 48694472 | I118: 50610847
B119: Türev Finansal Araçlardan Borçlar | C119: 0 | D119: 0 | E119: 0 | F119: 0 | G119: 0 | H119: 0 | I119: 0
B120: Cari Dönem Vergisiyle İlgili Borçlar | C120: 0 | D120: 0 | E120: 0 | F120: 0 | G120: 0 | H120: 0 | I120: 0
B121: Ertelenen Vergi Yükümlülüğü | C121: 44323988 | D121: 46640069 | E121: 47243569 | F121: 47853525 | G121: 47328044 | H121: 35902130 | I121: 33306586
B122: Devlet Teşvik ve Yardımları | C122: 0 | D122: 0 | E122: 0 | F122: 0 | G122: 0 | H122: 0 | I122: 0
B123: Ertelenmiş Gelirler | C123: 0 | D123: 0 | E123: 0 | F123: 0 | G123: 0 | H123: 0 | I123: 0
B124: Devam Eden Sözleşmeler Hakediş Bedelleri | C124: 0 | D124: 0 | E124: 0 | F124: 0 | G124: 0 | H124: 0 | I124: 0
B125: Pozitif/Negatif Şerefiye | C125: 0 | D125: 0 | E125: 0 | F125: 0 | G125: 0 | H125: 0 | I125: 0
B126: Diğer Uzun Vadeli Borçlar | C126: 0 | D126: 0 | E126: 0 | F126: 0 | G126: 0 | H126: 0 | I126: 0
B127: İş Ortaklıklarının Uzun Vadeli Yükümlülükler İçindeki Payı | C127: 0 | D127: 0 | E127: 0 | F127: 0 | G127: 0 | H127: 0 | I127: 0
B128: ÖZ SERMAYE (AZINLIK PAYI DAHİL) | C128: 1000105548 | D128: 1155907244 | E128: 1200602433 | F128: 1227454015 | G128: 1108973040 | H128: 1107566050 | I128: 962157767
B129: ANA ORTAKLIK DIŞI ÖZSERMAYE | C129: 12534029 | D129: 12866919 | E129: 13429123 | F129: 12466908 | G129: 12032293 | H129: 13892682 | I129: 11802845
B130: Aile Üyeleri | C130: 0 | D130: 0 | E130: 0 | F130: 0 | G130: 0 | H130: 0 | I130: 0
B131: Diğerleri | C131: 0 | D131: 0 | E131: 0 | F131: 0 | G131: 0 | H131: 0 | I131: 0
B132: ÖZ SERMAYE (ANA ORTAKLIĞA AİT) | C132: 987571519 | D132: 1143040325 | E132: 1187173310 | F132: 1214987107 | G132: 1096940747 | H132: 1093673368 | I132: 950354922
B133: Sermaye | C133: 191447068 | D133: 191447068 | E133: 191447068 | F133: 191447068 | G133: 191447068 | H133: 191447068 | I133: 191447068
B134: Ödenmeyen Sermaye(-) | C134: 0 | D134: 0 | E134: 0 | F134: 0 | G134: 0 | H134: 0 | I134: 0
B135: Karşılıklı İştirak Sermaye Düzeltmesi | C135: 0 | D135: 0 | E135: 0 | F135: 0 | G135: 0 | H135: 0 | I135: 0
B136: Paylara İlişkin Primler/İskontolar | C136: 0 | D136: 0 | E136: 0 | F136: 0 | G136: 0 | H136: 0 | I136: 0
B137: İşletmenin Geri Satın Alınan Kendi Hisseleri | C137: 0 | D137: 0 | E137: 0 | F137: 0 | G137: 0 | H137: 0 | I137: 0
B138: İşletmenin Geri Alınan Kendi Hisse Senetlerinin Satışından Doğan Kar | C138: 0 | D138: 0 | E138: 0 | F138: 0 | G138: 0 | H138: 0 | I138: 0
B139: Sermaye Avansı | C139: 0 | D139: 0 | E139: 0 | F139: 0 | G139: 0 | H139: 0 | I139: 0
B140: Kar veya Zararda Yeniden Sınıflandırılmayacak Birikmiş Diğer Kapsamlı Gel. veya Gid. | C140: 359209 | D140: -1603056 | E140: -4117746 | F140: -10827947 | G140: -15953261 | H140: -18523585 | I140: -18523585
B141: Kar veya Zararda Yeniden Sınıflandırılacak Birikmiş Diğer Kapsamlı Gelir. veya Gid. | C141: 119098785 | D141: 172109332 | E141: 163927269 | F141: 169689284 | G141: 145258336 | H141: 95515684 | I141: 85259296
B142: Sermaye Yedekleri | C142: 0 | D142: 0 | E142: 0 | F142: 0 | G142: 0 | H142: 0 | I142: 0
B143: Sermaye Taahhütleri (-) | C143: 0 | D143: 0 | E143: 0 | F143: 0 | G143: 0 | H143: 0 | I143: 0
B144: Katkı sermaye | C144: 0 | D144: 0 | E144: 0 | F144: 0 | G144: 0 | H144: 0 | I144: 0
B145: Azınlık Hisseleri Satış Opsiyonu Değerleme Fonu | C145: 0 | D145: 0 | E145: 0 | F145: 0 | G145: 0 | H145: 0 | I145: 0
B146: Emisyon Primi | C146: 0 | D146: 0 | E146: 0 | F146: 0 | G146: 0 | H146: 0 | I146: 0
B147: Yeniden Değerleme Artışı | C147: 119098785 | D147: 172109332 | E147: 159809523 | F147: 158861337 | G147: 129305075 | H147: 76992099 | I147: 66735711
B148: Kar Yedekleri | C148: 0 | D148: 0 | E148: 0 | F148: 0 | G148: 0 | H148: 0 | I148: 0
B149: Dağıtılmamış Kar | C149: 0 | D149: 0 | E149: 0 | F149: 0 | G149: 0 | H149: 0 | I149: 0
B150: Sermaye artırımı ile ilgili masraflar | C150: 0 | D150: 0 | E150: 0 | F150: 0 | G150: 0 | H150: 0 | I150: 0
B151: Nakit Akım Koruması ile İlgili Birikmiş Kar | C151: 0 | D151: 0 | E151: 0 | F151: 0 | G151: 0 | H151: 0 | I151: 0
B152: Karşılıklı İştirak Serm. Düzeltmesinin Nom. Tut. Aşan Kısım | C152: 0 | D152: 0 | E152: 0 | F152: 0 | G152: 0 | H152: 0 | I152: 0
B153: Finansal Yatırımlar Değer Artış Fonu | C153: 0 | D153: 0 | E153: 0 | F153: 0 | G153: 0 | H153: 0 | I153: 0
B154: Diğer Özkaynak Payları | C154: 0 | D154: 0 | E154: 0 | F154: 0 | G154: 0 | H154: 0 | I154: 0
B155: Diğer Yedekler | C155: 0 | D155: 0 | E155: 0 | F155: 0 | G155: 0 | H155: 0 | I155: 0
B156: Net Dönem Karı | C156: 157887004 | D156: 248768945 | E156: 281120173 | F156: 286354013 | G156: 148693675 | H156: 177897040 | I156: 19712702
B157: Dönem Zararı (-) | C157: 0 | D157: 0 | E157: 0 | F157: 0 | G157: 0 | H157: 0 | I157: 0
B158: Geçmiş Yıl Karları | C158: 173128956 | D158: 172921693 | E158: 173435887 | F158: 171809916 | G158: 171719153 | H158: 170869425 | I158: 170579641
B159: Net Dön. Kar. Ser. Hes. Ed. Tran. Ed. M. Dur. V. Sa. Karı | C159: 0 | D159: 0 | E159: 0 | F159: 0 | G159: 0 | H159: 0 | I159: 0
B160: Geçmiş Yıl Zararları (-) | C160: 0 | D160: 0 | E160: 0 | F160: 0 | G160: 0 | H160: 0 | I160: 0
B161: Yabancı Para Çevrim Farkları | C161: 0 | D161: 0 | E161: 0 | F161: 0 | G161: 0 | H161: 0 | I161: 0
B162: Kardan Ayrılan Kısıtlanmış Yedekler | C162: 112472915 | D162: 126218761 | E162: 148183077 | F162: 173337191 | G162: 222598194 | H162: 243290154 | I162: 268702218
B163: Kardan Ayrılan Kısıtlanmış Yedekler (27) | C163: 0 | D163: 0 | E163: 0 | F163: 0 | G163: 0 | H163: 0 | I163: 0
B164: Zarar Telafi Fonu | C164: 0 | D164: 0 | E164: 0 | F164: 0 | G164: 0 | H164: 0 | I164: 0
B165: Özsermaye Enf. Düz. Farkları | C165: 233177582 | D165: 233177582 | E165: 233177582 | F165: 233177582 | G165: 233177582 | H165: 233177582 | I165: 233177582
B166: Sermaye Birleşme Fonu | C166: 0 | D166: 0 | E166: 0 | F166: 0 | G166: 0 | H166: 0 | I166: 0
B167: İlave Ödenmiş Sermaye | C167: 0 | D167: 0 | E167: 0 | F167: 0 | G167: 0 | H167: 0 | I167: 0
B168: Birikmiş Karlar/Zararlar | C168: 0 | D168: 0 | E168: 0 | F168: 0 | G168: 0 | H168: 0 | I168: 0
B169: Yatırım Teşvikleri | C169: 0 | D169: 0 | E169: 0 | F169: 0 | G169: 0 | H169: 0 | I169: 0
B170: Satılmaya Haz. Var. Üz. Gerçekleşmemiş Net Gelir | C170: 0 | D170: 0 | E170: 0 | F170: 0 | G170: 0 | H170: 0 | I170: 0
B171: Ana ortaklık hisse satış kar/zarar | C171: 0 | D171: 0 | E171: 0 | F171: 0 | G171: 0 | H171: 0 | I171: 0
B172: AZINLIK PAYLARI | C172: 0 | D172: 0 | E172: 0 | F172: 0 | G172: 0 | H172: 0 | I172: 0
B173: TOPLAM PASİFLER | C173: 1477218408 | D173: 1602496583 | E173: 1705079931 | F173: 1843193180 | G173: 1916195842 | H173: 2160527093 | I173: 2134339788
B178: Gelir Tablosu | C178: 2013/12 | D178: 2014/12 | E178: 2015/12 | F178: 2016/12 | G178: 2017/12 | H178: 2018/12 | I178: 2019/03
B179: BRÜT SATIŞLAR | C179: 1236362411 | D179: 1460682028 | E179: 1539677934 | F179: 1525703508 | G179: 1582199899 | H179: 1768981825 | I179: 418465085
B180: Yurtiçi Satışlar | C180: 1053163062 | D180: 1304881144 | E180: 1355686631 | F180: 1335161153 | G180: 1369087002 | H180: 1388277177 | I180: 248030066
B181: Yurtdışı Satışlar | C181: 169572272 | D181: 139773933 | E181: 167673260 | F181: 170537892 | G181: 181712238 | H181: 320661429 | I181: 153719307
B182: Diğer Satışlar | C182: 13627077 | D182: 16026951 | E182: 16318043 | F182: 20004463 | G182: 31400659 | H182: 60043219 | I182: 16715712
B183: SATIŞLARDAN İNDİRİMLER (-) | C183: 34137843 | D183: 49831793 | E183: 71144451 | F183: 64648218 | G183: 63199184 | H183: 53411724 | I183: 11145042
B184: Satışdan İadeler (-) | C184: 0 | D184: 0 | E184: 0 | F184: 0 | G184: 0 | H184: 0 | I184: 0
B185: Satış İskontoları (-) | C185: 8636741 | D185: 19772330 | E185: 38687594 | F185: 30003824 | G185: 24048898 | H185: 18958454 | I185: 2390516
B186: Diğer İndirimler (-) | C186: 25501102 | D186: 30059463 | E186: 32456857 | F186: 34644394 | G186: 39150286 | H186: 34453270 | I186: 8754526
B187: ESAS FAALİYET GELİRLERİ | C187: 0 | D187: 0 | E187: 0 | F187: 0 | G187: 0 | H187: 0 | I187: 0
B188: SATIŞ GELİRLERİ | C188: 1202224568 | D188: 1410850235 | E188: 1468533483 | F188: 1461055290 | G188: 1519000715 | H188: 1715570101 | I188: 407320043
B189: FAİZ GELİRİ | C189: 0 | D189: 0 | E189: 0 | F189: 0 | G189: 0 | H189: 0 | I189: 0
B190: SATIŞLARIN MALİYETİ (-) | C190: 938624067 | D190: 1019225623 | E190: 1040067231 | F190: 1047113286 | G190: 1213196413 | H190: 1350035351 | I190: 372986745
B191: FAİZ GİDERİ | C191: 0 | D191: 0 | E191: 0 | F191: 0 | G191: 0 | H191: 0 | I191: 0
B192: MUHTEMEL KREDİ ZARAR KARŞ. FİN.KİR. ALCK. KARŞ. VE FAKT. DEĞ. DÜŞ. KARŞ. | C192: 0 | D192: 0 | E192: 0 | F192: 0 | G192: 0 | H192: 0 | I192: 0
B193: HİZMET GELİRLERİ | C193: 0 | D193: 0 | E193: 0 | F193: 0 | G193: 0 | H193: 0 | I193: 0
B194: HİZMET GİDERLERİ (-) | C194: 0 | D194: 0 | E194: 0 | F194: 0 | G194: 0 | H194: 0 | I194: 0
B195: KAMBİYO KARI/ZARARI | C195: 0 | D195: 0 | E195: 0 | F195: 0 | G195: 0 | H195: 0 | I195: 0
B196: SERMAYE PİYASASI İŞLEM KARI/ZARARI | C196: 0 | D196: 0 | E196: 0 | F196: 0 | G196: 0 | H196: 0 | I196: 0
B197: ESAS FAALİYETLERDEN DİĞER GİDER/GELİR | C197: 0 | D197: 0 | E197: 0 | F197: 0 | G197: 0 | H197: 0 | I197: 0
B198: FAİZ, ÜCRET, PRİM, KOMİSYON VE DİĞER GELİRLER | C198: 0 | D198: 0 | E198: 0 | F198: 0 | G198: 0 | H198: 0 | I198: 0
B199: Kambiyo Gelirleri | C199: 0 | D199: 0 | E199: 0 | F199: 0 | G199: 0 | H199: 0 | I199: 0
B200: Faiz Gelirleri | C200: 0 | D200: 0 | E200: 0 | F200: 0 | G200: 0 | H200: 0 | I200: 0
B201: Kar Payı Gelirleri | C201: 0 | D201: 0 | E201: 0 | F201: 0 | G201: 0 | H201: 0 | I201: 0
B202: Türev Finansal İşlemlerden Kazanç | C202: 0 | D202: 0 | E202: 0 | F202: 0 | G202: 0 | H202: 0 | I202: 0
B203: Portföy İşletmeciliği Faaliyetinden Elde Edilen Gelir | C203: 0 | D203: 0 | E203: 0 | F203: 0 | G203: 0 | H203: 0 | I203: 0
B204: Sigortacılık Hizmetlerinden Elde Edilen Gelir | C204: 0 | D204: 0 | E204: 0 | F204: 0 | G204: 0 | H204: 0 | I204: 0
... 135 more rows

Sheet AKGUV (hidden)
A1: AKGUV
B2: BİLANÇO | C2: 2013/12 | D2: 2014/12 | E2: 2015/12 | F2: 2016/12 | G2: 2017/12 | H2: 2018/12 | I2: 2019/03
B3: DÖNEN VARLIKLAR | C3: 69697714 | D3: 103842100 | E3: 110378933 | F3: 103723524 | G3: 120760984 | H3: 86750453 | I3: 93320888
B4: Hazır Değerler | C4: 3244611 | D4: 8833159 | E4: 2698044 | F4: 3315449 | G4: 17778536 | H4: 2800401 | I4: 2177066
B5: Gayrimenkul Projeleri Kapsamında Açılan Nakit Hesapları | C5: 0 | D5: 0 | E5: 0 | F5: 0 | G5: 0 | H5: 0 | I5: 0
B6: Finansal Yatırımlar | C6: 0 | D6: 0 | E6: 0 | F6: 0 | G6: 0 | H6: 0 | I6: 0
B7: Menkul Kıymetler | C7: 0 | D7: 0 | E7: 0 | F7: 0 | G7: 0 | H7: 0 | I7: 0
B8: Türkiye Cumhuriyet Merkez Bankası Hesabı | C8: 0 | D8: 0 | E8: 0 | F8: 0 | G8: 0 | H8: 0 | I8: 0
B9: Krediler ve Avanslar | C9: 0 | D9: 0 | E9: 0 | F9: 0 | G9: 0 | H9: 0 | I9: 0
B10: Faktoring alacakları (net) | C10: 0 | D10: 0 | E10: 0 | F10: 0 | G10: 0 | H10: 0 | I10: 0
B11: Teminata Verilen Finansal Varlıklar | C11: 0 | D11: 0 | E11: 0 | F11: 0 | G11: 0 | H11: 0 | I11: 0
B12: Kısa Vadeli Ticari Alacaklar | C12: 33501663 | D12: 54006121 | E12: 60501694 | F12: 69836789 | G12: 58710445 | H12: 34625561 | I12: 37957081
B13: Finansal Kiralama Alacakları | C13: 0 | D13: 0 | E13: 0 | F13: 0 | G13: 0 | H13: 0 | I13: 0
B14: Finans Sektörü Faal. Alacaklar | C14: 0 | D14: 0 | E14: 0 | F14: 0 | G14: 0 | H14: 0 | I14: 0
B15: İlişkili Taraflardan Alacaklar | C15: 0 | D15: 0 | E15: 0 | F15: 0 | G15: 0 | H15: 0 | I15: 0
B16: Diğer Kısa Vadeli Alacaklar | C16: 20847996 | D16: 22836619 | E16: 25634808 | F16: 19334843 | G16: 21921541 | H16: 30871959 | I16: 34520998
B17: Canlı Varlıklar | C17: 0 | D17: 0 | E17: 0 | F17: 0 | G17: 0 | H17: 0 | I17: 0
B18: Kullanımı Kısıtlı Banka Bakiyeleri | C18: 0 | D18: 0 | E18: 0 | F18: 0 | G18: 0 | H18: 0 | I18: 0
B19: Stoklar | C19: 745759 | D19: 2458160 | E19: 10192750 | F19: 4053752 | G19: 8638524 | H19: 9803871 | I19: 9758236
B20: Peşin Ödenen Kira Giderleri | C20: 0 | D20: 0 | E20: 0 | F20: 0 | G20: 0 | H20: 0 | I20: 0
B21: Müşteri Sözleşmelerinden Doğan Varlıklar | C21: 0 | D21: 0 | E21: 0 | F21: 0 | G21: 0 | H21: 0 | I21: 0
B22: İmtiyaz Sözleşmelerine İlişkin Finansal Varlıklar | C22: 0 | D22: 0 | E22: 0 | F22: 0 | G22: 0 | H22: 0 | I22: 0
B23: Türev Enstrümanlar | C23: 0 | D23: 0 | E23: 0 | F23: 0 | G23: 0 | H23: 0 | I23: 0
B24: Ertelenen Vergi Varlıkları | C24: 0 | D24: 0 | E24: 0 | F24: 0 | G24: 0 | H24: 0 | I24: 0
B25: Durdurulan faaliyetler ile ilgili varlıklar | C25: 0 | D25: 0 | E25: 0 | F25: 0 | G25: 0 | H25: 0 | I25: 0
B26: Peşin Ödenmiş Giderler | C26: 6461390 | D26: 12297614 | E26: 9162834 | F26: 2941637 | G26: 2769883 | H26: 6627587 | I26: 7183375
B27: Cari Dönem Vergisiyle İlgili Varlıklar | C27: 1780040 | D27: 2494595 | E27: 0 | F27: 0 | G27: 5987 | H27: 44642 | I27: 3649
B28: Nakit Dışı Serbest Kullanılabilir Teminatlar | C28: 0 | D28: 0 | E28: 0 | F28: 0 | G28: 0 | H28: 0 | I28: 0
B29: Diğer Dönen Varlıklar | C29: 3116255 | D29: 915832 | E29: 2188803 | F29: 4241054 | G29: 10936068 | H29: 1976432 | I29: 1720483
B30: Vadesine kadar elde tut. men. kıy. | C30: 0 | D30: 0 | E30: 0 | F30: 0 | G30: 0 | H30: 0 | I30: 0
B31: Satılmaya Hazır Finansal Varlıklar | C31: 0 | D31: 0 | E31: 0 | F31: 0 | G31: 0 | H31: 0 | I31: 0
B32: Alım Satım Amaçlı Menkul Kıymetler | C32: 0 | D32: 0 | E32: 0 | F32: 0 | G32: 0 | H32: 0 | I32: 0
B33: İş Ortaklıklarının Dönen Varlıklar İçindeki Payı | C33: 0 | D33: 0 | E33: 0 | F33: 0 | G33: 0 | H33: 0 | I33: 0
B34: Elden Çıkarılacak Faaliyetler ile İlgili Varlıklar | C34: 0 | D34: 0 | E34: 0 | F34: 0 | G34: 0 | H34: 0 | I34: 0
B35: Satım amaçlı elde tutulan maddi duran varlıklar | C35: 0 | D35: 0 | E35: 0 | F35: 0 | G35: 0 | H35: 0 | I35: 0
B36: Ortaklara Dağıtılmak Üzere Elde Tutulan Duran Varlıklar | C36: 0 | D36: 0 | E36: 0 | F36: 0 | G36: 0 | H36: 0 | I36: 0
B37: DURAN VARLIKLAR | C37: 23598938 | D37: 26411413 | E37: 20409826 | F37: 34489258 | G37: 48878442 | H37: 49777454 | I37: 48247642
B38: Menkul Kıymetler | C38: 0 | D38: 0 | E38: 0 | F38: 0 | G38: 0 | H38: 0 | I38: 0
B39: Krediler ve Avanslar | C39: 0 | D39: 0 | E39: 0 | F39: 0 | G39: 0 | H39: 0 | I39: 0
B40: Faktoring alacakları (net) | C40: 0 | D40: 0 | E40: 0 | F40: 0 | G40: 0 | H40: 0 | I40: 0
B41: Uzun Vadeli Ticari Alacaklar | C41: 0 | D41: 0 | E41: 0 | F41: 3001 | G41: 0 | H41: 0 | I41: 0
B42: Finansal Kiralama Alacakları | C42: 0 | D42: 0 | E42: 0 | F42: 0 | G42: 0 | H42: 0 | I42: 0
B43: Finans Sektörü Faal. Alacaklar | C43: 0 | D43: 0 | E43: 0 | F43: 0 | G43: 0 | H43: 0 | I43: 0
B44: İlişkili Taraflardan Alacaklar | C44: 0 | D44: 0 | E44: 0 | F44: 0 | G44: 0 | H44: 0 | I44: 0
B45: Türev Enstrümanlar | C45: 0 | D45: 0 | E45: 0 | F45: 0 | G45: 0 | H45: 0 | I45: 0
B46: Diğer Uzun Vadeli Alacaklar | C46: 0 | D46: 0 | E46: 3001 | F46: 0 | G46: 3001 | H46: 3001 | I46: 3001
B47: Finansal Yatırımlar | C47: 0 | D47: 0 | E47: 0 | F47: 0 | G47: 0 | H47: 0 | I47: 0
B48: Özkaynak Yöntemiyle Değerlenen Yatırımlar | C48: 0 | D48: 0 | E48: 0 | F48: 0 | G48: 0 | H48: 5477232 | I48: 5146772
B49: Canlı Varlıklar | C49: 0 | D49: 0 | E49: 0 | F49: 0 | G49: 0 | H49: 0 | I49: 0
B50: İmtiyaz Sözleşmelerine İlişkin Finansal Varlıklar | C50: 0 | D50: 0 | E50: 0 | F50: 0 | G50: 0 | H50: 0 | I50: 0
B51: Stoklar | C51: 0 | D51: 0 | E51: 0 | F51: 0 | G51: 0 | H51: 0 | I51: 0
B52: Finansal Duran Varlıklar | C52: 0 | D52: 0 | E52: 0 | F52: 0 | G52: 0 | H52: 0 | I52: 0
B53: Pozitif/Negatif Şerefiye | C53: 0 | D53: 0 | E53: 0 | F53: 0 | G53: 0 | H53: 0 | I53: 0
B54: Yatırım Amaçlı Gayrimenkuller | C54: 0 | D54: 0 | E54: 0 | F54: 0 | G54: 0 | H54: 0 | I54: 0
B55: Proje Halindeki Yatırım Amaçlı Gayrimenkuller | C55: 0 | D55: 0 | E55: 0 | F55: 0 | G55: 0 | H55: 0 | I55: 0
B56: Alım Satım Amaçlı Gayrimenkuller (net) | C56: 0 | D56: 0 | E56: 0 | F56: 0 | G56: 0 | H56: 0 | I56: 0
B57: Maddi Duran Varlıklar | C57: 22283409 | D57: 20036868 | E57: 16198280 | F57: 25894189 | G57: 30202548 | H57: 28532109 | I57: 27776362
B58: Kullanım Hakkı Varlıkları | C58: 0 | D58: 0 | E58: 0 | F58: 0 | G58: 0 | H58: 0 | I58: 109474
B59: Maddi Olmayan Duran Varlıklar | C59: 135368 | D59: 1053887 | E59: 3654270 | F59: 8000260 | G59: 14066397 | H59: 14947481 | I59: 14687160
B60: Müşteri Sözleşmelerinden Doğan Varlıklar | C60: 0 | D60: 0 | E60: 0 | F60: 0 | G60: 0 | H60: 0 | I60: 0
B61: Ertelenen Vergi Varlıkları | C61: 0 | D61: 0 | E61: 554275 | F61: 591808 | G61: 474031 | H61: 693567 | I61: 524873
B62: Cari Dönem Vergisiyle İlgili Duran Varlıklar | C62: 0 | D62: 0 | E62: 0 | F62: 0 | G62: 0 | H62: 0 | I62: 0
B63: Nakit Dışı Serbest Kullanılabilir Teminatlar | C63: 0 | D63: 0 | E63: 0 | F63: 0 | G63: 0 | H63: 0 | I63: 0
B64: Peşin Ödenen Kira Giderleri | C64: 0 | D64: 0 | E64: 0 | F64: 0 | G64: 0 | H64: 0 | I64: 0
B65: Peşin Ödenmiş Giderler | C65: 1180161 | D65: 5320658 | E65: 0 | F65: 0 | G65: 4132465 | H65: 124064 | I65: 0
B66: Diğer Duran Varlıklar | C66: 0 | D66: 0 | E66: 0 | F66: 0 | G66: 0 | H66: 0 | I66: 0
B67: Vadesine kadar elde tut. men. kıy. | C67: 0 | D67: 0 | E67: 0 | F67: 0 | G67: 0 | H67: 0 | I67: 0
B68: Satılmaya Hazır Finansal Varlıklar | C68: 0 | D68: 0 | E68: 0 | F68: 0 | G68: 0 | H68: 0 | I68: 0
B69: İş Ortaklıklarının Duran Varlıklar İçindeki Payı | C69: 0 | D69: 0 | E69: 0 | F69: 0 | G69: 0 | H69: 0 | I69: 0
B70: Ana Ortaklık Dışı Paylar | C70: 0 | D70: 0 | E70: 0 | F70: 0 | G70: 0 | H70: 0 | I70: 0
B71: TOPLAM AKTİFLER | C71: 93296652 | D71: 130253513 | E71: 130788759 | F71: 138212782 | G71: 169639426 | H71: 136527907 | I71: 141568530
B72: KISA VADELİ YÜKÜMLÜLÜKLER | C72: 38611218 | D72: 67609400 | E72: 59444073 | F72: 69395500 | G72: 63536800 | H72: 33401860 | I72: 42753584
B73: Finansal Borçlar | C73: 632415 | D73: 12291164 | E73: 14902846 | F73: 9588228 | G73: 10723469 | H73: 6637900 | I73: 194375
B74: Uzun Vadeli Finansal Borçların Kısa Vadeli Kısımları | C74: 847638 | D74: 10581076 | E74: 10749260 | F74: 6690140 | G74: 7523393 | H74: 10025539 | I74: 15467370
B75: Mevduat | C75: 0 | D75: 0 | E75: 0 | F75: 0 | G75: 0 | H75: 0 | I75: 0
B76: Türev Araçlar | C76: 0 | D76: 0 | E76: 0 | F76: 0 | G76: 0 | H76: 0 | I76: 0
B77: Faktoring borçları | C77: 0 | D77: 0 | E77: 0 | F77: 0 | G77: 0 | H77: 0 | I77: 0
B78: Finansal Kiralama İşlemlerinden Borçlar | C78: 0 | D78: 0 | E78: 0 | F78: 0 | G78: 0 | H78: 0 | I78: 0
B79: Finans Sektörü Faaliyetlerinden Borçlar | C79: 0 | D79: 0 | E79: 0 | F79: 0 | G79: 0 | H79: 0 | I79: 0
B80: Sigorta Teknik Karşılığı | C80: 0 | D80: 0 | E80: 0 | F80: 0 | G80: 0 | H80: 0 | I80: 0
B81: Diğer Finansal Yükümlülükler | C81: 0 | D81: 0 | E81: 0 | F81: 0 | G81: 0 | H81: 0 | I81: 0
B82: Ticari Borçlar | C82: 7125145 | D82: 9728222 | E82: 4172734 | F82: 4224702 | G82: 5312135 | H82: 3930229 | I82: 5181718
B83: İlişkili Taraflara Borçlar | C83: 0 | D83: 0 | E83: 0 | F83: 0 | G83: 0 | H83: 0 | I83: 0
B84: Alınan Krediler | C84: 0 | D84: 0 | E84: 0 | F84: 0 | G84: 0 | H84: 0 | I84: 0
B85: Diğer Borçlar | C85: 6032751 | D85: 2514981 | E85: 456614 | F85: 1985337 | G85: 353185 | H85: 3932884 | I85: 7226878
B86: Alınan Avanslar | C86: 0 | D86: 0 | E86: 0 | F86: 0 | G86: 0 | H86: 0 | I86: 0
B87: Devlet Teşvik ve Yardımları | C87: 0 | D87: 0 | E87: 0 | F87: 0 | G87: 0 | H87: 0 | I87: 0
B88: Ertelenmiş Gelirler | C88: 0 | D88: 0 | E88: 0 | F88: 0 | G88: 0 | H88: 0 | I88: 404871
B89: Cari Dönem Vergi Yükümlülüğü | C89: 2478316 | D89: 3317351 | E89: 77643 | F89: 436911 | G89: 133760 | H89: 20989 | I89: 0
B90: Cari Dönem Vergisi ile İlgili Borçlar | C90: 0 | D90: 0 | E90: 0 | F90: 0 | G90: 0 | H90: 0 | I90: 0
B91: Bloke Hesaplar | C91: 0 | D91: 0 | E91: 0 | F91: 0 | G91: 0 | H91: 0 | I91: 0
B92: Müşteri Sözleşmelerinden Doğan Yükümlülükler | C92: 0 | D92: 0 | E92: 0 | F92: 0 | G92: 0 | H92: 0 | I92: 0
B93: Özkaynak Yöntemiyle Değerlenen Yatırımlardan Yükümlülükler | C93: 0 | D93: 0 | E93: 0 | F93: 0 | G93: 0 | H93: 0 | I93: 0
B94: Borç ve Gider Karşılıkları | C94: 0 | D94: 0 | E94: 0 | F94: 0 | G94: 0 | H94: 0 | I94: 0
B95: Çalışanlara Sağlanan Faydalara İlişkin Karşılıklar | C95: 12589122 | D95: 22853449 | E95: 23153357 | F95: 37876075 | G95: 32998300 | H95: 7286523 | I95: 11463498
B96: Ertelenen Vergi Yükümlülüğü | C96: 0 | D96: 0 | E96: 0 | F96: 0 | G96: 0 | H96: 0 | I96: 0
B97: Durdurulan faaliyetler ile ilgili yükümlülükler | C97: 0 | D97: 0 | E97: 0 | F97: 0 | G97: 0 | H97: 0 | I97: 0
B98: Diğer Kısa Vadeli Borçlar | C98: 8905831 | D98: 6323157 | E98: 5931619 | F98: 8594107 | G98: 6492558 | H98: 1567796 | I98: 2814874
B99: İş Ortaklıklarının Kısa Vadeli Yükümlülükler İçindeki Payı | C99: 0 | D99: 0 | E99: 0 | F99: 0 | G99: 0 | H99: 0 | I99: 0
B100: Elden Çıkarılacak Faaliyetler ile İlgili Yükümlülükler | C100: 0 | D100: 0 | E100: 0 | F100: 0 | G100: 0 | H100: 0 | I100: 0
B101: Ortaklara Dağıtılmak Üzere Elde Tutulan Varlık Gruplarına İlişkin Yükümlülükler | C101: 0 | D101: 0 | E101: 0 | F101: 0 | G101: 0 | H101: 0 | I101: 0
B102: UZUN VADELİ YÜKÜMLÜLÜKLER | C102: 182716 | D102: 566355 | E102: 7595633 | F102: 1729895 | G102: 4770346 | H102: 1079081 | I102: 154071
B103: Mevduatlar | C103: 0 | D103: 0 | E103: 0 | F103: 0 | G103: 0 | H103: 0 | I103: 0
B104: Finansal Borçlar | C104: 30226 | D104: 0 | E104: 6713351 | F104: 877527 | G104: 3930104 | H104: 200674 | I104: 77117
B105: Faktoring borçları | C105: 0 | D105: 0 | E105: 0 | F105: 0 | G105: 0 | H105: 0 | I105: 0
B106: Finansal Kiralama İşlemlerinden Borçlar | C106: 0 | D106: 0 | E106: 0 | F106: 0 | G106: 0 | H106: 0 | I106: 0
B107: Finans Sektörü Faaliyetlerinden Borçlar | C107: 0 | D107: 0 | E107: 0 | F107: 0 | G107: 0 | H107: 0 | I107: 0
B108: Sigorta teknik karşılıkları | C108: 0 | D108: 0 | E108: 0 | F108: 0 | G108: 0 | H108: 0 | I108: 0
B109: Diğer Finansal Yükümlülükler | C109: 0 | D109: 0 | E109: 0 | F109: 0 | G109: 0 | H109: 0 | I109: 0
B110: Ticari Borçlar | C110: 0 | D110: 0 | E110: 0 | F110: 0 | G110: 0 | H110: 0 | I110: 0
B111: İlişkili Taraflara Borçlar | C111: 0 | D111: 0 | E111: 0 | F111: 0 | G111: 0 | H111: 0 | I111: 0
B112: Alınan Krediler | C112: 0 | D112: 0 | E112: 0 | F112: 0 | G112: 0 | H112: 0 | I112: 0
B113: Diğer Borçlar | C113: 0 | D113: 0 | E113: 0 | F113: 0 | G113: 0 | H113: 0 | I113: 0
B114: Müşteri Sözleşmelerinden Doğan Yükümlülükler | C114: 0 | D114: 0 | E114: 0 | F114: 0 | G114: 0 | H114: 0 | I114: 0
B115: Bloke Hesaplar | C115: 0 | D115: 0 | E115: 0 | F115: 0 | G115: 0 | H115: 0 | I115: 0
B116: Alınan Avanslar | C116: 0 | D116: 0 | E116: 0 | F116: 0 | G116: 0 | H116: 0 | I116: 0
B117: Çalışanlara Sağlanan Faydalar Kapsamında Borçlar | C117: 0 | D117: 0 | E117: 0 | F117: 74873 | G117: 0 | H117: 0 | I117: 0
B118: Borç ve Gider Karşılıkları | C118: 33299 | D118: 61058 | E118: 110291 | F118: 0 | G118: 139156 | H118: 94315 | I118: 63852
B119: Türev Finansal Araçlardan Borçlar | C119: 0 | D119: 0 | E119: 0 | F119: 0 | G119: 0 | H119: 0 | I119: 0
B120: Cari Dönem Vergisiyle İlgili Borçlar | C120: 0 | D120: 0 | E120: 0 | F120: 0 | G120: 0 | H120: 0 | I120: 0
B121: Ertelenen Vergi Yükümlülüğü | C121: 119191 | D121: 505297 | E121: 771991 | F121: 777495 | G121: 701086 | H121: 784092 | I121: 13102
B122: Devlet Teşvik ve Yardımları | C122: 0 | D122: 0 | E122: 0 | F122: 0 | G122: 0 | H122: 0 | I122: 0
B123: Ertelenmiş Gelirler | C123: 0 | D123: 0 | E123: 0 | F123: 0 | G123: 0 | H123: 0 | I123: 0
B124: Devam Eden Sözleşmeler Hakediş Bedelleri | C124: 0 | D124: 0 | E124: 0 | F124: 0 | G124: 0 | H124: 0 | I124: 0
B125: Pozitif/Negatif Şerefiye | C125: 0 | D125: 0 | E125: 0 | F125: 0 | G125: 0 | H125: 0 | I125: 0
B126: Diğer Uzun Vadeli Borçlar | C126: 0 | D126: 0 | E126: 0 | F126: 0 | G126: 0 | H126: 0 | I126: 0
B127: İş Ortaklıklarının Uzun Vadeli Yükümlülükler İçindeki Payı | C127: 0 | D127: 0 | E127: 0 | F127: 0 | G127: 0 | H127: 0 | I127: 0
B128: ÖZ SERMAYE (AZINLIK PAYI DAHİL) | C128: 54502718 | D128: 62077758 | E128: 63749053 | F128: 67087387 | G128: 101332280 | H128: 102046966 | I128: 98660875
B129: ANA ORTAKLIK DIŞI ÖZSERMAYE | C129: -67781 | D129: 509346 | E129: 1105291 | F129: 1859556 | G129: 5046883 | H129: 4191723 | I129: 4112265
B130: Aile Üyeleri | C130: 0 | D130: 0 | E130: 0 | F130: 0 | G130: 0 | H130: 0 | I130: 0
B131: Diğerleri | C131: 0 | D131: 0 | E131: 0 | F131: 0 | G131: 0 | H131: 0 | I131: 0
B132: ÖZ SERMAYE (ANA ORTAKLIĞA AİT) | C132: 54570499 | D132: 61568412 | E132: 62643762 | F132: 65227831 | G132: 96285397 | H132: 97855243 | I132: 94548610
B133: Sermaye | C133: 22500000 | D133: 26400000 | E133: 31000000 | F133: 31000000 | G133: 37000000 | H133: 41365000 | I133: 41365000
B134: Ödenmeyen Sermaye(-) | C134: 0 | D134: 0 | E134: 0 | F134: 0 | G134: 0 | H134: 0 | I134: 0
B135: Karşılıklı İştirak Sermaye Düzeltmesi | C135: 0 | D135: 0 | E135: 0 | F135: 0 | G135: 0 | H135: 0 | I135: 0
B136: Paylara İlişkin Primler/İskontolar | C136: 11523840 | D136: 11523840 | E136: 11523840 | F136: 11523840 | G136: 35913748 | H136: 35895970 | I136: 35895970
B137: İşletmenin Geri Satın Alınan Kendi Hisseleri | C137: 0 | D137: 0 | E137: 0 | F137: -1130941 | G137: -1130941 | H137: -3105834 | I137: -3105834
B138: İşletmenin Geri Alınan Kendi Hisse Senetlerinin Satışından Doğan Kar | C138: 0 | D138: 0 | E138: 0 | F138: 0 | G138: 0 | H138: 0 | I138: 0
B139: Sermaye Avansı | C139: 0 | D139: 0 | E139: 0 | F139: 0 | G139: 0 | H139: 0 | I139: 0
B140: Kar veya Zararda Yeniden Sınıflandırılmayacak Birikmiş Diğer Kapsamlı Gel. veya Gid. | C140: 9612673 | D140: 8717047 | E140: 6666863 | F140: 6641961 | G140: 6629620 | H140: 6604093 | I140: 6606447
B141: Kar veya Zararda Yeniden Sınıflandırılacak Birikmiş Diğer Kapsamlı Gelir. veya Gid. | C141: 0 | D141: 0 | E141: 0 | F141: 0 | G141: 0 | H141: 0 | I141: 0
B142: Sermaye Yedekleri | C142: 11523840 | D142: 11523840 | E142: 11523840 | F142: 11523840 | G142: 35913748 | H142: 35808063 | I142: 35810417
B143: Sermaye Taahhütleri (-) | C143: 0 | D143: 0 | E143: 0 | F143: 0 | G143: 0 | H143: 0 | I143: 0
B144: Katkı sermaye | C144: 0 | D144: 0 | E144: 0 | F144: 0 | G144: 0 | H144: 0 | I144: 0
B145: Azınlık Hisseleri Satış Opsiyonu Değerleme Fonu | C145: 0 | D145: 0 | E145: 0 | F145: 0 | G145: 0 | H145: 0 | I145: 0
B146: Emisyon Primi | C146: 0 | D146: 0 | E146: 0 | F146: 0 | G146: 0 | H146: 0 | I146: 0
B147: Yeniden Değerleme Artışı | C147: 9612673 | D147: 8717047 | E147: 6666863 | F147: 6641961 | G147: 6629620 | H147: 6692000 | I147: 6692000
B148: Kar Yedekleri | C148: 0 | D148: 0 | E148: 0 | F148: 0 | G148: 0 | H148: 0 | I148: 0
B149: Dağıtılmamış Kar | C149: 0 | D149: 0 | E149: 0 | F149: 0 | G149: 0 | H149: 0 | I149: 0
B150: Sermaye artırımı ile ilgili masraflar | C150: 0 | D150: 0 | E150: 0 | F150: 0 | G150: 0 | H150: 0 | I150: 0
B151: Nakit Akım Koruması ile İlgili Birikmiş Kar | C151: 0 | D151: 0 | E151: 0 | F151: 0 | G151: 0 | H151: 0 | I151: 0
B152: Karşılıklı İştirak Serm. Düzeltmesinin Nom. Tut. Aşan Kısım | C152: 0 | D152: 0 | E152: 0 | F152: 0 | G152: 0 | H152: 0 | I152: 0
B153: Finansal Yatırımlar Değer Artış Fonu | C153: 0 | D153: 0 | E153: 0 | F153: 0 | G153: 0 | H153: 0 | I153: 0
B154: Diğer Özkaynak Payları | C154: 0 | D154: 0 | E154: 0 | F154: 0 | G154: 0 | H154: 0 | I154: 0
B155: Diğer Yedekler | C155: 0 | D155: 0 | E155: 0 | F155: 0 | G155: 0 | H155: 0 | I155: 0
B156: Net Dönem Karı | C156: 9873912 | D156: 11837631 | E156: 7197423 | F156: 8988797 | G156: 6521305 | H156: 3870157 | I156: 0
B157: Dönem Zararı (-) | C157: 0 | D157: 0 | E157: 0 | F157: 0 | G157: 0 | H157: 0 | I157: 2740543
B158: Geçmiş Yıl Karları | C158: 149216 | D158: 1165859 | E158: 3592989 | F158: 4080582 | G158: 6456027 | H158: 7749087 | I158: 11037928
B159: Net Dön. Kar. Ser. Hes. Ed. Tran. Ed. M. Dur. V. Sa. Karı | C159: 0 | D159: 0 | E159: 0 | F159: 0 | G159: 0 | H159: 0 | I159: 0
B160: Geçmiş Yıl Zararları (-) | C160: 0 | D160: 0 | E160: 0 | F160: 0 | G160: 0 | H160: 0 | I160: 0
B161: Yabancı Para Çevrim Farkları | C161: 0 | D161: 0 | E161: 0 | F161: 0 | G161: 0 | H161: 0 | I161: 0
B162: Kardan Ayrılan Kısıtlanmış Yedekler | C162: 910858 | D162: 1924035 | E162: 2662647 | F162: 4123592 | G162: 4895638 | H162: 5476770 | I162: 5489642
B163: Kardan Ayrılan Kısıtlanmış Yedekler (27) | C163: 0 | D163: 0 | E163: 0 | F163: 0 | G163: 0 | H163: 0 | I163: 0
B164: Zarar Telafi Fonu | C164: 0 | D164: 0 | E164: 0 | F164: 0 | G164: 0 | H164: 0 | I164: 0
B165: Özsermaye Enf. Düz. Farkları | C165: 0 | D165: 0 | E165: 0 | F165: 0 | G165: 0 | H165: 0 | I165: 0
B166: Sermaye Birleşme Fonu | C166: 0 | D166: 0 | E166: 0 | F166: 0 | G166: 0 | H166: 0 | I166: 0
B167: İlave Ödenmiş Sermaye | C167: 0 | D167: 0 | E167: 0 | F167: 0 | G167: 0 | H167: 0 | I167: 0
B168: Birikmiş Karlar/Zararlar | C168: 0 | D168: 0 | E168: 0 | F168: 0 | G168: 0 | H168: 0 | I168: 0
B169: Yatırım Teşvikleri | C169: 0 | D169: 0 | E169: 0 | F169: 0 | G169: 0 | H169: 0 | I169: 0
B170: Satılmaya Haz. Var. Üz. Gerçekleşmemiş Net Gelir | C170: 0 | D170: 0 | E170: 0 | F170: 0 | G170: 0 | H170: 0 | I170: 0
B171: Ana ortaklık hisse satış kar/zarar | C171: 0 | D171: 0 | E171: 0 | F171: 0 | G171: 0 | H171: 0 | I171: 0
B172: AZINLIK PAYLARI | C172: 0 | D172: 0 | E172: 0 | F172: 0 | G172: 0 | H172: 0 | I172: 0
B173: TOPLAM PASİFLER | C173: 93296652 | D173: 130253513 | E173: 130788759 | F173: 138212782 | G173: 169639426 | H173: 136527907 | I173: 141568530
B178: Gelir Tablosu | C178: 2013/12 | D178: 2014/12 | E178: 2015/12 | F178: 2016/12 | G178: 2017/12 | H178: 2018/12 | I178: 2019/03
B179: BRÜT SATIŞLAR | C179: 210099817 | D179: 309308217 | E179: 353248114 | F179: 472108873 | G179: 302041782 | H179: 151446658 | I179: 16326338
